Workbook

Sheet Notes
B1: Comment
A2: DST version 10.7
A3: Modified by | B3: Steve Bay
A4: Date | B4: 2016-01-21
A5: Reason | B5: Revised ver. 10.6.5 to eliminate errors in BAF calculation present in 10.6.6
A6: Changes
A7: CRT = 0.95 x E-5 | B7: Cancer threshold revised to incorporate rounding
A8: NHT = 0.95 | B8: Noncancer threshold revised to incorporate rounding
A9: SCT = 0.45 | B9: Sed linkage threshold revised to incorporate rounding
A10: Added NA flags to summary | B10: Conditional statements to check for lack of chemistry data. Returns NA instead of 0 when data are missing
A11: Added scientific notation to summary | B11: All assessment summary results formatted for scientific notation to better show small values
A13: DST version 10.6.8
A14: Modified by | B14: Steve Bay and Darrin Greenstein
A15: Date | B15: 2016-03-10
A16: Item/sheet
A17: Input | B17: Added calculation of total fish tissue contaminant concentration to correspond to BAF values (sum of values from contaminant specific sheet)
A18: ContaminantSpecific | B18: Captured estimated tissue concentration and BAF for all food web dietary components from FoodWebCalculations sheet.
A20: Version 10.6.9
A21: Macro | B21: Macro (BiotaContamCalcs) revised by Shelly Moore to use loop for copying and pasting concentration and BSAF values. Corrected error from previous versions where values were not properly updated.
A23: Version 10.7
A24: Modified by | B24: Steve Bay
A25: Date | B25: 2016-12-21
A26: Changes | B26: Revised assessment summary to evaluate OEHHA ATL thresholds and apply 5 category consumption risk classification table to produce revised assessment. Original assessment results based on cancer risk/noncancer hazard and 4 category table retained for comparison.
B27: Added new VLOOKUP table to DefaultParameters tab to provide new site assessment categories
A29: Analysis Details | B29: Conducted 12-21-2016 by Steve Bay
B30: Used HHSQO statewide analysis data from: SQO DST_10 6 6 Mission Bay A Use 8-5-14.xls

Sheet Input
A1: Inputs
A2: Analysis Descriptor: | B2: Mission Bay 2016 | F2: Chlordane Conc | H2: Dieldrin Conc | J2: DDTs Conc | L2: PCBs Conc
A3: Dietary Guild | B3: Seafood Species | C3: Guild | D3: Portion of human seafood | E3: Lipid (%) | F3: Mean (ng/g) | G3: SE | H3: Mean (ng/g) | I3: SE | J3: Mean (ng/g) | K3: SE | L3: Mean (ng/g) | M3: SE | N3: Chlordanes BSAF (calc) | O3: Dieldrin BSAF (calc) | P3: DDTs BSAF (calc) | Q3: PCBs BSAF (calc) | R3: Chlordanes¶ Conc (ng/g) | S3: Dieldrin Conc (ng/g) | T3: DDTs Conc (ng/g) | U3: PCBs Conc (ng/g)
A4: 1 | C4: 1Piscivore | D4: 0 | N4: =SUM('Contaminant Specific'!P$4:P$8)/SUM('Contaminant Specific'!C$4:C$8) -> 0.6251781418 | O4: ='Contaminant Specific'!P$9/'Contaminant Specific'!C$9 -> 0.1249953853 | P4: =SUM('Contaminant Specific'!P$10:P$15)/SUM('Contaminant Specific'!C$10:C$15) -> 4.050138981 | Q4: =SUM('Contaminant Specific'!P$16:P$76)/SUM('Contaminant Specific'!C$16:C$76) -> 3.476878727 | R4: =SUM('Contaminant Specific'!P$4:P$8) -> 1.387895475 | S4: =SUM('Contaminant Specific'!P$9) -> 0.06249769263 | T4: =SUM('Contaminant Specific'!P$10:P$15) -> 231.6002474 | U4: =SUM('Contaminant Specific'!P$16:P$76) -> 120.6576787
A5: 2 | B5: Spotted sand bass | C5: 2Benthic diet with piscivory | D5: 0.5 | E5: 0.0044 | F5: 2.0425 | G5: 0.9099794884 | H5: 0.25 | I5: 0 | J5: 2.407333333 | K5: 1.300596475 | L5: 71.07914286 | M5: 36.3098109 | N5: =SUM('Contaminant Specific'!Q$4:Q$8)/SUM('Contaminant Specific'!C$4:C$8) -> 1.656692181 | O5: ='Contaminant Specific'!Q$9/'Contaminant Specific'!C$9 -> 0.5017514246 | P5: =SUM('Contaminant Specific'!Q$10:Q$15)/SUM('Contaminant Specific'!C$10:C$15) -> 7.297320635 | Q5: =SUM('Contaminant Specific'!Q$16:Q$76)/SUM('Contaminant Specific'!C$16:C$76) -> 6.188752179 | R5: =SUM('Contaminant Specific'!Q$4:Q$8) -> 3.677856643 | S5: =SUM('Contaminant Specific'!Q$9) -> 0.2508757123 | T5: =SUM('Contaminant Specific'!Q$10:Q$15) -> 417.284758 | U5: =SUM('Contaminant Specific'!Q$16:Q$76) -> 214.767477
A6: 3 | C6: 3Benthic and pelagic with piscivory | D6: 0 | N6: =SUM('Contaminant Specific'!R$4:R$8)/SUM('Contaminant Specific'!C$4:C$8) -> 0.2578066097 | O6: ='Contaminant Specific'!R$9/'Contaminant Specific'!C$9 -> 0.05350494232 | P6: =SUM('Contaminant Specific'!R$10:R$15)/SUM('Contaminant Specific'!C$10:C$15) -> 2.25706052 | Q6: =SUM('Contaminant Specific'!R$16:R$76)/SUM('Contaminant Specific'!C$16:C$76) -> 1.978260548 | R6: =SUM('Contaminant Specific'!R$4:R$8) -> 0.5723306736 | S6: =SUM('Contaminant Specific'!R$9) -> 0.02675247116 | T6: =SUM('Contaminant Specific'!R$10:R$15) -> 129.0661326 | U6: =SUM('Contaminant Specific'!R$16:R$76) -> 68.65132332
A7: 4 | C7: 4Benthic without piscivory | D7: 0 | N7: =SUM('Contaminant Specific'!S$4:S$8)/SUM('Contaminant Specific'!C$4:C$8) -> 0.5613493866 | O7: ='Contaminant Specific'!S$9/'Contaminant Specific'!C$9 -> 0.1842245159 | P7: =SUM('Contaminant Specific'!S$10:S$15)/SUM('Contaminant Specific'!C$10:C$15) -> 2.293485734 | Q7: =SUM('Contaminant Specific'!S$16:S$76)/SUM('Contaminant Specific'!C$16:C$76) -> 1.9868918 | R7: =SUM('Contaminant Specific'!S$4:S$8) -> 1.246195638 | S7: =SUM('Contaminant Specific'!S$9) -> 0.09211225796 | T7: =SUM('Contaminant Specific'!S$10:S$15) -> 131.149046 | U7: =SUM('Contaminant Specific'!S$16:S$76) -> 68.95085254
A8: 5 | B8: Shiner perch | C8: 5Benthic and pelagic without piscivory | D8: 0.5 | E8: 0.0125 | F8: 2.5275 | G8: 0.4157433102 | H8: 0.25 | I8: 0 | J8: 7.283 | K8: 2.510696369 | L8: 1.9195 | M8: 0.9761609114 | N8: =SUM('Contaminant Specific'!T$4:T$8)/SUM('Contaminant Specific'!C$4:C$8) -> 0.8241861233 | O8: ='Contaminant Specific'!T$9/'Contaminant Specific'!C$9 -> 0.2703991206 | P8: =SUM('Contaminant Specific'!T$10:T$15)/SUM('Contaminant Specific'!C$10:C$15) -> 3.783974158 | Q8: =SUM('Contaminant Specific'!T$16:T$76)/SUM('Contaminant Specific'!C$16:C$76) -> 3.327317664 | R8: =SUM('Contaminant Specific'!T$4:T$8) -> 1.829693194 | S8: =SUM('Contaminant Specific'!T$9) -> 0.1351995603 | T8: =SUM('Contaminant Specific'!T$10:T$15) -> 216.3800687 | U8: =SUM('Contaminant Specific'!T$16:T$76) -> 115.4674802
A9: 6 | C9: 6Benthic with herbivory | D9: 0 | N9: =SUM('Contaminant Specific'!U$4:U$8)/SUM('Contaminant Specific'!C$4:C$8) -> 0.4327566042 | O9: ='Contaminant Specific'!U$9/'Contaminant Specific'!C$9 -> 0.2846983999 | P9: =SUM('Contaminant Specific'!U$10:U$15)/SUM('Contaminant Specific'!C$10:C$15) -> 1.122321929 | Q9: =SUM('Contaminant Specific'!U$16:U$76)/SUM('Contaminant Specific'!C$16:C$76) -> 1.056669918 | R9: =SUM('Contaminant Specific'!U$4:U$8) -> 0.9607196613 | S9: =SUM('Contaminant Specific'!U$9) -> 0.1423492 | T9: =SUM('Contaminant Specific'!U$10:U$15) -> 64.17805357 | U9: =SUM('Contaminant Specific'!U$16:U$76) -> 36.6694813
A10: 7 | C10: 7Benthic and pelagic with herbivory | D10: 0 | N10: =SUM('Contaminant Specific'!V$4:V$8)/SUM('Contaminant Specific'!C$4:C$8) -> 0.1167659336 | O10: ='Contaminant Specific'!V$9/'Contaminant Specific'!C$9 -> 0.04321709235 | P10: =SUM('Contaminant Specific'!V$10:V$15)/SUM('Contaminant Specific'!C$10:C$15) -> 0.6454996545 | Q10: =SUM('Contaminant Specific'!V$16:V$76)/SUM('Contaminant Specific'!C$16:C$76) -> 0.6011477705 | R10: =SUM('Contaminant Specific'!V$4:V$8) -> 0.2592203726 | S10: =SUM('Contaminant Specific'!V$9) -> 0.02160854617 | T10: =SUM('Contaminant Specific'!V$10:V$15) -> 36.91179003 | U10: =SUM('Contaminant Specific'!V$16:V$76) -> 20.86155435
A11: 8 | C11: 8Pelagic with benthic herbivory | D11: 0 | N11: =SUM('Contaminant Specific'!W$4:W$8)/SUM('Contaminant Specific'!C$4:C$8) -> 0.2587924027 | O11: ='Contaminant Specific'!W$9/'Contaminant Specific'!C$9 -> 0.2095595583 | P11: =SUM('Contaminant Specific'!W$10:W$15)/SUM('Contaminant Specific'!C$10:C$15) -> 0.5166418647 | Q11: =SUM('Contaminant Specific'!W$16:W$76)/SUM('Contaminant Specific'!C$16:C$76) -> 0.5358471279 | R11: =SUM('Contaminant Specific'!W$4:W$8) -> 0.574519134 | S11: =SUM('Contaminant Specific'!W$9) -> 0.1047797791 | T11: =SUM('Contaminant Specific'!W$10:W$15) -> 29.54327845 | U11: =SUM('Contaminant Specific'!W$16:W$76) -> 18.59543449
C13: Sediment contaminant concentration | F13: Chlordane Conc | H13: Dieldrin Conc | J13: DDTs Conc | L13: PCBs Conc
F14: Mean (ng/g) | G14: SE | H14: Mean (ng/g) | I14: SE | J14: Mean (ng/g) | K14: SE | L14: Mean (ng/g) | M14: SE
B15: Sediment contaminant concentration | C15: Sediment contaminant concentration | F15: 0.5 | G15: 0 | H15: 0.5 | I15: 0 | J15: 1.191666667 | K15: 0.7651876585 | L15: 1.334545455 | M15: 1.602161083
C17: Parameter name | D17: Mean | E17: SD
B18: Daily seafood consumption rate (CR and CRSD) (kg/d) | C18: CR | D18: 0.032 | E18: 0.032
B19: Area of Site (SA) (km^2) | C19: SA | D19: 8.056839 | E19: NA
B20: Length of site (SL) (km) | C20: SL | D20: 6 | E20: NA
B21: Sediment Total Organic Carbon (TOC) (%) | C21: TOC | D21: 0.0163 | E21: NA
B22: Dissolved Organic Carbon Content of water (DOCw) (kg/L) | C22: DOCw | D22: 2.148e-06 | E22: NA
B23: Particulate Organic Carbon Content of water (POCw) (kg/L) | C23: POCw | D23: 1.571e-06 | E23: NA
B24: Mean Water Temp (T) (Deg. C) | C24: T | D24: 17.4 | E24: NA
B25: Salinity (Sal) (PSU) | C25: Sal | D25: 25.4 | E25: NA
B26: Dissolved Oxygen Concentration (DO) (mg/L) | C26: DO | D26: 9 | E26: NA
B27: Suspended solid concentration in water column (SSC) (kg/L) | C27: SSC | D27: 2.27e-05 | E27: NA
C29: Chlordanes | D29: Dieldrin | E29: DDTs | F29: PCBs
A30: Outputs | B30: Seafood Carcinogenic Risk | C30: =[2]!simOutput(MCS!D14, "CancerRiskChlordanes") ->  | D30: =[2]!simOutput(MCS!E14, "CancerRiskDieldrin") ->  | E30: =[2]!simOutput(MCS!F14, "CancerRiskDDTs") ->  | F30: =[2]!simOutput(MCS!G14, "CancerRiskPCBs") -> 
B31: Seafood Noncancer Hazard | C31: =[2]!simOutput(MCS!D15, "NoncanHazardChlordanes") ->  | D31: =[2]!simOutput(MCS!E15, "NoncanHazardDieldrin") ->  | E31: =[2]!simOutput(MCS!F15, "NoncanHazardDDTs") ->  | F31: =[2]!simOutput(MCS!G15, "NoncanHazardPCBs") -> 
B32: Sediment Linkage | C32: =[2]!simOutput(MCS!D29, "SedLinkChlordanes") ->  | D32: =[2]!simOutput(MCS!E29, "SedLinkDieldrin") ->  | E32: =[2]!simOutput(MCS!F29, "SedLinkDDTs") ->  | F32: =[2]!simOutput(MCS!G29, "SedLinkPCBs") -> 
B39: Guild species | C39: Dietary guild | D39: Entry Cell
C40: Piscivore | D40: B4
B41: California halibut | C41: Piscivore | D41: B4
B42: Lingcod | C42: Piscivore | D42: B4
B43: Other | C43: Piscivore | D43: B4
B44: Pacific angel shark | C44: Piscivore | D44: B4
C45: Benthic diet with piscivory | D45: B5
B46: Barred sand bass | C46: Benthic diet with piscivory | D46: B5
B47: Bat Ray | C47: Benthic diet with piscivory | D47: B5
B48: Bonefish | C48: Benthic diet with piscivory | D48: B5
B49: Brown rockfish | C49: Benthic diet with piscivory | D49: B5
B50: Brown smoothhound | C50: Benthic diet with piscivory | D50: B5
B51: Cabezon | C51: Benthic diet with piscivory | D51: B5
B52: Channel catfish | C52: Benthic diet with piscivory | D52: B5
B53: English sole | C53: Benthic diet with piscivory | D53: B5
B54: Grass rockfish | C54: Benthic diet with piscivory | D54: B5
B55: Leopard shark | C55: Benthic diet with piscivory | D55: B5
B56: Other | C56: Benthic diet with piscivory | D56: B5
B57: Pacific sanddab | C57: Benthic diet with piscivory | D57: B5
B58: Redtail surfperch | C58: Benthic diet with piscivory | D58: B5
B59: Spotted sand bass | C59: Benthic diet with piscivory | D59: B5
B60: Starry flounder | C60: Benthic diet with piscivory | D60: B5
B61: White catfish | C61: Benthic diet with piscivory | D61: B5
B62: White seabass | C62: Benthic diet with piscivory | D62: B5
B63: Yellowfin croaker | C63: Benthic diet with piscivory | D63: B5
C64: Benthic and pelagic diet with piscivory | D64: B6
B65: Black rockfish | C65: Benthic and pelagic diet with piscivory | D65: B6
B66: Blue rockfish | C66: Benthic and pelagic diet with piscivory | D66: B6
B67: Kelp bass | C67: Benthic and pelagic diet with piscivory | D67: B6
B68: Other | C68: Benthic and pelagic diet with piscivory | D68: B6
B69: Pacific sanddab | C69: Benthic and pelagic diet with piscivory | D69: B6
B70: Queenfish | C70: Benthic and pelagic diet with piscivory | D70: B6
C71: Benthic diet without piscivory | D71: B7
B72: Barred surfperch | C72: Benthic diet without piscivory | D72: B7
B73: Fantail sole | C73: Benthic diet without piscivory | D73: B7
B74: Other | C74: Benthic diet without piscivory | D74: B7
B75: Pile perch | C75: Benthic diet without piscivory | D75: B7
B76: Rubberlip seaperch | C76: Benthic diet without piscivory | D76: B7
B77: Sargo | C77: Benthic diet without piscivory | D77: B7
B78: Spotfin croaker | C78: Benthic diet without piscivory | D78: B7
B79: Striped seaperch | C79: Benthic diet without piscivory | D79: B7
B80: Walleye surfperch | C80: Benthic diet without piscivory | D80: B7
B81: White croaker | C81: Benthic diet without piscivory | D81: B7
B82: White seaperch | C82: Benthic diet without piscivory | D82: B7
C83: Benthic and pelagic diet without piscivory | D83: B8
B84: Black perch | C84: Benthic and pelagic diet without piscivory | D84: B8
B85: Dwarf perch | C85: Benthic and pelagic diet without piscivory | D85: B8
B86: Other | C86: Benthic and pelagic diet without piscivory | D86: B8
B87: Shiner perch | C87: Benthic and pelagic diet without piscivory | D87: B8
C88: Benthic diet with herbivory | D88: B9
B89: Common carp | C89: Benthic diet with herbivory | D89: B9
B90: Monkeyface prickleback | C90: Benthic diet with herbivory | D90: B9
B91: Other | C91: Benthic diet with herbivory | D91: B9
B92: Señorita | C92: Benthic diet with herbivory | D92: B9
C93: Benthic and pelagic diet with herbivory | D93: B10
B94: Other | C94: Benthic and pelagic diet with herbivory | D94: B10
B95: Topsmelt | C95: Benthic and pelagic diet with herbivory | D95: B10
C96: Pelagic diet with benthic herbivory | D96: B11
B97: Other | C97: Pelagic diet with benthic herbivory | D97: B11
B98: Striped mullet | C98: Pelagic diet with benthic herbivory | D98: B11

Sheet OutputSummary
A1: Human Health SQO Assessment Summary
A3: Analysis Descriptor: | B3: =Input!B2 -> Mission Bay 2016
A4: Date/Time of Food Web Macro Run: | B4: ='Contaminant Specific'!E1 -> 2017-07-27T13:13:58.110
A5: Date/Time of Simulation: | B5: =INDIRECT("'"&B6&"'"&"!B5")+INDIRECT("'"&B6&"'"&"!B6") -> 2017-07-27T13:33:23 | C5: =IF(B4>B5, "Warning: Food Web Macro must be run before running simulation!",IF(B5-B4>0.5, "Warning: Food Web Macro must be run before running simulation!","")) -> 
A6: Simulation output source: | B6: ='Assessment Summary'!A32 -> Example Simulation Output
A8: Compound | B8: Indicator | C8: 25th Percentile | D8: 50% Percentile or Mean | E8: 75th Percentile | F8: 95th Percentile | G8: Category Score | H8: Category
A9: Chlordanes | B9: Mean Weighted Observed Tissue Conc. (ng/g) | D9: ='Assessment Summary'!D35 -> 2.285
B10: Mean Weighted Estimated Tissue Conc. (ng/g) | D10: =D9*D12 -> 0.5515833897
B11: Chemical Exposure | G11: ='Assessment Summary'!H35 -> 1 | H11: =LOOKUP(G11,'Assessment Summary'!$J$20:$K$24,'Assessment Summary'!$K$20:$K$24) -> Very Low
B12: Site Linkage | C12: ='Assessment Summary'!C38 -> 0.1661745004 | D12: ='Assessment Summary'!D38 -> 0.2413931684 | E12: ='Assessment Summary'!E38 -> 0.3520309093 | G12: ='Assessment Summary'!H38 -> 1 | H12: =LOOKUP(G12,'Assessment Summary'!$J$20:$K$24,'Assessment Summary'!$K$20:$K$24) -> Very Low
B13: Site Assessment | G13: ='Assessment Summary'!H39 -> 1 | H13: =LOOKUP(G13,'Default Parameters'!$A$100:$B$104,'Default Parameters'!$B$100:$B$104) -> Unimpacted
B14: Health Indicators
B15: Cancer Risk | D15: ='Assessment Summary'!D36 -> 2.813020035e-07 | E15: ='Assessment Summary'!E36 -> 5.035290307e-07 | F15: ='Assessment Summary'!F36 -> 1.153223672e-06
B16: Non Cancer Hazard Quotient | D16: ='Assessment Summary'!D37 -> 0.01530003127 | E16: ='Assessment Summary'!E37 -> 0.02738697137 | F16: ='Assessment Summary'!F37 -> 0.06272389825
A18: DDTs | B18: Mean Weighted Observed Tissue Conc. (ng/g) | D18: ='Assessment Summary'!D41 -> 4.845166667
B19: Mean Weighted Estimated Tissue Conc. (ng/g) | D19: =D18*D21 -> 5.290518801
B20: Chemical Exposure | G20: ='Assessment Summary'!H41 -> 1 | H20: =LOOKUP(G20,'Assessment Summary'!$J$20:$K$24,'Assessment Summary'!$K$20:$K$24) -> Very Low
B21: Site Linkage | C21: ='Assessment Summary'!C44 -> 0.6691300108 | D21: ='Assessment Summary'!D44 -> 1.091916783 | E21: ='Assessment Summary'!E44 -> 1.820704377 | G21: ='Assessment Summary'!H44 -> 4 | H21: =LOOKUP(G21,'Assessment Summary'!$J$20:$K$24,'Assessment Summary'!$K$20:$K$24) -> High
B22: Site Assessment | G22: ='Assessment Summary'!H45 -> 1 | H22: =LOOKUP(G22,'Default Parameters'!$A$100:$B$104,'Default Parameters'!$B$100:$B$104) -> Unimpacted
B23: Health Indicators
B24: Cancer Risk | D24: ='Assessment Summary'!D42 -> 1.530167854e-07 | E24: ='Assessment Summary'!E42 -> 2.788219014e-07 | F24: ='Assessment Summary'!F42 -> 6.727654559e-07
B25: Non Cancer Hazard Quotient | D25: ='Assessment Summary'!D43 -> 0.002100230388 | E25: ='Assessment Summary'!E43 -> 0.003826967274 | F25: ='Assessment Summary'!F43 -> 0.009234035669
A27: Dieldrin | B27: Mean Weighted Observed Tissue Conc. (ng/g) | D27: ='Assessment Summary'!D47 -> 0.25
B28: Mean Weighted Estimated Tissue Conc. (ng/g) | D28: =D27*D30 -> 0.1676134821
B29: Chemical Exposure | G29: ='Assessment Summary'!H47 -> 1 | H29: =LOOKUP(G29,'Assessment Summary'!$J$20:$K$24,'Assessment Summary'!$K$20:$K$24) -> Very Low
B30: Site Linkage | C30: ='Assessment Summary'!C50 -> 0.4803796266 | D30: ='Assessment Summary'!D50 -> 0.6704539284 | E30: ='Assessment Summary'!E50 -> 0.9588796086 | G30: ='Assessment Summary'!H50 -> 4 | H30: =LOOKUP(G30,'Assessment Summary'!$J$20:$K$24,'Assessment Summary'!$K$20:$K$24) -> High
B31: Site Assessment | G31: ='Assessment Summary'!H51 -> 1 | H31: =LOOKUP(G31,'Default Parameters'!$A$100:$B$104,'Default Parameters'!$B$100:$B$104) -> Unimpacted
B32: Health Indicators
B33: Cancer Risk | D33: ='Assessment Summary'!D48 -> 3.863944463e-07 | E33: ='Assessment Summary'!E48 -> 6.902321818e-07 | F33: ='Assessment Summary'!F48 -> 1.540515499e-06
B34: Non Cancer Hazard Quotient | D34: ='Assessment Summary'!D49 -> 0.001126983802 | E34: ='Assessment Summary'!E49 -> 0.002013177197 | F34: ='Assessment Summary'!F49 -> 0.004493170207
A36: PCBs | B36: Mean Weighted Observed Tissue Conc. (ng/g) | D36: ='Assessment Summary'!D53 -> 36.49932143
B37: Mean Weighted Estimated Tissue Conc. (ng/g) | D37: =D36*D39 -> 4.416803821
B38: Chemical Exposure | G38: ='Assessment Summary'!H53 -> 3 | H38: =LOOKUP(G38,'Assessment Summary'!$J$20:$K$24,'Assessment Summary'!$K$20:$K$24) -> Moderate
B39: Site Linkage | C39: ='Assessment Summary'!C56 -> 0.06308585165 | D39: ='Assessment Summary'!D56 -> 0.1210105736 | E39: ='Assessment Summary'!E56 -> 0.2443143734 | G39: ='Assessment Summary'!H56 -> 1 | H39: =LOOKUP(G39,'Assessment Summary'!$J$20:$K$24,'Assessment Summary'!$K$20:$K$24) -> Very Low
B40: Site Assessment | G40: ='Assessment Summary'!H57 -> 2 | H40: =LOOKUP(G40,'Default Parameters'!$A$100:$B$104,'Default Parameters'!$B$100:$B$104) -> Likely Unimpacted
B41: Health Indicators
B42: Cancer Risk | D42: ='Assessment Summary'!D54 -> 6.406153817e-06 | E42: ='Assessment Summary'!E54 -> 1.217668749e-05 | F42: ='Assessment Summary'!F54 -> 3.15428801e-05
B43: Non Cancer Hazard Quotient | D43: ='Assessment Summary'!D55 -> 0.373692306 | E43: ='Assessment Summary'!E55 -> 0.7103067702 | F43: ='Assessment Summary'!F55 -> 1.840001339

Sheet Contaminant Specific
C1: INPUT | D1: Last Macro Run: | E1: 2017-07-27T13:13:58.110 | G1: Parameters and calculations | P1: ='Food Web Calculations'!S49 -> 0.8871697655 | Q1: ='Food Web Calculations'!T49 -> 1.816743227 | R1: ='Food Web Calculations'!U49 -> 0.5777465838 | S1: ='Food Web Calculations'!V49 -> 1.25340356 | T1: ='Food Web Calculations'!W49 -> 1.374680176 | U1: ='Food Web Calculations'!X49 -> 0.4991823173 | V1: ='Food Web Calculations'!Y49 -> 0.2692499606 | W1: ='Food Web Calculations'!Z49 -> 0.2662721822 | Y1: ='Food Web Calculations'!B49 -> 0.01040895812 | Z1: ='Food Web Calculations'!C49 -> 0.006733903812 | AA1: ='Food Web Calculations'!D49 -> 0.05892545132 | AB1: ='Food Web Calculations'!E49 -> 1.734552504 | AC1: ='Food Web Calculations'!F49 -> 2.498499925 | AD1: ='Food Web Calculations'!G49 -> 0.633801947 | AE1: ='Food Web Calculations'!H49 -> 0.2683161923 | AF1: ='Food Web Calculations'!I49 -> 0.2041328293 | AG1: ='Food Web Calculations'!J49 -> 0.2287902341 | AH1: ='Food Web Calculations'!K49 -> 1.791721546 | AI1: ='Food Web Calculations'!L49 -> 0.1587840884 | AJ1: ='Food Web Calculations'!M49 -> 0.02785343405 | AK1: ='Food Web Calculations'!N49 -> 0.4914047475 | AL1: ='Food Web Calculations'!O49 -> 1.812374219 | AM1: ='Food Web Calculations'!P49 -> 2.826946676 | AN1: ='Food Web Calculations'!Q49 -> 1.048513465 | AO1: ='Food Web Calculations'!R49 -> 1.842974015 | AQ1: ='Food Web Calculations'!B50 -> 0.01210343967 | AR1: ='Food Web Calculations'!C50 -> 0.007830120711 | AS1: ='Food Web Calculations'!D50 -> 0.06851796665 | AT1: ='Food Web Calculations'!E50 -> 2.016921516 | AU1: ='Food Web Calculations'!F50 -> 2.905232471 | AV1: ='Food Web Calculations'!G50 -> 0.7369790082 | AW1: ='Food Web Calculations'!H50 -> 0.3119955725 | AX1: ='Food Web Calculations'!I50 -> 0.237363755 | AY1: ='Food Web Calculations'!J50 -> 0.2660351559 | AZ1: ='Food Web Calculations'!K50 -> 2.083397146 | BA1: ='Food Web Calculations'!L50 -> 0.1846326609 | BB1: ='Food Web Calculations'!M50 -> 0.03238771401 | BC1: ='Food Web Calculations'!N50 -> 0.5714008692 | BD1: ='Food Web Calculations'!O50 -> 2.107411883 | BE1: ='Food Web Calculations'!P50 -> 3.287147297 | BF1: ='Food Web Calculations'!Q50 -> 1.219201703 | BG1: ='Food Web Calculations'!R50 -> 2.142993041 | BH1: ='Food Web Calculations'!S50 -> 1.031592751 | BI1: ='Food Web Calculations'!T50 -> 2.112492125 | BJ1: ='Food Web Calculations'!U50 -> 0.6717983533 | BK1: ='Food Web Calculations'!V50 -> 1.457446 | BL1: ='Food Web Calculations'!W50 -> 1.598465321 | BM1: ='Food Web Calculations'!X50 -> 0.580444555 | BN1: ='Food Web Calculations'!Y50 -> 0.3130813495 | BO1: ='Food Web Calculations'!Z50 -> 0.3096188165
A2: Contaminant | B2: Contaminant class | C2: Observed Sediment Concentration | D2: Observed Surface Water Concentration | E2: Observed Dissolved Surface Water Concentration | F2: Observed Porewater Concentration | G2: Calculated Disslolved Surface Water Concentration | H2: Freely Dissolved Surface Water Concentration | I2: Porewater Concentration (Observed or Calculated) | J2: Log Kow (Temp corrected - 25.0 C) | K2: Metabolic Rate Constant | L2: LeBas Molar Volume | M2: Log Kow (Salinity corrected) | N2: Log Koc | O2: (Phi) proportion in water column freely dissolved | P2: Indicator species 1 - Piscivore | Q2: Indicator species 2 - Benthic diet with piscivory | R2: Indicator species 3 - Benthic and pelagic with piscivory | S2: Indicator species 4 - Benthic without piscivory | T2: Indicator species 5 - Benthic and pelagic without piscivory | U2: Indicator species 6 - Benthic with herbivory | V2: Indicator species 7 - Benthic and pelagic with herbivory | W2: Indicator species 8- Pelagic with benthic herbivory | X2: Predicted Tissue Concentration | Y2: Phytoplankton | Z2: Submerged Macrophyte | AA2: Zooplankton | AB2: Diet - Small polychaete (e.g., Harmothoe imbricata) | AC2: Diet - Large polychaete (e.g., Neanthes) | AD2: Amphipod | AE2: Cumacean | AF2: Mysid | AG2: Bivalve mollusk | AH2: Decapod crab | AI2: Crangon shrimp | AJ2: Forage fish - herbivore | AK2: Forage fish - planktivore | AL2: Forage fish - primarily benthivore | AM2: Forage fish - benthivore | AN2: Forage fish - mixed diet i | AO2: Forage fish - mixed diet ii | AP2: BSAF | AQ2: Phytoplankton | AR2: Submerged Macrophyte | AS2: Zooplankton | AT2: Diet - Small polychaete (e.g., Harmothoe imbricata) | AU2: Diet - Large polychaete (e.g., Neanthes) | AV2: Amphipod | AW2: Cumacean | AX2: Mysid | AY2: Bivalve mollusk | AZ2: Decapod crab | BA2: Crangon shrimp | BB2: Forage fish - herbivore | BC2: Forage fish - planktivore | BD2: Forage fish - primarily benthivore | BE2: Forage fish - benthivore | BF2: Forage fish - mixed diet i | BG2: Forage fish - mixed diet ii | BH2: Indicator species 1 - Piscivore | BI2: Indicator species 2 - Benthic diet with piscivory | BJ2: Indicator species 3 - Benthic and pelagic with piscivory | BK2: Indicator species 4 - Benthic without piscivory | BL2: Indicator species 5 - Benthic and pelagic without piscivory | BM2: Indicator species 6 - Benthic with herbivory | BN2: Indicator species 7 - Benthic and pelagic with herbivory | BO2: Indicator species 8- Pelagic with benthic herbivory
C3: ng/g dry wt | D3: pg/L in unfiltered sample | E3: pg/L | F3: pg/L | G3: pg/L | H3: ng/mL | I3: ng/mL | P3: ng/g | Q3: ng/g | R3: ng/g | S3: ng/g | T3: ng/g | U3: ng/g | V3: ng/g | W3: ng/g
A4: cis-Chlordane | B4: Chlordanes | C4: 0.5 | D4: 0.32 | G4: =IF(ISNUMBER(C4),1000000*(C4/(TOC*(0.35*10^(M4)))/8),0) -> 3.180891863 | H4: =_xlfn.IFS(E4="",_xlfn.IFS(D4="",G4,D4*O4<=G4,D4*O4,D4*O4>G4,G4),E4<=G4,E4,E4>G4,G4)/1000000 -> 9.18070559e-08 | I4: =IF(F4>0,F4/1000000,(C4/TOC)/(0.35*10^M4)) -> 2.54471349e-05 | J4: =VLOOKUP(A4,'Default Parameters'!$A$108:$D$182,4,FALSE)-(((VLOOKUP(A4,'Default Parameters'!$A$108:$D$182,3,FALSE)/(LN(10)*0.0083145))*((1/(273+Input!$D$24))-(1/298)))) -> 6.314680321 | K4: 0 | L4: 340.5 | M4: =LOG(10^J4*(10^(0.0018*L4*(0.5*Sal/35)))) -> 6.537075463 | N4: =LOG10(0.35*10^(M4)) -> 6.081143508 | O4: =1/(1+(POCw*dPOC*alphaPOC*10^M4) + (alphaDOC*DOCw*dDOC*10^M4)) -> 0.2868970497 | P4: 0.5239604678 | Q4: 1.309859018 | R4: 0.2186671765 | S4: 0.438251715 | T4: 0.6467303999 | U4: 0.2906903639 | V4: 0.09078631413 | W4: 0.161681964 | X4: Tissue | Y4: 0.005120754561 | Z4: 0.004778820256 | AA4: 0.008271861119 | AB4: 0.358440966 | AC4: 0.9922468274 | AD4: 0.1895537663 | AE4: 0.07517589623 | AF4: 0.05377540883 | AG4: 0.1755259091 | AH4: 0.9601940212 | AI4: 0.04057115739 | AJ4: 0.009721652714 | AK4: 0.2368039176 | AL4: 0.9411561608 | AM4: 1.810187698 | AN4: 0.5174047965 | AO4: 1.367457766 | AP4: BSAF | AQ4: 0.01024150912 | AR4: 0.009557640512 | AS4: 0.01654372224 | AT4: 0.716881932 | AU4: 1.984493655 | AV4: 0.3791075325 | AW4: 0.1503517925 | AX4: 0.1075508177 | AY4: 0.3510518181 | AZ4: 1.920388042 | BA4: 0.08114231479 | BB4: 0.01944330543 | BC4: 0.4736078353 | BD4: 1.882312322 | BE4: 3.620375396 | BF4: 1.034809593 | BG4: 2.734915532 | BH4: 1.047920936 | BI4: 2.619718036 | BJ4: 0.4373343529 | BK4: 0.8765034301 | BL4: 1.2934608 | BM4: 0.5813807277 | BN4: 0.1815726283 | BO4: 0.3233639279
A5: trans-Chlordane | B5: Chlordanes | C5: 0.5 | D5: 0.16 | G5: 2.70737806 | H5: =_xlfn.IFS(E5="",_xlfn.IFS(D5="",G5,D5*O5<=G5,D5*O5,D5*O5>G5,G5),E5<=G5,E5,E5>G5,G5)/1000000 -> 4.081329529e-08 | I5: 2.165902448e-05 | J5: =VLOOKUP(A5,'Default Parameters'!$A$108:$D$182,4,FALSE)-(((VLOOKUP(A5,'Default Parameters'!$A$108:$D$182,3,FALSE)/(LN(10)*0.0083145))*((1/(273+Input!$D$24))-(1/298)))) -> 6.384680321 | K5: 0 | L5: 340.5 | M5: 6.607075463 | N5: =LOG10(0.35*10^(M5)) -> 6.151143508 | O5: 0.2550830956 | P5: 0.5871377103 | Q5: 1.448423406 | R5: 0.2399338466 | S5: 0.4877439123 | T5: 0.7142196249 | U5: 0.3031578478 | V5: 0.09761146767 | W5: 0.1635681275 | X5: Tissue | Y5: 0.002554963507 | Z5: 0.002336474556 | AA5: 0.004348513287 | AB5: 0.3967066933 | AC5: 1.089338075 | AD5: 0.2043717694 | AE5: 0.07857115805 | AF5: 0.05431494964 | AG5: 0.1826169291 | AH5: 1.018303335 | AI5: 0.03832182663 | AJ5: 0.00501626423 | AK5: 0.2488834953 | AL5: 1.049864928 | AM5: 2.033749309 | AN5: 0.5742951591 | AO5: 1.492720306 | AP5: BSAF | AQ5: 0.005109927014 | AR5: 0.004672949112 | AS5: 0.008697026574 | AT5: 0.7934133867 | AU5: 2.17867615 | AV5: 0.4087435388 | AW5: 0.1571423161 | AX5: 0.1086298993 | AY5: 0.3652338583 | AZ5: 2.036606671 | BA5: 0.07664365327 | BB5: 0.01003252846 | BC5: 0.4977669905 | BD5: 2.099729857 | BE5: 4.067498618 | BF5: 1.148590318 | BG5: 2.985440612 | BH5: 1.174275421 | BI5: 2.896846811 | BJ5: 0.4798676931 | BK5: 0.9754878246 | BL5: 1.42843925 | BM5: 0.6063156956 | BN5: 0.1952229353 | BO5: 0.3271362551
A6: cis-Nonachlor | B6: Chlordanes | C6: 0.49 | D6: 0.28 | G6: 9.55265944 | H6: 1.546017872e-07 | I6: 7.642127552e-05 | J6: =VLOOKUP(A6,'Default Parameters'!$A$108:$D$182,4,FALSE)-(((VLOOKUP(A6,'Default Parameters'!$A$108:$D$182,3,FALSE)/(LN(10)*0.0083145))*((1/(273+Input!$D$24))-(1/298)))) -> 5.814680321 | K6: 0 | L6: 361.4 | M6: 6.050726149 | N6: 5.594794194 | O6: 0.55214924 | P6: 0.1410536366 | Q6: 0.4600913054 | R6: 0.05901761677 | S6: 0.1599411292 | T6: 0.2356217573 | U6: 0.1827241681 | V6: 0.03610451558 | W6: 0.1242179891 | X6: Tissue | Y6: 0.003433299195 | Z6: 0.003563283264 | AA6: 0.003975552651 | AB6: 0.1718102039 | AC6: 0.4514111162 | AD6: 0.07929406287 | AE6: 0.03115493555 | AF6: 0.02216935927 | AG6: 0.1148176752 | AH6: 0.5211758987 | AI6: 0.0108579444 | AJ6: 0.005042863626 | AK6: 0.07407130401 | AL6: 0.3203406271 | AM6: 0.5664244352 | AN6: 0.1662429247 | AO6: 0.5474639507 | AP6: BSAF | AQ6: 0.007006733051 | AR6: 0.007272006661 | AS6: 0.008113372757 | AT6: 0.3506330692 | AU6: 0.9212471759 | AV6: 0.1618246181 | AW6: 0.06358150113 | AX6: 0.04524359035 | AY6: 0.2343217862 | AZ6: 1.063624283 | BA6: 0.0221590702 | BB6: 0.01029155842 | BC6: 0.1511659266 | BD6: 0.6537563818 | BE6: 1.155968235 | BF6: 0.3392712748 | BG6: 1.117273369 | BH6: 0.2878645645 | BI6: 0.9389618478 | BJ6: 0.1204441159 | BK6: 0.3264104677 | BL6: 0.4808607292 | BM6: 0.3729064655 | BN6: 0.07368268486 | BO6: 0.2535061001
A7: trans-Nonachlor | B7: Chlordanes | C7: 0.5 | D7: 0.05 | G7: 9.747611674 | H7: 2.7607462e-08 | I7: 7.798089339e-05 | J7: =VLOOKUP(A7,'Default Parameters'!$A$108:$D$182,4,FALSE)-(((VLOOKUP(A7,'Default Parameters'!$A$108:$D$182,3,FALSE)/(LN(10)*0.0083145))*((1/(273+Input!$D$24))-(1/298)))) -> 5.814680321 | K7: 0 | L7: 361.4 | M7: 6.050726149 | N7: 5.594794194 | O7: 0.55214924 | P7: 0.1357431136 | Q7: 0.4593966909 | R7: 0.05470718757 | S7: 0.1602141578 | T7: 0.2330515428 | U7: 0.1839621977 | V7: 0.03470579289 | W7: 0.1248859331 | X7: Tissue | Y7: 0.0006130891419 | Z7: 0.0006363005828 | AA7: 0.0007099201163 | AB7: 0.1731837343 | AC7: 0.458471089 | AD7: 0.07747247223 | AE7: 0.02848687185 | AF7: 0.01922556243 | AG7: 0.1144553193 | AH7: 0.5263134399 | AI7: 0.005492890359 | AJ7: 0.0009005113618 | AK7: 0.06393703097 | AL7: 0.3176631272 | AM7: 0.5616705832 | AN7: 0.1612675993 | AO7: 0.5390639616 | AP7: BSAF | AQ7: 0.001226178284 | AR7: 0.001272601166 | AS7: 0.001419840233 | AT7: 0.3463674685 | AU7: 0.916942178 | AV7: 0.1549449445 | AW7: 0.0569737437 | AX7: 0.03845112486 | AY7: 0.2289106386 | AZ7: 1.05262688 | BA7: 0.01098578072 | BB7: 0.001801022724 | BC7: 0.1278740619 | BD7: 0.6353262543 | BE7: 1.123341166 | BF7: 0.3225351987 | BG7: 1.078127923 | BH7: 0.2714862271 | BI7: 0.9187933819 | BJ7: 0.1094143751 | BK7: 0.3204283155 | BL7: 0.4661030856 | BM7: 0.3679243955 | BN7: 0.06941158579 | BO7: 0.2497718663
A8: Oxychlordane | B8: Chlordanes | C8: 0.23 | D8: 0.09 | G8: 6674.460471 | H8: 8.995098572e-08 | I8: 0.05339568377 | J8: =VLOOKUP(A8,'Default Parameters'!$A$108:$D$182,4,FALSE)-(((VLOOKUP(A8,'Default Parameters'!$A$108:$D$182,3,FALSE)/(LN(10)*0.0083145))*((1/(273+Input!$D$24))-(1/298)))) -> 2.714680321 | K8: 0 | L8: 250 | M8: 2.877966035 | N8: 2.422034079 | O8: 0.9994553969 | P8: 5.46617413e-07 | Q8: 8.622277388e-05 | R8: 4.84623924e-06 | S8: 4.472405216e-05 | T8: 6.986888183e-05 | U8: 0.0001850838111 | V8: 1.228234501e-05 | W8: 0.000165120287 | X8: Tissue | Y8: 1.584661869e-06 | Z8: 1.764832418e-06 | AA8: 1.301464347e-06 | AB8: 0.03306628523 | AC8: 0.03319142018 | AD8: 3.395876222e-05 | AE8: 1.294092076e-05 | AF8: 9.061077526e-06 | AG8: 0.03577058037 | AH8: 0.04443005697 | AI8: 2.056945215e-06 | AJ8: 1.45284184e-06 | AK8: 2.482926771e-06 | AL8: 8.274270768e-05 | AM8: 8.749146798e-05 | AN8: 3.910173884e-05 | AO8: 0.08339031493 | AP8: BSAF | AQ8: 6.889834214e-06 | AR8: 7.673184426e-06 | AS8: 5.658540639e-06 | AT8: 0.1437664575 | AU8: 0.1443105225 | AV8: 0.0001476467922 | AW8: 5.626487287e-05 | AX8: 3.939598924e-05 | AY8: 0.1555242625 | AZ8: 0.1931741607 | BA8: 8.943240064e-06 | BB8: 6.31670365e-06 | BC8: 1.079533379e-05 | BD8: 0.000359750903 | BE8: 0.0003803976869 | BF8: 0.0001700075602 | BG8: 0.3625665866 | BH8: 2.376597448e-06 | BI8: 0.0003748816256 | BJ8: 2.107060539e-05 | BK8: 0.0001944524007 | BL8: 0.0003037777471 | BM8: 0.0008047122221 | BN8: 5.340150003e-05 | BO8: 0.0007179142915
A9: Dieldrin | B9: Other pesticide | C9: 0.5 | D9: 0.23 | G9: 16.90324128 | H9: 1.567034396e-07 | I9: 0.0001352259303 | J9: =VLOOKUP(A9,'Default Parameters'!$A$108:$D$182,4,FALSE)-(((VLOOKUP(A9,'Default Parameters'!$A$108:$D$182,3,FALSE)/(LN(10)*0.0083145))*((1/(273+Input!$D$24))-(1/298)))) -> 5.594680321 | K9: 0 | L9: 332.2 | M9: 5.811654378 | N9: 5.355722422 | O9: 0.6813193028 | P9: 0.06249769263 | Q9: 0.2508757123 | R9: 0.02675247116 | S9: 0.09211225796 | T9: 0.1351995603 | U9: 0.1423492 | V9: 0.02160854617 | W9: 0.1047797791 | X9: Tissue | Y9: 0.002101688645 | Z9: 0.002247268984 | AA9: 0.00215939674 | AB9: 0.1310958465 | AC9: 0.3085060372 | AD9: 0.04933393992 | AE9: 0.01909679315 | AF9: 0.01345798471 | AG9: 0.09973417899 | AH9: 0.3794407209 | AI9: 0.005118590088 | AJ9: 0.002727389893 | AK9: 0.03544410292 | AL9: 0.1775219734 | AM9: 0.2927092913 | AN9: 0.08924233131 | AO9: 0.3668820197 | AP9: BSAF | AQ9: 0.00420337729 | AR9: 0.004494537968 | AS9: 0.00431879348 | AT9: 0.262191693 | AU9: 0.6170120743 | AV9: 0.09866787984 | AW9: 0.03819358631 | AX9: 0.02691596943 | AY9: 0.199468358 | AZ9: 0.7588814418 | BA9: 0.01023718018 | BB9: 0.005454779787 | BC9: 0.07088820583 | BD9: 0.3550439468 | BE9: 0.5854185827 | BF9: 0.1784846626 | BG9: 0.7337640393 | BH9: 0.1249953853 | BI9: 0.5017514246 | BJ9: 0.05350494232 | BK9: 0.1842245159 | BL9: 0.2703991206 | BM9: 0.2846983999 | BN9: 0.04321709235 | BO9: 0.2095595583
A10: op-DDD | B10: DDTs | C10: 0.1893023256 | E10: 9.305665792 | G10: 9.09824308 | H10: 9.09824308e-06 | I10: 7.278594464e-05 | J10: =VLOOKUP(A10,'Default Parameters'!$A$108:$D$182,4,FALSE)-(((VLOOKUP(A10,'Default Parameters'!$A$108:$D$182,3,FALSE)/(LN(10)*0.0083145))*((1/(273+Input!$D$24))-(1/298)))) -> 5.454680321 | K10: 0 | L10: 312.6 | M10: 5.658852778 | N10: 5.202920822 | O10: 0.752442202 | P10: 0.1451879571 | Q10: 0.2236967495 | R10: 0.09266552244 | S10: 0.08413088749 | T10: 0.1871262015 | U10: 0.09964285136 | V10: 0.05280454905 | W10: 0.08124920265 | X10: Tissue | Y10: 0.08750440133 | Z10: 0.09480312616 | AA10: 0.08485294128 | AB10: 0.1026698686 | AC10: 0.1516308468 | AD10: 0.09763575792 | AE10: 0.08819690527 | AF10: 0.08722065949 | AG10: 0.1052299813 | AH10: 0.231331606 | AI10: 0.1365745093 | AJ10: 0.105809319 | AK10: 0.2515143505 | AL10: 0.2323354233 | AM10: 0.3875987621 | AN10: 0.1966905006 | AO10: 0.4759499616 | AP10: BSAF | AQ10: 0.4622468375 | AR10: 0.5008027549 | AS10: 0.4482403532 | AT10: 0.5423592569 | AU10: 0.800998331 | AV10: 0.5157662887 | AW10: 0.4659050279 | AX10: 0.4607479556 | AY10: 0.5558831937 | AZ10: 1.222021997 | BA10: 0.7214623953 | BB10: 0.5589435772 | BC10: 1.328638461 | BD10: 1.227324718 | BE10: 2.047511888 | BF10: 1.039028443 | BG10: 2.514231984 | BH10: 0.7669634098 | BI10: 1.181690446 | BJ10: 0.4895107451 | BK10: 0.4444260641 | BL10: 0.9885045045 | BM10: 0.5263688708 | BN10: 0.2789429495 | BO10: 0.4292034047
A11: op-DDE | B11: DDTs | C11: 6.704795349 | E11: 44.88585023 | F11: 63.87 | G11: 167.1168996 | H11: 4.488585023e-05 | I11: 6.387e-05 | J11: =VLOOKUP(A11,'Default Parameters'!$A$108:$D$182,4,FALSE)-(((VLOOKUP(A11,'Default Parameters'!$A$108:$D$182,3,FALSE)/(LN(10)*0.0083145))*((1/(273+Input!$D$24))-(1/298)))) -> 5.744680321 | K11: 0 | L11: 305.2 | M11: 5.944019521 | N11: 5.488087565 | O11: 0.6118414791 | P11: 2.984549098 | Q11: 6.069467579 | R11: 1.72130768 | S11: 2.134993516 | T11: 3.939197676 | U11: 2.683128403 | V11: 0.8996912881 | W11: 1.981503645 | X11: Tissue | Y11: 0.7981928371 | Z11: 0.8408374222 | AA11: 0.87211619 | AB11: 1.760968761 | AC11: 4.929171996 | AD11: 1.715108618 | AE11: 1.158102204 | AF11: 1.074740593 | AG11: 1.295505598 | AH11: 6.594033531 | AI11: 1.46748349 | AJ11: 1.107351676 | AK11: 3.482989294 | AL11: 4.993798259 | AM11: 8.433483314 | AN11: 3.540077595 | AO11: 9.137209026 | AP11: BSAF | AQ11: 0.1190480537 | AR11: 0.125408365 | AS11: 0.1300734988 | AT11: 0.2626431784 | AU11: 0.7351711335 | AV11: 0.2558032764 | AW11: 0.1727274501 | AX11: 0.1602943173 | AY11: 0.1932207519 | AZ11: 0.983480209 | BA11: 0.2188707356 | BB11: 0.165158162 | BC11: 0.5194773461 | BD11: 0.7448099456 | BE11: 1.257828595 | BF11: 0.527991894 | BG11: 1.362787162 | BH11: 0.4451364945 | BI11: 0.9052427798 | BJ11: 0.2567278479 | BK11: 0.3184278423 | BL11: 0.58751945 | BM11: 0.4001805072 | BN11: 0.1341862415 | BO11: 0.295535291
A12: op-DDT | B12: DDTs | C12: 1.2 | F12: 15.68 | G12: 24.3967596 | H12: 2.43967596e-05 | I12: 1.568e-05 | J12: =VLOOKUP(A12,'Default Parameters'!$A$108:$D$182,4,FALSE)-(((VLOOKUP(A12,'Default Parameters'!$A$108:$D$182,3,FALSE)/(LN(10)*0.0083145))*((1/(273+Input!$D$24))-(1/298)))) -> 5.814680321 | K12: 0 | L12: 333.5 | M12: 6.032503463 | N12: 5.576571508 | O12: 0.5625007817 | P12: 1.702263353 | Q12: 2.640167228 | R12: 1.075447778 | S12: 0.8464889971 | T12: 1.782369844 | U12: 0.8490013642 | V12: 0.4577328521 | W12: 0.6189847991 | X12: Tissue | Y12: 0.5218115235 | Z12: 0.5430522677 | AA12: 0.5978757641 | AB12: 0.6443789644 | AC12: 1.320618322 | AD12: 0.7904326098 | AE12: 0.6540457995 | AF12: 0.6480939196 | AG12: 0.6123815589 | AH12: 2.065853205 | AI12: 1.003952234 | AJ12: 0.7587811952 | AK12: 2.202543531 | AL12: 2.256496191 | AM12: 3.94696318 | AN12: 1.818740533 | AO12: 4.443880518 | AP12: BSAF | AQ12: 0.4348429362 | AR12: 0.4525435564 | AS12: 0.4982298034 | AT12: 0.5369824703 | AU12: 1.100515268 | AV12: 0.6586938415 | AW12: 0.5450381662 | AX12: 0.5400782663 | AY12: 0.5103179657 | AZ12: 1.721544337 | BA12: 0.836626862 | BB12: 0.6323176627 | BC12: 1.835452942 | BD12: 1.880413492 | BE12: 3.289135983 | BF12: 1.515617111 | BG12: 3.703233765 | BH12: 1.418552794 | BI12: 2.200139357 | BJ12: 0.8962064819 | BK12: 0.7054074976 | BL12: 1.485308203 | BM12: 0.7075011368 | BN12: 0.3814440434 | BO12: 0.5158206659
A13: pp-DDD | B13: DDTs | C13: 3.243651395 | E13: 19.45333669 | G13: 15.95275736 | H13: 1.595275736e-05 | I13: 0.0001276220589 | J13: =VLOOKUP(A13,'Default Parameters'!$A$108:$D$182,4,FALSE)-(((VLOOKUP(A13,'Default Parameters'!$A$108:$D$182,3,FALSE)/(LN(10)*0.0083145))*((1/(273+Input!$D$24))-(1/298)))) -> 6.444680321 | K13: 0 | L13: 312.6 | M13: 6.648852778 | N13: 6.192920822 | O13: 0.2372385539 | P13: 11.25365285 | Q13: 19.52866031 | R13: 6.81608885 | S13: 5.592086983 | T13: 10.25731103 | U13: 3.571102925 | V13: 2.037008239 | W13: 1.932553609 | X13: Tissue | Y13: 1.067123434 | Z13: 0.9636968277 | AA13: 1.871610439 | AB13: 3.751402792 | AC13: 8.47440922 | AD13: 3.656035883 | AE13: 2.510050601 | AF13: 2.597541749 | AG13: 2.657890383 | AH13: 11.16759078 | AI13: 4.31039821 | AJ13: 2.134097753 | AK13: 9.770327922 | AL13: 14.30690619 | AM13: 27.62608028 | AN13: 10.47715448 | AO13: 26.6681096 | AP13: BSAF | AQ13: 0.3289883232 | AR13: 0.2971024658 | AS13: 0.5770072708 | AT13: 1.156536981 | AU13: 2.612614054 | AV13: 1.127135884 | AW13: 0.773834884 | AX13: 0.8008079266 | AY13: 0.8194130809 | AZ13: 3.442907211 | BA13: 1.328872214 | BB13: 0.6579306752 | BC13: 3.012138708 | BD13: 4.410740996 | BE13: 8.516969587 | BF13: 3.230049472 | BG13: 8.221632461 | BH13: 3.469439678 | BI13: 6.020579259 | BJ13: 2.101362945 | BK13: 1.724009859 | BL13: 3.162272937 | BM13: 1.100951517 | BN13: 0.6279985086 | BO13: 0.5957957171
A14: pp-DDE | B14: DDTs | C14: 44.74623256 | E14: 306.1044638 | G14: 55.89736285 | H14: 5.589736285e-05 | I14: 0.0004471789028 | J14: =VLOOKUP(A14,'Default Parameters'!$A$108:$D$182,4,FALSE)-(((VLOOKUP(A14,'Default Parameters'!$A$108:$D$182,3,FALSE)/(LN(10)*0.0083145))*((1/(273+Input!$D$24))-(1/298)))) -> 7.044680321 | K14: 0 | L14: 305.2 | M14: 7.244019521 | N14: 6.788087565 | O14: 0.07321636262 | P14: 211.3975101 | Q14: 381.6378507 | R14: 116.8885638 | S14: 120.4304602 | T14: 196.4840491 | U14: 55.72057553 | V14: 32.7419999 | W14: 24.27380627 | X14: Tissue | Y14: 7.576283621 | Z14: 5.704014018 | AA14: 19.46177976 | AB14: 93.87790454 | AC14: 185.9415079 | AD14: 63.04822771 | AE14: 36.72482872 | AF14: 38.44339696 | AG14: 37.9371598 | AH14: 193.6282464 | AI14: 69.96867772 | AJ14: 18.64076976 | AK14: 139.1273584 | AL14: 291.2191802 | AM14: 578.6922953 | AN14: 194.7010403 | AO14: 480.7633203 | AP14: BSAF | AQ14: 0.1693166818 | AR14: 0.1274747323 | AS14: 0.4349367231 | AT14: 2.098006897 | AU14: 4.155467339 | AV14: 1.409017567 | AW14: 0.8207356603 | AX14: 0.8591426531 | AY14: 0.8478291384 | AZ14: 4.327252493 | BA14: 1.563677515 | BB14: 0.4165885861 | BC14: 3.109253013 | BD14: 6.508239097 | BE14: 12.93276019 | BF14: 4.351227559 | BG14: 10.74421896 | BH14: 4.724364445 | BI14: 8.528938167 | BJ14: 2.612254867 | BK14: 2.691410055 | BL14: 4.391074687 | BM14: 1.245257362 | BN14: 0.7317264053 | BO14: 0.5424770955
A15: pp-DDT | B15: DDTs | C15: 1.099302326 | E15: 8.092710587 | G15: 4.563184698 | H15: 4.563184698e-06 | I15: 3.650547758e-05 | J15: =VLOOKUP(A15,'Default Parameters'!$A$108:$D$182,4,FALSE)-(((VLOOKUP(A15,'Default Parameters'!$A$108:$D$182,3,FALSE)/(LN(10)*0.0083145))*((1/(273+Input!$D$24))-(1/298)))) -> 6.504680321 | K15: 0 | L15: 333.5 | M15: 6.722503463 | N15: 6.266571508 | O15: 0.2079270648 | P15: 4.117084003 | Q15: 7.184915431 | R15: 2.472058982 | S15: 2.060885374 | T15: 3.730014862 | U15: 1.254602493 | V15: 0.7225532058 | W15: 0.6551809206 | X15: Tissue | Y15: 0.3413982205 | Z15: 0.3013701627 | AA15: 0.6323889541 | AB15: 1.381467249 | AC15: 3.116029258 | AD15: 1.309773131 | AE15: 0.8796393938 | AF15: 0.9163972481 | AG15: 0.9234525188 | AH15: 4.002555026 | AI15: 1.546981968 | AJ15: 0.7060124404 | AK15: 3.441958798 | AL15: 5.256306927 | AM15: 10.23725969 | AN15: 3.816063195 | AO15: 9.70309049 | AP15: BSAF | AQ15: 0.3105589905 | AR15: 0.2741467526 | AS15: 0.57526391 | AT15: 1.256676364 | AU15: 2.834551683 | AV15: 1.191458528 | AW15: 0.8001796897 | AX15: 0.8336171285 | AY15: 0.8400350816 | AZ15: 3.640995687 | BA15: 1.407239785 | BB15: 0.6422368297 | BC15: 3.131039313 | BD15: 4.781493503 | BE15: 9.312506169 | BF15: 3.471350061 | BG15: 8.826589615 | BH15: 3.745179017 | BI15: 6.535886683 | BJ15: 2.248752617 | BK15: 1.874721199 | BL15: 3.393074657 | BM15: 1.141271572 | BN15: 0.6572834324 | BO15: 0.5959970295
A16: PCB 8 | B16: PCBs | C16: 0.5 | D16: 16.84 | G16: 46.51822068 | H16: 1.439362926e-05 | I16: 0.0003721457654 | J16: =VLOOKUP(A16,'Default Parameters'!$A$108:$D$182,4,FALSE)-(((VLOOKUP(A16,'Default Parameters'!$A$108:$D$182,3,FALSE)/(LN(10)*0.0083145))*((1/(273+Input!$D$24))-(1/298)))) -> 5.224129731 | K16: 0 | L16: 226.4 | M16: 5.372001274 | N16: 4.916069318 | O16: 0.8547285783 | P16: 0.08117347388 | Q16: 0.1623959607 | R16: 0.05373629633 | S16: 0.06961171151 | T16: 0.1468064031 | U16: 0.1143069545 | V16: 0.04026991078 | W16: 0.09667434501 | X16: Tissue | Y16: 0.07315248664 | Z16: 0.08052668485 | AA16: 0.06579236146 | AB16: 0.1397941625 | AC16: 0.2089469971 | AD16: 0.0836867396 | AE16: 0.07160390856 | AF16: 0.06957799719 | AG16: 0.13817405 | AH16: 0.2920568598 | AI16: 0.1056071675 | AJ16: 0.07949139776 | AK16: 0.1720618738 | AL16: 0.182106622 | AM16: 0.2847432747 | AN16: 0.1492345443 | AO16: 0.4508868694 | AP16: BSAF | AQ16: 0.1463049733 | AR16: 0.1610533697 | AS16: 0.1315847229 | AT16: 0.2795883251 | AU16: 0.4178939942 | AV16: 0.1673734792 | AW16: 0.1432078171 | AX16: 0.1391559944 | AY16: 0.2763481 | AZ16: 0.5841137197 | BA16: 0.2112143349 | BB16: 0.1589827955 | BC16: 0.3441237477 | BD16: 0.3642132441 | BE16: 0.5694865493 | BF16: 0.2984690886 | BG16: 0.9017737388 | BH16: 0.1623469478 | BI16: 0.3247919213 | BJ16: 0.1074725927 | BK16: 0.139223423 | BL16: 0.2936128063 | BM16: 0.2286139091 | BN16: 0.08053982157 | BO16: 0.19334869
A17: PCB 11 | B17: PCBs | C17: 0.36 | F17: 47.65 | G17: 22.42040034 | H17: =_xlfn.IFS(E17="",_xlfn.IFS(D17="",G17,D17*O17<=G17,D17*O17,D17*O17>G17,G17),E17<=G17,E17,E17>G17,G17)/1000000 -> 2.242040034e-05 | I17: =IF(F17>0,F17/1000000,(C17/TOC)/(0.35*10^M17)) -> 4.765e-05 | J17: =VLOOKUP(A17,'Default Parameters'!$A$108:$D$182,4,FALSE)-(((VLOOKUP(A17,'Default Parameters'!$A$108:$D$182,3,FALSE)/(LN(10)*0.0083145))*((1/(273+Input!$D$24))-(1/298)))) -> 5.398441959 | K17: 0 | L17: 226.4 | M17: 5.546313502 | N17: 5.090381546 | O17: 0.7975112097 | P17: 0.2254669806 | Q17: 0.323851877 | R17: 0.1469391966 | S17: 0.1318244577 | T17: 0.3096936914 | U17: 0.1658661361 | V17: 0.09205654231 | W17: 0.1410265357 | Y17: 0.1681856156 | Z17: 0.1835678181 | AA17: 0.1575873967 | AB17: 0.1529347643 | AC17: 0.2270483412 | AD17: 0.1762508632 | AE17: 0.162348859 | AF17: 0.1607342967 | AG17: 0.1583019392 | AH17: 0.3537466619 | AI17: 0.2528664662 | AJ17: 0.1941564325 | AK17: 0.439209144 | AL17: 0.3805856463 | AM17: 0.6186754379 | AN17: 0.338975982 | AO17: 0.7329705483 | AQ17: 0.4671822655 | AR17: 0.509910606 | AS17: 0.4377427686 | AT17: 0.4248187898 | AU17: 0.6306898367 | AV17: 0.4895857311 | AW17: 0.4509690527 | AX17: 0.4464841575 | AY17: 0.4397276089 | AZ17: 0.9826296164 | BA17: 0.7024068505 | BB17: 0.5393234237 | BC17: 1.2200254 | BD17: 1.057182351 | BE17: 1.718542883 | BF17: 0.9415999501 | BG17: 2.036029301 | BH17: 0.6262971684 | BI17: 0.8995885473 | BJ17: 0.4081644351 | BK17: 0.3661790493 | BL17: 0.8602602539 | BM17: 0.4607392669 | BN17: 0.2557126175 | BO17: 0.3917403768
A18: PCB 18 | B18: PCBs | C18: 0.1010548837 | E18: 13.185837 | G18: 5.87501692 | H18: 5.87501692e-06 | I18: 4.700013536e-05 | J18: =VLOOKUP(A18,'Default Parameters'!$A$108:$D$182,4,FALSE)-(((VLOOKUP(A18,'Default Parameters'!$A$108:$D$182,3,FALSE)/(LN(10)*0.0083145))*((1/(273+Input!$D$24))-(1/298)))) -> 5.414680321 | K18: 0 | L18: 247.3 | M18: 5.576202549 | N18: 5.120270594 | O18: 0.7861695866 | P18: 0.067387224 | Q18: 0.1030805634 | R18: 0.04352710602 | S18: 0.04040513797 | T18: 0.09167903277 | U18: 0.04915201125 | V18: 0.02644900342 | W18: 0.04096579863 | X18: Tissue | Y18: 0.04708989082 | Z18: 0.05130417205 | AA18: 0.04449742919 | AB18: 0.05327971851 | AC18: 0.07515511139 | AD18: 0.05011692514 | AE18: 0.04594010466 | AF18: 0.04546813925 | AG18: 0.055101719 | AH18: 0.1140499686 | AI18: 0.07144265733 | AJ18: 0.05500496798 | AK18: 0.1260150767 | AL18: 0.1135514452 | AM18: 0.1873049904 | AN18: 0.09814636311 | AO18: 0.2333626167 | AP18: BSAF | AQ18: 0.4659833259 | AR18: 0.5076862212 | AS18: 0.4403293295 | AT18: 0.527235464 | AU18: 0.7437058816 | AV18: 0.4959376855 | AW18: 0.4546054873 | AX18: 0.4499351003 | AY18: 0.5452652753 | AZ18: 1.128594328 | BA18: 0.7069688737 | BB18: 0.5443078647 | BC18: 1.246996405 | BD18: 1.123661134 | BE18: 1.853497659 | BF18: 0.9712184063 | BG18: 2.309266095 | BH18: 0.6668378758 | BI18: 1.020045342 | BJ18: 0.4307273871 | BK18: 0.3998336002 | BL18: 0.9072202094 | BM18: 0.4863892713 | BN18: 0.2617290966 | BO18: 0.405381681
A19: PCB 27 | B19: PCBs | C19: 0.44 | G19: 19.68533696 | H19: 1.968533696e-05 | I19: 0.0001574826957 | J19: =VLOOKUP(A19,'Default Parameters'!$A$108:$D$182,4,FALSE)-(((VLOOKUP(A19,'Default Parameters'!$A$108:$D$182,3,FALSE)/(LN(10)*0.0083145))*((1/(273+Input!$D$24))-(1/298)))) -> 5.528441959 | K19: 0 | L19: 247.3 | M19: 5.689964188 | N19: 5.234032232 | O19: 0.7388583868 | P19: 0.3554163244 | Q19: 0.5493274571 | R19: 0.2260446329 | S19: 0.2035178637 | T19: 0.4494218145 | U19: 0.2382876336 | V19: 0.1257308896 | W19: 0.1926462127 | Y19: 0.2026924677 | Z19: 0.219080601 | AA19: 0.1986270043 | AB19: 0.2414029099 | AC19: 0.3628135816 | AD19: 0.2305344297 | AE19: 0.2070360772 | AF19: 0.2046961852 | AG19: 0.246489295 | AH19: 0.5543248633 | AI19: 0.3201122826 | AJ19: 0.2484045254 | AK19: 0.5989076549 | AL19: 0.5587193061 | AM19: 0.9360595288 | AN19: 0.4695056905 | AO19: 1.142812967 | AQ19: 0.4606646992 | AR19: 0.4979104569 | AS19: 0.4514250097 | AT19: 0.5486429771 | AU19: 0.8245763218 | AV19: 0.5239418858 | AW19: 0.4705365392 | AX19: 0.4652186028 | AY19: 0.5602029433 | AZ19: 1.259829235 | BA19: 0.727527915 | BB19: 0.5645557396 | BC19: 1.361153761 | BD19: 1.269816605 | BE19: 2.12740802 | BF19: 1.067058388 | BG19: 2.597302197 | BH19: 0.8077643735 | BI19: 1.248471493 | BJ19: 0.513737802 | BK19: 0.4625405994 | BL19: 1.021413215 | BM19: 0.5415628037 | BN19: 0.2857520219 | BO19: 0.4378323016
A20: PCB 28 | B20: PCBs | C20: 0.1668634884 | E20: 11.43476661 | G20: 4.176858443 | H20: 4.176858443e-06 | I20: 3.341486754e-05 | J20: =VLOOKUP(A20,'Default Parameters'!$A$108:$D$182,4,FALSE)-(((VLOOKUP(A20,'Default Parameters'!$A$108:$D$182,3,FALSE)/(LN(10)*0.0083145))*((1/(273+Input!$D$24))-(1/298)))) -> 5.780643697 | K20: 0 | L20: 247.3 | M20: 5.942165926 | N20: 5.48623397 | O20: 0.6128546217 | P20: 0.2071730974 | Q20: 0.3308213986 | R20: 0.1296854626 | S20: 0.1092087559 | T20: 0.2281954912 | U20: 0.112832321 | V20: 0.05884678417 | W20: 0.08408255666 | X20: Tissue | Y20: 0.07398650658 | Z20: 0.07795765196 | AA20: 0.08073487787 | AB20: 0.1034087434 | AC20: 0.1806161126 | AD20: 0.102445403 | AE20: 0.08688119981 | AF20: 0.0859354506 | AG20: 0.1011613792 | AH20: 0.2757313837 | AI20: 0.1332442235 | AJ20: 0.1024957864 | AK20: 0.281751834 | AL20: 0.2891000393 | AM20: 0.502770596 | AN20: 0.2301810781 | AO20: 0.5808545974 | AP20: BSAF | AQ20: 0.4433954204 | AR20: 0.467194188 | AS20: 0.4838378884 | AT20: 0.6197206134 | AU20: 1.082418415 | AV20: 0.6139473887 | AW20: 0.5206723212 | AX20: 0.5150045192 | AY20: 0.6062523337 | AZ20: 1.65243689 | BA20: 0.7985223416 | BB20: 0.614249333 | BC20: 1.688516983 | BD20: 1.73255421 | BE20: 3.013065356 | BF20: 1.379457426 | BG20: 3.481016747 | BH20: 1.241572374 | BI20: 1.982587095 | BJ20: 0.7771949628 | BK20: 0.6544796405 | BL20: 1.367557957 | BM20: 0.6761953867 | BN20: 0.3526642332 | BO20: 0.5039002689
A21: PCB 29 | B21: PCBs | C21: 0.72 | G21: 20.32463116 | H21: 2.032463116e-05 | I21: 0.0001625970493 | J21: =VLOOKUP(A21,'Default Parameters'!$A$108:$D$182,4,FALSE)-(((VLOOKUP(A21,'Default Parameters'!$A$108:$D$182,3,FALSE)/(LN(10)*0.0083145))*((1/(273+Input!$D$24))-(1/298)))) -> 5.728441959 | K21: 0 | L21: 247.3 | M21: 5.889964188 | N21: 5.434032232 | O21: 0.6409584275 | P21: 0.8182663197 | Q21: 1.296988255 | R21: 0.5131322982 | S21: 0.4376784331 | T21: 0.9245379442 | U21: 0.4659207635 | V21: 0.2427961189 | W21: 0.3536959464 | Y21: 0.3223505794 | Z21: 0.341800188 | AA21: 0.3429026884 | AB21: 0.4332587251 | AC21: 0.7334760731 | AD21: 0.4259788074 | AE21: 0.3660437667 | AF21: 0.3618589803 | AG21: 0.4284766338 | AH21: 1.12232026 | AI21: 0.5617721061 | AJ21: 0.434742266 | AK21: 1.160616056 | AL21: 1.165381431 | AM21: 2.010599533 | AN21: 0.9370781764 | AO21: 2.351862 | AQ21: 0.447709138 | AR21: 0.4747224834 | AS21: 0.4762537339 | AT21: 0.6017482294 | AU21: 1.018716768 | AV21: 0.5916372324 | AW21: 0.5083941204 | AX21: 0.502581917 | AY21: 0.5951064358 | AZ21: 1.558778138 | BA21: 0.7802390363 | BB21: 0.6038087027 | BC21: 1.611966744 | BD21: 1.618585321 | BE21: 2.792499351 | BF21: 1.301497467 | BG21: 3.266475001 | BH21: 1.136481 | BI21: 1.801372577 | BJ21: 0.7126837475 | BK21: 0.6078867127 | BL21: 1.284080478 | BM21: 0.6471121715 | BN21: 0.3372168319 | BO21: 0.49124437
A22: PCB 31 | B22: PCBs | C22: 0.13606575 | E22: 6.363272245 | G22: 2.594610333 | H22: 2.594610333e-06 | I22: 2.075688267e-05 | J22: =VLOOKUP(A22,'Default Parameters'!$A$108:$D$182,4,FALSE)-(((VLOOKUP(A22,'Default Parameters'!$A$108:$D$182,3,FALSE)/(LN(10)*0.0083145))*((1/(273+Input!$D$24))-(1/298)))) -> 5.898808812 | K22: 0 | L22: 247.3 | M22: 6.060331041 | N22: 5.604399085 | O22: 0.5466742743 | P22: 0.2057096598 | Q22: 0.3341253961 | R22: 0.1284258912 | S22: 0.1054760312 | T22: 0.2152544206 | U22: 0.1012410402 | V22: 0.0531680965 | W22: 0.07211123722 | X22: Tissue | Y22: 0.05876785673 | Z22: 0.06090277029 | AA22: 0.06836136642 | AB22: 0.09093000862 | AC22: 0.1700444747 | AD22: 0.09152284586 | AE22: 0.0751775433 | AF22: 0.07454816242 | AG22: 0.08637045124 | AH22: 0.2570576769 | AI22: 0.1154808534 | AJ22: 0.08666111682 | AK22: 0.2556314225 | AL22: 0.2763589052 | AM22: 0.4895117765 | AN22: 0.2157786706 | AO22: 0.5491603971 | AP22: BSAF | AQ22: 0.4319077852 | AR22: 0.4475980935 | AS22: 0.5024142109 | AT22: 0.6682799207 | AU22: 1.249722834 | AV22: 0.6726369116 | AW22: 0.55250894 | AX22: 0.5478833756 | AY22: 0.634769964 | AZ22: 1.889216624 | BA22: 0.8487136067 | BB22: 0.6369061782 | BC22: 1.878734528 | BD22: 2.031068841 | BE22: 3.597612011 | BF22: 1.585841188 | BG22: 4.035992872 | BH22: 1.51184012 | BI22: 2.4556172 | BJ22: 0.9438517132 | BK22: 0.7751842856 | BL22: 1.581988271 | BM22: 0.7440596932 | BN22: 0.3907529742 | BO22: 0.5299734666
A23: PCB 33 | B23: PCBs | C23: 0.36 | G23: 9.250540375 | H23: 9.250540375e-06 | I23: 7.4004323e-05 | J23: =VLOOKUP(A23,'Default Parameters'!$A$108:$D$182,4,FALSE)-(((VLOOKUP(A23,'Default Parameters'!$A$108:$D$182,3,FALSE)/(LN(10)*0.0083145))*((1/(273+Input!$D$24))-(1/298)))) -> 5.769267533 | K23: 0 | L23: 247.3 | M23: 5.930789762 | N23: 5.474857806 | O23: 0.6190509776 | P23: 0.4384591274 | Q23: 0.6990076661 | R23: 0.2745599972 | S23: 0.2318363436 | T23: 0.4855670188 | U23: 0.2411309583 | V23: 0.125721259 | W23: 0.180431121 | X23: Tissue | Y23: 0.1599742016 | Z23: 0.1688009837 | AA23: 0.1735736452 | AB23: 0.2216289715 | AC23: 0.38448981 | AD23: 0.2192055768 | AE23: 0.1864459635 | AF23: 0.1843892624 | AG23: 0.2173492496 | AH23: 0.587323997 | AI23: 0.2859662553 | AJ23: 0.2203145127 | AK23: 0.6017180134 | AL23: 0.6144564307 | AM23: 1.066729285 | AN23: 0.4902512901 | AO23: 1.235780848 | AP23: BSAF | AQ23: 0.4443727823 | AR23: 0.4688916214 | AS23: 0.4821490144 | AT23: 0.6156360319 | AU23: 1.06802725 | AV23: 0.60890438 | AW23: 0.5179054542 | AX23: 0.5121923955 | AY23: 0.6037479154 | AZ23: 1.631455547 | BA23: 0.7943507093 | BB23: 0.6119847574 | BC23: 1.671438926 | BD23: 1.706823419 | BE23: 2.963136901 | BF23: 1.361809139 | BG23: 3.432724577 | BH23: 1.217942021 | BI23: 1.941687961 | BJ23: 0.7626666589 | BK23: 0.6439898434 | BL23: 1.348797275 | BM23: 0.6698082176 | BN23: 0.3492257193 | BO23: 0.5011975582
A24: PCB 37 | B24: PCBs | C24: 0.42 | G24: 7.83320454 | H24: 7.83320454e-06 | I24: 6.266563632e-05 | J24: =VLOOKUP(A24,'Default Parameters'!$A$108:$D$182,4,FALSE)-(((VLOOKUP(A24,'Default Parameters'!$A$108:$D$182,3,FALSE)/(LN(10)*0.0083145))*((1/(273+Input!$D$24))-(1/298)))) -> 5.908441959 | K24: 0 | L24: 247.3 | M24: 6.069964188 | N24: 5.614032232 | O24: 0.5411718395 | P24: 0.6450817108 | Q24: 1.049221248 | R24: 0.4026577109 | S24: 0.3301242775 | T24: 0.672456466 | U24: 0.3148772302 | V24: 0.165499859 | W24: 0.2234099204 | Y24: 0.1809598755 | Z24: 0.1872517226 | AA24: 0.2116791594 | AB24: 0.2825646394 | AC24: 0.5312404295 | AD24: 0.2847379103 | AE24: 0.2332498016 | AF24: 0.2313655333 | AG24: 0.2676636553 | AH24: 0.8022088695 | AI24: 0.3584289945 | AJ24: 0.2682317754 | AK24: 0.796002859 | AL24: 0.8643694737 | AM24: 1.533357825 | AN24: 0.6739311345 | AO24: 1.715985491 | AQ24: 0.4308568464 | AR24: 0.4458374349 | AS24: 0.5039979985 | AT24: 0.6727729509 | AU24: 1.264858165 | AV24: 0.6779474055 | AW24: 0.5553566705 | AX24: 0.5508703173 | AY24: 0.6372944173 | AZ24: 1.910021118 | BA24: 0.8534023678 | BB24: 0.6386470843 | BC24: 1.895244902 | BD24: 2.058022556 | BE24: 3.650851963 | BF24: 1.604597939 | BG24: 4.085679741 | BH24: 1.535908835 | BI24: 2.498145829 | BJ24: 0.9587088354 | BK24: 0.7860101846 | BL24: 1.601086824 | BM24: 0.7497076909 | BN24: 0.3940472832 | BO24: 0.531928382
A25: PCB 44 | B25: PCBs | C25: 0.4053511628 | E25: 16.2247466 | G25: 6.82409933 | H25: 6.82409933e-06 | I25: 5.459279464e-05 | J25: =VLOOKUP(A25,'Default Parameters'!$A$108:$D$182,4,FALSE)-(((VLOOKUP(A25,'Default Parameters'!$A$108:$D$182,3,FALSE)/(LN(10)*0.0083145))*((1/(273+Input!$D$24))-(1/298)))) -> 5.939267533 | K25: 0 | L25: 268.2 | M25: 6.114440448 | N25: 5.658508492 | O25: 0.5156575604 | P25: 0.6699258933 | Q25: 1.096561537 | R25: 0.4178125117 | S25: 0.3399570051 | T25: 0.6865709791 | U25: 0.3146987667 | V25: 0.166128162 | W25: 0.2191926287 | X25: Tissue | Y25: 0.172584047 | Z25: 0.1772925268 | AA25: 0.2073444903 | AB25: 0.2816930891 | AC25: 0.5426424076 | AD25: 0.2853107284 | AE25: 0.230720574 | AF25: 0.2292178101 | AG25: 0.2632816856 | AH25: 0.814845614 | AI25: 0.355358218 | AJ25: 0.2620830281 | AK25: 0.8003851301 | AL25: 0.8875604617 | AM25: 1.585709431 | AN25: 0.6876341094 | AO25: 1.754244976 | AP25: BSAF | AQ25: 0.4257642825 | AR25: 0.4373800869 | AS25: 0.5115181832 | AT25: 0.6949359345 | AU25: 1.338697054 | AV25: 0.7038606389 | AW25: 0.5691869054 | AX25: 0.5654795918 | AY25: 0.6495150619 | AZ25: 2.010221479 | BA25: 0.8766675679 | BB25: 0.6465579779 | BC25: 1.974547512 | BD25: 2.189608772 | BE25: 3.911940008 | BF25: 1.696391111 | BG25: 4.32771665 | BH25: 1.652705 | BI25: 2.705213746 | BJ25: 1.030742107 | BK25: 0.8386728257 | BL25: 1.693768372 | BM25: 0.7763608338 | BN25: 0.4098376353 | BO25: 0.540747502
A26: PCB 49 | B26: PCBs | C26: 0.5 | G26: 6.174427678 | H26: 6.174427678e-06 | I26: 4.939542142e-05 | J26: =VLOOKUP(A26,'Default Parameters'!$A$108:$D$182,4,FALSE)-(((VLOOKUP(A26,'Default Parameters'!$A$108:$D$182,3,FALSE)/(LN(10)*0.0083145))*((1/(273+Input!$D$24))-(1/298)))) -> 6.073854746 | K26: 0 | L26: 268.2 | M26: 6.249027661 | N26: 5.793095705 | O26: 0.4385010288 | P26: 1.021061789 | Q26: 1.701610666 | R26: 0.634858221 | S26: 0.5086211205 | T26: 1.001850382 | U26: 0.4289323869 | V26: 0.2302515908 | W26: 0.2816703075 | X26: Tissue | Y26: 0.203888956 | Z26: 0.2042317801 | AA26: 0.267123365 | AB26: 0.3870339168 | AC26: 0.7957544783 | AD26: 0.3960787118 | AE26: 0.3076435708 | AF26: 0.3077060312 | AG26: 0.3447448366 | AH26: 1.168489177 | AI26: 0.480011746 | AJ26: 0.3329445721 | AK26: 1.113958826 | AL26: 1.319068159 | AM26: 2.406739905 | AN26: 1.005428412 | AO26: 2.571116657 | AP26: BSAF | AQ26: 0.407777912 | AR26: 0.4084635602 | AS26: 0.53424673 | AT26: 0.7740678337 | AU26: 1.591508957 | AV26: 0.7921574235 | AW26: 0.6152871416 | AX26: 0.6154120624 | AY26: 0.6894896731 | AZ26: 2.336978353 | BA26: 0.960023492 | BB26: 0.6658891443 | BC26: 2.227917653 | BD26: 2.638136319 | BE26: 4.813479811 | BF26: 2.010856825 | BG26: 5.142233314 | BH26: 2.042123578 | BI26: 3.403221332 | BJ26: 1.269716442 | BK26: 1.017242241 | BL26: 2.003700764 | BM26: 0.8578647738 | BN26: 0.4605031816 | BO26: 0.563340615
A27: PCB 52 | B27: PCBs | C27: 0.5 | D27: 27.86 | E27: 17.33 | G27: 6.748706547 | H27: 6.748706547e-06 | I27: 5.398965237e-05 | J27: =VLOOKUP(A27,'Default Parameters'!$A$108:$D$182,4,FALSE)-(((VLOOKUP(A27,'Default Parameters'!$A$108:$D$182,3,FALSE)/(LN(10)*0.0083145))*((1/(273+Input!$D$24))-(1/298)))) -> 6.03523091 | K27: 0 | L27: 268.2 | M27: 6.210403824 | N27: 5.754471869 | O27: 0.4605041774 | P27: 0.9621609915 | Q27: 1.595523128 | R27: 0.5988591882 | S27: 0.4813674419 | T27: 0.9548869223 | U27: 0.4171169048 | V27: 0.2227316867 | W27: 0.2787196046 | X27: Tissue | Y27: 0.206676949 | Z27: 0.2086364145 | AA27: 0.2638853716 | AB27: 0.3746304087 | AC27: 0.7570095746 | AD27: 0.3825927721 | AE27: 0.3006848865 | AF27: 0.3000707461 | AG27: 0.3387669839 | AH27: 1.119673769 | AI27: 0.4669428264 | AJ27: 0.3305545733 | AK27: 1.076484324 | AL27: 1.25045459 | AM27: 2.267894465 | AN27: 0.9572511671 | AO27: 2.447244654 | AP27: BSAF | AQ27: 0.4133538981 | AR27: 0.417272829 | AS27: 0.5277707432 | AT27: 0.7492608173 | AU27: 1.514019149 | AV27: 0.7651855442 | AW27: 0.6013697729 | AX27: 0.6001414922 | AY27: 0.6775339677 | AZ27: 2.239347538 | BA27: 0.9338856527 | BB27: 0.6611091467 | BC27: 2.152968648 | BD27: 2.50090918 | BE27: 4.53578893 | BF27: 1.914502334 | BG27: 4.894489308 | BH27: 1.924321983 | BI27: 3.191046256 | BJ27: 1.197718376 | BK27: 0.9627348837 | BL27: 1.909773845 | BM27: 0.8342338095 | BN27: 0.4454633733 | BO27: 0.5574392092
A28: PCB 56 | B28: PCBs | C28: 0.54 | G28: 5.498684795 | H28: 5.498684795e-06 | I28: 4.398947836e-05 | J28: =VLOOKUP(A28,'Default Parameters'!$A$108:$D$182,4,FALSE)-(((VLOOKUP(A28,'Default Parameters'!$A$108:$D$182,3,FALSE)/(LN(10)*0.0083145))*((1/(273+Input!$D$24))-(1/298)))) -> 6.157616385 | K28: 0 | L28: 268.2 | M28: 6.332789299 | N28: 5.876857343 | O28: 0.3917133091 | P28: 1.249052839 | Q28: 2.102704422 | R28: 0.7743319644 | S28: 0.6179864408 | T28: 1.199044515 | U28: 0.4911444193 | V28: 0.2669172444 | W28: 0.3102171703 | X28: Tissue | Y28: 0.213016977 | Z28: 0.2095133438 | AA28: 0.2957542366 | AB28: 0.4504974648 | AC28: 0.9575026522 | AD28: 0.4616353971 | AE28: 0.3494169631 | AF28: 0.351489111 | AG28: 0.3868746032 | AH28: 1.381140122 | AI28: 0.5524319253 | AJ28: 0.3637227679 | AK28: 1.293171961 | AL28: 1.597731371 | AM28: 2.952796022 | AN28: 1.2073574 | AO28: 3.086812138 | AP28: BSAF | AQ28: 0.3944758834 | AR28: 0.3879876738 | AS28: 0.5476930308 | AT28: 0.8342545644 | AU28: 1.77315306 | AV28: 0.854880365 | AW28: 0.6470684501 | AX28: 0.6509057611 | AY28: 0.7164344505 | AZ28: 2.557666892 | BA28: 1.023022084 | BB28: 0.6735606813 | BC28: 2.39476289 | BD28: 2.958761797 | BE28: 5.468140781 | BF28: 2.235847036 | BG28: 5.716318774 | BH28: 2.313060814 | BI28: 3.893897078 | BJ28: 1.433948082 | BK28: 1.144419335 | BL28: 2.220452805 | BM28: 0.9095267025 | BN28: 0.4942911934 | BO28: 0.5744762414
A29: PCB 60 | B29: PCBs | C29: 0.61 | D29: 120.4 | E29: 65.32 | F29: 140.8 | G29: 4.933951774 | H29: 4.933951774e-06 | I29: 0.0001408 | J29: =VLOOKUP(A29,'Default Parameters'!$A$108:$D$182,4,FALSE)-(((VLOOKUP(A29,'Default Parameters'!$A$108:$D$182,3,FALSE)/(LN(10)*0.0083145))*((1/(273+Input!$D$24))-(1/298)))) -> 6.257616385 | K29: 0 | L29: 268.2 | M29: 6.432789299 | N29: 5.976857343 | O29: 0.3384129682 | P29: 1.700750255 | Q29: 3.035627161 | R29: 1.019084372 | S29: 0.8834659483 | T29: 1.622494458 | U29: 0.6298781899 | V29: 0.3282134764 | W29: 0.3719139915 | X29: Tissue | Y29: 0.2295760924 | Z29: 0.2203664279 | AA29: 0.3425998239 | AB29: 0.7548152028 | AC29: 1.388243769 | AD29: 0.5711161421 | AE29: 0.4190674912 | AF29: 0.4249887186 | AG29: 0.6291997327 | AH29: 1.858793869 | AI29: 0.6765797713 | AJ29: 0.4129000013 | AK29: 1.584079714 | AL29: 2.238208003 | AM29: 4.230377379 | AN29: 1.594278438 | AO29: 4.210201936 | AP29: BSAF | AQ29: 0.3763542498 | AR29: 0.3612564391 | AS29: 0.5616390556 | AT29: 1.237401972 | AU29: 2.275809458 | AV29: 0.9362559706 | AW29: 0.6869958873 | AX29: 0.6967028173 | AY29: 1.031474972 | AZ29: 3.047203064 | BA29: 1.109147166 | BB29: 0.6768852481 | BC29: 2.596851991 | BD29: 3.669193448 | BE29: 6.935044884 | BF29: 2.613571209 | BG29: 6.901970387 | BH29: 2.788115173 | BI29: 4.976437969 | BJ29: 1.670630118 | BK29: 1.448304833 | BL29: 2.659826981 | BM29: 1.032587197 | BN29: 0.5380548794 | BO29: 0.6096950681
A30: PCB 64 | B30: PCBs | C30: 0.38 | G30: 6.71155398 | H30: 6.71155398e-06 | I30: 5.369243184e-05 | J30: =VLOOKUP(A30,'Default Parameters'!$A$108:$D$182,4,FALSE)-(((VLOOKUP(A30,'Default Parameters'!$A$108:$D$182,3,FALSE)/(LN(10)*0.0083145))*((1/(273+Input!$D$24))-(1/298)))) -> 5.918441959 | K30: 0 | L30: 268.2 | M30: 6.093614873 | N30: 5.637682918 | O30: 0.5276226923 | P30: 0.6071755322 | Q30: 0.9909431255 | R30: 0.378821376 | S30: 0.3092663489 | T30: 0.6270767106 | U30: 0.2903160822 | V30: 0.1529339002 | W30: 0.2039664304 | Y30: 0.1627154927 | Z30: 0.1677349003 | AA30: 0.1930498834 | AB30: 0.260080642 | AC30: 0.4954610775 | AD30: 0.2628226627 | AE30: 0.2138202358 | AF30: 0.2122637771 | AG30: 0.244640217 | AH30: 0.7460300495 | AI30: 0.3289428329 | AJ30: 0.2443370037 | AK30: 0.7362601692 | AL30: 0.8084878282 | AM30: 1.439723893 | AN30: 0.6281765891 | AO30: 1.601306418 | AQ30: 0.428198665 | AR30: 0.4414076325 | AS30: 0.5080260088 | AT30: 0.684422742 | AU30: 1.303844941 | AV30: 0.6916385859 | AW30: 0.562684831 | AX30: 0.5585888871 | AY30: 0.6437900447 | AZ30: 1.963236972 | BA30: 0.865639034 | BB30: 0.642992115 | BC30: 1.937526761 | BD30: 2.127599548 | BE30: 3.788747086 | BF30: 1.653096287 | BG30: 4.213964257 | BH30: 1.597830348 | BI30: 2.607745067 | BJ30: 0.9968983578 | BK30: 0.8138588129 | BL30: 1.65020187 | BM30: 0.7639896901 | BN30: 0.402457632 | BO30: 0.5367537642
A31: PCB 66 | B31: PCBs | C31: 1.05 | G31: 11.17451776 | H31: 1.117451776e-05 | I31: 8.939614205e-05 | J31: =VLOOKUP(A31,'Default Parameters'!$A$108:$D$182,4,FALSE)-(((VLOOKUP(A31,'Default Parameters'!$A$108:$D$182,3,FALSE)/(LN(10)*0.0083145))*((1/(273+Input!$D$24))-(1/298)))) -> 6.138441959 | K31: 0 | L31: 268.2 | M31: 6.313614873 | N31: 5.857682918 | O31: 0.4022820958 | P31: 2.361741065 | Q31: 3.966979916 | R31: 1.465250825 | S31: 1.169950773 | T31: 2.277791177 | U31: 0.9425524166 | V31: 0.5107525523 | W31: 0.6007370528 | X31: Tissue | Y31: 0.4175534474 | Z31: 0.4124782619 | AA31: 0.5719535404 | AB31: 0.8606561187 | AC31: 1.816447955 | AD31: 0.8820397015 | AE31: 0.6716046277 | AF31: 0.6746399083 | AG31: 0.7456749611 | AH31: 2.631496244 | AI31: 1.058231986 | AJ31: 0.705770419 | AK31: 2.473991806 | AL31: 3.026784543 | AM31: 5.577630947 | AN31: 2.291617776 | AO31: 5.859678762 | AP31: BSAF | AQ31: 0.3976699499 | AR31: 0.3928364399 | AS31: 0.5447176576 | AT31: 0.819672494 | AU31: 1.729950434 | AV31: 0.840037811 | AW31: 0.639623455 | AX31: 0.6425141984 | AY31: 0.7101666297 | AZ31: 2.506186899 | BA31: 1.007839987 | BB31: 0.6721623038 | BC31: 2.356182672 | BD31: 2.882651946 | BE31: 5.312029473 | BF31: 2.18249312 | BG31: 5.58064644 | BH31: 2.249277205 | BI31: 3.77807611 | BJ31: 1.395476976 | BK31: 1.114238831 | BL31: 2.169324931 | BM31: 0.8976689681 | BN31: 0.4864310022 | BO31: 0.5721305265
A32: PCB 70 | B32: PCBs | C32: 1.35 | G32: 11.67812876 | H32: 1.167812876e-05 | I32: 9.342503008e-05 | J32: =VLOOKUP(A32,'Default Parameters'!$A$108:$D$182,4,FALSE)-(((VLOOKUP(A32,'Default Parameters'!$A$108:$D$182,3,FALSE)/(LN(10)*0.0083145))*((1/(273+Input!$D$24))-(1/298)))) -> 6.228441959 | K32: 0 | L32: 268.2 | M32: 6.403614873 | N32: 5.947682918 | O32: 0.3536123841 | P32: 3.451411282 | Q32: 5.855882727 | R32: 2.132424612 | S32: 1.702555573 | T32: 3.262042633 | U32: 1.286963756 | V32: 0.7071467724 | W32: 0.785801465 | X32: Tissue | Y32: 0.5155597474 | Z32: 0.4985465077 | AA32: 0.7531587217 | AB32: 1.20486396 | AC32: 2.620029339 | AD32: 1.231065731 | AE32: 0.9115333561 | AF32: 0.9221116608 | AG32: 0.9988431321 | AH32: 3.714707288 | AI32: 1.461876275 | AJ32: 0.9134716804 | AK32: 3.426319475 | AL32: 4.391523417 | AM32: 8.201890287 | AN32: 3.295968956 | AO32: 8.420100555 | AP32: BSAF | AQ32: 0.3818961092 | AR32: 0.3692937094 | AS32: 0.5578953494 | AT32: 0.8924918225 | AU32: 1.940762473 | AV32: 0.9119005413 | AW32: 0.6752098934 | AX32: 0.6830456747 | AY32: 0.7398838015 | AZ32: 2.751635028 | BA32: 1.082871315 | BB32: 0.6766456892 | BC32: 2.538014426 | BD32: 3.252980309 | BE32: 6.075474287 | BF32: 2.441458486 | BG32: 6.237111522 | BH32: 2.55660095 | BI32: 4.337690909 | BJ32: 1.579573787 | BK32: 1.261152277 | BL32: 2.416327876 | BM32: 0.953306486 | BN32: 0.523812424 | BO32: 0.5820751593
A33: PCB 74 | B33: PCBs | C33: 0.1944572093 | E33: 3.470400349 | G33: 1.643855124 | H33: 1.643855124e-06 | I33: 1.315084099e-05 | J33: =VLOOKUP(A33,'Default Parameters'!$A$108:$D$182,4,FALSE)-(((VLOOKUP(A33,'Default Parameters'!$A$108:$D$182,3,FALSE)/(LN(10)*0.0083145))*((1/(273+Input!$D$24))-(1/298)))) -> 6.238441959 | K33: 0 | L33: 268.2 | M33: 6.413614873 | N33: 5.957682918 | O33: 0.3483672614 | P33: 0.504009394 | Q33: 0.8560339867 | R33: 0.311226136 | S33: 0.2485690752 | T33: 0.475408123 | U33: 0.1865753773 | V33: 0.1026786077 | W33: 0.113370782 | X33: Tissue | Y33: 0.07389767335 | Z33: 0.07128020466 | AA33: 0.108743043 | AB33: 0.1752617246 | AC33: 0.3821878364 | AD33: 0.1789392606 | AE33: 0.1320834751 | AF33: 0.1337291411 | AG33: 0.1445229569 | AH33: 0.5404741621 | AI33: 0.2123039314 | AJ33: 0.1316084337 | AK33: 0.4974638782 | AL33: 0.6409469546 | AM33: 1.198816067 | AN33: 0.4805945488 | AO33: 1.227587447 | AP33: BSAF | AQ33: 0.3800202297 | AR33: 0.3665598458 | AS33: 0.5592132244 | AT33: 0.9012868448 | AU33: 1.96540842 | AV33: 0.9201986456 | AW33: 0.6792418527 | AX33: 0.6877047223 | AY33: 0.7432121307 | AZ33: 2.779398944 | BA33: 1.091777117 | BB33: 0.6767989428 | BC33: 2.558217718 | BD33: 3.296082243 | BE33: 6.164935057 | BF33: 2.471466862 | BG33: 6.312892445 | BH33: 2.591878161 | BI33: 4.40217151 | BJ33: 1.600486488 | BK33: 1.278271328 | BL33: 2.444795566 | BM33: 0.9594675247 | BN33: 0.5280267471 | BO33: 0.5830114626
A34: PCB 77 | B34: PCBs | C34: 1.12 | G34: 6.702819332 | H34: 6.702819332e-06 | I34: 5.362255465e-05 | J34: =VLOOKUP(A34,'Default Parameters'!$A$108:$D$182,4,FALSE)-(((VLOOKUP(A34,'Default Parameters'!$A$108:$D$182,3,FALSE)/(LN(10)*0.0083145))*((1/(273+Input!$D$24))-(1/298)))) -> 6.388441959 | K34: 0 | L34: 268.2 | M34: 6.563614873 | N34: 6.107682918 | O34: 0.2745593906 | P34: 3.51351225 | Q34: 6.053531993 | R34: 2.14659369 | S34: 1.737075384 | T34: 3.235279948 | U34: 1.17570825 | V34: 0.6621969974 | W34: 0.6640457166 | Y34: 0.3908307223 | Z34: 0.3619817575 | AA34: 0.6425470962 | AB34: 1.177310433 | AC34: 2.643638283 | AD34: 1.17506261 | AE34: 0.828272457 | AF34: 0.8500672542 | AG34: 0.8870675848 | AH34: 3.58219696 | AI34: 1.384321709 | AJ34: 0.7499658102 | AK34: 3.193179634 | AL34: 4.456622254 | AM34: 8.508883819 | AN34: 3.293813607 | AO34: 8.392239516 | AQ34: 0.3489560021 | AR34: 0.3231979978 | AS34: 0.5737027645 | AT34: 1.051170029 | AU34: 2.360391324 | AV34: 1.049163044 | AW34: 0.7395289794 | AX34: 0.7589886198 | AY34: 0.7920246293 | AZ34: 3.198390143 | BA34: 1.236001526 | BB34: 0.6696123305 | BC34: 2.851053244 | BD34: 3.979127013 | BE34: 7.597217695 | BF34: 2.940905006 | BG34: 7.493070997 | BH34: 3.137064509 | BI34: 5.40493928 | BJ34: 1.916601509 | BK34: 1.550960164 | BL34: 2.888642811 | BM34: 1.049739509 | BN34: 0.5912473191 | BO34: 0.5928979612
A35: PCB 81 | B35: PCBs | C35: 1.09 | G35: 6.675226228 | H35: 6.675226228e-06 | I35: 5.340180982e-05 | J35: =VLOOKUP(A35,'Default Parameters'!$A$108:$D$182,4,FALSE)-(((VLOOKUP(A35,'Default Parameters'!$A$108:$D$182,3,FALSE)/(LN(10)*0.0083145))*((1/(273+Input!$D$24))-(1/298)))) -> 6.378441959 | K35: 0 | L35: 268.2 | M35: 6.553614873 | N35: 6.097682918 | O35: 0.2791693261 | P35: 3.379288037 | Q35: 5.817180149 | R35: 2.066352723 | S35: 1.669884304 | T35: 3.115666515 | U35: 1.137867715 | V35: 0.6399320182 | W35: 0.6458088837 | Y35: 0.3828008841 | Z35: 0.3555640525 | AA35: 0.6246870764 | AB35: 1.133714075 | AC35: 2.542721878 | AD35: 1.134074059 | AE35: 0.8018104642 | AF35: 0.8221399116 | AG35: 0.8599055216 | AH35: 3.456042143 | AI35: 1.336258971 | AJ35: 0.7310403952 | AK35: 3.087461448 | AL35: 4.285812814 | AM35: 8.172242219 | AN35: 3.170738757 | AO35: 8.08013816 | AQ35: 0.3511934716 | AR35: 0.3262055528 | AS35: 0.5731074095 | AT35: 1.040104656 | AU35: 2.332772365 | AV35: 1.040434917 | AW35: 0.7356059305 | AX35: 0.7542567996 | AY35: 0.7889041483 | AZ35: 3.170680865 | BA35: 1.225925661 | BB35: 0.6706792617 | BC35: 2.832533439 | BD35: 3.931938361 | BE35: 7.497469926 | BF35: 2.908934639 | BG35: 7.412970789 | BH35: 3.100264254 | BI35: 5.336862522 | BJ35: 1.895736443 | BK35: 1.532003949 | BL35: 2.858409647 | BM35: 1.043915334 | BN35: 0.5870935946 | BO35: 0.5924852144
A36: PCB 87 | B36: PCBs | C36: 1.4 | G36: =IF(ISNUMBER(C36),1000000*(C36/(TOC*(0.35*10^(M36)))/8),0) -> 6.599588253 | H36: 6.599588253e-06 | I36: 5.279670602e-05 | J36: =VLOOKUP(A36,'Default Parameters'!$A$108:$D$182,4,FALSE)-(((VLOOKUP(A36,'Default Parameters'!$A$108:$D$182,3,FALSE)/(LN(10)*0.0083145))*((1/(273+Input!$D$24))-(1/298)))) -> 6.478441959 | K36: 0 | L36: 289.1 | M36: 6.667265559 | N36: 6.211333603 | O36: 0.2296521958 | P36: 4.934803657 | Q36: 8.575426211 | R36: 2.983882116 | S36: 2.457865596 | T36: 4.49346487 | U36: 1.552666113 | V36: 0.8875264827 | W36: 0.8336581442 | X36: Tissue | Y36: 0.4542666189 | Z36: 0.4079388614 | AA36: 0.8069119756 | AB36: 1.648401815 | AC36: 3.723824748 | AD36: 1.596883476 | AE36: 1.090836514 | AF36: 1.130484797 | AG36: 1.152635341 | AH36: 4.878348984 | AI36: 1.882076908 | AJ36: 0.9153009404 | AK36: 4.248698134 | AL36: 6.280860023 | AM36: 12.14756682 | AN36: 4.590783702 | AO36: 11.67724047 | AP36: BSAF | AQ36: 0.3244761563 | AR36: 0.291384901 | AS36: 0.5763656968 | AT36: 1.177429868 | AU36: 2.65987482 | AV36: 1.140631054 | AW36: 0.7791689385 | AX36: 0.8074891407 | AY36: 0.8233109575 | AZ36: 3.484534989 | BA36: 1.344340648 | BB36: 0.653786386 | BC36: 3.034784382 | BD36: 4.486328588 | BE36: 8.676833439 | BF36: 3.279131216 | BG36: 8.340886053 | BH36: 3.524859755 | BI36: 6.125304436 | BJ36: 2.131344369 | BK36: 1.755618283 | BL36: 3.209617764 | BM36: 1.109047224 | BN36: 0.6339474876 | BO36: 0.595470103
A37: PCB 95 | B37: PCBs | C37: 0.77 | G37: 7.077494333 | H37: 7.077494333e-06 | I37: 5.661995467e-05 | J37: =VLOOKUP(A37,'Default Parameters'!$A$108:$D$182,4,FALSE)-(((VLOOKUP(A37,'Default Parameters'!$A$108:$D$182,3,FALSE)/(LN(10)*0.0083145))*((1/(273+Input!$D$24))-(1/298)))) -> 6.188441959 | K37: 0 | L37: 289.1 | M37: 6.377265559 | N37: 5.921333603 | O37: 0.3676000599 | P37: 1.901025244 | Q37: 3.216477578 | R37: 1.17602223 | S37: 0.9382430407 | T37: 1.805988562 | U37: 0.7221195582 | V37: 0.3952139984 | W37: 0.4463564381 | X37: Tissue | Y37: 0.2977748443 | Z37: 0.289818908 | AA37: 0.4269760309 | AB37: 0.6705121754 | AC37: 1.447045596 | AD37: 0.6862091753 | AE37: 0.5121477368 | AF37: 0.5170090426 | AG37: 0.5633271671 | AH37: 2.065036015 | AI37: 0.8169708739 | AJ37: 0.520684046 | AK37: 1.915432094 | AL37: 2.422449629 | AM37: 4.507951747 | AN37: 1.822538288 | AO37: 4.658226723 | AP37: BSAF | AQ37: 0.3867205771 | AR37: 0.3763881922 | AS37: 0.5545143259 | AT37: 0.8707950329 | AU37: 1.879279995 | AV37: 0.8911807472 | AW37: 0.6651269309 | AX37: 0.6714403151 | AY37: 0.7315937235 | AZ37: 2.681864955 | BA37: 1.061001135 | BB37: 0.6762130468 | BC37: 2.487574148 | BD37: 3.146038479 | BE37: 5.854482788 | BF37: 2.366932841 | BG37: 6.049645095 | BH37: 2.468863953 | BI37: 4.177243608 | BJ37: 1.527301597 | BK37: 1.218497455 | BL37: 2.345439691 | BM37: 0.937817608 | BN37: 0.5132649329 | BO37: 0.5796836859
A38: PCB 97 | B38: PCBs | C38: 0.3636925 | E38: 3.681928399 | G38: 2.061214317 | H38: 2.061214317e-06 | I38: 1.648971454e-05 | J38: =VLOOKUP(A38,'Default Parameters'!$A$108:$D$182,4,FALSE)-(((VLOOKUP(A38,'Default Parameters'!$A$108:$D$182,3,FALSE)/(LN(10)*0.0083145))*((1/(273+Input!$D$24))-(1/298)))) -> 6.398441959 | K38: 0 | L38: 289.1 | M38: 6.587265559 | N38: 6.131333603 | O38: 0.2638468565 | P38: 1.175611799 | Q38: 2.029714012 | R38: 0.7165838108 | S38: 0.5817486356 | T38: 1.078923489 | U38: 0.38724029 | V38: 0.2189219368 | W38: 0.2160660173 | X38: Tissue | Y38: 0.12495529 | Z38: 0.1149391178 | AA38: 0.2092169158 | AB38: 0.3927002988 | AC38: 0.8840912159 | AD38: 0.3896897917 | AE38: 0.272630555 | AF38: 0.2804699527 | AG38: 0.2910203463 | AH38: 1.188907089 | AI38: 0.4591213195 | AJ38: 0.2426533127 | AK38: 1.054462781 | AL38: 1.491585603 | AM38: 2.857485735 | AN38: 1.099640845 | AO38: 2.801234131 | AP38: BSAF | AQ38: 0.3435740084 | AR38: 0.3160337863 | AS38: 0.575257713 | AT38: 1.079759134 | AU38: 2.430875577 | AV38: 1.071481517 | AW38: 0.7496183039 | AX38: 0.77117332 | AY38: 0.8001824241 | AZ38: 3.268989845 | BA38: 1.262388747 | BB38: 0.6671936119 | BC38: 2.899325065 | BD38: 4.101227281 | BE38: 7.856872867 | BF38: 3.023545564 | BG38: 7.702204831 | BH38: 3.232433441 | BI38: 5.58085199 | BJ38: 1.970301314 | BK38: 1.599561815 | BL38: 2.966581628 | BM38: 1.064746427 | BN38: 0.6019424013 | BO38: 0.5940898348
A39: PCB 99 | B39: PCBs | C39: 0.6170860465 | E39: 5.897746631 | G39: 2.842722922 | H39: 2.842722922e-06 | I39: 2.274178338e-05 | J39: =VLOOKUP(A39,'Default Parameters'!$A$108:$D$182,4,FALSE)-(((VLOOKUP(A39,'Default Parameters'!$A$108:$D$182,3,FALSE)/(LN(10)*0.0083145))*((1/(273+Input!$D$24))-(1/298)))) -> 6.488441959 | K39: 0 | L39: 289.1 | M39: 6.677265559 | N39: 6.221333603 | O39: 0.2256040237 | P39: 2.197256853 | Q39: 3.821225126 | R39: 1.327136692 | S39: 1.095500622 | T39: 1.999170216 | U39: 0.6876319075 | V39: 0.3935675262 | W39: 0.3674620722 | X39: Tissue | Y39: 0.1987004984 | Z39: 0.1778886035 | AA39: 0.3555456057 | AB39: 0.7345428914 | AC39: 1.659283524 | AD39: 0.7090829012 | AE39: 0.4829526186 | AF39: 0.5009500836 | AG39: 0.5097065262 | AH39: 2.166354834 | AI39: 0.8358235147 | AJ39: 0.4021555737 | AK39: 1.882301269 | AL39: 2.798154363 | AM39: 5.417830922 | AN39: 2.042901268 | AO39: 5.195366512 | AP39: BSAF | AQ39: 0.3219980415 | AR39: 0.2882719589 | AS39: 0.5761686036 | AT39: 1.190341113 | AU39: 2.688901384 | AV39: 1.149082701 | AW39: 0.7826341582 | AX39: 0.8117994021 | AY39: 0.8259893884 | AZ39: 3.510620353 | BA39: 1.354468343 | BB39: 0.6517009677 | BC39: 3.050305998 | BD39: 4.534463839 | BE39: 8.779700906 | BF39: 3.310561436 | BG39: 8.419192982 | BH39: 3.560697678 | BI39: 6.192370006 | BJ39: 2.150650949 | BK39: 1.77528017 | BL39: 3.239694411 | BM39: 1.114320947 | BN39: 0.6377838688 | BO39: 0.5954794704
A40: PCB 101 | B40: PCBs | C40: 0.1812500056 | G40: 0.9352616523 | H40: 9.352616523e-07 | I40: 7.482093219e-06 | J40: =VLOOKUP(A40,'Default Parameters'!$A$108:$D$182,4,FALSE)-(((VLOOKUP(A40,'Default Parameters'!$A$108:$D$182,3,FALSE)/(LN(10)*0.0083145))*((1/(273+Input!$D$24))-(1/298)))) -> 6.439175665 | K40: 0 | L40: 289.1 | M40: 6.627999265 | N40: 6.17206731 | O40: 0.246036854 | P40: 0.6130505143 | Q40: 1.062013792 | R40: 0.3722152224 | S40: 0.3042561672 | T40: 0.5601869794 | U40: 0.1971525706 | V40: 0.1121031604 | W40: 0.1078585915 | X40: Tissue | Y40: 0.0605404848 | Z40: 0.05501848564 | AA40: 0.104472539 | AB40: 0.2044925546 | AC40: 0.4615801977 | AD40: 0.2006373063 | AE40: 0.1386620574 | AF40: 0.1431909189 | AG40: 0.1472308426 | AH40: 0.6126425726 | AI40: 0.2363877534 | AJ40: 0.1198231173 | AK40: 0.5384266741 | AL40: 0.7788376498 | AM40: 1.499494231 | AN40: 0.5717290188 | AO40: 1.45534547 | AP40: BSAF | AQ40: 0.3340164575 | AR40: 0.3035502562 | AS40: 0.5764001974 | AT40: 1.128234749 | AU40: 2.546649288 | AV40: 1.106964414 | AW40: 0.7650320173 | AX40: 0.7900188384 | AY40: 0.8123080721 | AZ40: 3.380096847 | BA40: 1.304208254 | BB40: 0.6610930403 | BC40: 2.970629834 | BD40: 4.297035176 | BE40: 8.273071363 | BF40: 3.154366902 | BG40: 8.029491999 | BH40: 3.38234756 | BI40: 5.859386259 | BJ40: 2.053601163 | BK40: 1.678654663 | BL40: 3.090686687 | BM40: 1.087738287 | BN40: 0.6185001763 | BO40: 0.5950818657
A41: PCB 105 | B41: PCBs | C41: 0.4540069767 | E41: 1.599129689 | G41: 0.7206078755 | H41: 7.206078755e-07 | I41: 5.764863004e-06 | J41: =VLOOKUP(A41,'Default Parameters'!$A$108:$D$182,4,FALSE)-(((VLOOKUP(A41,'Default Parameters'!$A$108:$D$182,3,FALSE)/(LN(10)*0.0083145))*((1/(273+Input!$D$24))-(1/298)))) -> 6.951194287 | K41: 0 | L41: 289.1 | M41: 7.140017887 | N41: 6.684085931 | O41: 0.0912200226 | P41: 2.119966782 | Q41: 3.803132107 | R41: 1.194898173 | S41: 1.1666545 | T41: 1.945636915 | U41: 0.5666952072 | V41: 0.3336659057 | W41: 0.2534702274 | X41: Tissue | Y41: 0.08923413285 | Z41: 0.06914368488 | AA41: 0.2163684566 | AB41: 0.8693965155 | AC41: 1.787410848 | AD41: 0.6358475734 | AE41: 0.3809812303 | AF41: 0.4014326775 | AG41: 0.3922219848 | AH41: 1.947017713 | AI41: 0.726576517 | AJ41: 0.2135486833 | AK41: 1.462883674 | AL41: 2.862557625 | AM41: 5.692932159 | AN41: 1.950948213 | AO41: 4.863244807 | AP41: BSAF | AQ41: 0.196547933 | AR41: 0.152296525 | AS41: 0.4765751799 | AT41: 1.914940871 | AU41: 3.936967799 | AV41: 1.400523794 | AW41: 0.83915281 | AX41: 0.8841993582 | AY41: 0.8639118007 | AZ41: 4.288519368 | BA41: 1.600364211 | BB41: 0.4703643208 | BC41: 3.22216122 | BD41: 6.305096113 | BE41: 12.53930545 | BF41: 4.297176724 | BG41: 10.71182835 | BH41: 4.6694586 | BI41: 8.376814238 | BJ41: 2.631893856 | BK41: 2.56968408 | BL41: 4.285478009 | BM41: 1.248208147 | BN41: 0.7349356348 | BO41: 0.5582958861
A42: PCB 110 | B42: PCBs | C42: 1.601034884 | E42: 9.244741774 | G42: 8.275411522 | H42: 8.275411522e-06 | I42: 6.620329217e-05 | J42: =VLOOKUP(A42,'Default Parameters'!$A$108:$D$182,4,FALSE)-(((VLOOKUP(A42,'Default Parameters'!$A$108:$D$182,3,FALSE)/(LN(10)*0.0083145))*((1/(273+Input!$D$24))-(1/298)))) -> 6.438441959 | K42: 0 | L42: 289.1 | M42: 6.627265559 | N42: 6.171333603 | O42: 0.2463503806 | P42: 5.410957179 | Q42: 9.373077497 | R42: 3.285519243 | S42: 2.685290875 | T42: 4.944724513 | U42: 1.740855881 | V42: 0.9897698341 | W42: 0.9527266938 | X42: Tissue | Y42: 0.5350526282 | Z42: 0.486356765 | AA42: 0.9228204142 | AB42: 1.804908224 | AC42: 4.073908751 | AD42: 1.771271835 | AE42: 1.224408309 | AF42: 1.264313417 | AG42: 1.300193452 | AH42: 5.408484748 | AI42: 2.086876965 | AJ42: 1.058630209 | AK42: 4.754090041 | AL42: 6.874041884 | AM42: 13.23342032 | AN42: 5.046493337 | AO42: 12.8461051 | AP42: BSAF | AQ42: 0.3341917367 | AR42: 0.3037764948 | AS42: 0.5763899485 | AT42: 1.127338475 | AU42: 2.544547151 | AV42: 1.10632932 | AW42: 0.7647605441 | AX42: 0.7896851152 | AY42: 0.8120956419 | AZ42: 3.378117993 | BA42: 1.303455025 | BB42: 0.6612162042 | BC42: 2.96938567 | BD42: 4.293499133 | BE42: 8.265541528 | BF42: 3.152019602 | BG42: 8.023625987 | BH42: 3.379662263 | BI42: 5.854386804 | BJ42: 2.05212221 | BK42: 1.677221966 | BL42: 3.088455201 | BM42: 1.087331637 | BN42: 0.618206289 | BO42: 0.5950692914
A43: PCB 114 | B43: PCBs | C43: 0.33 | G43: 0.7796554966 | H43: 7.796554966e-07 | I43: 6.237243973e-06 | J43: =VLOOKUP(A43,'Default Parameters'!$A$108:$D$182,4,FALSE)-(((VLOOKUP(A43,'Default Parameters'!$A$108:$D$182,3,FALSE)/(LN(10)*0.0083145))*((1/(273+Input!$D$24))-(1/298)))) -> 6.778441959 | K43: 0 | L43: 289.1 | M43: 6.967265559 | N43: 6.511333603 | O43: 0.1299894933 | P43: 1.459460833 | Q43: 2.589796843 | R43: 0.8469779254 | S43: 0.7650215336 | T43: 1.321585578 | U43: 0.4052401741 | V43: 0.2379179225 | W43: 0.191459069 | Y43: 0.08057976436 | Z43: 0.06579780762 | AA43: 0.1760989542 | AB43: 0.5358912587 | AC43: 1.160667445 | AD43: 0.444821285 | AE43: 0.2791955313 | AF43: 0.2947208515 | AG43: 0.2879032779 | AH43: 1.358924474 | AI43: 0.5221915839 | AJ43: 0.1828593795 | AK43: 1.088795844 | AL43: 1.915088925 | AM43: 3.794584942 | AN43: 1.343913081 | AO43: 3.388215798 | AQ43: 0.2441811041 | AR43: 0.1993872958 | AS43: 0.5336331945 | AT43: 1.623912905 | AU43: 3.517174077 | AV43: 1.347943288 | AW43: 0.8460470647 | AX43: 0.8930934894 | AY43: 0.8724341754 | AZ43: 4.117952951 | BA43: 1.582398739 | BB43: 0.5541193319 | BC43: 3.299381346 | BD43: 5.803299772 | BE43: 11.49874225 | BF43: 4.072463882 | BG43: 10.2673206 | BH43: 4.422608584 | BI43: 7.84786922 | BJ43: 2.566599774 | BK43: 2.318247071 | BL43: 4.004804781 | BM43: 1.228000527 | BN43: 0.7209634014 | BO43: 0.580178997
A44: PCB 118 | B44: PCBs | C44: 0.2750000056 | F44: 17.98 | G44: 0.5894241168 | H44: 5.894241168e-07 | I44: 1.798e-05 | J44: =VLOOKUP(A44,'Default Parameters'!$A$108:$D$182,4,FALSE)-(((VLOOKUP(A44,'Default Parameters'!$A$108:$D$182,3,FALSE)/(LN(10)*0.0083145))*((1/(273+Input!$D$24))-(1/298)))) -> 6.820735566 | K44: 0 | L44: 289.1 | M44: 7.009559166 | N44: 6.55362721 | O44: 0.1193671993 | P44: 1.278223135 | Q44: 2.308904261 | R44: 0.7224274334 | S44: 0.6930328264 | T44: 1.16802577 | U44: 0.3530713932 | V44: 0.2004092032 | W44: 0.1635210723 | X44: Tissue | Y44: 0.06390698088 | Z44: 0.05149750555 | AA44: 0.1434214564 | AB44: 0.5478322118 | AC44: 1.049038462 | AD44: 0.375677006 | AE44: 0.2331119152 | AF44: 0.2462192198 | AG44: 0.2941319755 | AH44: 1.177241169 | AI44: 0.4392072052 | AJ44: 0.147077854 | AK44: 0.9065945887 | AL44: 1.718025761 | AM44: 3.410715156 | AN44: 1.166143462 | AO44: 2.953564102 | AP44: BSAF | AQ44: 0.2323890166 | AR44: 0.1872636527 | AS44: 0.5215325579 | AT44: 1.992117093 | AU44: 3.81468524 | AV44: 1.366098176 | AW44: 0.8476796743 | AX44: 0.895342599 | AY44: 1.069570798 | AZ44: 4.28087689 | BA44: 1.597117077 | BB44: 0.5348285491 | BC44: 3.296707528 | BD44: 6.247366276 | BE44: 12.40260031 | BF44: 4.240521594 | BG44: 10.74023288 | BH44: 4.648084032 | BI44: 8.396015323 | BJ44: 2.627008795 | BK44: 2.520119317 | BL44: 4.247366349 | BM44: 1.283895949 | BN44: 0.7287607241 | BO44: 0.594622069
A45: PCB 119 | B45: PCBs | C45: 0.41 | G45: 1.722553272 | H45: 1.722553272e-06 | I45: 1.378042618e-05 | J45: =VLOOKUP(A45,'Default Parameters'!$A$108:$D$182,4,FALSE)-(((VLOOKUP(A45,'Default Parameters'!$A$108:$D$182,3,FALSE)/(LN(10)*0.0083145))*((1/(273+Input!$D$24))-(1/298)))) -> 6.528441959 | K45: 0 | L45: 289.1 | M45: 6.717265559 | N45: 6.261333603 | O45: 0.2099203834 | P45: 1.517659709 | Q45: 2.647338046 | R45: 0.9124585237 | S45: 0.7601227158 | T45: 1.377075046 | U45: 0.465233907 | V45: 0.2675921681 | W45: 0.2440126066 | Y45: 0.1278797393 | Z45: 0.1130716084 | AA45: 0.2355779296 | AB45: 0.5098400432 | AC45: 1.15026101 | AD45: 0.4847173299 | AE45: 0.3263021925 | AF45: 0.3396253661 | AG45: 0.3428163381 | AH45: 1.48112685 | AI45: 0.5716717646 | AJ45: 0.2634044554 | AK45: 1.2745623 | AL45: 1.93767872 | AM45: 3.767813838 | AN45: 1.408078715 | AO45: 3.578027291 | AQ45: 0.3119018033 | AR45: 0.2757844106 | AS45: 0.574580316 | AT45: 1.2435123 | AU45: 2.805514658 | AV45: 1.18223739 | AW45: 0.7958590061 | AX45: 0.8283545516 | AY45: 0.83613741 | AZ45: 3.612504511 | BA45: 1.394321377 | BB45: 0.6424498912 | BC45: 3.108688536 | BD45: 4.726045659 | BE45: 9.18978985 | BF45: 3.434338329 | BG45: 8.726895832 | BH45: 3.701609047 | BI45: 6.456922063 | BJ45: 2.225508594 | BK45: 1.853957843 | BL45: 3.358719624 | BM45: 1.134716846 | BN45: 0.6526638247 | BO45: 0.5951526991
A46: PCB 123 | B46: PCBs | C46: 0.63 | D46: 56.74 | G46: 1.523103284 | H46: 1.523103284e-06 | I46: 1.218482627e-05 | J46: =VLOOKUP(A46,'Default Parameters'!$A$108:$D$182,4,FALSE)-(((VLOOKUP(A46,'Default Parameters'!$A$108:$D$182,3,FALSE)/(LN(10)*0.0083145))*((1/(273+Input!$D$24))-(1/298)))) -> 6.768441959 | K46: 0 | L46: 289.1 | M46: 6.957265559 | N46: 6.501333603 | O46: 0.1326157975 | P46: 2.772683437 | Q46: 4.916915432 | R46: 1.611669199 | S46: 1.449920699 | T46: 2.509719599 | U46: 0.7721508157 | V46: 0.4531296492 | W46: 0.3661466136 | Y46: 0.1555911151 | Z46: 0.1274502683 | AA46: 0.3378638158 | AB46: 1.012686902 | AC46: 2.198949066 | AD46: 0.8461958732 | AE46: 0.532567574 | AF46: 0.5620533509 | AG46: 0.549385757 | AH46: 2.585011462 | AI46: 0.9941506177 | AJ46: 0.3518748916 | AK46: 2.078022026 | AL46: 3.633067914 | AM46: 7.195297177 | AN46: 2.553540175 | AO46: 6.440887897 | AQ46: 0.246970024 | AR46: 0.2023020131 | AS46: 0.5362917711 | AT46: 1.607439528 | AU46: 3.490395343 | AV46: 1.343168053 | AW46: 0.8453453556 | AX46: 0.892148176 | AY46: 0.8720408841 | AZ46: 4.103192797 | BA46: 1.578016853 | BB46: 0.5585315739 | BC46: 3.29844766 | BD46: 5.766774467 | BE46: 11.42110663 | BF46: 4.053238373 | BG46: 10.22363158 | BH46: 4.40108482 | BI46: 7.80462767 | BJ46: 2.558205078 | BK46: 2.301461427 | BL46: 3.983681903 | BM46: 1.225636215 | BN46: 0.7192534114 | BO46: 0.581185101
A47: PCB 126 | B47: PCBs | C47: 0.38 | G47: 0.6810396572 | H47: 6.810396572e-07 | I47: 5.448317257e-06 | J47: =VLOOKUP(A47,'Default Parameters'!$A$108:$D$182,4,FALSE)-(((VLOOKUP(A47,'Default Parameters'!$A$108:$D$182,3,FALSE)/(LN(10)*0.0083145))*((1/(273+Input!$D$24))-(1/298)))) -> 6.898441959 | K47: 0 | L47: 289.1 | M47: 7.087265559 | N47: 6.631333603 | O47: 0.1018019004 | P47: 1.755656541 | Q47: 3.139233465 | R47: 0.998643181 | S47: 0.9505185549 | T47: 1.602667131 | U47: 0.4735628125 | V47: 0.2788465596 | W47: 0.2150070689 | Y47: 0.08013640406 | Z47: 0.06306357096 | AA47: 0.188478143 | AB47: 0.693711121 | AC47: 1.451018925 | AD47: 0.5284154201 | AE47: 0.3211112215 | AF47: 0.3389509428 | AG47: 0.330439153 | AH47: 1.616365052 | AI47: 0.610655695 | AJ47: 0.1889180266 | AK47: 1.240348128 | AL47: 2.348302816 | AM47: 4.668996512 | AN47: 1.615338363 | AO47: 4.0435067 | AQ47: 0.2108852738 | AR47: 0.1659567657 | AS47: 0.4959951131 | AT47: 1.825555582 | AU47: 3.818470856 | AV47: 1.390566895 | AW47: 0.8450295302 | AX47: 0.8919761654 | AY47: 0.8695767183 | AZ47: 4.253592242 | BA47: 1.606988671 | BB47: 0.4971527016 | BC47: 3.26407402 | BD47: 6.179744252 | BE47: 12.28683293 | BF47: 4.250890429 | BG47: 10.6408071 | BH47: 4.620148791 | BI47: 8.261140698 | BJ47: 2.628008371 | BK47: 2.501364618 | BL47: 4.217545081 | BM47: 1.246217928 | BN47: 0.7338067357 | BO47: 0.5658080761
A48: PCB 128 | B48: PCBs | C48: 0.71 | E48: 96.32 | G48: 1.177596397 | H48: 1.177596397e-06 | I48: 9.420771175e-06 | J48: =VLOOKUP(A48,'Default Parameters'!$A$108:$D$182,4,FALSE)-(((VLOOKUP(A48,'Default Parameters'!$A$108:$D$182,3,FALSE)/(LN(10)*0.0083145))*((1/(273+Input!$D$24))-(1/298)))) -> 6.918441959 | K48: 0 | L48: 310 | M48: 7.120916245 | N48: 6.664984289 | O48: 0.09493232585 | P48: 3.32506591 | Q48: 5.95756919 | R48: 1.878415133 | S48: 1.816400527 | T48: 3.04180061 | U48: 0.8888525205 | V48: 0.5235754914 | W48: 0.398923214 | X48: Tissue | Y48: 0.1432119228 | Z48: 0.1115859076 | AA48: 0.343801054 | AB48: 1.343641722 | AC48: 2.776789112 | AD48: 0.9956211076 | AE48: 0.5992858157 | AF48: 0.6321909688 | AG48: 0.6170361775 | AH48: 3.047570032 | AI48: 1.145232923 | AJ48: 0.3413580234 | AK48: 2.309727015 | AL48: 4.472789385 | AM48: 8.904462098 | AN48: 3.057317482 | AO48: 7.64037933 | AP48: BSAF | AQ48: 0.2017069336 | AR48: 0.1571632502 | AS48: 0.4842268366 | AT48: 1.892453129 | AU48: 3.910970581 | AV48: 1.40228325 | AW48: 0.8440645291 | AX48: 0.8904098152 | AY48: 0.8690650388 | AZ48: 4.292352158 | BA48: 1.613004117 | BB48: 0.4807859485 | BC48: 3.253136641 | BD48: 6.299703359 | BE48: 12.54149591 | BF48: 4.30608096 | BG48: 10.76109765 | BH48: 4.683191422 | BI48: 8.390942521 | BJ48: 2.645655117 | BK48: 2.558310602 | BL48: 4.284226212 | BM48: 1.251904958 | BN48: 0.7374302696 | BO48: 0.5618636816
A49: PCB 132 | B49: PCBs | C49: 0.33 | G49: 1.004647477 | H49: 1.004647477e-06 | I49: 8.037179813e-06 | J49: =VLOOKUP(A49,'Default Parameters'!$A$108:$D$182,4,FALSE)-(((VLOOKUP(A49,'Default Parameters'!$A$108:$D$182,3,FALSE)/(LN(10)*0.0083145))*((1/(273+Input!$D$24))-(1/298)))) -> 6.654680321 | K49: 0 | L49: 310 | M49: 6.857154606 | N49: 6.401222651 | O49: 0.1614455173 | P49: 1.37438417 | Q49: 2.421211986 | R49: 0.8107684716 | S49: 0.7030200724 | T49: 1.240812846 | U49: 0.3952629513 | V49: 0.2305970968 | W49: 0.1947024405 | X49: Tissue | Y49: 0.09065126659 | Z49: 0.07666512662 | AA49: 0.1844231177 | AB49: 0.4791299537 | AC49: 1.063000109 | AD49: 0.4253968894 | AE49: 0.2750826814 | AF49: 0.2892332115 | AG49: 0.285340933 | AH49: 1.299520821 | AI49: 0.5024897383 | AJ49: 0.1978800254 | AK49: 1.077882091 | AL49: 1.777426692 | AM49: 3.501390203 | AN49: 1.26790351 | AO49: 3.212004768 | AP49: BSAF | AQ49: 0.2747008078 | AR49: 0.2323185655 | AS49: 0.5588579326 | AT49: 1.451908951 | AU49: 3.221212451 | AV49: 1.289081483 | AW49: 0.8335838831 | AX49: 0.8764642772 | AY49: 0.8646694938 | AZ49: 3.937941882 | BA49: 1.522696177 | BB49: 0.5996364405 | BC49: 3.266309367 | BD49: 5.386141491 | BE49: 10.61027334 | BF49: 3.84213185 | BG49: 9.733347783 | BH49: 4.164800515 | BI49: 7.337006018 | BJ49: 2.456874157 | BK49: 2.130363856 | BL49: 3.760038928 | BM49: 1.197766519 | BN49: 0.6987790813 | BO49: 0.5900073954
A50: PCB 137 | B50: PCBs | C50: 0.56 | E50: 165.6 | G50: 0.8470833519 | H50: 8.470833519e-07 | I50: 6.776666815e-06 | J50: =VLOOKUP(A50,'Default Parameters'!$A$108:$D$182,4,FALSE)-(((VLOOKUP(A50,'Default Parameters'!$A$108:$D$182,3,FALSE)/(LN(10)*0.0083145))*((1/(273+Input!$D$24))-(1/298)))) -> 6.958441959 | K50: 0 | L50: 310 | M50: 7.160916245 | N50: 6.704984289 | O50: 0.08730860029 | P50: 2.639411528 | Q50: 4.740753385 | R50: 1.480556888 | S50: 1.460377788 | T50: 2.42523965 | U50: 0.7012369353 | V50: 0.4129108814 | W50: 0.3113335383 | Y50: 0.1069335074 | Z50: 0.08236410829 | AA50: 0.2625893618 | AB50: 1.098192032 | AC50: 2.238952932 | AD50: 0.7884496101 | AE50: 0.4695323589 | AF50: 0.4944286823 | AG50: 0.4837920501 | AH50: 2.415657591 | AI50: 0.8983322095 | AJ50: 0.2577110719 | AK50: 1.800947401 | AL50: 3.576798992 | AM50: 7.120423101 | AN50: 2.427468619 | AO50: 6.045958669 | AQ50: 0.1909526918 | AR50: 0.1470787648 | AS50: 0.4689095747 | AT50: 1.9610572 | AU50: 3.998130236 | AV50: 1.407945732 | AW50: 0.8384506409 | AX50: 0.8829083613 | AY50: 0.8639143751 | AZ50: 4.31367427 | BA50: 1.60416466 | BB50: 0.4601983426 | BC50: 3.215977501 | BD50: 6.387141058 | BE50: 12.71504125 | BF50: 4.334765391 | BG50: 10.79635477 | BH50: 4.713234872 | BI50: 8.465631045 | BJ50: 2.643851586 | BK50: 2.607817478 | BL50: 4.330785089 | BM50: 1.252208813 | BN50: 0.7373408597 | BO50: 0.5559527469
A51: PCB 138 | B51: PCBs | C51: 0.25384615 | G51: 0.1614620042 | H51: 1.614620042e-07 | I51: 1.291696033e-06 | J51: =VLOOKUP(A51,'Default Parameters'!$A$108:$D$182,4,FALSE)-(((VLOOKUP(A51,'Default Parameters'!$A$108:$D$182,3,FALSE)/(LN(10)*0.0083145))*((1/(273+Input!$D$24))-(1/298)))) -> 7.334680321 | K51: 0 | L51: 310 | M51: 7.537154606 | N51: 7.081222651 | O51: 0.03866940334 | P51: 1.109593546 | Q51: 2.037918972 | R51: 0.586426486 | S51: 0.7161198031 | T51: 1.094220251 | U51: 0.2959011712 | V51: 0.1711928241 | W51: 0.1243366901 | X51: Tissue | Y51: 0.02641454449 | Z51: 0.01862108911 | AA51: 0.07857396608 | AB51: 0.6384826262 | AC51: 1.14016259 | AD51: 0.3391322339 | AE51: 0.1825250426 | AF51: 0.1830276006 | AG51: 0.1911946392 | AH51: 1.052481501 | AI51: 0.3203671876 | AJ51: 0.06874451337 | AK51: 0.6478486279 | AL51: 1.632672896 | AM51: 3.178644147 | AN51: 1.035504343 | AO51: 2.444004331 | AP51: BSAF | AQ51: 0.104057298 | AR51: 0.0733558067 | AS51: 0.3095338105 | AT51: 2.515234626 | AU51: 4.491549664 | AV51: 1.335975487 | AW51: 0.7190380576 | AX51: 0.7210178313 | AY51: 0.7531910145 | AZ51: 4.146139311 | BA51: 1.262052576 | BB51: 0.2708117235 | BC51: 2.552130997 | BD51: 6.431741807 | BE51: 12.52193168 | BF51: 4.079259596 | BG51: 9.627895994 | BH51: 4.371126155 | BI51: 8.02816577 | BJ51: 2.31016498 | BK51: 2.821078055 | BL51: 4.31056469 | BM51: 1.165671298 | BN51: 0.6743959839 | BO51: 0.4898112109
A52: PCB 141 | B52: PCBs | C52: 0.29 | F52: 27.86 | G52: 0.5198735904 | H52: 5.198735904e-07 | I52: 2.786e-05 | J52: =VLOOKUP(A52,'Default Parameters'!$A$108:$D$182,4,FALSE)-(((VLOOKUP(A52,'Default Parameters'!$A$108:$D$182,3,FALSE)/(LN(10)*0.0083145))*((1/(273+Input!$D$24))-(1/298)))) -> 6.884680321 | K52: 0 | L52: 310 | M52: 7.087154606 | N52: 6.631222651 | O52: 0.1018252632 | P52: 1.428587989 | Q52: 2.61881256 | R52: 0.7830985735 | S52: 0.8038576102 | T52: 1.318354644 | U52: 0.3882766496 | V52: 0.2144255447 | W52: 0.1746416894 | X52: Tissue | Y52: 0.06116555421 | Z52: 0.04813600163 | AA52: 0.1439871036 | AB52: 0.7010430998 | AC52: 1.213058802 | AD52: 0.4045810925 | AE52: 0.2457386544 | AF52: 0.2594913102 | AG52: 0.3591227847 | AH52: 1.29303414 | AI52: 0.468510112 | AJ52: 0.1443753382 | AK52: 0.950517129 | AL52: 1.970217885 | AM52: 3.920849804 | AN52: 1.292490454 | AO52: 3.273117003 | AP52: BSAF | AQ52: 0.2109157042 | AR52: 0.1659862125 | AS52: 0.4965072537 | AT52: 2.417389999 | AU52: 4.182961387 | AV52: 1.395107216 | AW52: 0.8473746703 | AX52: 0.8947976213 | AY52: 1.23835443 | AZ52: 4.458738412 | BA52: 1.61555211 | BB52: 0.4978459938 | BC52: 3.277645273 | BD52: 6.793854776 | BE52: 13.52017174 | BF52: 4.456863635 | BG52: 11.28661036 | BH52: 4.926165479 | BI52: 9.030388138 | BJ52: 2.700339909 | BK52: 2.771922794 | BL52: 4.546050496 | BM52: 1.338884998 | BN52: 0.7393984299 | BO52: 0.602212722
A53: PCB 146 | B53: PCBs | C53: 1.01 | G53: 1.393347662 | H53: 1.393347662e-06 | I53: 1.11467813e-05 | J53: =VLOOKUP(A53,'Default Parameters'!$A$108:$D$182,4,FALSE)-(((VLOOKUP(A53,'Default Parameters'!$A$108:$D$182,3,FALSE)/(LN(10)*0.0083145))*((1/(273+Input!$D$24))-(1/298)))) -> 6.998441959 | K53: 0 | L53: 310 | M53: 7.200916245 | N53: 6.744984289 | O53: 0.08024283216 | P53: 4.776975746 | Q53: 8.60115233 | R53: 2.660661045 | S53: 2.678975429 | T53: 4.411503016 | U53: 1.262957034 | V53: 0.7430943645 | W53: 0.5552122223 | Y53: 0.1822102097 | Z53: 0.1387851502 | AA53: 0.4574205429 | AB53: 2.049309246 | AC53: 4.120160319 | AD53: 1.424707437 | AE53: 0.839401535 | AF53: 0.8817460335 | AG53: 0.8658698139 | AH53: 4.369766715 | AI53: 1.604964485 | AJ53: 0.4437345708 | AK53: 3.20219376 | AL53: 6.52360158 | AM53: 12.98034687 | AN53: 4.395417149 | AO53: 10.90600944 | AQ53: 0.1804061482 | AR53: 0.1374110398 | AS53: 0.4528916266 | AT53: 2.029019055 | AU53: 4.079366652 | AV53: 1.410601422 | AW53: 0.8310906287 | AX53: 0.8730158747 | AY53: 0.8572968454 | AZ53: 4.326501698 | BA53: 1.589073747 | BB53: 0.4393411592 | BC53: 3.170488871 | BD53: 6.459011466 | BE53: 12.85182859 | BF53: 4.351898168 | BG53: 10.79802915 | BH53: 4.729678956 | BI53: 8.515992406 | BJ53: 2.634317866 | BK53: 2.65245092 | BL53: 4.367824769 | BM53: 1.250452509 | BN53: 0.7357369945 | BO53: 0.5497150716
A54: PCB 149 | B54: PCBs | C54: 1.25 | G54: 3.16526278 | H54: 3.16526278e-06 | I54: 2.532210224e-05 | J54: =VLOOKUP(A54,'Default Parameters'!$A$108:$D$182,4,FALSE)-(((VLOOKUP(A54,'Default Parameters'!$A$108:$D$182,3,FALSE)/(LN(10)*0.0083145))*((1/(273+Input!$D$24))-(1/298)))) -> 6.734680321 | K54: 0 | L54: 310 | M54: 6.937154606 | N54: 6.481222651 | O54: 0.1380336626 | P54: 5.470035222 | Q54: 9.687465548 | R54: 3.187670883 | S54: 2.844579456 | T54: 4.943605066 | U54: 1.529337114 | V54: 0.8969138388 | W54: 0.72966528 | X54: Tissue | Y54: 0.3157178775 | Z54: 0.2602689341 | AA54: 0.6774032744 | AB54: 1.975477785 | AC54: 4.308660573 | AD54: 1.67088458 | AE54: 1.056878079 | AF54: 1.115142095 | AG54: 1.09123848 | AH54: 5.104055598 | AI54: 1.968418788 | AJ54: 0.7097996161 | AK54: 4.132181764 | AL54: 7.145637809 | AM54: 14.14847113 | AN54: 5.036771752 | AO54: 12.72364689 | AP54: BSAF | AQ54: 0.252574302 | AR54: 0.2082151473 | AS54: 0.5419226196 | AT54: 1.580382228 | AU54: 3.446928458 | AV54: 1.336707664 | AW54: 0.8455024633 | AX54: 0.8921136757 | AY54: 0.8729907838 | AZ54: 4.083244478 | BA54: 1.574735031 | BB54: 0.5678396929 | BC54: 3.305745411 | BD54: 5.716510247 | BE54: 11.31877691 | BF54: 4.029417401 | BG54: 10.17891751 | BH54: 4.376028178 | BI54: 7.749972439 | BJ54: 2.550136707 | BK54: 2.275663565 | BL54: 3.954884053 | BM54: 1.223469691 | BN54: 0.7175310711 | BO54: 0.583732224
A55: PCB 151 | B55: PCBs | C55: 0.2152265116 | E55: 1.879261719 | G55: 0.570683774 | H55: 5.70683774e-07 | I55: 4.565470192e-06 | J55: =VLOOKUP(A55,'Default Parameters'!$A$108:$D$182,4,FALSE)-(((VLOOKUP(A55,'Default Parameters'!$A$108:$D$182,3,FALSE)/(LN(10)*0.0083145))*((1/(273+Input!$D$24))-(1/298)))) -> 6.714680321 | K55: 0 | L55: 310 | M55: 6.917154606 | N55: 6.461222651 | O55: 0.1436047927 | P55: 0.9313103352 | Q55: 1.647206304 | R55: 0.5444327713 | S55: 0.4821784624 | T55: 0.8412567766 | U55: 0.2620933886 | V55: 0.1535384673 | W55: 0.1260155657 | X55: Tissue | Y55: 0.05555787492 | Z55: 0.04609277742 | AA55: 0.1176575635 | AB55: 0.333095835 | AC55: 0.7299341209 | AD55: 0.2853452791 | AE55: 0.1814805114 | AF55: 0.1913520645 | AG55: 0.1875610105 | AH55: 0.8716219261 | AI55: 0.336493706 | AJ55: 0.1240163293 | AK55: 0.7101090895 | AL55: 1.213337384 | AM55: 2.399715464 | AN55: 0.8578851526 | AO55: 2.168863511 | AP55: BSAF | AQ55: 0.2581367625 | AR55: 0.2141593853 | AS55: 0.5466685427 | AT55: 1.547652436 | AU55: 3.391469366 | AV55: 1.325790568 | AW55: 0.8432070473 | AX55: 0.8890729262 | AY55: 0.8714586742 | AZ55: 4.049788846 | BA55: 1.563439854 | BB55: 0.5762130713 | BC55: 3.299356962 | BD55: 5.637490359 | BE55: 11.14972057 | BF55: 3.985964118 | BG55: 10.07712059 | BH55: 4.327117176 | BI55: 7.653361531 | BJ55: 2.529580428 | BK55: 2.24033024 | BL55: 3.908704231 | BM55: 1.217756059 | BN55: 0.713380829 | BO55: 0.5855020592
A56: PCB 153 | B56: PCBs | C56: 1.39244 | E56: 5.251926401 | G56: 1.859063611 | H56: 1.859063611e-06 | I56: 1.487250889e-05 | J56: =VLOOKUP(A56,'Default Parameters'!$A$108:$D$182,4,FALSE)-(((VLOOKUP(A56,'Default Parameters'!$A$108:$D$182,3,FALSE)/(LN(10)*0.0083145))*((1/(273+Input!$D$24))-(1/298)))) -> 7.012662319 | K56: 0 | L56: 310 | M56: 7.215136605 | N56: 6.759204649 | O56: 0.07785920141 | P56: 6.589392182 | Q56: 11.87476631 | R56: 3.660905446 | S56: 3.713791515 | T56: 6.097056196 | U56: 1.739634834 | V56: 1.023184847 | W56: 0.762258763 | X56: Tissue | Y56: 0.2460636099 | Z56: 0.18669434 | AA56: 0.6224977564 | AB56: 2.858600721 | AC56: 5.718405983 | AD56: 1.964512487 | AE56: 1.153044216 | AF56: 1.209960451 | AG56: 1.189981164 | AH56: 6.02795694 | AI56: 2.20316441 | AJ56: 0.6013785393 | AK56: 4.389556521 | AL56: 9.024042134 | AM56: 17.950539 | AN56: 6.064392847 | AO56: 15.02527321 | AP56: BSAF | AQ56: 0.1767139768 | AR56: 0.1340771164 | AS56: 0.4470553535 | AT56: 2.052943553 | AU56: 4.106752163 | AV56: 1.410841751 | AW56: 0.8280746141 | AX56: 0.8689497935 | AY56: 0.854601393 | AZ56: 4.329060455 | BA56: 1.582232922 | BB56: 0.4318882963 | BC56: 3.152420586 | BD56: 6.48074038 | BE56: 12.89142728 | BF56: 4.355227405 | BG56: 10.79060729 | BH56: 4.732262921 | BI56: 8.528027283 | BJ56: 2.629129762 | BK56: 2.667110622 | BL56: 4.378685039 | BM56: 1.249342761 | BN56: 0.7348143162 | BO56: 0.5474266489
A57: PCB 156 | B57: PCBs | C57: 0.1484660465 | E57: 0.319787514 | G57: 0.1564232581 | H57: 1.564232581e-07 | I57: 1.251386065e-06 | J57: =VLOOKUP(A57,'Default Parameters'!$A$108:$D$182,4,FALSE)-(((VLOOKUP(A57,'Default Parameters'!$A$108:$D$182,3,FALSE)/(LN(10)*0.0083145))*((1/(273+Input!$D$24))-(1/298)))) -> 7.115505895 | K57: 0 | L57: 310 | M57: 7.317980181 | N57: 6.862048225 | O57: 0.06246768042 | P57: 0.6979678632 | Q57: 1.265624236 | R57: 0.3809097897 | S57: 0.4088249906 | T57: 0.6564141288 | U57: 0.1832255947 | V57: 0.1073484788 | W57: 0.07868319084 | X57: Tissue | Y57: 0.02242864084 | Z57: 0.01657104273 | AA57: 0.0598828239 | AB57: 0.3296095277 | AC57: 0.6354350406 | AD57: 0.2081982883 | AE57: 0.11887466 | AF57: 0.1235014677 | AG57: 0.1232396011 | AH57: 0.6410652777 | AI57: 0.2243557823 | AJ57: 0.05612971501 | AK57: 0.4447212771 | AL57: 0.9764990645 | AM57: 1.935211597 | AN57: 0.6439583203 | AO57: 1.576120922 | AP57: BSAF | AQ57: 0.1510691594 | AR57: 0.1116150333 | AS57: 0.4033435611 | AT57: 2.22010039 | AU57: 4.280002435 | AV57: 1.402329308 | AW57: 0.8006858323 | AX57: 0.8318499117 | AY57: 0.830086097 | AZ57: 4.317925161 | BA57: 1.511158865 | BB57: 0.3780643206 | BC57: 2.995440961 | BD57: 6.577255119 | BE57: 13.03470822 | BF57: 4.337411384 | BG57: 10.61603619 | BH57: 4.701195186 | BI57: 8.524671233 | BJ57: 2.565635704 | BK57: 2.753659845 | BL57: 4.421308065 | BM57: 1.234124563 | BN57: 0.7230506998 | BO57: 0.5299743119
A58: PCB 157 | B58: PCBs | C58: 0.56 | G58: 0.3783782345 | H58: 3.783782345e-07 | I58: 3.027025876e-06 | J58: =VLOOKUP(A58,'Default Parameters'!$A$108:$D$182,4,FALSE)-(((VLOOKUP(A58,'Default Parameters'!$A$108:$D$182,3,FALSE)/(LN(10)*0.0083145))*((1/(273+Input!$D$24))-(1/298)))) -> 7.308441959 | K58: 0 | L58: 310 | M58: 7.510916245 | N58: 7.054984289 | O58: 0.04097898448 | P58: 2.479340488 | Q58: 4.546792243 | R58: 1.314469646 | S58: 1.579987748 | T58: 2.42898965 | U58: 0.6585822051 | V58: 0.381643836 | W58: 0.2770362154 | Y58: 0.06108426484 | Z58: 0.04327366824 | AA58: 0.1794044502 | AB58: 1.39208764 | AC58: 2.507701863 | AD58: 0.754087229 | AE58: 0.4087379367 | AF58: 0.4119888742 | AG58: 0.4277601702 | AH58: 2.33834778 | AI58: 0.7261627784 | AJ58: 0.1583470081 | AK58: 1.461703712 | AL58: 3.625137578 | AM58: 7.07771119 | AN58: 2.309482048 | AO58: 5.478645922 | AQ58: 0.1090790444 | AR58: 0.07727440758 | AS58: 0.3203650896 | AT58: 2.485870786 | AU58: 4.478039041 | AV58: 1.346584338 | AW58: 0.7298891726 | AX58: 0.7356944183 | AY58: 0.7638574468 | AZ58: 4.175621036 | BA58: 1.296719247 | BB58: 0.2827625145 | BC58: 2.6101852 | BD58: 6.473459962 | BE58: 12.63876998 | BF58: 4.124075087 | BG58: 9.783296289 | BH58: 4.427393729 | BI58: 8.119271862 | BJ58: 2.347267225 | BK58: 2.821406694 | BL58: 4.337481517 | BM58: 1.176039652 | BN58: 0.6815068501 | BO58: 0.4947075275
A59: PCB 158 | B59: PCBs | C59: 1.3 | G59: 1.890677848 | H59: 1.890677848e-06 | I59: 1.512542278e-05 | J59: =VLOOKUP(A59,'Default Parameters'!$A$108:$D$182,4,FALSE)-(((VLOOKUP(A59,'Default Parameters'!$A$108:$D$182,3,FALSE)/(LN(10)*0.0083145))*((1/(273+Input!$D$24))-(1/298)))) -> 6.975505895 | K59: 0 | L59: 310 | M59: 7.177980181 | N59: 6.722048225 | O59: 0.0842280007 | P59: 6.138483798 | Q59: 11.03712513 | R59: 3.432924984 | S59: 3.415704571 | T59: 5.652082681 | U59: 1.627220935 | V59: 0.9578897863 | W59: 0.7193281175 | X59: Tissue | Y59: 0.2423536672 | Z59: 0.1857734916 | AA59: 0.6007998896 | AB59: 2.587199111 | AC59: 5.243590888 | AD59: 1.83227271 | AE59: 1.086173636 | AF59: 1.142664741 | AG59: 1.11964795 | AH59: 5.616224354 | AI59: 2.078028828 | AJ59: 0.586722911 | AK59: 4.156825586 | AL59: 8.345647284 | AM59: 16.61133407 | AN59: 5.646526619 | AO59: 14.04150696 | AP59: BSAF | AQ59: 0.1864258979 | AR59: 0.1429026858 | AS59: 0.4621537613 | AT59: 1.990153163 | AU59: 4.033531452 | AV59: 1.409440546 | AW59: 0.8355181812 | AX59: 0.8789728774 | AY59: 0.8612676542 | AZ59: 4.32017258 | BA59: 1.598483714 | BB59: 0.4513253161 | BC59: 3.197558143 | BD59: 6.41972868 | BE59: 12.77794929 | BF59: 4.343482015 | BG59: 10.8011592 | BH59: 4.721910614 | BI59: 8.490096254 | BJ59: 2.640711526 | BK59: 2.627465055 | BL59: 4.347755908 | BM59: 1.251708411 | BN59: 0.7368382971 | BO59: 0.5533293212
A60: PCB 167 | B60: PCBs | C60: 0.74 | G60: 0.3971639663 | H60: 3.971639663e-07 | I60: 3.177311731e-06 | J60: =VLOOKUP(A60,'Default Parameters'!$A$108:$D$182,4,FALSE)-(((VLOOKUP(A60,'Default Parameters'!$A$108:$D$182,3,FALSE)/(LN(10)*0.0083145))*((1/(273+Input!$D$24))-(1/298)))) -> 7.408441959 | K60: 0 | L60: 310 | M60: 7.610916245 | N60: 7.154984289 | O60: 0.03282744131 | P60: 3.102069702 | Q60: 5.721470476 | R60: 1.62737949 | S60: 2.077989047 | T60: 3.120062517 | U60: 0.8390964683 | V60: 0.4832621883 | W60: 0.3522747159 | Y60: 0.06722951024 | Z60: 0.04679111391 | AA60: 0.2073075942 | AB60: 1.914457608 | AC60: 3.338855261 | AD60: 0.9644616899 | AE60: 0.5089104267 | AF60: 0.5023536138 | AG60: 0.533902268 | AH60: 2.998863378 | AI60: 0.8589732768 | AJ60: 0.1767465174 | AK60: 1.765066382 | AL60: 4.648014332 | AM60: 8.968698524 | AN60: 2.912511989 | AO60: 6.769554385 | AQ60: 0.09085068951 | AR60: 0.06323123501 | AS60: 0.2801453976 | AT60: 2.587104875 | AU60: 4.511966569 | AV60: 1.303326608 | AW60: 0.6877167928 | AX60: 0.6788562348 | AY60: 0.7214895513 | AZ60: 4.052518078 | BA60: 1.160774698 | BB60: 0.2388466452 | BC60: 2.385224841 | BD60: 6.281100449 | BE60: 12.11986287 | BF60: 3.935827012 | BG60: 9.148046466 | BH60: 4.191986084 | BI60: 7.731716859 | BJ60: 2.199161473 | BK60: 2.808093307 | BL60: 4.216300698 | BM60: 1.133914146 | BN60: 0.6530570113 | BO60: 0.4760469134
A61: PCB 168 | B61: PCBs | C61: 0.21 | G61: 0.1667083734 | H61: 1.667083734e-07 | I61: 1.333666988e-06 | J61: =VLOOKUP(A61,'Default Parameters'!$A$108:$D$182,4,FALSE)-(((VLOOKUP(A61,'Default Parameters'!$A$108:$D$182,3,FALSE)/(LN(10)*0.0083145))*((1/(273+Input!$D$24))-(1/298)))) -> 7.238441959 | K61: 0 | L61: 310 | M61: 7.440916245 | N61: 6.984984289 | O61: 0.04780349509 | P61: 0.956868512 | Q61: 1.747689539 | R61: 0.5121298762 | S61: 0.5903424367 | T61: 0.9222381372 | U61: 0.2522170239 | V61: 0.1467864762 | W61: 0.1066193684 | Y61: 0.02589348714 | Z61: 0.01860295971 | AA61: 0.07350111969 | AB61: 0.5037418552 | AC61: 0.9294780357 | AD61: 0.288072304 | AE61: 0.1591208957 | AF61: 0.1624235687 | AG61: 0.1660124447 | AH61: 0.891099718 | AI61: 0.2906438159 | AJ61: 0.06635709997 | AK61: 0.5795812004 | AL61: 1.376153361 | AM61: 2.704611621 | AN61: 0.8875058169 | AO61: 2.132071324 | AQ61: 0.1233023197 | AR61: 0.08858552244 | AS61: 0.3500053319 | AT61: 2.398770739 | AU61: 4.426085884 | AV61: 1.371772876 | AW61: 0.757718551 | AX61: 0.7734455651 | AY61: 0.7905354511 | AZ61: 4.24333199 | BA61: 1.384018171 | BB61: 0.3159861903 | BC61: 2.759910478 | BD61: 6.553111243 | BE61: 12.87910296 | BF61: 4.226218175 | BG61: 10.15272059 | BH61: 4.556516724 | BI61: 8.322331138 | BJ61: 2.438713696 | BK61: 2.811154461 | BL61: 4.391610177 | BM61: 1.201033447 | BN61: 0.6989832199 | BO61: 0.5077112783
A62: PCB 169 | B62: PCBs | C62: 1.11 | G62: 0.4315797889 | H62: 4.315797889e-07 | I62: 3.452638311e-06 | J62: =VLOOKUP(A62,'Default Parameters'!$A$108:$D$182,4,FALSE)-(((VLOOKUP(A62,'Default Parameters'!$A$108:$D$182,3,FALSE)/(LN(10)*0.0083145))*((1/(273+Input!$D$24))-(1/298)))) -> 7.548441959 | K62: 0 | L62: 310 | M62: 7.750916245 | N62: 7.294984289 | O62: 0.02399847062 | P62: 4.194010477 | Q62: 7.798647231 | R62: 2.185298318 | S62: 3.036241786 | T62: 4.402489203 | U62: 1.181683659 | V62: 0.6753036389 | W62: 0.4996689687 | Y62: 0.07703516524 | Z62: 0.05253073125 | AA62: 0.2548783617 | AB62: 2.969391177 | AC62: 4.971961013 | AD62: 1.368188245 | AE62: 0.695744065 | AF62: 0.6639214269 | AG62: 0.7276665964 | AH62: 4.259022654 | AI62: 1.068393137 | AJ62: 0.2056965204 | AK62: 2.289234019 | AL62: 6.513855769 | AM62: 12.30783975 | AN62: 3.997730182 | AO62: 8.989333798 | AQ62: 0.06940104976 | AR62: 0.04732498311 | AS62: 0.2296201457 | AT62: 2.675127186 | AU62: 4.479244156 | AV62: 1.232602023 | AW62: 0.626796455 | AX62: 0.5981274117 | AY62: 0.6555554923 | AZ62: 3.836957346 | BA62: 0.9625163398 | BB62: 0.1853121806 | BC62: 2.06237299 | BD62: 5.868338531 | BE62: 11.08814392 | BF62: 3.601558722 | BG62: 8.098498917 | BH62: 3.778387817 | BI62: 7.025808316 | BJ62: 1.968737223 | BK62: 2.73535296 | BL62: 3.96620649 | BM62: 1.064579873 | BN62: 0.6083816567 | BO62: 0.450152224
A63: PCB 170 | B63: PCBs | C63: 0.3307093023 | E63: 0.5694213422 | G63: 0.2235092408 | H63: 2.235092408e-07 | I63: 1.788073926e-06 | J63: =VLOOKUP(A63,'Default Parameters'!$A$108:$D$182,4,FALSE)-(((VLOOKUP(A63,'Default Parameters'!$A$108:$D$182,3,FALSE)/(LN(10)*0.0083145))*((1/(273+Input!$D$24))-(1/298)))) -> 7.294680321 | K63: 0 | L63: 330.9 | M63: 7.510805292 | N63: 7.054873336 | O63: 0.04098902588 | P63: 1.479608019 | Q63: 2.712688169 | R63: 0.7824921419 | S63: 0.9402029311 | T63: 1.446360765 | U63: 0.3909305775 | V63: 0.2265205426 | W63: 0.1639626232 | X63: Tissue | Y63: 0.03608059661 | Z63: 0.02556096602 | AA63: 0.1059491605 | AB63: 0.8293162047 | AC63: 1.489886326 | AD63: 0.4473540299 | AE63: 0.2423359838 | AF63: 0.2443292419 | AG63: 0.254106616 | AH63: 1.387877715 | AI63: 0.4326366613 | AJ63: 0.09368564818 | AK63: 0.8692524849 | AL63: 2.162058402 | AM63: 4.228936145 | AN63: 1.37612264 | AO63: 3.270335904 | AP63: BSAF | AQ63: 0.1091006402 | AR63: 0.07729134269 | AS63: 0.3203694597 | AT63: 2.507689378 | AU63: 4.50512373 | AV63: 1.352710755 | AW63: 0.7327764355 | AX63: 0.7388036569 | AY63: 0.7683685165 | AZ63: 4.196669721 | BA63: 1.308208321 | BB63: 0.2832870062 | BC63: 2.628448848 | BD63: 6.537640117 | BE63: 12.78747261 | BF63: 4.161124682 | BG63: 9.888853687 | BH63: 4.474044148 | BI63: 8.202636423 | BJ63: 2.366102605 | BK63: 2.842989068 | BL63: 4.373510981 | BM63: 1.182097312 | BN63: 0.6849536466 | BO63: 0.4957907806
A64: PCB 174 | B64: PCBs | C64: 0.322745 | E64: 0.8945105983 | G64: 0.2985018016 | H64: 2.985018016e-07 | I64: 2.388014412e-06 | J64: =VLOOKUP(A64,'Default Parameters'!$A$108:$D$182,4,FALSE)-(((VLOOKUP(A64,'Default Parameters'!$A$108:$D$182,3,FALSE)/(LN(10)*0.0083145))*((1/(273+Input!$D$24))-(1/298)))) -> 7.158441959 | K64: 0 | L64: 330.9 | M64: 7.374566931 | N64: 6.918634975 | O64: 0.05525805323 | P64: 1.51324355 | Q64: 2.752706023 | R64: 0.8166472039 | S64: 0.9051567261 | T64: 1.43584176 | U64: 0.3956984194 | V64: 0.2311871951 | W64: 0.1680894525 | X64: Tissue | Y64: 0.04449508308 | Z64: 0.03243664431 | AA64: 0.1222853018 | AB64: 0.7497691431 | AC64: 1.413182955 | AD64: 0.450679109 | AE64: 0.2532882599 | AF64: 0.261302554 | AG64: 0.2636826646 | AH64: 1.391002016 | AI64: 0.4739638203 | AJ64: 0.1128177351 | AK64: 0.9389178433 | AL64: 2.14269574 | AM64: 4.238626803 | AN64: 1.397413423 | AO64: 3.39771645 | AP64: BSAF | AQ64: 0.1378645156 | AR64: 0.1005023914 | AS64: 0.3788913905 | AT64: 2.323100724 | AU64: 4.378636245 | AV64: 1.396393775 | AW64: 0.7847937532 | AX64: 0.8096254131 | AY64: 0.8169999986 | AZ64: 4.309910349 | BA64: 1.468539622 | BB64: 0.3495568795 | BC64: 2.909163096 | BD64: 6.638974236 | BE64: 13.1330518 | BF64: 4.329775591 | BG64: 10.52755721 | BH64: 4.688666129 | BI64: 8.529043124 | BJ64: 2.530317135 | BK64: 2.804556929 | BL64: 4.448842771 | BM64: 1.226040432 | BN64: 0.7163153421 | BO64: 0.5208119491
A65: PCB 177 | B65: PCBs | C65: 0.1218748837 | E65: 0.5226294755 | G65: 0.1180325115 | H65: 1.180325115e-07 | I65: 9.442600918e-07 | J65: =VLOOKUP(A65,'Default Parameters'!$A$108:$D$182,4,FALSE)-(((VLOOKUP(A65,'Default Parameters'!$A$108:$D$182,3,FALSE)/(LN(10)*0.0083145))*((1/(273+Input!$D$24))-(1/298)))) -> 7.138441959 | K65: 0 | L65: 330.9 | M65: 7.354566931 | N65: 6.898634975 | O65: 0.05771198965 | P65: 0.5739306237 | Q65: 1.042803087 | R65: 0.3107607458 | S65: 0.3404837419 | T65: 0.5424946658 | U65: 0.1500329371 | V65: 0.08775213847 | W65: 0.06391154759 | X65: Tissue | Y65: 0.01736130049 | Z65: 0.01271511311 | AA65: 0.04724176206 | AB65: 0.2794270166 | AC65: 0.5305068673 | AD65: 0.1707402044 | AE65: 0.09647741153 | AF65: 0.0998054883 | AG65: 0.1003222748 | AH65: 0.5265711258 | AI65: 0.1814029194 | AJ65: 0.04384531782 | AK65: 0.3591120558 | AL65: 0.8090690136 | AM65: 1.602448637 | AN65: 0.5295963192 | AO65: 1.291418261 | AP65: BSAF | AQ65: 0.1424518322 | AR65: 0.1043292327 | AS65: 0.3876250841 | AT65: 2.292736683 | AU65: 4.352881013 | AV65: 1.400946604 | AW65: 0.7916102858 | AX65: 0.8189176084 | AY65: 0.8231579118 | AZ65: 4.320587718 | BA65: 1.48843563 | BB65: 0.3597567971 | BC65: 2.946563269 | BD65: 6.638521317 | BE65: 13.14830905 | BF65: 4.345409842 | BG65: 10.5962625 | BH65: 4.709178841 | BI65: 8.556341186 | BJ65: 2.549834193 | BK65: 2.79371542 | BL65: 4.451242531 | BM65: 1.231040659 | BN65: 0.7200182334 | BO65: 0.5244029421
A66: PCB 180 | B66: PCBs | C66: 0.6975432558 | E66: 1.495032452 | G66: 0.4727294337 | H66: 4.727294337e-07 | I66: 3.781835469e-06 | J66: =VLOOKUP(A66,'Default Parameters'!$A$108:$D$182,4,FALSE)-(((VLOOKUP(A66,'Default Parameters'!$A$108:$D$182,3,FALSE)/(LN(10)*0.0083145))*((1/(273+Input!$D$24))-(1/298)))) -> 7.293487893 | K66: 0 | L66: 330.9 | M66: 7.509612865 | N66: 7.053680909 | O66: 0.04109709117 | P66: 3.122517988 | Q66: 5.724384059 | R66: 1.651602091 | S66: 1.983059356 | T66: 3.051474086 | U66: 0.8248796405 | V66: 0.4780039547 | W66: 0.3459899262 | X66: Tissue | Y66: 0.07626444499 | Z66: 0.05404114713 | AA66: 0.2238190084 | AB66: 1.748230277 | AC66: 3.142009149 | AD66: 0.9438984875 | AE66: 0.5114835174 | AF66: 0.5158094525 | AG66: 0.5362989483 | AH66: 2.928243827 | AI66: 0.9136150256 | AJ66: 0.1979890454 | AK66: 1.83527561 | AL66: 4.561443293 | AM66: 8.923153848 | AN66: 2.903899224 | AO66: 6.902615909 | AP66: BSAF | AQ66: 0.1093329257 | AR66: 0.07747354258 | AS66: 0.3208675684 | AT66: 2.506267909 | AU66: 4.504393273 | AV66: 1.353175562 | AW66: 0.7332642287 | AX66: 0.7394659016 | AY66: 0.7688397011 | AZ66: 4.197938698 | BA66: 1.309761105 | BB66: 0.2838376599 | BC66: 2.631056346 | BD66: 6.539298108 | BE66: 12.79225879 | BF66: 4.163038205 | BG66: 9.895609844 | BH66: 4.476450689 | BI66: 8.206493305 | BJ66: 2.367741465 | BK66: 2.842919546 | BL66: 4.374601948 | BM66: 1.182549804 | BN66: 0.6852678322 | BO66: 0.4960121445
A67: PCB 183 | B67: PCBs | C67: 0.1122560465 | E67: 0.4513213057 | G67: 0.08439120278 | H67: 8.439120278e-08 | I67: 6.751296222e-07 | J67: =VLOOKUP(A67,'Default Parameters'!$A$108:$D$182,4,FALSE)-(((VLOOKUP(A67,'Default Parameters'!$A$108:$D$182,3,FALSE)/(LN(10)*0.0083145))*((1/(273+Input!$D$24))-(1/298)))) -> 7.248441959 | K67: 0 | L67: 330.9 | M67: 7.464566931 | N67: 7.008634975 | O67: 0.04538483004 | P67: 0.5119803815 | Q67: 0.9361869994 | R67: 0.2724791792 | S67: 0.318454012 | T67: 0.4950878454 | U67: 0.1345743486 | V67: 0.07820567711 | W67: 0.05661708526 | X67: Tissue | Y67: 0.01328700921 | Z67: 0.009499305333 | AA67: 0.03815734324 | AB67: 0.2750129531 | AC67: 0.5019966359 | AD67: 0.1537644793 | AE67: 0.08434259222 | AF67: 0.0857682682 | AG67: 0.0882430572 | AH67: 0.4762453288 | AI67: 0.1534287683 | AJ67: 0.03424407322 | AK67: 0.3062279385 | AL67: 0.7400049584 | AM67: 1.453809923 | AN67: 0.4748334697 | AO67: 1.137907291 | AP67: BSAF | AQ67: 0.1183634167 | AR67: 0.08462176986 | AS67: 0.3399134783 | AT67: 2.449872071 | AU67: 4.471889502 | AV67: 1.369765675 | AW67: 0.7513411958 | AX67: 0.7640414113 | AY67: 0.7860873417 | AZ67: 4.242491551 | BA67: 1.366775092 | BB67: 0.3050532625 | BC67: 2.727941594 | BD67: 6.592116696 | BE67: 12.95083845 | BF67: 4.229914418 | BG67: 10.13671268 | BH67: 4.560826765 | BI67: 8.339746753 | BJ67: 2.42730069 | BK67: 2.836853977 | BL67: 4.410344572 | BM67: 1.198816035 | BN67: 0.6966722911 | BO67: 0.5043566651
A68: PCB 187 | B68: PCBs | C68: 0.7125 | G68: =IF(ISNUMBER(C68),1000000*(C68/(TOC*(0.35*10^(M68)))/8),0) -> 0.5739476769 | H68: 5.739476769e-07 | I68: 4.591581415e-06 | J68: =VLOOKUP(A68,'Default Parameters'!$A$108:$D$182,4,FALSE)-(((VLOOKUP(A68,'Default Parameters'!$A$108:$D$182,3,FALSE)/(LN(10)*0.0083145))*((1/(273+Input!$D$24))-(1/298)))) -> 7.218441959 | K68: 0 | L68: 330.9 | M68: =LOG(10^J68*(10^(0.0018*L68*(0.5*Sal/35)))) -> 7.434566931 | N68: 6.978634975 | O68: =1/(1+(POCw*dPOC*alphaPOC*10^M68) + (alphaDOC*DOCw*dDOC*10^M68)) -> 0.04847338221 | P68: 3.284399896 | Q68: 5.995391121 | R68: 1.755738645 | S68: 2.015722216 | T68: 3.155044036 | U68: 0.8612052844 | V68: 0.5014016845 | W68: 0.3632921334 | X68: Tissue | Y68: 0.08881391148 | Z68: 0.06389327617 | AA68: 0.251373441 | AB68: 1.716814373 | AC68: 3.167038538 | AD68: 0.9830214391 | AE68: 0.5435939584 | AF68: 0.5556326398 | AG68: 0.5678226086 | AH68: 3.041175853 | AI68: 0.9994262349 | AJ68: 0.227715717 | AK68: 1.988176594 | AL68: 4.714278883 | AM68: 9.285220786 | AN68: 3.041219983 | AO68: 7.325310001 | AP68: BSAF | AQ68: 0.1246511038 | AR68: 0.08967477357 | AS68: 0.3528048295 | AT68: 2.409564032 | AU68: 4.444966369 | AV68: 1.379679213 | AW68: 0.762938889 | AX68: 0.7798352839 | AY68: 0.7969440121 | AZ68: 4.268316987 | BA68: 1.402703488 | BB68: 0.3196010063 | BC68: 2.79042329 | BD68: 6.616531765 | BE68: 13.03188882 | BF68: 4.268378924 | BG68: 10.28113684 | BH68: 4.609684064 | BI68: 8.414584029 | BJ68: 2.46419459 | BK68: 2.829083811 | BL68: 4.428131981 | BM68: 1.208709171 | BN68: 0.7037216624 | BO68: 0.509883696
A69: PCB 189 | B69: PCBs | C69: 0.64 | G69: 0.3178830766 | H69: 3.178830766e-07 | I69: 2.543064613e-06 | J69: =VLOOKUP(A69,'Default Parameters'!$A$108:$D$182,4,FALSE)-(((VLOOKUP(A69,'Default Parameters'!$A$108:$D$182,3,FALSE)/(LN(10)*0.0083145))*((1/(273+Input!$D$24))-(1/298)))) -> 7.428441959 | K69: 0 | L69: 330.9 | M69: 7.644566931 | N69: =LOG10(0.35*10^(M69)) -> 7.188634975 | O69: 0.03045443903 | P69: 2.657668207 | Q69: 4.909417182 | R69: 1.386145281 | S69: 1.805626542 | T69: 2.691619512 | U69: 0.7199761707 | V69: 0.4137106033 | W69: 0.3014189831 | Y69: 0.05457215598 | Z69: 0.03777865521 | AA69: 0.1709444694 | AB69: 1.690193875 | AC69: 2.908260067 | AD69: 0.8279553441 | AE69: 0.43268663 | AF69: 0.4238837466 | AG69: 0.4552411284 | AH69: 2.57802804 | AI69: 0.719719823 | AJ69: 0.144325596 | AK69: 1.489208884 | AL69: 4.012704334 | AM69: 7.724485918 | AN69: 2.498386146 | AO69: 5.776083201 | AQ69: 0.08526899372 | AR69: 0.05902914877 | AS69: 0.2671007335 | AT69: 2.640927929 | AU69: 4.544156354 | AV69: 1.293680225 | AW69: 0.6760728594 | AX69: 0.6623183541 | AY69: 0.7113142632 | AZ69: 4.028168812 | BA69: 1.124562223 | BB69: 0.2255087438 | BC69: 2.326888882 | BD69: 6.269850522 | BE69: 12.06950925 | BF69: 3.903728354 | BG69: 9.025130002 | BH69: 4.152606573 | BI69: 7.670964346 | BJ69: 2.165852002 | BK69: 2.821291472 | BL69: 4.205655487 | BM69: 1.124962767 | BN69: 0.6464228176 | BO69: 0.4709671611
A70: PCB 194 | B70: PCBs | C70: 0.1981290698 | E70: 0.2383473739 | G70: 0.03306625027 | H70: 3.306625027e-08 | I70: 2.645300022e-07 | J70: =VLOOKUP(A70,'Default Parameters'!$A$108:$D$182,4,FALSE)-(((VLOOKUP(A70,'Default Parameters'!$A$108:$D$182,3,FALSE)/(LN(10)*0.0083145))*((1/(273+Input!$D$24))-(1/298)))) -> 7.888441959 | K70: 0 | L70: 351.8 | M70: 8.118217616 | N70: 7.662285661 | O70: 0.01044412397 | P70: 0.5014524869 | Q70: 0.9562036149 | R70: 0.2698936474 | S70: 0.4624765566 | T70: 0.6043248095 | U70: 0.170519779 | V70: 0.09600154624 | W70: 0.07674936137 | X70: Tissue | Y70: 0.006427608101 | Z70: 0.004235336435 | AA70: 0.02619557855 | AB70: 0.5239189952 | AC70: 0.8035298156 | AD70: 0.2041041018 | AE70: 0.09475528289 | AF70: 0.08157826167 | AG70: 0.0942081272 | AH70: 0.624249119 | AI70: 0.1026542363 | AJ70: 0.01758233324 | AK70: 0.2576386383 | AL70: 0.8627689263 | AM70: 1.517321634 | AN70: 0.508058517 | AO70: 1.032596251 | AP70: BSAF | AQ70: 0.0324415196 | AR70: 0.02137665331 | AS70: 0.1322147153 | AT70: 2.644331777 | AU70: 4.055587686 | AV70: 1.030157271 | AW70: 0.478250279 | AX70: 0.4117430207 | AY70: 0.4754886666 | AZ70: 3.150719477 | BA70: 0.5181179944 | BB70: 0.08874181495 | BC70: 1.300357583 | BD70: 4.35458021 | BE70: 7.658248411 | BF70: 2.564280535 | BG70: 5.211735221 | BH70: 2.530938481 | BI70: 4.826165166 | BJ70: 1.362211248 | BK70: 2.334218583 | BL70: 3.050157204 | BM70: 0.8606499755 | BN70: 0.484540438 | BO70: 0.3873705229
A71: PCB 195 | B71: PCBs | C71: 0.066266 | E71: 0.1018451396 | G71: 0.02258018544 | H71: 2.258018544e-08 | I71: 1.806414835e-07 | J71: =VLOOKUP(A71,'Default Parameters'!$A$108:$D$182,4,FALSE)-(((VLOOKUP(A71,'Default Parameters'!$A$108:$D$182,3,FALSE)/(LN(10)*0.0083145))*((1/(273+Input!$D$24))-(1/298)))) -> 7.578441959 | K71: 0 | L71: 351.8 | M71: 7.808217616 | N71: 7.352285661 | O71: 0.02109465353 | P71: 0.2451754609 | Q71: 0.4569568729 | R71: 0.12672394 | S71: 0.1819378732 | T71: 0.2606130016 | U71: 0.0694645982 | V71: 0.03955136736 | W71: 0.02931337125 | X71: Tissue | Y71: 0.004103105194 | Z71: 0.002778318335 | AA71: 0.01393628587 | AB71: 0.1825634121 | AC71: 0.2990168761 | AD71: 0.08050777002 | AE71: 0.04028037816 | AF71: 0.03785680987 | AG71: 0.04228763235 | AH71: 0.2510418938 | AI71: 0.05986900633 | AJ71: 0.01105358924 | AK71: 0.1305741351 | AL71: 0.3857473529 | AM71: 0.7254260144 | AN71: 0.2343384188 | AO71: 0.5218620137 | AP71: BSAF | AQ71: 0.06191870936 | AR71: 0.04192675482 | AS71: 0.2103082406 | AT71: 2.755008785 | AU71: 4.5123725 | AV71: 1.214918209 | AW71: 0.6078589045 | AX71: 0.5712855743 | AY71: 0.6381497654 | AZ71: 3.788396671 | BA71: 0.9034649192 | BB71: 0.1668063447 | BC71: 1.970454458 | BD71: 5.82119568 | BE71: 10.94718278 | BF71: 3.536329623 | BG71: 7.875260521 | BH71: 3.699868121 | BI71: 6.895796832 | BJ71: 1.912352338 | BK71: 2.745568967 | BL71: 3.93283134 | BM71: 1.04826907 | BN71: 0.5968576248 | BO71: 0.4423591472
A72: PCB 198 | B72: PCBs | C72: 0.45 | G72: 0.1605644004 | H72: 1.605644004e-07 | I72: 1.284515203e-06 | J72: =VLOOKUP(A72,'Default Parameters'!$A$108:$D$182,4,FALSE)-(((VLOOKUP(A72,'Default Parameters'!$A$108:$D$182,3,FALSE)/(LN(10)*0.0083145))*((1/(273+Input!$D$24))-(1/298)))) -> 7.558441959 | K72: 0 | L72: 351.8 | M72: 7.788217616 | N72: 7.332285661 | O72: 0.02206687591 | P72: 1.695240708 | Q72: 3.155875204 | R72: 0.8760949758 | S72: 1.243055915 | T72: 1.789859003 | U72: 0.4766193403 | V72: 0.2716318124 | W72: 0.20068178 | Y72: 0.02900193065 | Z72: 0.01968461302 | AA72: 0.09748924246 | AB72: 1.23728756 | AC72: 2.037082525 | AD72: 0.5516459623 | AE72: 0.2774278153 | AF72: 0.2621379077 | AG72: 0.2916538583 | AH72: 1.720579351 | AI72: 0.4191313811 | AJ72: 0.07799551558 | AK72: 0.9071956976 | AL72: 2.653186948 | AM72: 5.006968882 | AN72: 1.616024533 | AO72: 3.617524884 | AQ72: 0.06444873477 | AR72: 0.04374358449 | AS72: 0.216642761 | AT72: 2.749527911 | AU72: 4.526850056 | AV72: 1.225879916 | AW72: 0.6165062562 | AX72: 0.5825286838 | AY72: 0.6481196851 | AZ72: 3.823509668 | BA72: 0.931403069 | BB72: 0.173323368 | BC72: 2.015990439 | BD72: 5.895970995 | BE72: 11.12659752 | BF72: 3.591165629 | BG72: 8.038944186 | BH72: 3.767201573 | BI72: 7.013056009 | BJ72: 1.946877724 | BK72: 2.762346478 | BL72: 3.977464452 | BM72: 1.05915409 | BN72: 0.6036262498 | BO72: 0.4459595111
A73: PCB 199 | B73: PCBs | C73: 0.68 | G73: 0.4120459603 | H73: 4.120459603e-07 | I73: 3.296367683e-06 | J73: =VLOOKUP(A73,'Default Parameters'!$A$108:$D$182,4,FALSE)-(((VLOOKUP(A73,'Default Parameters'!$A$108:$D$182,3,FALSE)/(LN(10)*0.0083145))*((1/(273+Input!$D$24))-(1/298)))) -> 7.328441959 | K73: 0 | L73: 351.8 | M73: 7.558217616 | N73: 7.102285661 | O73: 0.03690627794 | P73: 3.005111875 | Q73: 5.522714465 | R73: 1.575899926 | S73: 1.947802859 | T73: 2.965780912 | U73: 0.7951954689 | V73: 0.4592966201 | W73: 0.3318826934 | Y73: 0.0681014184 | Z73: 0.04782619028 | AA73: 0.2045131333 | AB73: 1.757401227 | AC73: 3.098673683 | AD73: 0.9107575596 | AE73: 0.48679957 | AF73: 0.4862343053 | AG73: 0.5124979151 | AH73: 2.831505636 | AI73: 0.8542109616 | AJ73: 0.1783758583 | AK73: 1.728142257 | AL73: 4.438752323 | AM73: 8.654295563 | AN73: 2.799736382 | AO73: 6.604828527 | AQ73: 0.1001491447 | AR73: 0.07033263276 | AS73: 0.3007546078 | AT73: 2.58441357 | AU73: 4.556873063 | AV73: 1.339349352 | AW73: 0.7158817206 | AX73: 0.715050449 | AY73: 0.7536734045 | AZ73: 4.163978876 | BA73: 1.256192591 | BB73: 0.2623174387 | BC73: 2.541385673 | BD73: 6.527576946 | BE73: 12.72690524 | BF73: 4.117259386 | BG73: 9.712983128 | BH73: 4.419282169 | BI73: 8.121638918 | BJ73: 2.317499891 | BK73: 2.864415969 | BL73: 4.361442518 | BM73: 1.169405101 | BN73: 0.675436206 | BO73: 0.4880627844
A74: PCB 200 | B74: PCBs | C74: 0.77 | G74: 0.3971252243 | H74: 3.971252243e-07 | I74: 3.177001795e-06 | J74: =VLOOKUP(A74,'Default Parameters'!$A$108:$D$182,4,FALSE)-(((VLOOKUP(A74,'Default Parameters'!$A$108:$D$182,3,FALSE)/(LN(10)*0.0083145))*((1/(273+Input!$D$24))-(1/298)))) -> 7.398441959 | K74: 0 | L74: 351.8 | M74: 7.628217616 | N74: 7.172285661 | O74: 0.0315858679 | P74: 3.27070375 | Q74: 6.03417019 | R74: 1.702806823 | S74: 2.195488151 | T74: 3.288569447 | U74: 0.8771035799 | V74: 0.5043521332 | W74: 0.3658542014 | Y74: 0.06771880164 | Z74: 0.04700021467 | AA74: 0.2102823453 | AB74: 2.043165693 | AC74: 3.522294611 | AD74: 1.007008391 | AE74: 0.5282196216 | AF74: 0.5195082258 | AG74: 0.5571799152 | AH74: 3.136846743 | AI74: 0.8922962214 | AJ74: 0.1790443871 | AK74: 1.834875084 | AL74: 4.914453918 | AM74: 9.501171154 | AN74: 3.064367041 | AO74: 7.124938624 | AQ74: 0.08794649563 | AR74: 0.06103923983 | AS74: 0.2730939549 | AT74: 2.653461939 | AU74: 4.574408586 | AV74: 1.307803106 | AW74: 0.6859995086 | AX74: 0.6746860075 | AY74: 0.7236102795 | AZ74: 4.073826939 | BA74: 1.158826262 | BB74: 0.2325251781 | BC74: 2.382954654 | BD74: 6.382407686 | BE74: 12.33918332 | BF74: 3.979697456 | BG74: 9.253167044 | BH74: 4.247667208 | BI74: 7.836584662 | BJ74: 2.211437433 | BK74: 2.851283312 | BL74: 4.270869412 | BM74: 1.139095558 | BN74: 0.6550027704 | BO74: 0.4751353265
A75: PCB 201 | B75: PCBs | C75: 0.01500718605 | E75: 0.04712185 | G75: 0.004453854391 | H75: 4.453854391e-09 | I75: 3.563083513e-08 | J75: =VLOOKUP(A75,'Default Parameters'!$A$108:$D$182,4,FALSE)-(((VLOOKUP(A75,'Default Parameters'!$A$108:$D$182,3,FALSE)/(LN(10)*0.0083145))*((1/(273+Input!$D$24))-(1/298)))) -> 7.638441959 | K75: 0 | L75: 351.8 | M75: 7.868217616 | N75: 7.412285661 | O75: 0.01842282169 | P75: 0.05237403205 | Q75: 0.09797095725 | R75: 0.02712606438 | S75: 0.04033703799 | T75: 0.05686221764 | U75: 0.01522605091 | V75: 0.00864678547 | W75: 0.006477353482 | X75: Tissue | Y75: 0.0008228896037 | Z75: 0.0005535253239 | AA75: 0.002885700676 | AB75: 0.04145492561 | AC75: 0.066897509 | AD75: 0.01772750342 | AE75: 0.008735547149 | AF75: 0.008076161775 | AG75: 0.009119660905 | AH75: 0.05520245345 | AI75: 0.01232497603 | AJ75: 0.002227149531 | AK75: 0.02753875365 | AL75: 0.08373977764 | AM75: 0.1557401958 | AN75: 0.05049445214 | AO75: 0.1106521087 | AP75: BSAF | AQ75: 0.05483303806 | AR75: 0.03688401824 | AS75: 0.1922879257 | AT75: 2.762338355 | AU75: 4.457698385 | AV75: 1.181267652 | AW75: 0.5820909478 | AX75: 0.5381529722 | AY75: 0.6076862696 | AZ75: 3.678401352 | BA75: 0.8212716225 | BB75: 0.1484055388 | BC75: 1.835037799 | BD75: 5.579978644 | BE75: 10.37770808 | BF75: 3.364684891 | BG75: 7.373274937 | BH75: 3.489930217 | BI75: 6.528269654 | BJ75: 1.807538355 | BK75: 2.687848199 | BL75: 3.788999314 | BM75: 1.014584004 | BN75: 0.576176336 | BO75: 0.4316167909
A76: PCB 203 | B76: PCBs | C76: 1.15 | G76: 0.3259376938 | H76: 3.259376938e-07 | I76: 2.607501551e-06 | J76: =VLOOKUP(A76,'Default Parameters'!$A$108:$D$182,4,FALSE)-(((VLOOKUP(A76,'Default Parameters'!$A$108:$D$182,3,FALSE)/(LN(10)*0.0083145))*((1/(273+Input!$D$24))-(1/298)))) -> 7.658441959 | K76: 0 | L76: 351.8 | M76: 7.888217616 | N76: 7.432285661 | O76: 0.01760825825 | P76: 3.930195301 | Q76: 7.36115058 | R76: 2.03810689 | S76: 3.066099184 | T76: 4.298529477 | U76: 1.153486679 | V76: 0.6545387124 | W76: 0.4922616741 | X76: Tissue | Y76: 0.06052818027 | Z76: 0.04063172828 | AA76: 0.2145975559 | AB76: 3.175968978 | AC76: 5.101120438 | AD76: 1.345283421 | AE76: 0.6596041102 | AF76: 0.6064268673 | AG76: 0.6869745485 | AH76: 4.186261012 | AI76: 0.913696422 | AJ76: 0.1640447764 | AK76: 2.058929217 | AL76: 6.318357072 | AM76: 11.70513481 | AN76: 3.801054791 | AO76: 8.28341527 | AP76: BSAF | AQ76: 0.05263320024 | AR76: 0.03533193763 | AS76: 0.1866065704 | AT76: 2.761712155 | AU76: 4.435756903 | AV76: 1.16981167 | AW76: 0.5735687915 | AX76: 0.5273277107 | AY76: 0.5973691726 | AZ76: 3.640226967 | BA76: 0.7945186278 | BB76: 0.1426476317 | BC76: 1.790373232 | BD76: 5.494223541 | BE76: 10.1783781 | BF76: 3.305265035 | BG76: 7.2029698 | BH76: 3.417561131 | BI76: 6.401000504 | BJ76: 1.772266861 | BK76: 2.666173204 | BL76: 3.737851719 | BM76: 1.003031895 | BN76: 0.5691640977 | BO76: 0.4280536296
A77: PCB 206 | B77: PCBs | C77: 1.02 | D77: 117.8 | F77: 125.7 | G77: 0.150447936 | H77: 1.50447936e-07 | I77: 0.0001257 | J77: =VLOOKUP(A77,'Default Parameters'!$A$108:$D$182,4,FALSE)-(((VLOOKUP(A77,'Default Parameters'!$A$108:$D$182,3,FALSE)/(LN(10)*0.0083145))*((1/(273+Input!$D$24))-(1/298)))) -> 7.928441959 | K77: 0 | L77: 372.7 | M77: 8.171868302 | N77: 7.715936346 | O77: 0.009241633867 | P77: 3.947053232 | Q77: 7.880611674 | R77: 1.772806408 | S77: 4.239791122 | T77: 4.961273176 | U77: 1.254962992 | V77: 0.4958478785 | W77: 0.5438941511 | Y77: 0.02947424668 | Z77: 0.01935886195 | AA77: 0.1239237062 | AB77: 7.934758488 | AC77: 6.122677077 | AD77: 1.023730438 | AE77: 0.4692632688 | AF77: 0.3976205902 | AG77: 2.140773824 | AH77: 4.04865494 | AI77: 0.4804304155 | AJ77: 0.0808390339 | AK77: 1.238120598 | AL77: 7.727410431 | AM77: 13.52211178 | AN77: 3.592424595 | AO77: 7.669909897 | AQ77: 0.02889632027 | AR77: 0.01897927642 | AS77: 0.1214938296 | AT77: 7.779174988 | AU77: 6.002624585 | AV77: 1.003657292 | AW77: 0.4600620283 | AX77: 0.389824108 | AY77: 2.098797867 | AZ77: 3.969269549 | BA77: 0.4710102113 | BB77: 0.0792539548 | BC77: 1.213843723 | BD77: 7.57589258 | BE77: 13.25697234 | BF77: 3.521984897 | BG77: 7.519519507 | BH77: 3.869660031 | BI77: 7.726089877 | BJ77: 1.738045498 | BK77: 4.156657963 | BL77: 4.86399331 | BM77: 1.230355874 | BN77: 0.4861253711 | BO77: 0.5332295599
A78: PCB 209 | B78: PCBs | C78: 0.86 | G78: 0.0512429151 | H78: 5.12429151e-08 | I78: 4.099433208e-07 | J78: =VLOOKUP(A78,'Default Parameters'!$A$108:$D$182,4,FALSE)-(((VLOOKUP(A78,'Default Parameters'!$A$108:$D$182,3,FALSE)/(LN(10)*0.0083145))*((1/(273+Input!$D$24))-(1/298)))) -> 8.308441959 | K78: 0 | L78: 393.6 | M78: 8.565518988 | N78: 8.109587032 | O78: 0.003754022796 | P78: 0.8871697655 | Q78: 1.816743227 | R78: 0.5777465838 | S78: 1.25340356 | T78: 1.374680176 | U78: 0.4991823173 | V78: 0.2692499606 | W78: 0.2662721822 | Y78: 0.01040895812 | Z78: 0.006733903812 | AA78: 0.05892545132 | AB78: 1.734552504 | AC78: 2.498499925 | AD78: 0.633801947 | AE78: 0.2683161923 | AF78: 0.2041328293 | AG78: 0.2287902341 | AH78: 1.791721546 | AI78: 0.1587840884 | AJ78: 0.02785343405 | AK78: 0.4914047475 | AL78: 1.812374219 | AM78: 2.826946676 | AN78: 1.048513465 | AO78: 1.842974015 | AQ78: 0.01210343967 | AR78: 0.007830120711 | AS78: 0.06851796665 | AT78: 2.016921516 | AU78: 2.905232471 | AV78: 0.7369790082 | AW78: 0.3119955725 | AX78: 0.237363755 | AY78: 0.2660351559 | AZ78: 2.083397146 | BA78: 0.1846326609 | BB78: 0.03238771401 | BC78: 0.5714008692 | BD78: 2.107411883 | BE78: 3.287147297 | BF78: 1.219201703 | BG78: 2.142993041 | BH78: 1.031592751 | BI78: 2.112492125 | BJ78: 0.6717983533 | BK78: 1.457446 | BL78: 1.598465321 | BM78: 0.580444555 | BN78: 0.3130813495 | BO78: 0.3096188165
A80: Current Contaminant | B80: Parametername: | C80: csed | D80: cwater | H80: cwatD | I80: cpw | J80: logKow | K80: kM | M80: logKowS | N80: logLoc | O80: phi
A81: PCB 209 | B81: =VLOOKUP($A$81,Contam,2,FALSE) -> PCBs | C81: =VLOOKUP($A$81,Contam,3,FALSE) -> 0.86 | D81: =VLOOKUP($A$81,Contam,4,FALSE) -> 0 | F81: =VLOOKUP($A$81,Contam,6,FALSE) -> 0 | G81: =VLOOKUP($A$81,Contam,7,FALSE) -> 0.0512429151 | H81: =VLOOKUP($A$81,Contam,8,FALSE) -> 5.12429151e-08 | I81: =VLOOKUP($A$81,Contam,9,FALSE) -> 4.099433208e-07 | J81: =VLOOKUP($A$81,Contam,10,FALSE) -> 8.308441959 | K81: =VLOOKUP($A$81,Contam,11,FALSE) -> 0 | L81: =VLOOKUP($A$81,Contam,12,FALSE) -> 393.6 | M81: =VLOOKUP($A$81,Contam,13,FALSE) -> 8.565518988 | N81: =VLOOKUP($A$81,Contam,14,FALSE) -> 8.109587032 | O81: =VLOOKUP($A$81,Contam,15,FALSE) -> 0.003754022796
J82: Kow | M82: KowS
J83: =10^logKow -> 203442628.9 | M83: =10^logKowS -> 367721470.1

Sheet Food Web Calculations
S1: CA halibut | T1: Spotted sand bass | U1: Queenfish | V1: White croaker | W1: Shiner perch | X1: Common carp | Y1: Topsmelt | Z1: Striped mullet
A2: Food Web Calculations | B2: Phytoplankton | C2: Submerged Macrophyte | D2: Zooplankton | E2: Diet - Small polychaete (e.g., Harmothoe imbricata) | F2: Diet - Large polychaete (e.g., Neanthes) | G2: Amphipod | H2: Cumacean | I2: Mysid | J2: Bivalve mollusk | K2: Decapod crab | L2: Crangon shrimp | M2: Forage fish - herbivore | N2: Forage fish - planktivore | O2: Forage fish - primarily benthivore | P2: Forage fish - benthivore | Q2: Forage fish - mixed diet i | R2: Forage fish - mixed diet ii | S2: Indicator species 1 - Piscivore | T2: Indicator species 2 - Benthic diet with piscivory | U2: Indicator species 3 - Benthic and pelagic with piscivory | V2: Indicator species 4 - Benthic without piscivory | W2: Indicator species 5 - Benthic and pelagic without piscivory | X2: Indicator species 6 - Benthic with herbivory | Y2: Indicator species 7 - Benthic and pelagic with herbivory | Z2: Indicator species 8- Pelagic with benthic herbivory
A3: Proportion Porewater Respiration | B3: 0 | C3: 0 | D3: 0 | E3: 0.05 | F3: 0.05 | G3: 0 | H3: 0 | I3: 0 | J3: 0.05 | K3: 0.05 | L3: 0 | M3: 0 | N3: 0 | O3: 0 | P3: 0 | Q3: 0 | R3: 0.05 | S3: 0 | T3: 0 | U3: 0 | V3: 0 | W3: 0 | X3: 0 | Y3: 0 | Z3: 0
A4: Diet - Sediment | E4: 0.9 | F4: 0.9 | G4: 0.3 | H4: 0.15 | I4: 0.1 | J4: 0.3 | K4: 0.44 | O4: 0.05 | Q4: 0.05 | R4: 0.05 | V4: 0.05 | W4: 0.05 | X4: 0.29 | Y4: 0.05 | Z4: 0.3
A5: Diet - Phytoplankton | D5: 1 | E5: 0.05 | F5: 0.05 | G5: 0.35 | H5: 0.65 | I5: 0.45 | J5: 0.65 | K5: 0.01 | L5: 0.3 | M5: 0.8 | N5: 0.2 | O5: 0.05 | Q5: 0.1 | T5: 0.01 | W5: 0.1 | X5: 0.04 | Y5: 0.2 | Z5: 0.1
A6: Diet - Submerged Macrophyte | K6: 0.1 | X6: 0.2 | Y6: 0.2 | Z6: 0.35
A7: Diet - Zooplankton | E7: 0.05 | F7: 0.05 | G7: 0.35 | H7: 0.2 | I7: 0.45 | J7: 0.05 | K7: 0.1 | L7: 0.3 | M7: 0.2 | N7: 0.35 | O7: 0.2 | Q7: 0.2 | W7: 0.1 | X7: 0.11 | Y7: 0.08 | Z7: 0.1
A8: Diet - Small polychaete (e.g., Harmothoe imbricata) | O8: 0.15 | P8: 0.2 | Q8: 0.05 | R8: 0.05 | U8: 0.06 | V8: 0.2 | W8: 0.1
A9: Diet - Large polychaete (e.g., Neanthes) | O9: 0.15 | P9: 0.2 | Q9: 0.05 | R9: 0.1 | U9: 0.05 | V9: 0.2 | W9: 0.1 | X9: 0.01 | Y9: 0.01
A10: Diet - Amphipod | K10: 0.2 | N10: 0.2 | O10: 0.1 | P10: 0.15 | Q10: 0.25 | R10: 0.15 | T10: 0.01 | U10: 0.12 | V10: 0.2 | W10: 0.2 | X10: 0.1 | Y10: 0.4 | Z10: 0.03
A11: Diet - Cumacean | K11: 0.15 | N11: 0.15 | O11: 0.1 | P11: 0.15 | Q11: 0.25 | R11: 0.15 | U11: 0.02 | V11: 0.2 | W11: 0.2 | X11: 0 | Y11: 0.01
A12: Diet - Mysid | L12: 0.4 | N12: 0.1 | O12: 0.1 | Q12: 0.05 | R12: 0.2 | S12: 0.01 | U12: 0.24 | V12: 0.1 | W12: 0.15 | X12: 0.06 | Y12: 0.05 | Z12: 0.02
A13: Diet - Bivalve mollusk | T13: 0.28 | X13: 0.14 | Z13: 0.1
A14: Diet - Decapod crab | T14: 0.35 | X14: 0.04
A15: Diet - Crangon shrimp | O15: 0.1 | P15: 0.25 | R15: 0.2 | S15: 0.01 | U15: 0.03 | V15: 0.05
A16: Diet - Forage fish - herbivore | S16: 0.08
A17: Diet - Forage fish - planktivore | R17: 0.05 | S17: 0.45 | T17: 0.1 | U17: 0.48
A18: Diet - Forage fish - primarily benthivore | S18: 0.25
A19: Diet - Forage fish - benthivore | S19: 0.1 | T19: 0.15 | X19: 0.01
A20: Diet - Forage fish - mixed diet i | P20: 0.05 | R20: 0.05
A21: Diet - Forage fish - mixed diet ii | S21: 0.1 | T21: 0.1
A22: Lipid (%) | B22: 0.0012 | C22: 0.0038 | D22: 0.01 | E22: 0.0075 | F22: 0.0075 | G22: 0.01 | H22: 0.01 | I22: 0.01 | J22: 0.0086 | K22: 0.0125 | L22: 0.02 | M22: 0.012 | N22: 0.025 | O22: 0.018 | P22: 0.03 | Q22: 0.02 | R22: 0.03 | S22: =Input!E4 -> 0 | T22: =Input!E5 -> 0.0044 | U22: =Input!E6 -> 0 | V22: =Input!E7 -> 0 | W22: =Input!E8 -> 0.0125 | X22: =Input!E9 -> 0 | Y22: =Input!E10 -> 0 | Z22: =Input!E11 -> 0
A23: Water | B23: =1-B22-NLOC -> 0.9388 | C23: =1-C22-NLOC -> 0.9362 | D23: =1-D22-NLOM -> 0.79 | E23: 0.7925 | F23: 0.7925 | G23: 0.79 | H23: 0.79 | I23: 0.79 | J23: =1-J22-(NLOM/2) -> 0.8914 | K23: =1-K22-NLOM -> 0.7875 | L23: 0.78 | M23: 0.788 | N23: 0.775 | O23: 0.782 | P23: 0.77 | Q23: 0.78 | R23: 0.77 | W23: =1-W22-NLOM -> 0.7875
A24: Mass (kg) | B24: - | C24: - | D24: =0.000000071 -> 7.1e-08 | E24: 1e-07 | F24: 0.00011 | G24: 3.13e-06 | H24: 5e-06 | I24: 1.5e-05 | J24: 0.0112 | K24: 0.005 | L24: 0.000372 | M24: 0.004 | N24: 0.0215 | O24: 0.015 | P24: 0.03 | Q24: 0.00131 | R24: 0.13 | S24: 1.4633 | T24: 0.599 | U24: 0.05 | V24: 0.371 | W24: 0.0513 | X24: 2 | Y24: 0.02 | Z24: 1.23
A25: Fraction of lipid in diet (vLD) | B25: - | C25: - | D25: =D$5*$B$22+D$6*$C$22+D$7*$D$22+D$8*$E$22+D$9*$F$22+D$10*$G$22+D$11*$H$22+D$12*$I$22+D$13*$J$22+D$14*$K$22+D$15*$L$22+D$16*$M$22+D$17*$N$22+D$18*$O$22+D$19*$P$22+D$20*$Q$22+D$21*$R$22 -> 0.0012 | E25: 0.00056 | F25: 0.00056 | G25: 0.00392 | H25: 0.00278 | I25: 0.00504 | J25: 0.00128 | K25: 0.004892 | L25: 0.00736 | M25: 0.00296 | N25: 0.00824 | O25: 0.00931 | P25: 0.012 | Q25: 0.00837 | R25: 0.012375 | S25: 0.02301 | T25: 0.016895 | U25: 0.017225 | V25: 0.009 | W25: 0.00812 | X25: 0.005587 | Y25: 0.006475 | Z25: 0.00381
A26: Fraction of NLOC in diet (vCD) | B26: - | C26: - | D26: =D$4*TOC+ (D$5+D$6)*NLOC -> 0.06 | E26: 0.01767 | F26: 0.01767 | G26: 0.02589 | H26: 0.041445 | I26: 0.02863 | J26: 0.04389 | K26: 0.013772 | L26: 0.018 | M26: 0.048 | N26: 0.012 | O26: 0.003815 | P26: 0 | Q26: 0.006815 | R26: 0.000815 | S26: 0 | T26: 0.0006 | U26: 0 | V26: 0.000815 | W26: 0.006815 | X26: 0.019127 | Y26: 0.024815 | Z26: 0.03189
A27: Fraction of NLOM in diet (vND) | B27: - | C27: - | D27: =SUM(D$4:D$6)*0+SUM(D$7:D$12, D$14:D$21)*NLOM +D$13*NLOM/2 -> 0 | E27: 0.01 | F27: 0.01 | G27: 0.07 | H27: 0.04 | I27: 0.09 | J27: 0.01 | K27: 0.09 | L27: 0.14 | M27: 0.04 | N27: 0.16 | O27: 0.18 | P27: 0.2 | Q27: 0.17 | R27: 0.19 | S27: 0.2 | T27: 0.17 | U27: 0.2 | V27: 0.19 | W27: 0.17 | X27: 0.08 | Y27: 0.11 | Z27: 0.04
A28: Fraction of water in diet (vWD) | B28: - | C28: - | D28: =1-SUM(D25:D27) -> 0.9388 | E28: =1-SUM(E25:E27) -> 0.97177 | F28: =1-SUM(F25:F27) -> 0.97177 | G28: =1-SUM(G25:G27) -> 0.90019 | H28: =1-SUM(H25:H27) -> 0.915775 | I28: =1-SUM(I25:I27) -> 0.87633 | J28: 0.94483 | K28: 0.891336 | L28: 0.83464 | M28: 0.90904 | N28: 0.81976 | O28: 0.806875 | P28: 0.788 | Q28: 0.814815 | R28: 0.79681 | S28: 0.77699 | T28: 0.812505 | U28: 0.782775 | V28: 0.800185 | W28: 0.815065 | X28: 0.895286 | Y28: 0.85871 | Z28: 0.9243
A29: Gill Ventilation Rate (GV) - (L/day) | B29: - | C29: - | D29: =(1400 * (D24^0.65))/DO -> 0.003509162283 | E29: 0.004384151226 | F29: 0.4157102871 | G29: 0.04111396347 | H29: 0.05574629762 | I29: 0.1138530959 | J29: 8.392227357 | K29: 4.968394005 | L29: 0.9177796782 | M29: 4.29758545 | N29: 12.82243556 | O29: 10.14716786 | P29: 15.92261308 | Q29: 2.080232458 | R29: 41.29987196 | S29: 199.2288456 | T29: 111.4841073 | U29: 22.19300081 | V29: 81.65420739 | W29: 22.56637566 | X29: 244.0928305 | Y29: 12.23362104 | Z29: 177.9605948
A30: Food Ingestion Rate - (Gd) (kg-food/day) | B30: - | C30: - | D30: =D29*SSC*scav -> 7.965798383e-08 | E30: =0.022 * E24^0.85 *EXP(0.06 *T) -> 7.011745104e-08 | F30: =0.022 * F24^0.85 *EXP(0.06 *T) -> 2.697800944e-05 | G30: =0.022 * G24^0.85 *EXP(0.06 *T) -> 1.309298912e-06 | H30: =H29*SSC*scav -> 1.265440956e-06 | I30: =I29*SSC*scav -> 2.584465278e-06 | J30: =J29*SSC*scav -> 0.000190503561 | K30: =0.022 * K24^0.85 *EXP(0.06 *T) -> 0.0006917523188 | L30: =L29*SSC*scav -> 2.08335987e-05 | M30: =(0.022 * M24^0.85 *EXP(0.06 *T)+M29*SSC*scav)/2 -> 0.0003348968705 | N30: =0.022 * N24^0.85 *EXP(0.06 *T) -> 0.002390005007 | O30: 0.001759963618 | P30: 0.00317233605 | Q30: 0.0002215678386 | R30: 0.01103260246 | S30: 0.08636931728 | T30: 0.04042396591 | U30: 0.004897231379 | V30: 0.02690258072 | W30: 0.005005251221 | X30: 0.1126423277 | Y30: 0.002247509915 | Z30: 0.07451530178
A31: Fecal Egestion Rate - (GF) (kg-feces/day) | D31: =(((1-alphaZ)*D25) + ((1-betaZ)*(D26+D27)) + ((1-chiZ)*(D28)))*D30 -> 3.501733106e-08 | E31: =(((1-alphaI)*E25) + ((1-betaI)*(E26+E27)) + ((1-chiI)*(E28)))*E30 -> 3.115696984e-08 | F31: 1.198778641e-05 | G31: 5.630482853e-07 | H31: 5.481320772e-07 | I31: 1.099085211e-06 | J31: 8.362458616e-05 | K31: 0.0002962548287 | L31: 8.686110637e-06 | M31: =(((1-alphaF)*M25) + ((1-betaF)*(M26+M27)) + ((1-chiF)*(M28)))*M30 -> 0.0001518301848 | N31: 0.001089163522 | O31: 0.0008024241722 | P31: 0.001445950771 | Q31: 0.0001010152703 | R31: 0.005022145449 | S31: 0.03903431065 | T31: 0.01829656407 | U31: 0.002223202251 | V31: 0.01227808899 | W31: 0.0022823883 | X31: 0.05102707581 | Y31: 0.001021435945 | Z31: 0.0337003649
A32: Growth Rate Constant - kG (1/day) | B32: =0.08 -> 0.08 | C32: =kGp -> 0.125 | D32: =IGR * D24^-0.2 -> 0.009414914374 | E32: 0.00879160251 | F32: 0.002166653722 | G32: 0.004415289422 | H32: 0.004020444242 | I32: 0.00322737769 | J32: 0.0008594575674 | K32: 0.001009889934 | L32: 0.00169808512 | M32: =FGR * M24^-0.2 -> 0.002111961718 | N32: 0.001508725908 | O32: 0.001621361246 | P32: 0.001411476946 | Q32: 0.002640242277 | R32: 0.001052711506 | S32: 0.0006486812807 | T32: 0.0007755551312 | U32: 0.001274394942 | V32: 0.0008535387806 | W32: 0.001267869536 | X32: 0.0006093853943 | Y32: 0.001530706904 | Z32: 0.0006716097893
A33: kM - Metabolic Transformation Rate Constant (1/day) | D33: =kM -> 0 | E33: 0 | F33: 0 | G33: 0 | H33: 0 | I33: 0 | J33: 0 | K33: 0 | L33: 0 | M33: 0 | N33: 0 | O33: 0 | P33: 0 | Q33: 0 | R33: 0 | S33: 0 | T33: 0 | U33: 0 | V33: 0 | W33: 0 | X33: 0 | Y33: 0 | Z33: 0
A34: Lipid Gut (vLG) | D34: =((1-alphaZ)*D25) / ((1-alphaZ) * D25 + (1-betaZ) * (D26 +D27) + (1-chiZ) *D28) -> 0.000764338165 | E34: =((1-alphaI)*E25) / ((1-alphaI) * E25 + (1-betaI) * (E26+E27)+ (1-chiI) *E28) -> 0.0003150641155 | F34: 0.0003150641155 | G34: 0.002278868379 | H34: 0.00160450647 | I34: 0.002962851486 | J34: 0.000728985844 | K34: 0.002855693829 | L34: 0.004413232021 | M34: =((1-alphaF)*M25) / ((1-alphaF) * M25 + (1-betaF) * (M26+M27)+ (1-chiF) *M28) -> 0.0006528970099 | N34: 0.001808143668 | O34: 0.002041970051 | P34: 0.002632733655 | Q34: 0.001835883629 | R34: 0.002718528502 | S34: 0.005091310587 | T34: 0.00373273857 | U34: 0.003794293141 | V34: 0.001971994393 | W34: 0.001780706636 | X34: 0.001233330883 | Y34: 0.001424722399 | Z34: 0.0008424339043
A35: NLOC Gut (vCG) | D35: =((1-betaZ)*D26) / ((1-alphaZ) * D25 + (1-betaZ) * (D26+D27)+(1-chiZ) *D28) -> 0.03821690825 | E35: =((1-betaI)*E26) / ((1-alphaI) * E25 + (1-betaI) * (E26+E27)+ (1-chiI) *E28) -> 0.009941398075 | F35: 0.009941398075 | G35: 0.01505099549 | H35: 0.0239204211 | I35: 0.01683064247 | J35: 0.02499624117 | K35: 0.00803937355 | L35: 0.01079323049 | M35: =((1-betaF)*M26) / ((1-alphaF) * M25 + (1-betaF) * (M26+M27)+ (1-chiF) *M28) -> 0.0529375954 | N35: 0.01316609467 | O35: 0.004183735632 | P35: 0 | Q35: 0.007474042371 | R35: 0.0008951922137 | S35: 0 | T35: 0.0006628124125 | U35: 0 | V35: 0.000892875239 | W35: 0.007472608203 | X35: 0.02111143709 | Y35: 0.02730076165 | Z35: 0.03525619056
A36: NLOM Gut (vNG) | D36: =((1-betaZ)*D27) / ((1-alphaZ) * D25 + (1-betaZ) * (D26 + D27) +(1-chiZ) *D28) -> 0 | E36: =((1-betaI)*E27) / ((1-alphaI) * E25 + (1-betaI) * (E26+E27)+ (1-chiI) *E28) -> 0.00562614492 | F36: 0.00562614492 | G36: 0.0406940782 | H36: 0.02308642403 | I36: 0.05290806225 | J36: 0.005695201906 | K36: 0.05253729447 | L36: 0.08394734822 | M36: =((1-betaF)*M27) / ((1-alphaF) * M25 + (1-betaF) * (M26+M27)+ (1-chiF) *M28) -> 0.04411466283 | N36: 0.175547929 | O36: 0.1973977493 | P36: 0.2193944713 | Q36: 0.186439795 | R36: 0.2086951173 | S36: 0.2212651276 | T36: 0.1877968502 | U36: 0.2202782665 | V36: 0.2081549637 | W36: 0.1864040197 | X36: 0.08830004532 | Y36: 0.121018891 | Z36: 0.0442222522
A37: Water Gut (vWG) | D37: =((1-chiZ)*D28) / ((1-alphaZ) * D25 + (1-betaZ) *( D26+D27)+ (1-chiZ) *D28) -> 0.9610187536 | E37: =((1-chiI)*E28) / ((1-alphaI) * E25 + (1-betaI) * (E26+E27)+ (1-chiI) *E28) -> 0.9841173929 | F37: 0.9841173929 | G37: 0.9419760579 | H37: 0.9513886484 | I37: 0.9272984438 | J37: 0.9685795711 | K37: 0.9365676381 | L37: 0.9008461893 | M37: =((1-chiF)*M28) / ((1-alphaF) * M25 + (1-betaF) * (M26+M27)+ (1-chiF) *M28) -> 0.9022948448 | N37: 0.8094778327 | O37: 0.796376545 | P37: 0.7779727951 | Q37: 0.804250279 | R37: 0.787691162 | S37: 0.7736435618 | T37: 0.8078075988 | U37: 0.7759274403 | V37: 0.7889801667 | W37: 0.8043426654 | X37: 0.8893551867 | Y37: 0.8502556249 | Z37: 0.9196791233
A38: GF / GD | D38: =D31/D30 -> 0.439596 | E38: =E31/E30 -> 0.444354 | F38: 0.444354 | G38: 0.430038 | H38: 0.433155 | I38: 0.425266 | J38: 0.438966 | K38: 0.4282672 | L38: 0.416928 | M38: 0.453364 | N38: 0.455716 | O38: 0.45593225 | P38: 0.4558 | Q38: 0.45591125 | R38: 0.4552095 | S38: 0.4519465 | T38: 0.45261675 | U38: 0.45397125 | V38: 0.45639075 | W38: 0.45599875 | X38: 0.4530009 | Y38: 0.4544745 | Z38: 0.452261
A39: BCF - Biota to Water Partitioning Coefficient (phytoplankton and macrophytes) | B39: =(B22* KowS)/dLipid + (lipcf *NLOC *KowS)+ (B23/1) -> 8212447.104 | C39: =(C22* KowS)/dLipid + (lipcf *NLOC *KowS)+ (C23/1) -> 9274753.57
A40: EW - Gill Uptake Efficiency | D40: =1/(1.85 + (155/KowS)) -> 0.5405404174 | E40: 0.5405404174 | F40: 0.5405404174 | G40: 0.5405404174 | H40: 0.5405404174 | I40: 0.5405404174 | J40: 0.5405404174 | K40: 0.5405404174 | L40: 0.5405404174 | M40: 0.5405404174 | N40: 0.5405404174 | O40: 0.5405404174 | P40: 0.5405404174 | Q40: 0.5405404174 | R40: 0.5405404174 | S40: 0.5405404174 | T40: 0.5405404174 | U40: 0.5405404174 | V40: 0.5405404174 | W40: 0.5405404174 | X40: 0.5405404174 | Y40: 0.5405404174 | Z40: 0.5405404174
A41: K1 - Gill Uptake Rate Constant | B41: =1/(0.00006+(5.5/KowS)) -> 16662.51299 | C41: =1/(0.00006+(5.5/KowS)) -> 16662.51299 | D41: =D40 * D29/ D24 -> 26716.11331 | E41: 23698.10934 | F41: 2042.801928 | G41: 7100.242483 | H41: 6026.625396 | I41: 4102.813333 | J41: 405.0301856 | K41: 537.1235538 | L41: 1333.594114 | M41: 580.7546582 | N41: 322.3741707 | O41: 365.6636232 | P41: 286.893864 | Q41: 858.3585657 | R41: 171.7250002 | S41: 73.5947812 | T41: 100.6037828 | U41: 239.9242784 | V41: 118.9687314 | W41: 237.7785208 | X41: 65.97102023 | Y41: 330.6383313 | Z41: 78.20723106
A42: ED - Gut Uptake Efficiency | D42: =1/(A * Kow + B) -> 0.05183328242 | E42: 0.05183328242 | F42: 0.05183328242 | G42: 0.05183328242 | H42: 0.05183328242 | I42: 0.05183328242 | J42: 0.05183328242 | K42: 0.05183328242 | L42: 0.05183328242 | M42: 0.05183328242 | N42: 0.05183328242 | O42: 0.05183328242 | P42: 0.05183328242 | Q42: 0.05183328242 | R42: 0.05183328242 | S42: 0.05183328242 | T42: 0.05183328242 | U42: 0.05183328242 | V42: 0.05183328242 | W42: 0.05183328242 | X42: 0.05183328242 | Y42: 0.05183328242 | Z42: 0.05183328242
A43: KD - Dietary Uptake Rate Constant | D43: =D42 * D30/D24 -> 0.05815401088 | E43: 0.03634417642 | F43: 0.01271235257 | G43: 0.02168219177 | H43: 0.01311839169 | I43: 0.008930754576 | J43: 0.0008816450785 | K43: 0.007171158661 | L43: 0.002902886572 | M43: 0.004339701017 | N43: 0.005761944396 | O43: 0.006081646083 | P43: 0.005481086346 | Q43: 0.008766861339 | R43: 0.0043988923 | S43: 0.003059389882 | T43: 0.003498008082 | U43: 0.005076791543 | V43: 0.003758622814 | W43: 0.005057282653 | X43: 0.002919310791 | Y43: 0.005824790807 | Z43: 0.003140140392
A44: Kbw - Biota to Water Partitioning Coefficient | D44: =(KowS*(D22/dLipid+lipcfp*NLOM)+D23/1) -> 6659845.193 | E44: 5638396.667 | F44: 5638396.667 | G44: 6659845.193 | H44: 6659845.193 | I44: 6659845.193 | J44: 6087834.118 | K44: 7681293.718 | L44: 10745639.29 | M44: 7477004.013 | N44: 12788536.35 | O44: 9928480.474 | P44: 14831433.4 | Q44: 10745639.29 | R44: 14831433.4 | S44: 2574050.291 | T44: 4371799.7 | U44: 2574050.291 | V44: 2574050.291 | W44: 7681293.718 | X44: 2574050.291 | Y44: 2574050.291 | Z44: 2574050.291
A45: K2 - Gill Elimination Rate Constant | B45: =B41/B39 -> 0.00202893398 | C45: =C41/C39 -> 0.00179654509 | D45: =D41/D44 -> 0.004011521671 | E45: 0.004202987256 | F45: 0.0003623019182 | G45: 0.001066127256 | H45: 0.0009049197424 | I45: 0.0006160523578 | J45: 6.653108112e-05 | K45: 6.992618347e-05 | L45: 0.0001241056095 | M45: 7.767210733e-05 | N45: 2.520805837e-05 | O45: 3.682976707e-05 | P45: 1.934363701e-05 | Q45: 7.987971141e-05 | R45: 1.157844934e-05 | S45: 2.859104248e-05 | T45: 2.301198356e-05 | U45: 9.320885428e-05 | V45: 4.621849535e-05 | W45: 3.095553035e-05 | X45: 2.562926625e-05 | Y45: 0.0001284506105 | Z45: 3.038294603e-05
A46: KGB - Gut to Biota Partitioning Coefficient | D46: =((D34/dLipid + D35*lipcf+D36*lipcfp)*Kow+D37)/((D22/dLipid+NLOM*lipcfp)*Kow+D23) -> 0.7854396178 | E46: 0.262596486 | F46: 0.262596486 | G46: 0.5093127491 | H46: 0.6053167832 | I46: 0.6092705397 | J46: 0.5894095726 | K46: 0.3746289421 | L46: 0.3976214337 | M46: 1.022833435 | N46: 0.3669401143 | O46: 0.3941513596 | P46: 0.2629108002 | Q46: 0.3826259603 | R46: 0.2637579292 | S46: 1.914470719 | T46: 0.9212269939 | U46: 1.70366063 | V46: 1.398434117 | W46: 0.5322503482 | X46: 1.692839512 | Y46: 2.196279547 | Z46: 2.117641102
A47: KE - Fecal Egestion Rate Constant | D47: =D42*D31*D46/D24 -> 0.02007919091 | E47: 0.004240849263 | F47: 0.001483351016 | G47: 0.004748916815 | H47: 0.003439589712 | I47: 0.002313976777 | J47: 0.0002281087034 | K47: 0.001150549932 | L47: 0.000481239111 | M47: 0.002012388179 | N47: 0.0009635151141 | O47: 0.001092910214 | P47: 0.000656824572 | Q47: 0.001529321799 | R47: 0.0005281535102 | S47: 0.002647101425 | T47: 0.001458539132 | U47: 0.003926456302 | V47: 0.002398874843 | W47: 0.001227430282 | X47: 0.002238696317 | Y47: 0.005814032704 | Z47: 0.003007395612
A48: CD - Diet Concentration (ng/g wet) | D48: =D$4*csed+ D$5*$B$49+D$6*$C$49 -> 0.01040895812 | E48: =E$4*csed+ E$5*$B$49+E$6*$C$49+E$7*$D$49 -> 0.7774667205 | F48: =F$4*csed+ F$5*$B$49+F$6*$C$49+F$7*$D$49+F$8*$E$49 -> 0.7774667205 | G48: =G$4*csed+ G$5*$B$49+G$6*$C$49+G$7*$D$49+G$8*$E$49+G$9*$F$49 -> 0.2822670433 | H48: =H$4*csed+ H$5*$B$49+H$6*$C$49+H$7*$D$49+H$8*$E$49+H$9*$F$49+H$10*$G$49 -> 0.147550913 | I48: =I$4*csed+ I$5*$B$49+I$6*$C$49+I$7*$D$49+I$8*$E$49+I$9*$F$49+I$10*$G$49+I$11*$H$49 -> 0.1172004842 | J48: =J$4*csed+ J$5*$B$49+J$6*$C$49+J$7*$D$49+J$8*$E$49+J$9*$F$49+J$10*$G$49+J$11*$H$49+J$12*$I$49 -> 0.2677120953 | K48: =K$4*csed+ K$5*$B$49+K$6*$C$49+K$7*$D$49+K$8*$E$49+K$9*$F$49+K$10*$G$49+K$11*$H$49+K$12*$I$49+K$13*$J$49 -> 0.5520778434 | L48: =L$4*csed+ L$5*$B$49+L$6*$C$49+L$7*$D$49+L$8*$E$49+L$9*$F$49+L$10*$G$49+L$11*$H$49+L$12*$I$49+L$13*$J$49+L$14*$K$49 -> 0.1024534546 | M48: =M$4*csed+ M$5*$B$49+M$6*$C$49+M$7*$D$49+M$8*$E$49+M$9*$F$49+M$10*$G$49+M$11*$H$49+M$12*$I$49+M$13*$J$49+M$14*$K$49+M$15*$L$49 -> 0.02011225676 | N48: =N$4*csed+ N$5*$B$49+N$6*$C$49+N$7*$D$49+N$8*$E$49+N$9*$F$49+N$10*$G$49+N$11*$H$49+N$12*$I$49+N$13*$J$49+N$14*$K$49+N$15*$L$49+N$16*$M$49 -> 0.2101268008 | O48: =O$4*csed+ O$5*$B$49+O$6*$C$49+O$7*$D$49+O$8*$E$49+O$9*$F$49+O$10*$G$49+O$11*$H$49+O$12*$I$49+O$13*$J$49+O$14*$K$49+O$15*$L$49+O$16*$M$49+O$17*$N$49 -> 0.8167669082 | P48: =P$4*csed+ P$5*$B$49+P$6*$C$49+P$7*$D$49+P$8*$E$49+P$9*$F$49+P$10*$G$49+P$11*$H$49+P$12*$I$49+P$13*$J$49+P$14*$K$49+P$15*$L$49+P$16*$M$49+P$17*$N$49+P$18*$O$49+P$20*$Q$49 -> 1.074049902 | Q48: =Q$4*csed+ Q$5*$B$49+Q$6*$C$49+Q$7*$D$49+Q$8*$E$49+Q$9*$F$49+Q$10*$G$49+Q$11*$H$49+Q$12*$I$49+Q$13*$J$49+Q$14*$K$49+Q$15*$L$49+Q$16*$M$49 -> 0.5032147838 | R48: =R$4*csed+ R$5*$B$49+R$6*$C$49+R$7*$D$49+R$8*$E$49+R$9*$F$49+R$10*$G$49+R$11*$H$49+R$12*$I$49+R$13*$J$49+R$14*$K$49+R$15*$L$49+R$17*$N$49+R$20*$Q$49 -> 0.6644746327 | S48: =S$4*csed+ S$5*$B$49+S$6*$C$49+S$7*$D$49+S$8*$E$49+S$9*$F$49+S$10*$G$49+S$11*$H$49+S$12*$I$49+S$13*$J$49+S$14*$K$49+S$15*$L$49+S$16*$M$49+S$17*$N$49+S$18*$O$49+S$19*$P$49+S$20*$Q$49 -> 0.9627778026 | T48: 1.170788392 | U48: 0.6000503845 | V48: 1.098386601 | W48: 0.6842822361 | X48: 0.4902270638 | Y48: 0.3425381899 | Z48: 0.3132660457
A49: Tissue Concentration (ng/g wet) | B49: =(B41*cwatD)/(B45+B32) -> 0.01040895812 | C49: =(C41*cwatD)/(C45+C32) -> 0.006733903812 | D49: =(D41*(D3*cpw + (1-D3)*cwatD)+D43*D48)/(D45+D47+D32+D33) -> 0.05892545132 | E49: 1.734552504 | F49: 2.498499925 | G49: 0.633801947 | H49: 0.2683161923 | I49: 0.2041328293 | J49: 0.2287902341 | K49: 1.791721546 | L49: 0.1587840884 | M49: 0.02785343405 | N49: 0.4914047475 | O49: 1.812374219 | P49: 2.826946676 | Q49: 1.048513465 | R49: 1.842974015 | S49: 0.8871697655 | T49: 1.816743227 | U49: 0.5777465838 | V49: 1.25340356 | W49: 1.374680176 | X49: 0.4991823173 | Y49: 0.2692499606 | Z49: 0.2662721822
A50: Predicted BSAF | B50: =B49/csed -> 0.01210343967 | C50: 0.007830120711 | D50: 0.06851796665 | E50: 2.016921516 | F50: 2.905232471 | G50: 0.7369790082 | H50: 0.3119955725 | I50: 0.237363755 | J50: 0.2660351559 | K50: 2.083397146 | L50: 0.1846326609 | M50: 0.03238771401 | N50: 0.5714008692 | O50: 2.107411883 | P50: 3.287147297 | Q50: 1.219201703 | R50: 2.142993041 | S50: 1.031592751 | T50: 2.112492125 | U50: 0.6717983533 | V50: 1.457446 | W50: 1.598465321 | X50: 0.580444555 | Y50: 0.3130813495 | Z50: 0.3096188165
A83: \

Sheet Assessment Summary
A2: Input Data
B3: Seafood Data | E3: Chlordane Conc | G3: Dieldrin Conc | I3: DDTs Conc | K3: PCBs Conc
A4: Species | B4: Guild | C4: Portion of human seafood | D4: Lipid (%) | E4: Mean (ng/g) | F4: SE | G4: Mean (ng/g) | H4: SE | I4: Mean (ng/g) | J4: SE | K4: Mean (ng/g) | L4: SE
A5: =IF(ISBLANK(Input!B4),"",Input!B4) ->  | B5: 1Piscivore | C5: =IF(ISBLANK(Input!D4),"",Input!D4) -> 0 | D5: =IF(ISBLANK(Input!E4),"",Input!E4) ->  | E5: =IF(ISBLANK(Input!F4),"",Input!F4) ->  | F5: =IF(ISBLANK(Input!G4),"",Input!G4) ->  | G5: =IF(ISBLANK(Input!H4),"",Input!H4) ->  | H5: =IF(ISBLANK(Input!I4),"",Input!I4) ->  | I5: =IF(ISBLANK(Input!J4),"",Input!J4) ->  | J5: =IF(ISBLANK(Input!K4),"",Input!K4) ->  | K5: =IF(ISBLANK(Input!L4),"",Input!L4) ->  | L5: =IF(ISBLANK(Input!M4),"",Input!M4) -> 
A6: =IF(ISBLANK(Input!B5),"",Input!B5) -> Spotted sand bass | B6: 2Benthic diet with piscivory | C6: =IF(ISBLANK(Input!D5),"",Input!D5) -> 0.5 | D6: =IF(ISBLANK(Input!E5),"",Input!E5) -> 0.0044 | E6: =IF(ISBLANK(Input!F5),"",Input!F5) -> 2.0425 | F6: =IF(ISBLANK(Input!G5),"",Input!G5) -> 0.9099794884 | G6: =IF(ISBLANK(Input!H5),"",Input!H5) -> 0.25 | H6: =IF(ISBLANK(Input!I5),"",Input!I5) -> 0 | I6: =IF(ISBLANK(Input!J5),"",Input!J5) -> 2.407333333 | J6: =IF(ISBLANK(Input!K5),"",Input!K5) -> 1.300596475 | K6: =IF(ISBLANK(Input!L5),"",Input!L5) -> 71.07914286 | L6: =IF(ISBLANK(Input!M5),"",Input!M5) -> 36.3098109
A7: =IF(ISBLANK(Input!B6),"",Input!B6) ->  | B7: 3Benthic and pelagic with piscivory | C7: =IF(ISBLANK(Input!D6),"",Input!D6) -> 0 | D7: =IF(ISBLANK(Input!E6),"",Input!E6) ->  | E7: =IF(ISBLANK(Input!F6),"",Input!F6) ->  | F7: =IF(ISBLANK(Input!G6),"",Input!G6) ->  | G7: =IF(ISBLANK(Input!H6),"",Input!H6) ->  | H7: =IF(ISBLANK(Input!I6),"",Input!I6) ->  | I7: =IF(ISBLANK(Input!J6),"",Input!J6) ->  | J7: =IF(ISBLANK(Input!K6),"",Input!K6) ->  | K7: =IF(ISBLANK(Input!L6),"",Input!L6) ->  | L7: =IF(ISBLANK(Input!M6),"",Input!M6) -> 
A8: =IF(ISBLANK(Input!B7),"",Input!B7) ->  | B8: 4Benthic without piscivory | C8: =IF(ISBLANK(Input!D7),"",Input!D7) -> 0 | D8: =IF(ISBLANK(Input!E7),"",Input!E7) ->  | E8: =IF(ISBLANK(Input!F7),"",Input!F7) ->  | F8: =IF(ISBLANK(Input!G7),"",Input!G7) ->  | G8: =IF(ISBLANK(Input!H7),"",Input!H7) ->  | H8: =IF(ISBLANK(Input!I7),"",Input!I7) ->  | I8: =IF(ISBLANK(Input!J7),"",Input!J7) ->  | J8: =IF(ISBLANK(Input!K7),"",Input!K7) ->  | K8: =IF(ISBLANK(Input!L7),"",Input!L7) ->  | L8: =IF(ISBLANK(Input!M7),"",Input!M7) -> 
A9: =IF(ISBLANK(Input!B8),"",Input!B8) -> Shiner perch | B9: 5Benthic and pelagic without piscivory | C9: =IF(ISBLANK(Input!D8),"",Input!D8) -> 0.5 | D9: =IF(ISBLANK(Input!E8),"",Input!E8) -> 0.0125 | E9: =IF(ISBLANK(Input!F8),"",Input!F8) -> 2.5275 | F9: =IF(ISBLANK(Input!G8),"",Input!G8) -> 0.4157433102 | G9: =IF(ISBLANK(Input!H8),"",Input!H8) -> 0.25 | H9: =IF(ISBLANK(Input!I8),"",Input!I8) -> 0 | I9: =IF(ISBLANK(Input!J8),"",Input!J8) -> 7.283 | J9: =IF(ISBLANK(Input!K8),"",Input!K8) -> 2.510696369 | K9: =IF(ISBLANK(Input!L8),"",Input!L8) -> 1.9195 | L9: =IF(ISBLANK(Input!M8),"",Input!M8) -> 0.9761609114
A10: =IF(ISBLANK(Input!B9),"",Input!B9) ->  | B10: 6Benthic with herbivory | C10: =IF(ISBLANK(Input!D9),"",Input!D9) -> 0 | D10: =IF(ISBLANK(Input!E9),"",Input!E9) ->  | E10: =IF(ISBLANK(Input!F9),"",Input!F9) ->  | F10: =IF(ISBLANK(Input!G9),"",Input!G9) ->  | G10: =IF(ISBLANK(Input!H9),"",Input!H9) ->  | H10: =IF(ISBLANK(Input!I9),"",Input!I9) ->  | I10: =IF(ISBLANK(Input!J9),"",Input!J9) ->  | J10: =IF(ISBLANK(Input!K9),"",Input!K9) ->  | K10: =IF(ISBLANK(Input!L9),"",Input!L9) ->  | L10: =IF(ISBLANK(Input!M9),"",Input!M9) -> 
A11: =IF(ISBLANK(Input!B10),"",Input!B10) ->  | B11: 7Benthic and pelagic with herbivory | C11: =IF(ISBLANK(Input!D10),"",Input!D10) -> 0 | D11: =IF(ISBLANK(Input!E10),"",Input!E10) ->  | E11: =IF(ISBLANK(Input!F10),"",Input!F10) ->  | F11: =IF(ISBLANK(Input!G10),"",Input!G10) ->  | G11: =IF(ISBLANK(Input!H10),"",Input!H10) ->  | H11: =IF(ISBLANK(Input!I10),"",Input!I10) ->  | I11: =IF(ISBLANK(Input!J10),"",Input!J10) ->  | J11: =IF(ISBLANK(Input!K10),"",Input!K10) ->  | K11: =IF(ISBLANK(Input!L10),"",Input!L10) ->  | L11: =IF(ISBLANK(Input!M10),"",Input!M10) -> 
A12: =IF(ISBLANK(Input!B11),"",Input!B11) ->  | B12: 8Pelagic with benthic herbivory | C12: =IF(ISBLANK(Input!D11),"",Input!D11) -> 0 | D12: =IF(ISBLANK(Input!E11),"",Input!E11) ->  | E12: =IF(ISBLANK(Input!F11),"",Input!F11) ->  | F12: =IF(ISBLANK(Input!G11),"",Input!G11) ->  | G12: =IF(ISBLANK(Input!H11),"",Input!H11) ->  | H12: =IF(ISBLANK(Input!I11),"",Input!I11) ->  | I12: =IF(ISBLANK(Input!J11),"",Input!J11) ->  | J12: =IF(ISBLANK(Input!K11),"",Input!K11) ->  | K12: =IF(ISBLANK(Input!L11),"",Input!L11) ->  | L12: =IF(ISBLANK(Input!M11),"",Input!M11) -> 
D14: Chlordane Conc | F14: Dieldrin Conc | H14: DDTs Conc | J14: PCBs Conc
A15: Sediment Contaminant Concentration | D15: Mean (ng/g) | E15: SE | F15: Mean (ng/g) | G15: SE | H15: Mean (ng/g) | I15: SE | J15: Mean (ng/g) | K15: SE
D16: =IF(ISBLANK(Input!F15),"",Input!F15) -> 0.5 | E16: =IF(ISBLANK(Input!G15),"",Input!G15) -> 0 | F16: =IF(ISBLANK(Input!H15),"",Input!H15) -> 0.5 | G16: =IF(ISBLANK(Input!I15),"",Input!I15) -> 0 | H16: =IF(ISBLANK(Input!J15),"",Input!J15) -> 1.191666667 | I16: =IF(ISBLANK(Input!K15),"",Input!K15) -> 0.7651876585 | J16: =IF(ISBLANK(Input!L15),"",Input!L15) -> 1.334545455 | K16: =IF(ISBLANK(Input!M15),"",Input!M15) -> 1.602161083
A18: Other Site Data | B18: Mean | D18: Risk Thresholds
A19: Daily seafood consumption rate (CR) (kg/d) | B19: =CR -> 0.032 | D19: Cancer Risk Threshold | G19: =CRT -> 9.5e-06 | J19: Categories
A20: Area of Site (SA) (km^2) | B20: =SA -> 8.056839 | D20: Noncancer Hazard Threshold | G20: =NHT -> 0.95 | J20: 1 | K20: Very Low
A21: Length of site (km) | B21: =SL -> 6 | D21: Site Linkage Threshold | G21: =SCT -> 0.45 | J21: 2 | K21: Low
A22: Sediment Total Organic Carbon (TOC) (%) | B22: =TOC -> 0.0163 | J22: 3 | K22: Moderate
A23: Dissolved Organic Carbon Content of water (DOCw) (kg/L) | B23: =DOCw -> 2.148e-06 | E23: Tissue Chem Thresholds | J23: 4 | K23: High
A24: Particulate Organic Carbon Content of water (POCw) (kg/L) | B24: =POCw -> 1.571e-06 | E24: FCG | F24: ATL3 | G24: ATL2 | H24: ATL1 | J24: 5 | K24: Very High
A25: Mean Water Temp (T) (Deg. C) | B25: =T -> 17.4 | D25: Chlordane | E25: 5.6 | F25: 190 | G25: 280 | H25: 560
A26: Salinity (Sal) (PSU) | B26: =Sal -> 25.4 | D26: DDTs | E26: 21 | F26: 520 | G26: 1000 | H26: 2100
A27: Dissolved Oxygen Concentration (DO) (mg/L) | B27: =DO -> 9 | D27: Dieldrin | E27: 0.46 | F27: 15 | G27: 23 | H27: 46
A28: Suspended solid concentration in water column (SSC) (kg/L) | B28: =SSC -> 2.27e-05 | D28: PCBs | E28: 3.6 | F28: 21 | G28: 42 | H28: 120
A30: Model Results (Note: Make Sure That Simulation Output Sheet Corresponds to the CFD Output Sheet) | E30: Last Output Sheet # | F30: Last Output Sheet Name | I30: Last CFD Sheet# | J30: Last CFD Sheet Name
A31: Simulation Output Worksheet Name | B31: CFD Output Worksheet Name | E31: =(_xlfn.SHEETS())-2 -> 12 | F31: =MySheetName(E31) -> Example Simulation Output | I31: =(_xlfn.SHEETS())-1 -> 13 | J31: =MySheetName(I31) -> Example CFD Output
A32: =F31 -> Example Simulation Output | B32: =J31 -> Example CFD Output
B33: Note: Yellow coloring indicates exceeding the threshold
A34: Compound | B34: Indicator | C34: 0.25 | D34: 50% or mean | E34: 0.75 | F34: 0.95 | G34: Orig Category Outcome | H34: Category Outcome | I34: % Below Threshold
A35: Chlordanes | B35: Weighted observed tissue conc. (ng/g) | D35: =SUMPRODUCT(Input!F$4:F$11,Input!$D$4:$D$11) -> 2.285 | H35: =IF($D35="No Data","NA",IF($D35>H25,5,IF($D35>G25,4,IF($D35>F25,3,IF($D35>E25,2,IF($D35=0,"NA",1)))))) -> 1
A36: Chlordanes | B36: Cancer Risk | D36: =IF(INDIRECT("'" & $A$32 & "'!"&L36)=0,"No Data", INDIRECT("'" & $A$32 & "'!"&L36)) -> 2.813020035e-07 | E36: 5.035290307e-07 | F36: 1.153223672e-06 | G36: =IF(D36="No Data","NA",IF(D36>=K36,4,IF(E36>=K36,3,IF(F36>=K36,2,IF(SUM(D36:F36)=0,"NA",1))))) -> 1 | I36: =IF(G36="NA","NA",VLOOKUP(TRUE,Z59:AL160,13,FALSE)) -> 0.99 | J36: Below | K36: =CRT -> 9.5e-06 | L36: K12 | M36: L12 | N36: N12
A37: Chlordanes | B37: Non Cancer Hazard Quotient | D37: 0.01530003127 | E37: 0.02738697137 | F37: 0.06272389825 | G37: =IF(D37="No Data","NA",IF(D37>=K37,4,IF(E37>=K37,3,IF(F37>=K37,2,IF(SUM(D37:F37)=0,"NA",1))))) -> 1 | I37: =IF(G37="NA","NA",VLOOKUP(TRUE,AD$59:$AL$160,9,FALSE)) -> 1 | J37: Below | K37: =NHT -> 0.95 | L37: K16 | M37: L16 | N37: N16
A38: Chlordanes | B38: Site Linkage | C38: =IF(OR(INDIRECT("'" & $A$32 & "'!"&L38)=0,INDIRECT("'" & $A$32 & "'!"&L38)=1),"No Data", INDIRECT("'" & $A$32 & "'!"&L38)) -> 0.1661745004 | D38: =IF(OR(INDIRECT("'" & $A$32 & "'!"&M38)=0,INDIRECT("'" & $A$32 & "'!"&M38)=1),"No Data", INDIRECT("'" & $A$32 & "'!"&M38)) -> 0.2413931684 | E38: =IF(OR(INDIRECT("'" & $A$32 & "'!"&N38)=0,INDIRECT("'" & $A$32 & "'!"&N38)=1),"No Data", INDIRECT("'" & $A$32 & "'!"&N38)) -> 0.3520309093 | G38: =IF(D38="No Data","NA",IF(C38>=K38,4,IF(D38>=K38,3,IF(E38>=K38,2,IF(SUM(C38:E38)=0,"NA",1))))) -> 1 | H38: =IF(E38="No Data","NA",IF(C38>=K38,4,IF(D38>=K38,3,IF(E38>=K38,2,IF(SUM(C38:E38)=0,"NA",1))))) -> 1 | I38: =IF(G38="NA","NA",VLOOKUP(TRUE,AH$59:$AL$160,5,FALSE)) -> 0.86 | J38: Below | K38: =SCT -> 0.45 | L38: J20 | M38: K20 | N38: L20
A39: Chlordanes | B39: Site Assessment Outcome | G39: =IFERROR(VLOOKUP(CONCATENATE(MAX(G36,G37),", ",G38),Outcome,2,FALSE),"Not enough data") -> 1 | H39: =IFERROR(VLOOKUP(CONCATENATE($H35,", ",$H38),OutcomeRev,2,FALSE),"Not enough data") -> 1
A41: DDTs | B41: Weighted observed tissue conc. (ng/g) | D41: =SUMPRODUCT(Input!J$4:J$11,Input!$D$4:$D$11) -> 4.845166667 | H41: =IF($D41="No Data","NA",IF($D41>H26,5,IF($D41>G26,4,IF($D41>F26,3,IF($D41>E26,2,IF($D41=0,"NA",1)))))) -> 1
A42: DDTs | B42: Cancer Risk | D42: =IF(INDIRECT("'" & $A$32 & "'!"&L42)=0,"No Data", INDIRECT("'" & $A$32 & "'!"&L42)) -> 1.530167854e-07 | E42: 2.788219014e-07 | F42: 6.727654559e-07 | G42: =IF(D42="No Data","NA",IF(D42>=K42,4,IF(E42>=K42,3,IF(F42>=K42,2,IF(SUM(D42:F42)=0,"NA",1))))) -> 1 | I42: =IF(G42="NA","NA",VLOOKUP(TRUE,AA$59:$AL$160,12,FALSE)) -> 1 | J42: Below | K42: =CRT -> 9.5e-06 | L42: K13 | M42: L13 | N42: N13
A43: DDTs | B43: Non Cancer Hazard Quotient | D43: 0.002100230388 | E43: 0.003826967274 | F43: 0.009234035669 | G43: =IF(D43="No Data","NA",IF(D43>=K43,4,IF(E43>=K43,3,IF(F43>=K43,2,IF(SUM(D43:F43)=0,"NA",1))))) -> 1 | I43: =IF(G43="NA","NA",VLOOKUP(TRUE,AE$59:$AL$160,8,FALSE)) -> 1 | J43: Below | K43: =NHT -> 0.95 | L43: K17 | M43: L17 | N43: N17
A44: DDTs | B44: Site Linkage | C44: =IF(OR(INDIRECT("'" & $A$32 & "'!"&L44)=0,INDIRECT("'" & $A$32 & "'!"&L44)=1),"No Data", INDIRECT("'" & $A$32 & "'!"&L44)) -> 0.6691300108 | D44: =IF(OR(INDIRECT("'" & $A$32 & "'!"&M44)=0,INDIRECT("'" & $A$32 & "'!"&M44)=1),"No Data", INDIRECT("'" & $A$32 & "'!"&M44)) -> 1.091916783 | E44: =IF(OR(INDIRECT("'" & $A$32 & "'!"&N44)=0,INDIRECT("'" & $A$32 & "'!"&N44)=1),"No Data", INDIRECT("'" & $A$32 & "'!"&N44)) -> 1.820704377 | G44: =IF(D44="No Data","NA",IF(C44>=K44,4,IF(D44>=K44,3,IF(E44>=K44,2,IF(SUM(C44:E44)=0,"NA",1))))) -> 4 | H44: =IF(E44="No Data","NA",IF(C44>=K44,4,IF(D44>=K44,3,IF(E44>=K44,2,IF(SUM(C44:E44)=0,"NA",1))))) -> 4 | I44: =IF(G44="NA","NA",VLOOKUP(TRUE,AI$59:$AL$160,4,FALSE)) -> 0.11 | J44: Below | K44: =SCT -> 0.45 | L44: J21 | M44: K21 | N44: L21
A45: DDTs | B45: Site Assessment Outcome | G45: =IFERROR(VLOOKUP(CONCATENATE(MAX(G42,G43),", ",G44),Outcome,2,FALSE),"Not enough data") -> 1 | H45: =IFERROR(VLOOKUP(CONCATENATE($H41,", ",$H44),OutcomeRev,2,FALSE),"Not enough data") -> 1
A47: Dieldrin | B47: Weighted observed tissue conc. (ng/g) | D47: =SUMPRODUCT(Input!H$4:H$11,Input!$D$4:$D$11) -> 0.25 | H47: =IF($D47="No Data","NA",IF($D47>H27,5,IF($D47>G27,4,IF($D47>F27,3,IF($D47>E27,2,IF($D47=0,"NA",1)))))) -> 1
A48: Dieldrin | B48: Cancer Risk | D48: =IF(INDIRECT("'" & $A$32 & "'!"&L48)=0,"No Data", INDIRECT("'" & $A$32 & "'!"&L48)) -> 3.863944463e-07 | E48: 6.902321818e-07 | F48: 1.540515499e-06 | G48: =IF(D48="No Data","NA",IF(D48>=K48,4,IF(E48>=K48,3,IF(F48>=K48,2,IF(SUM(D48:F48)=0,"NA",1))))) -> 1 | I48: =IF(G48="NA","NA",VLOOKUP(TRUE,AB$59:$AL$160,11,FALSE)) -> 0.99 | J48: Below | K48: =CRT -> 9.5e-06 | L48: K14 | M48: L14 | N48: N14
A49: Dieldrin | B49: Non Cancer Hazard Quotient | D49: 0.001126983802 | E49: 0.002013177197 | F49: 0.004493170207 | G49: =IF(D49="No Data","NA",IF(D49>=K49,4,IF(E49>=K49,3,IF(F49>=K49,2,IF(SUM(D49:F49)=0,"NA",1))))) -> 1 | I49: =IF(G49="NA","NA",VLOOKUP(TRUE,AF$59:$AL$160,7,FALSE)) -> 1 | J49: Below | K49: =NHT -> 0.95 | L49: K18 | M49: L18 | N49: N18
A50: Dieldrin | B50: Site Linkage | C50: =IF(OR(INDIRECT("'" & $A$32 & "'!"&L50)=0,INDIRECT("'" & $A$32 & "'!"&L50)=1),"No Data", INDIRECT("'" & $A$32 & "'!"&L50)) -> 0.4803796266 | D50: =IF(OR(INDIRECT("'" & $A$32 & "'!"&M50)=0,INDIRECT("'" & $A$32 & "'!"&M50)=1),"No Data", INDIRECT("'" & $A$32 & "'!"&M50)) -> 0.6704539284 | E50: =IF(OR(INDIRECT("'" & $A$32 & "'!"&N50)=0,INDIRECT("'" & $A$32 & "'!"&N50)=1),"No Data", INDIRECT("'" & $A$32 & "'!"&N50)) -> 0.9588796086 | G50: =IF(D50="No Data","NA",IF(C50>=K50,4,IF(D50>=K50,3,IF(E50>=K50,2,IF(SUM(C50:E50)=0,"NA",1))))) -> 4 | H50: =IF(E50="No Data","NA",IF(C50>=K50,4,IF(D50>=K50,3,IF(E50>=K50,2,IF(SUM(C50:E50)=0,"NA",1))))) -> 4 | I50: =IF(G50="NA","NA",VLOOKUP(TRUE,AJ$59:$AL$160,3,FALSE)) -> 0.21 | J50: Below | K50: =SCT -> 0.45 | L50: J22 | M50: K22 | N50: L22
A51: Dieldrin | B51: Site Assessment Outcome | G51: =IFERROR(VLOOKUP(CONCATENATE(MAX(G48,G49),", ",G50),Outcome,2,FALSE),"Not enough data") -> 1 | H51: =IFERROR(VLOOKUP(CONCATENATE($H47,", ",$H50),OutcomeRev,2,FALSE),"Not enough data") -> 1
A53: PCBs | B53: Weighted observed tissue conc. (ng/g) | D53: =SUMPRODUCT(Input!L$4:L$11,Input!$D$4:$D$11) -> 36.49932143 | H53: =IF($D53="No Data","NA",IF($D53>H28,5,IF($D53>G28,4,IF($D53>F28,3,IF($D53>E28,2,IF($D53=0,"NA",1)))))) -> 3
A54: PCBs | B54: Cancer Risk | D54: =IF(INDIRECT("'" & $A$32 & "'!"&L54)=0,"No Data", INDIRECT("'" & $A$32 & "'!"&L54)) -> 6.406153817e-06 | E54: 1.217668749e-05 | F54: 3.15428801e-05 | G54: =IF(D54="No Data","NA",IF(D54>=K54,4,IF(E54>=K54,3,IF(F54>=K54,2,IF(SUM(D54:F54)=0,"NA",1))))) -> 3 | I54: =IF(G54="NA","NA",VLOOKUP(TRUE,AC$59:$AL$160,10,FALSE)) -> 0.66 | J54: Below | K54: =CRT -> 9.5e-06 | L54: K15 | M54: L15 | N54: N15
A55: PCBs | B55: Non Cancer Hazard Quotient | D55: 0.373692306 | E55: 0.7103067702 | F55: 1.840001339 | G55: =IF(D55="No Data","NA",IF(D55>=K55,4,IF(E55>=K55,3,IF(F55>=K55,2,IF(SUM(D55:F55)=0,"NA",1))))) -> 2 | I55: =IF(G55="NA","NA",VLOOKUP(TRUE,AG$59:$AL$160,6,FALSE)) -> 0.83 | J55: Below | K55: =NHT -> 0.95 | L55: K19 | M55: L19 | N55: N19
A56: PCBs | B56: Site Linkage | C56: =IF(OR(INDIRECT("'" & $A$32 & "'!"&L56)=0,INDIRECT("'" & $A$32 & "'!"&L56)=1),"No Data", INDIRECT("'" & $A$32 & "'!"&L56)) -> 0.06308585165 | D56: =IF(OR(INDIRECT("'" & $A$32 & "'!"&M56)=0,INDIRECT("'" & $A$32 & "'!"&M56)=1),"No Data", INDIRECT("'" & $A$32 & "'!"&M56)) -> 0.1210105736 | E56: =IF(OR(INDIRECT("'" & $A$32 & "'!"&N56)=0,INDIRECT("'" & $A$32 & "'!"&N56)=1),"No Data", INDIRECT("'" & $A$32 & "'!"&N56)) -> 0.2443143734 | G56: =IF(D56="No Data","NA",IF(C56>=K56,4,IF(D56>=K56,3,IF(E56>=K56,2,IF(SUM(C56:E56)=0,"NA",1))))) -> 1 | H56: =IF(E56="No Data","NA",IF(C56>=K56,4,IF(D56>=K56,3,IF(E56>=K56,2,IF(SUM(C56:E56)=0,"NA",1))))) -> 1 | I56: =IF(G56="NA","NA",VLOOKUP(TRUE,AK$59:$AL$160,2,FALSE)) -> 0.89 | J56: Below | K56: =SCT -> 0.45 | L56: J23 | M56: K23 | N56: L23
A57: PCBs | B57: Site Assessment Outcome | G57: =IFERROR(VLOOKUP(CONCATENATE(MAX(G54,G55),", ",G56),Outcome,2,FALSE),"Not enough data") -> 2 | H57: =IFERROR(VLOOKUP(CONCATENATE($H53,", ",$H56),OutcomeRev,2,FALSE),"Not enough data") -> 2
A59: Percentile | B59: CancerRiskChlordanes | C59: CancerRiskDDTs | D59: CancerRiskDieldrin | E59: CancerRiskPCBs | F59: NoncanHazardChlordanes | G59: NoncanHazardDDTs | H59: NoncanHazardDieldrin | I59: NoncanHazardPCBs | J59: SedContribChlordanes | K59: SedContribDDTs | L59: SedContribDieldrin | M59: SedContribPCBs | N59: CancerRiskChlordanes | O59: CancerRiskDDTs | P59: CancerRiskDieldrin | Q59: CancerRiskPCBs | R59: NoncanHazardChlordanes | S59: NoncanHazardDDTs | T59: NoncanHazardDieldrin | U59: NoncanHazardPCBs | V59: SedContribChlordanes | W59: SedContribDDTs | X59: SedContribDieldrin | Y59: SedContribPCBs | Z59: CancerRiskChlordanes | AA59: CancerRiskDDTs | AB59: CancerRiskDieldrin | AC59: CancerRiskPCBs | AD59: NoncanHazardChlordanes | AE59: NoncanHazardDDTs | AF59: NoncanHazardDieldrin | AG59: NoncanHazardPCBs | AH59: SedContribChlordanes | AI59: SedContribDDTs | AJ59: SedContribDieldrin | AK59: SedContribPCBs | AL59: Percentile
A60: 0 | B60: =INDIRECT("'" & $B$32 & "'!"&N60) -> 1.175297027e-08 | C60: 6.081461715e-09 | D60: 1.784580251e-08 | E60: 1.915969457e-07 | F60: 0.0006392446925 | G60: 8.347104315e-05 | H60: 5.205025731e-05 | I60: 0.0111764885 | J60: 0.02319059979 | K60: 0.08753931971 | L60: 0.08845047896 | M60: 0.003252803813 | N60: B6 | O60: C6 | P60: D6 | Q60: E6 | R60: F6 | S60: G6 | T60: H6 | U60: I6 | V60: J6 | W60: K6 | X60: L6 | Y60: M6 | Z60: =B60>CRT -> FALSE | AA60: =C60>CRT -> FALSE | AB60: =D60>CRT -> FALSE | AC60: =E60>CRT -> FALSE | AD60: =F60>NHT -> FALSE | AE60: =G60>NHT -> FALSE | AF60: =H60>NHT -> FALSE | AG60: =I60>NHT -> FALSE | AH60: =J60>SCT -> FALSE | AI60: =K60>SCT -> FALSE | AJ60: =L60>SCT -> FALSE | AK60: =M60>SCT -> FALSE | AL60: 0
A61: 0.01 | B61: 3.94377321e-08 | C61: 2.058995608e-08 | D61: 5.764958173e-08 | E61: 6.890766745e-07 | F61: 0.002145020394 | G61: 0.0002826072403 | H61: 0.0001681446134 | I61: 0.04019613935 | J61: 0.06587888442 | K61: 0.2072233972 | L61: 0.2036608035 | M61: 0.0126201413 | N61: B7 | O61: C7 | P61: D7 | Q61: E7 | R61: F7 | S61: G7 | T61: H7 | U61: I7 | V61: J7 | W61: K7 | X61: L7 | Y61: M7 | Z61: =AND(B61<CRT,B62>=CRT) -> FALSE | AA61: FALSE | AB61: FALSE | AC61: FALSE | AD61: =AND(F61<NHT,F62>=NHT) -> FALSE | AE61: FALSE | AF61: FALSE | AG61: FALSE | AH61: =AND(J61<SCT,J62>=SCT) -> FALSE | AI61: FALSE | AJ61: FALSE | AK61: FALSE | AL61: 0.01
A62: 0.02 | B62: 4.855118654e-08 | C62: 2.57606382e-08 | D62: 7.036568924e-08 | E62: 8.879470816e-07 | F62: 0.002640701677 | G62: 0.000353577387 | H62: 0.0002052332603 | I62: 0.05179691309 | J62: 0.07699816683 | K62: 0.2452292111 | L62: 0.2307849894 | M62: 0.01604610169 | N62: B8 | O62: C8 | P62: D8 | Q62: E8 | R62: F8 | S62: G8 | T62: H8 | U62: I8 | V62: J8 | W62: K8 | X62: L8 | Y62: M8 | Z62: FALSE | AA62: FALSE | AB62: FALSE | AC62: FALSE | AD62: FALSE | AE62: FALSE | AF62: FALSE | AG62: FALSE | AH62: FALSE | AI62: FALSE | AJ62: FALSE | AK62: FALSE | AL62: 0.02
A63: 0.03 | B63: 5.693095264e-08 | C63: 2.907121205e-08 | D63: 8.226859223e-08 | E63: 1.044583058e-06 | F63: 0.003096477611 | G63: 0.000399016636 | H63: 0.0002399500607 | I63: 0.06093401175 | J63: 0.08406528635 | K63: 0.2791384062 | L63: 0.2581337432 | M63: 0.01933139127 | N63: B9 | O63: C9 | P63: D9 | Q63: E9 | R63: F9 | S63: G9 | T63: H9 | U63: I9 | V63: J9 | W63: K9 | X63: L9 | Y63: M9 | Z63: FALSE | AA63: FALSE | AB63: FALSE | AC63: FALSE | AD63: FALSE | AE63: FALSE | AF63: FALSE | AG63: FALSE | AH63: FALSE | AI63: FALSE | AJ63: FALSE | AK63: FALSE | AL63: 0.03
A64: 0.04 | B64: 6.288620349e-08 | C64: 3.170472229e-08 | D64: 9.117982576e-08 | E64: 1.172644923e-06 | F64: 0.003420384028 | G64: 0.000435162855 | H64: 0.0002659411585 | I64: 0.06840428716 | J64: 0.09012521873 | K64: 0.3114580626 | L64: 0.2754910382 | M64: 0.02198399413 | N64: B10 | O64: C10 | P64: D10 | Q64: E10 | R64: F10 | S64: G10 | T64: H10 | U64: I10 | V64: J10 | W64: K10 | X64: L10 | Y64: M10 | Z64: FALSE | AA64: FALSE | AB64: FALSE | AC64: FALSE | AD64: FALSE | AE64: FALSE | AF64: FALSE | AG64: FALSE | AH64: FALSE | AI64: FALSE | AJ64: FALSE | AK64: FALSE | AL64: 0.04
A65: 0.05 | B65: 6.915302412e-08 | C65: 3.542752793e-08 | D65: 9.933710585e-08 | E65: 1.308090769e-06 | F65: 0.003761236743 | G65: 0.0004862601873 | H65: 0.0002897332254 | I65: 0.07630529487 | J65: 0.09608896729 | K65: 0.3354578348 | L65: 0.2905721007 | M65: 0.0240905405 | N65: B11 | O65: C11 | P65: D11 | Q65: E11 | R65: F11 | S65: G11 | T65: H11 | U65: I11 | V65: J11 | W65: K11 | X65: L11 | Y65: M11 | Z65: FALSE | AA65: FALSE | AB65: FALSE | AC65: FALSE | AD65: FALSE | AE65: FALSE | AF65: FALSE | AG65: FALSE | AH65: FALSE | AI65: FALSE | AJ65: FALSE | AK65: FALSE | AL65: 0.05
A66: 0.06 | B66: 7.410223781e-08 | C66: 3.854707536e-08 | D66: 1.070196726e-07 | E66: 1.457491232e-06 | F66: 0.004030424745 | G66: 0.0005290775049 | H66: 0.0003121407117 | I66: 0.08502032187 | J66: 0.101691365 | K66: 0.3575700203 | L66: 0.3056400637 | M66: 0.02679328454 | N66: B12 | O66: C12 | P66: D12 | Q66: E12 | R66: F12 | S66: G12 | T66: H12 | U66: I12 | V66: J12 | W66: K12 | X66: L12 | Y66: M12 | Z66: FALSE | AA66: FALSE | AB66: FALSE | AC66: FALSE | AD66: FALSE | AE66: FALSE | AF66: FALSE | AG66: FALSE | AH66: FALSE | AI66: FALSE | AJ66: FALSE | AK66: FALSE | AL66: 0.06
A67: 0.07 | B67: 7.876508745e-08 | C67: 4.1578477e-08 | D67: 1.142340768e-07 | E67: 1.578301346e-06 | F67: 0.00428403739 | G67: 0.0005706849784 | H67: 0.000333182724 | I67: 0.09206757853 | J67: 0.1064275166 | K67: 0.3753634665 | L67: 0.3185255849 | M67: 0.0288648347 | N67: B13 | O67: C13 | P67: D13 | Q67: E13 | R67: F13 | S67: G13 | T67: H13 | U67: I13 | V67: J13 | W67: K13 | X67: L13 | Y67: M13 | Z67: FALSE | AA67: FALSE | AB67: FALSE | AC67: FALSE | AD67: FALSE | AE67: FALSE | AF67: FALSE | AG67: FALSE | AH67: FALSE | AI67: FALSE | AJ67: FALSE | AK67: FALSE | AL67: 0.07
A68: 0.08 | B68: 8.41568143e-08 | C68: 4.468518831e-08 | D68: 1.21480255e-07 | E68: 1.69295328e-06 | F68: 0.004577293707 | G68: 0.0006133261141 | H68: 0.0003543174105 | I68: 0.09875560798 | J68: 0.1104919688 | K68: 0.3913521177 | L68: 0.3297238215 | M68: 0.03097897343 | N68: B14 | O68: C14 | P68: D14 | Q68: E14 | R68: F14 | S68: G14 | T68: H14 | U68: I14 | V68: J14 | W68: K14 | X68: L14 | Y68: M14 | Z68: FALSE | AA68: FALSE | AB68: FALSE | AC68: FALSE | AD68: FALSE | AE68: FALSE | AF68: FALSE | AG68: FALSE | AH68: FALSE | AI68: FALSE | AJ68: FALSE | AK68: FALSE | AL68: 0.08
A69: 0.09 | B69: 8.88444187e-08 | C69: 4.751588105e-08 | D69: 1.274706131e-07 | E69: 1.791906057e-06 | F69: 0.004832252766 | G69: 0.0006521787595 | H69: 0.0003717892881 | I69: 0.1045278533 | J69: 0.1141542793 | K69: 0.4089554849 | L69: 0.3401314995 | M69: 0.03287055939 | N69: B15 | O69: C15 | P69: D15 | Q69: E15 | R69: F15 | S69: G15 | T69: H15 | U69: I15 | V69: J15 | W69: K15 | X69: L15 | Y69: M15 | Z69: FALSE | AA69: FALSE | AB69: FALSE | AC69: FALSE | AD69: FALSE | AE69: FALSE | AF69: FALSE | AG69: FALSE | AH69: FALSE | AI69: FALSE | AJ69: FALSE | AK69: FALSE | AL69: 0.09
A70: 0.1 | B70: 9.321985576e-08 | C70: 4.960252482e-08 | D70: 1.339819125e-07 | E70: 1.889359649e-06 | F70: 0.005070233025 | G70: 0.0006808189681 | H70: 0.0003907805783 | I70: 0.1102126462 | J70: 0.1174413714 | K70: 0.4271566716 | L70: 0.3506379086 | M70: 0.03476304533 | N70: B16 | O70: C16 | P70: D16 | Q70: E16 | R70: F16 | S70: G16 | T70: H16 | U70: I16 | V70: J16 | W70: K16 | X70: L16 | Y70: M16 | Z70: FALSE | AA70: FALSE | AB70: FALSE | AC70: FALSE | AD70: FALSE | AE70: FALSE | AF70: FALSE | AG70: FALSE | AH70: FALSE | AI70: FALSE | AJ70: FALSE | AK70: FALSE | AL70: 0.1
A71: 0.11 | B71: 9.753295199e-08 | C71: 5.159256498e-08 | D71: 1.403498722e-07 | E71: 1.969695335e-06 | F71: 0.005304822564 | G71: 0.0007081332448 | H71: 0.000409353794 | I71: 0.1148988946 | J71: 0.1213868758 | K71: 0.4449453299 | L71: 0.3612151105 | M71: 0.03653832992 | N71: B17 | O71: C17 | P71: D17 | Q71: E17 | R71: F17 | S71: G17 | T71: H17 | U71: I17 | V71: J17 | W71: K17 | X71: L17 | Y71: M17 | Z71: FALSE | AA71: FALSE | AB71: FALSE | AC71: FALSE | AD71: FALSE | AE71: FALSE | AF71: FALSE | AG71: FALSE | AH71: FALSE | AI71: TRUE | AJ71: FALSE | AK71: FALSE | AL71: 0.11
A72: 0.12 | B72: 1.025573499e-07 | C72: 5.417480379e-08 | D72: 1.458703834e-07 | E72: 2.074689639e-06 | F72: 0.005578099837 | G72: 0.0007435757384 | H72: 0.0004254552849 | I72: 0.1210235623 | J72: 0.1249867827 | K72: 0.4600077907 | L72: 0.3694843188 | M72: 0.03823831074 | N72: B18 | O72: C18 | P72: D18 | Q72: E18 | R72: F18 | S72: G18 | T72: H18 | U72: I18 | V72: J18 | W72: K18 | X72: L18 | Y72: M18 | Z72: FALSE | AA72: FALSE | AB72: FALSE | AC72: FALSE | AD72: FALSE | AE72: FALSE | AF72: FALSE | AG72: FALSE | AH72: FALSE | AI72: FALSE | AJ72: FALSE | AK72: FALSE | AL72: 0.12
A73: 0.13 | B73: 1.066556908e-07 | C73: 5.700768045e-08 | D73: 1.515662499e-07 | E73: 2.177480526e-06 | F73: 0.005801008826 | G73: 0.0007824583591 | H73: 0.0004420682288 | I73: 0.1270196973 | J73: 0.1284320878 | K73: 0.4761266763 | L73: 0.3794462995 | M73: 0.04005247389 | N73: B19 | O73: C19 | P73: D19 | Q73: E19 | R73: F19 | S73: G19 | T73: H19 | U73: I19 | V73: J19 | W73: K19 | X73: L19 | Y73: M19 | Z73: FALSE | AA73: FALSE | AB73: FALSE | AC73: FALSE | AD73: FALSE | AE73: FALSE | AF73: FALSE | AG73: FALSE | AH73: FALSE | AI73: FALSE | AJ73: FALSE | AK73: FALSE | AL73: 0.13
A74: 0.14 | B74: 1.113587422e-07 | C74: 5.920773461e-08 | D74: 1.577713199e-07 | E74: 2.284710709e-06 | F74: 0.006056808043 | G74: 0.0008126551809 | H74: 0.0004601663496 | I74: 0.1332747913 | J74: 0.132115697 | K74: 0.492853255 | L74: 0.3891053006 | M74: 0.04206202735 | N74: B20 | O74: C20 | P74: D20 | Q74: E20 | R74: F20 | S74: G20 | T74: H20 | U74: I20 | V74: J20 | W74: K20 | X74: L20 | Y74: M20 | Z74: FALSE | AA74: FALSE | AB74: FALSE | AC74: FALSE | AD74: FALSE | AE74: FALSE | AF74: FALSE | AG74: FALSE | AH74: FALSE | AI74: FALSE | AJ74: FALSE | AK74: FALSE | AL74: 0.14
A75: 0.15 | B75: 1.159869555e-07 | C75: 6.192908077e-08 | D75: 1.6367593e-07 | E75: 2.381412811e-06 | F75: 0.006308536821 | G75: 0.000850006991 | H75: 0.0004773881292 | I75: 0.1389157473 | J75: 0.1355158562 | K75: 0.5089662541 | L75: 0.3982604991 | M75: 0.04414948098 | N75: B21 | O75: C21 | P75: D21 | Q75: E21 | R75: F21 | S75: G21 | T75: H21 | U75: I21 | V75: J21 | W75: K21 | X75: L21 | Y75: M21 | Z75: FALSE | AA75: FALSE | AB75: FALSE | AC75: FALSE | AD75: FALSE | AE75: FALSE | AF75: FALSE | AG75: FALSE | AH75: FALSE | AI75: FALSE | AJ75: FALSE | AK75: FALSE | AL75: 0.15
A76: 0.16 | B76: =INDIRECT("'" & $B$32 & "'!"&N76) -> 1.200817505e-07 | C76: =INDIRECT("'" & $B$32 & "'!"&O76) -> 6.423662529e-08 | D76: =INDIRECT("'" & $B$32 & "'!"&P76) -> 1.69112797e-07 | E76: =INDIRECT("'" & $B$32 & "'!"&Q76) -> 2.467130447e-06 | F76: =INDIRECT("'" & $B$32 & "'!"&R76) -> 0.006531252939 | G76: =INDIRECT("'" & $B$32 & "'!"&S76) -> 0.0008816791706 | H76: =INDIRECT("'" & $B$32 & "'!"&T76) -> 0.000493245658 | I76: =INDIRECT("'" & $B$32 & "'!"&U76) -> 0.1439159427 | J76: =INDIRECT("'" & $B$32 & "'!"&V76) -> 0.1390202101 | K76: =INDIRECT("'" & $B$32 & "'!"&W76) -> 0.5239491754 | L76: =INDIRECT("'" & $B$32 & "'!"&X76) -> 0.4074144935 | M76: =INDIRECT("'" & $B$32 & "'!"&Y76) -> 0.04608772144 | N76: B22 | O76: C22 | P76: D22 | Q76: E22 | R76: F22 | S76: G22 | T76: H22 | U76: I22 | V76: J22 | W76: K22 | X76: L22 | Y76: M22 | Z76: FALSE | AA76: FALSE | AB76: FALSE | AC76: FALSE | AD76: FALSE | AE76: FALSE | AF76: FALSE | AG76: FALSE | AH76: FALSE | AI76: FALSE | AJ76: FALSE | AK76: FALSE | AL76: 0.16
A77: 0.17 | B77: 1.243560602e-07 | C77: 6.635606082e-08 | D77: 1.739109001e-07 | E77: 2.55999754e-06 | F77: 0.006763732879 | G77: 0.0009107694623 | H77: 0.0005072401252 | I77: 0.1493331898 | J77: 0.1421520748 | K77: 0.5400943176 | L77: 0.4152981668 | M77: 0.04773373843 | N77: B23 | O77: C23 | P77: D23 | Q77: E23 | R77: F23 | S77: G23 | T77: H23 | U77: I23 | V77: J23 | W77: K23 | X77: L23 | Y77: M23 | Z77: FALSE | AA77: FALSE | AB77: FALSE | AC77: FALSE | AD77: FALSE | AE77: FALSE | AF77: FALSE | AG77: FALSE | AH77: FALSE | AI77: FALSE | AJ77: FALSE | AK77: FALSE | AL77: 0.17
A78: 0.18 | B78: 1.289400033e-07 | C78: 6.824821045e-08 | D78: 1.803965933e-07 | E78: 2.669060192e-06 | F78: 0.007013053791 | G78: 0.0009367401434 | H78: 0.0005261567305 | I78: 0.1556951779 | J78: 0.1448371846 | K78: 0.5560119335 | L78: 0.4243163693 | M78: 0.04964496318 | N78: B24 | O78: C24 | P78: D24 | Q78: E24 | R78: F24 | S78: G24 | T78: H24 | U78: I24 | V78: J24 | W78: K24 | X78: L24 | Y78: M24 | Z78: FALSE | AA78: FALSE | AB78: FALSE | AC78: FALSE | AD78: FALSE | AE78: FALSE | AF78: FALSE | AG78: FALSE | AH78: FALSE | AI78: FALSE | AJ78: FALSE | AK78: FALSE | AL78: 0.18
A79: 0.19 | B79: 1.326069985e-07 | C79: 7.103017287e-08 | D79: 1.864644198e-07 | E79: 2.753708461e-06 | F79: 0.007212501861 | G79: 0.0009749239413 | H79: 0.0005438545578 | I79: 0.1606329936 | J79: 0.1478930245 | K79: 0.5712291175 | L79: 0.4318799201 | M79: 0.05150299661 | N79: B25 | O79: C25 | P79: D25 | Q79: E25 | R79: F25 | S79: G25 | T79: H25 | U79: I25 | V79: J25 | W79: K25 | X79: L25 | Y79: M25 | Z79: FALSE | AA79: FALSE | AB79: FALSE | AC79: FALSE | AD79: FALSE | AE79: FALSE | AF79: FALSE | AG79: FALSE | AH79: FALSE | AI79: FALSE | AJ79: FALSE | AK79: FALSE | AL79: 0.19
A80: 0.2 | B80: 1.361522191e-07 | C80: 7.331702973e-08 | D80: 1.926415791e-07 | E80: 2.862829823e-06 | F80: 0.007405326601 | G80: 0.001006312173 | H80: 0.0005618712724 | I80: 0.1669984064 | J80: 0.1506351201 | K80: 0.5864633014 | L80: 0.4407417852 | M80: 0.05321049435 | N80: B26 | O80: C26 | P80: D26 | Q80: E26 | R80: F26 | S80: G26 | T80: H26 | U80: I26 | V80: J26 | W80: K26 | X80: L26 | Y80: M26 | Z80: FALSE | AA80: FALSE | AB80: FALSE | AC80: FALSE | AD80: FALSE | AE80: FALSE | AF80: FALSE | AG80: FALSE | AH80: FALSE | AI80: FALSE | AJ80: FALSE | AK80: FALSE | AL80: 0.2
A81: 0.21 | B81: 1.405377032e-07 | C81: 7.548892792e-08 | D81: 1.985340807e-07 | E81: 2.953811798e-06 | F81: 0.007643853322 | G81: 0.00103612254 | H81: 0.0005790577353 | I81: 0.1723056882 | J81: 0.1540432921 | K81: 0.6054293097 | L81: 0.4482798985 | M81: 0.05515649898 | N81: B27 | O81: C27 | P81: D27 | Q81: E27 | R81: F27 | S81: G27 | T81: H27 | U81: I27 | V81: J27 | W81: K27 | X81: L27 | Y81: M27 | Z81: FALSE | AA81: FALSE | AB81: FALSE | AC81: FALSE | AD81: FALSE | AE81: FALSE | AF81: FALSE | AG81: FALSE | AH81: FALSE | AI81: FALSE | AJ81: TRUE | AK81: FALSE | AL81: 0.21
A82: 0.22 | B82: 1.445432118e-07 | C82: 7.766292827e-08 | D82: 2.046876373e-07 | E82: 3.046005533e-06 | F82: 0.007861713153 | G82: 0.001065961761 | H82: 0.0005970056089 | I82: 0.1776836561 | J82: 0.1568014234 | K82: 0.6198811774 | L82: 0.457081508 | M82: 0.05691238305 | N82: B28 | O82: C28 | P82: D28 | Q82: E28 | R82: F28 | S82: G28 | T82: H28 | U82: I28 | V82: J28 | W82: K28 | X82: L28 | Y82: M28 | Z82: FALSE | AA82: FALSE | AB82: FALSE | AC82: FALSE | AD82: FALSE | AE82: FALSE | AF82: FALSE | AG82: FALSE | AH82: FALSE | AI82: FALSE | AJ82: FALSE | AK82: FALSE | AL82: 0.22
A83: 0.23 | B83: 1.494252634e-07 | C83: 7.993820588e-08 | D83: 2.106785312e-07 | E83: 3.152754544e-06 | F83: 0.008127248204 | G83: 0.001097191061 | H83: 0.0006144790493 | I83: 0.1839106817 | J83: 0.160156591 | K83: 0.6389827676 | L83: 0.4655963211 | M83: 0.05888040273 | N83: B29 | O83: C29 | P83: D29 | Q83: E29 | R83: F29 | S83: G29 | T83: H29 | U83: I29 | V83: J29 | W83: K29 | X83: L29 | Y83: M29 | Z83: FALSE | AA83: FALSE | AB83: FALSE | AC83: FALSE | AD83: FALSE | AE83: FALSE | AF83: FALSE | AG83: FALSE | AH83: FALSE | AI83: FALSE | AJ83: FALSE | AK83: FALSE | AL83: 0.23
A84: 0.24 | B84: 1.533521095e-07 | C84: 8.268547606e-08 | D84: 2.165158495e-07 | E84: 3.242561745e-06 | F84: 0.008340829579 | G84: 0.001134898691 | H84: 0.0006315045611 | I84: 0.1891494351 | J84: 0.1635544432 | K84: 0.6513551481 | L84: 0.4724088525 | M84: 0.06098634327 | N84: B30 | O84: C30 | P84: D30 | Q84: E30 | R84: F30 | S84: G30 | T84: H30 | U84: I30 | V84: J30 | W84: K30 | X84: L30 | Y84: M30 | Z84: FALSE | AA84: FALSE | AB84: FALSE | AC84: FALSE | AD84: FALSE | AE84: FALSE | AF84: FALSE | AG84: FALSE | AH84: FALSE | AI84: FALSE | AJ84: FALSE | AK84: FALSE | AL84: 0.24
A85: 0.25 | B85: 1.578428612e-07 | C85: 8.505215906e-08 | D85: 2.213916413e-07 | E85: 3.357846318e-06 | F85: 0.008585081808 | G85: 0.001167382575 | H85: 0.0006457256206 | I85: 0.1958743686 | J85: 0.1661745004 | K85: 0.6691300108 | L85: 0.4803796266 | M85: 0.06308585165 | N85: B31 | O85: C31 | P85: D31 | Q85: E31 | R85: F31 | S85: G31 | T85: H31 | U85: I31 | V85: J31 | W85: K31 | X85: L31 | Y85: M31 | Z85: FALSE | AA85: FALSE | AB85: FALSE | AC85: FALSE | AD85: FALSE | AE85: FALSE | AF85: FALSE | AG85: FALSE | AH85: FALSE | AI85: FALSE | AJ85: FALSE | AK85: FALSE | AL85: 0.25
A86: 0.26 | B86: 1.619625996e-07 | C86: 8.745769055e-08 | D86: 2.269750491e-07 | E86: 3.478901094e-06 | F86: 0.008809154602 | G86: 0.001200399674 | H86: 0.0006620105598 | I86: 0.2029358971 | J86: 0.1693905558 | K86: 0.6836807861 | L86: 0.488683202 | M86: 0.06506949663 | N86: B32 | O86: C32 | P86: D32 | Q86: E32 | R86: F32 | S86: G32 | T86: H32 | U86: I32 | V86: J32 | W86: K32 | X86: L32 | Y86: M32 | Z86: FALSE | AA86: FALSE | AB86: FALSE | AC86: FALSE | AD86: FALSE | AE86: FALSE | AF86: FALSE | AG86: FALSE | AH86: FALSE | AI86: FALSE | AJ86: FALSE | AK86: FALSE | AL86: 0.26
A87: 0.27 | B87: 1.662655534e-07 | C87: 8.984986676e-08 | D87: 2.331880442e-07 | E87: 3.581446152e-06 | F87: 0.009043192493 | G87: 0.001233233465 | H87: 0.0006801317957 | I87: 0.2089176922 | J87: 0.172309541 | K87: 0.6970874844 | L87: 0.4956576887 | M87: 0.06684472046 | N87: B33 | O87: C33 | P87: D33 | Q87: E33 | R87: F33 | S87: G33 | T87: H33 | U87: I33 | V87: J33 | W87: K33 | X87: L33 | Y87: M33 | Z87: FALSE | AA87: FALSE | AB87: FALSE | AC87: FALSE | AD87: FALSE | AE87: FALSE | AF87: FALSE | AG87: FALSE | AH87: FALSE | AI87: FALSE | AJ87: FALSE | AK87: FALSE | AL87: 0.27
A88: 0.28 | B88: 1.70418652e-07 | C88: 9.222350558e-08 | D88: 2.388336074e-07 | E88: 3.686470651e-06 | F88: 0.009269079749 | G88: 0.001265812822 | H88: 0.0006965980216 | I88: 0.2150441213 | J88: 0.1754220025 | K88: 0.7133360726 | L88: 0.5026940974 | M88: 0.06865249335 | N88: B34 | O88: C34 | P88: D34 | Q88: E34 | R88: F34 | S88: G34 | T88: H34 | U88: I34 | V88: J34 | W88: K34 | X88: L34 | Y88: M34 | Z88: FALSE | AA88: FALSE | AB88: FALSE | AC88: FALSE | AD88: FALSE | AE88: FALSE | AF88: FALSE | AG88: FALSE | AH88: FALSE | AI88: FALSE | AJ88: FALSE | AK88: FALSE | AL88: 0.28
A89: 0.29 | B89: 1.743776472e-07 | C89: 9.452379008e-08 | D89: 2.450003901e-07 | E89: 3.796675295e-06 | F89: 0.009484409715 | G89: 0.001297385354 | H89: 0.0007145844712 | I89: 0.2214727256 | J89: 0.1783497289 | K89: 0.7301984951 | L89: 0.5107313856 | M89: 0.07087127548 | N89: B35 | O89: C35 | P89: D35 | Q89: E35 | R89: F35 | S89: G35 | T89: H35 | U89: I35 | V89: J35 | W89: K35 | X89: L35 | Y89: M35 | Z89: FALSE | AA89: FALSE | AB89: FALSE | AC89: FALSE | AD89: FALSE | AE89: FALSE | AF89: FALSE | AG89: FALSE | AH89: FALSE | AI89: FALSE | AJ89: FALSE | AK89: FALSE | AL89: 0.29
A90: 0.3 | B90: 1.790787486e-07 | C90: 9.713060522e-08 | D90: 2.524537213e-07 | E90: 3.898262385e-06 | F90: 0.009740102877 | G90: 0.00133316517 | H90: 0.0007363233537 | I90: 0.2273986392 | J90: 0.1817263666 | K90: 0.7468747477 | L90: 0.5166702868 | M90: 0.07290688701 | N90: B36 | O90: C36 | P90: D36 | Q90: E36 | R90: F36 | S90: G36 | T90: H36 | U90: I36 | V90: J36 | W90: K36 | X90: L36 | Y90: M36 | Z90: FALSE | AA90: FALSE | AB90: FALSE | AC90: FALSE | AD90: FALSE | AE90: FALSE | AF90: FALSE | AG90: FALSE | AH90: FALSE | AI90: FALSE | AJ90: FALSE | AK90: FALSE | AL90: 0.3
A91: 0.31 | B91: 1.838358212e-07 | C91: 9.971209248e-08 | D91: 2.588487983e-07 | E91: 3.997691709e-06 | F91: 0.009998840312 | G91: 0.001368597348 | H91: 0.0007549756618 | I91: 0.233198683 | J91: 0.1844857523 | K91: 0.761799774 | L91: 0.522883015 | M91: 0.07466347718 | N91: B37 | O91: C37 | P91: D37 | Q91: E37 | R91: F37 | S91: G37 | T91: H37 | U91: I37 | V91: J37 | W91: K37 | X91: L37 | Y91: M37 | Z91: FALSE | AA91: FALSE | AB91: FALSE | AC91: FALSE | AD91: FALSE | AE91: FALSE | AF91: FALSE | AG91: FALSE | AH91: FALSE | AI91: FALSE | AJ91: FALSE | AK91: FALSE | AL91: 0.31
A92: 0.32 | B92: 1.884676412e-07 | C92: 1.024090534e-07 | D92: 2.65086128e-07 | E92: 4.103686979e-06 | F92: 0.01025076526 | G92: 0.001405614459 | H92: 0.0007731678734 | I92: 0.2393817405 | J92: 0.187789279 | K92: 0.7799609973 | L92: 0.5307051574 | M92: 0.07658915532 | N92: B38 | O92: C38 | P92: D38 | Q92: E38 | R92: F38 | S92: G38 | T92: H38 | U92: I38 | V92: J38 | W92: K38 | X92: L38 | Y92: M38 | Z92: FALSE | AA92: FALSE | AB92: FALSE | AC92: FALSE | AD92: FALSE | AE92: FALSE | AF92: FALSE | AG92: FALSE | AH92: FALSE | AI92: FALSE | AJ92: FALSE | AK92: FALSE | AL92: 0.32
A93: 0.33 | B93: 1.931741854e-07 | C93: 1.048086215e-07 | D93: 2.69518838e-07 | E93: 4.222529175e-06 | F93: 0.01050675445 | G93: 0.001438549706 | H93: 0.000786096611 | I93: 0.2463142019 | J93: 0.1904185809 | K93: 0.7967820404 | L93: 0.5384103916 | M93: 0.07869869797 | N93: B39 | O93: C39 | P93: D39 | Q93: E39 | R93: F39 | S93: G39 | T93: H39 | U93: I39 | V93: J39 | W93: K39 | X93: L39 | Y93: M39 | Z93: =AND(B93<CRT,B94>=CRT) -> FALSE | AA93: FALSE | AB93: FALSE | AC93: FALSE | AD93: =AND(F93<NHT,F94>=NHT) -> FALSE | AE93: FALSE | AF93: FALSE | AG93: FALSE | AH93: =AND(J93<SCT,J94>=SCT) -> FALSE | AI93: FALSE | AJ93: FALSE | AK93: FALSE | AL93: 0.33
A94: 0.34 | B94: 1.981434157e-07 | C94: 1.074781467e-07 | D94: 2.75713902e-07 | E94: 4.324032391e-06 | F94: 0.01077703116 | G94: 0.001475190249 | H94: 0.0008041655474 | I94: 0.2522352228 | J94: 0.1934410614 | K94: 0.8124056903 | L94: 0.5465119957 | M94: 0.0805588042 | N94: B40 | O94: C40 | P94: D40 | Q94: E40 | R94: F40 | S94: G40 | T94: H40 | U94: I40 | V94: J40 | W94: K40 | X94: L40 | Y94: M40 | Z94: FALSE | AA94: FALSE | AB94: FALSE | AC94: FALSE | AD94: FALSE | AE94: FALSE | AF94: FALSE | AG94: FALSE | AH94: FALSE | AI94: FALSE | AJ94: FALSE | AK94: FALSE | AL94: 0.34
A95: 0.35 | B95: 2.033651531e-07 | C95: 1.101158661e-07 | D95: 2.816041787e-07 | E95: 4.464239334e-06 | F95: 0.01106104174 | G95: 0.001511394241 | H95: 0.0008213455211 | I95: 0.2604139612 | J95: 0.1961292168 | K95: 0.8293111693 | L95: 0.5534102995 | M95: 0.08262792303 | N95: B41 | O95: C41 | P95: D41 | Q95: E41 | R95: F41 | S95: G41 | T95: H41 | U95: I41 | V95: J41 | W95: K41 | X95: L41 | Y95: M41 | Z95: FALSE | AA95: FALSE | AB95: FALSE | AC95: FALSE | AD95: FALSE | AE95: FALSE | AF95: FALSE | AG95: FALSE | AH95: FALSE | AI95: FALSE | AJ95: FALSE | AK95: FALSE | AL95: 0.35
A96: 0.36 | B96: 2.098893551e-07 | C96: 1.130468577e-07 | D96: 2.867228585e-07 | E96: 4.583796333e-06 | F96: 0.01141589344 | G96: 0.001551623538 | H96: 0.000836275004 | I96: 0.2673881194 | J96: 0.1987762578 | K96: 0.8432760007 | L96: 0.5621028514 | M96: 0.08511893735 | N96: B42 | O96: C42 | P96: D42 | Q96: E42 | R96: F42 | S96: G42 | T96: H42 | U96: I42 | V96: J42 | W96: K42 | X96: L42 | Y96: M42 | Z96: FALSE | AA96: FALSE | AB96: FALSE | AC96: FALSE | AD96: FALSE | AE96: FALSE | AF96: FALSE | AG96: FALSE | AH96: FALSE | AI96: FALSE | AJ96: FALSE | AK96: FALSE | AL96: 0.36
A97: 0.37 | B97: 2.143436638e-07 | C97: 1.155321999e-07 | D97: 2.937493038e-07 | E97: 4.698718669e-06 | F97: 0.01165816353 | G97: 0.001585736077 | H97: 0.0008567688028 | I97: 0.2740919224 | J97: 0.2014957063 | K97: 0.8602512566 | L97: 0.5701358357 | M97: 0.08743334881 | N97: B43 | O97: C43 | P97: D43 | Q97: E43 | R97: F43 | S97: G43 | T97: H43 | U97: I43 | V97: J43 | W97: K43 | X97: L43 | Y97: M43 | Z97: FALSE | AA97: FALSE | AB97: FALSE | AC97: FALSE | AD97: FALSE | AE97: FALSE | AF97: FALSE | AG97: FALSE | AH97: FALSE | AI97: FALSE | AJ97: FALSE | AK97: FALSE | AL97: 0.37
A98: 0.38 | B98: =INDIRECT("'" & $B$32 & "'!"&N98) -> 2.187898684e-07 | C98: 1.18353581e-07 | D98: 3.012533769e-07 | E98: =INDIRECT("'" & $B$32 & "'!"&Q98) -> 4.795783366e-06 | F98: =INDIRECT("'" & $B$32 & "'!"&R98) -> 0.01189999284 | G98: =INDIRECT("'" & $B$32 & "'!"&S98) -> 0.001624460915 | H98: =INDIRECT("'" & $B$32 & "'!"&T98) -> 0.0008786556827 | I98: =INDIRECT("'" & $B$32 & "'!"&U98) -> 0.2797540297 | J98: =INDIRECT("'" & $B$32 & "'!"&V98) -> 0.2042657079 | K98: =INDIRECT("'" & $B$32 & "'!"&W98) -> 0.8791793031 | L98: =INDIRECT("'" & $B$32 & "'!"&X98) -> 0.5762990473 | M98: =INDIRECT("'" & $B$32 & "'!"&Y98) -> 0.08980430887 | N98: B44 | O98: C44 | P98: D44 | Q98: E44 | R98: F44 | S98: G44 | T98: H44 | U98: I44 | V98: J44 | W98: K44 | X98: L44 | Y98: M44 | Z98: FALSE | AA98: FALSE | AB98: FALSE | AC98: FALSE | AD98: FALSE | AE98: FALSE | AF98: FALSE | AG98: FALSE | AH98: FALSE | AI98: FALSE | AJ98: FALSE | AK98: FALSE | AL98: 0.38
A99: 0.39 | B99: 2.240429521e-07 | C99: 1.215664177e-07 | D99: 3.084553123e-07 | E99: 4.914660301e-06 | F99: 0.01218570835 | G99: 0.001668558674 | H99: 0.0008996613275 | I99: 0.2866885176 | J99: 0.2066235998 | K99: 0.8936154636 | L99: 0.5828209693 | M99: 0.09186433715 | N99: B45 | O99: C45 | P99: D45 | Q99: E45 | R99: F45 | S99: G45 | T99: H45 | U99: I45 | V99: J45 | W99: K45 | X99: L45 | Y99: M45 | Z99: FALSE | AA99: FALSE | AB99: FALSE | AC99: FALSE | AD99: FALSE | AE99: FALSE | AF99: FALSE | AG99: FALSE | AH99: FALSE | AI99: FALSE | AJ99: FALSE | AK99: FALSE | AL99: 0.39
A100: 0.4 | B100: 2.288316623e-07 | C100: 1.241751759e-07 | D100: 3.142250187e-07 | E100: 5.01764891e-06 | F100: 0.01244616656 | G100: 0.001704365159 | H100: 0.0009164896379 | I100: 0.2926961864 | J100: 0.2096493002 | K100: 0.9100812257 | L100: 0.5906776626 | M100: 0.09389103758 | N100: B46 | O100: C46 | P100: D46 | Q100: E46 | R100: F46 | S100: G46 | T100: H46 | U100: I46 | V100: J46 | W100: K46 | X100: L46 | Y100: M46 | Z100: FALSE | AA100: FALSE | AB100: FALSE | AC100: FALSE | AD100: FALSE | AE100: FALSE | AF100: FALSE | AG100: FALSE | AH100: FALSE | AI100: FALSE | AJ100: FALSE | AK100: FALSE | AL100: 0.4
A101: 0.41 | B101: 2.330999842e-07 | C101: 1.268353074e-07 | D101: 3.221205877e-07 | E101: 5.146728427e-06 | F101: 0.01267832082 | G101: 0.001740876768 | H101: 0.0009395183807 | I101: 0.3002258249 | J101: 0.2126274501 | K101: 0.9261322635 | L101: 0.5983505006 | M101: 0.09660297033 | N101: B47 | O101: C47 | P101: D47 | Q101: E47 | R101: F47 | S101: G47 | T101: H47 | U101: I47 | V101: J47 | W101: K47 | X101: L47 | Y101: M47 | Z101: FALSE | AA101: FALSE | AB101: FALSE | AC101: FALSE | AD101: FALSE | AE101: FALSE | AF101: FALSE | AG101: FALSE | AH101: FALSE | AI101: FALSE | AJ101: FALSE | AK101: FALSE | AL101: 0.41
A102: 0.42 | B102: 2.380397578e-07 | C102: 1.299694386e-07 | D102: 3.279483846e-07 | E102: 5.283616121e-06 | F102: 0.01294699538 | G102: 0.001783894255 | H102: 0.0009565161218 | I102: 0.3082109404 | J102: 0.2157972014 | K102: 0.9430728519 | L102: 0.6051221935 | M102: 0.09920585038 | N102: B48 | O102: C48 | P102: D48 | Q102: E48 | R102: F48 | S102: G48 | T102: H48 | U102: I48 | V102: J48 | W102: K48 | X102: L48 | Y102: M48 | Z102: FALSE | AA102: FALSE | AB102: FALSE | AC102: FALSE | AD102: FALSE | AE102: FALSE | AF102: FALSE | AG102: FALSE | AH102: FALSE | AI102: FALSE | AJ102: FALSE | AK102: FALSE | AL102: 0.42
A103: 0.43 | B103: 2.435423756e-07 | C103: 1.326678765e-07 | D103: 3.344360027e-07 | E103: 5.428154673e-06 | F103: 0.01324628306 | G103: 0.001820931638 | H103: 0.0009754383411 | I103: 0.3166423559 | J103: 0.2188900965 | K103: 0.9611577754 | L103: 0.6138601302 | M103: 0.1015239536 | N103: B49 | O103: C49 | P103: D49 | Q103: E49 | R103: F49 | S103: G49 | T103: H49 | U103: I49 | V103: J49 | W103: K49 | X103: L49 | Y103: M49 | Z103: FALSE | AA103: FALSE | AB103: FALSE | AC103: FALSE | AD103: FALSE | AE103: FALSE | AF103: FALSE | AG103: FALSE | AH103: FALSE | AI103: FALSE | AJ103: FALSE | AK103: FALSE | AL103: 0.43
A104: 0.44 | B104: 2.492018308e-07 | C104: 1.353702725e-07 | D104: 3.410395648e-07 | E104: 5.540167523e-06 | F104: 0.01355410113 | G104: 0.001858023348 | H104: 0.0009946987308 | I104: 0.3231764388 | J104: 0.2219898141 | K104: 0.9802226853 | L104: 0.6211137378 | M104: 0.1039612453 | N104: B50 | O104: C50 | P104: D50 | Q104: E50 | R104: F50 | S104: G50 | T104: H50 | U104: I50 | V104: J50 | W104: K50 | X104: L50 | Y104: M50 | Z104: FALSE | AA104: FALSE | AB104: FALSE | AC104: FALSE | AD104: FALSE | AE104: FALSE | AF104: FALSE | AG104: FALSE | AH104: FALSE | AI104: FALSE | AJ104: FALSE | AK104: FALSE | AL104: 0.44
A105: 0.45 | B105: 2.542855807e-07 | C105: 1.38352382e-07 | D105: 3.482365521e-07 | E105: 5.689307691e-06 | F105: 0.01383060657 | G105: 0.001898954262 | H105: 0.001015689944 | I105: 0.331876282 | J105: 0.2250330402 | K105: 0.9999829364 | L105: 0.6293257835 | M105: 0.1065142143 | N105: B51 | O105: C51 | P105: D51 | Q105: E51 | R105: F51 | S105: G51 | T105: H51 | U105: I51 | V105: J51 | W105: K51 | X105: L51 | Y105: M51 | Z105: FALSE | AA105: FALSE | AB105: FALSE | AC105: FALSE | AD105: FALSE | AE105: FALSE | AF105: FALSE | AG105: FALSE | AH105: FALSE | AI105: FALSE | AJ105: FALSE | AK105: FALSE | AL105: 0.45
A106: 0.46 | B106: 2.599351386e-07 | C106: 1.41287976e-07 | D106: 3.55913011e-07 | E106: 5.830138106e-06 | F106: 0.01413788633 | G106: 0.001939246729 | H106: 0.001038079616 | I106: 0.3400913895 | J106: 0.2280091171 | K106: 1.018433445 | L106: 0.6367876851 | M106: 0.1092957662 | N106: B52 | O106: C52 | P106: D52 | Q106: E52 | R106: F52 | S106: G52 | T106: H52 | U106: I52 | V106: J52 | W106: K52 | X106: L52 | Y106: M52 | Z106: FALSE | AA106: FALSE | AB106: FALSE | AC106: FALSE | AD106: FALSE | AE106: FALSE | AF106: FALSE | AG106: FALSE | AH106: FALSE | AI106: FALSE | AJ106: FALSE | AK106: FALSE | AL106: 0.46
A107: 0.47 | B107: 2.645942541e-07 | C107: 1.443979431e-07 | D107: 3.625096569e-07 | E107: 5.982704469e-06 | F107: 0.01439129587 | G107: 0.001981932552 | H107: 0.001057319833 | I107: 0.348991094 | J107: 0.2313088732 | K107: 1.03268286 | L107: 0.6457364284 | M107: 0.1121685681 | N107: B53 | O107: C53 | P107: D53 | Q107: E53 | R107: F53 | S107: G53 | T107: H53 | U107: I53 | V107: J53 | W107: K53 | X107: L53 | Y107: M53 | Z107: FALSE | AA107: FALSE | AB107: FALSE | AC107: FALSE | AD107: FALSE | AE107: FALSE | AF107: FALSE | AG107: FALSE | AH107: FALSE | AI107: FALSE | AJ107: FALSE | AK107: FALSE | AL107: 0.47
A108: 0.48 | B108: 2.705144379e-07 | C108: 1.47399922e-07 | D108: 3.704530643e-07 | E108: 6.111368051e-06 | F108: 0.01471329499 | G108: 0.002023136185 | H108: 0.001080488104 | I108: 0.3564964696 | J108: 0.23459793 | K108: 1.051049694 | L108: 0.6546374209 | M108: 0.1149997066 | N108: B54 | O108: C54 | P108: D54 | Q108: E54 | R108: F54 | S108: G54 | T108: H54 | U108: I54 | V108: J54 | W108: K54 | X108: L54 | Y108: M54 | Z108: FALSE | AA108: FALSE | AB108: FALSE | AC108: FALSE | AD108: FALSE | AE108: FALSE | AF108: FALSE | AG108: FALSE | AH108: FALSE | AI108: FALSE | AJ108: FALSE | AK108: FALSE | AL108: 0.48
A109: 0.49 | B109: 2.756417718e-07 | C109: 1.502678238e-07 | D109: 3.773881761e-07 | E109: 6.25451203e-06 | F109: 0.01499217096 | G109: 0.002062499542 | H109: 0.001100715514 | I109: 0.3648465351 | J109: 0.2381159549 | K109: 1.072953622 | L109: 0.6632582226 | M109: 0.118273526 | N109: B55 | O109: C55 | P109: D55 | Q109: E55 | R109: F55 | S109: G55 | T109: H55 | U109: I55 | V109: J55 | W109: K55 | X109: L55 | Y109: M55 | Z109: FALSE | AA109: FALSE | AB109: FALSE | AC109: FALSE | AD109: FALSE | AE109: FALSE | AF109: FALSE | AG109: FALSE | AH109: FALSE | AI109: FALSE | AJ109: FALSE | AK109: FALSE | AL109: 0.49
A110: 0.5 | B110: 2.813020035e-07 | C110: 1.530167854e-07 | D110: 3.863944463e-07 | E110: 6.406153817e-06 | F110: 0.01530003127 | G110: 0.002100230388 | H110: 0.001126983802 | I110: 0.373692306 | J110: 0.2413931684 | K110: 1.091916783 | L110: 0.6704539284 | M110: 0.1210105736 | N110: B56 | O110: C56 | P110: D56 | Q110: E56 | R110: F56 | S110: G56 | T110: H56 | U110: I56 | V110: J56 | W110: K56 | X110: L56 | Y110: M56 | Z110: FALSE | AA110: FALSE | AB110: FALSE | AC110: FALSE | AD110: FALSE | AE110: FALSE | AF110: FALSE | AG110: FALSE | AH110: FALSE | AI110: FALSE | AJ110: FALSE | AK110: FALSE | AL110: 0.5
A111: 0.51 | B111: 2.876691693e-07 | C111: 1.564642449e-07 | D111: 3.962858233e-07 | E111: 6.554976127e-06 | F111: 0.01564634177 | G111: 0.002147548459 | H111: 0.001155833651 | I111: 0.3823736074 | J111: 0.2447108316 | K111: 1.116766479 | L111: 0.6778809827 | M111: 0.1239732324 | N111: B57 | O111: C57 | P111: D57 | Q111: E57 | R111: F57 | S111: G57 | T111: H57 | U111: I57 | V111: J57 | W111: K57 | X111: L57 | Y111: M57 | Z111: FALSE | AA111: FALSE | AB111: FALSE | AC111: FALSE | AD111: FALSE | AE111: FALSE | AF111: FALSE | AG111: FALSE | AH111: FALSE | AI111: FALSE | AJ111: FALSE | AK111: FALSE | AL111: 0.51
A112: 0.52 | B112: 2.943992181e-07 | C112: 1.602126099e-07 | D112: 4.033526377e-07 | E112: 6.711992573e-06 | F112: 0.01601238949 | G112: 0.002198996606 | H112: 0.001176445193 | I112: 0.3915329001 | J112: 0.2481519289 | K112: 1.137851902 | L112: 0.6873739731 | M112: 0.1274237358 | N112: B58 | O112: C58 | P112: D58 | Q112: E58 | R112: F58 | S112: G58 | T112: H58 | U112: I58 | V112: J58 | W112: K58 | X112: L58 | Y112: M58 | Z112: FALSE | AA112: FALSE | AB112: FALSE | AC112: FALSE | AD112: FALSE | AE112: FALSE | AF112: FALSE | AG112: FALSE | AH112: FALSE | AI112: FALSE | AJ112: FALSE | AK112: FALSE | AL112: 0.52
A113: 0.53 | B113: 3.015565533e-07 | C113: 1.63952621e-07 | D113: 4.132736742e-07 | E113: 6.895943384e-06 | F113: 0.01640167734 | G113: 0.002250330092 | H113: 0.00120538155 | I113: 0.4022633641 | J113: 0.2517016679 | K113: 1.159051005 | L113: 0.6958274724 | M113: 0.1305287765 | N113: B59 | O113: C59 | P113: D59 | Q113: E59 | R113: F59 | S113: G59 | T113: H59 | U113: I59 | V113: J59 | W113: K59 | X113: L59 | Y113: M59 | Z113: FALSE | AA113: FALSE | AB113: FALSE | AC113: FALSE | AD113: FALSE | AE113: FALSE | AF113: FALSE | AG113: FALSE | AH113: FALSE | AI113: FALSE | AJ113: FALSE | AK113: FALSE | AL113: 0.53
A114: 0.54 | B114: 3.077669016e-07 | C114: 1.676256046e-07 | D114: 4.236886284e-07 | E114: 7.042815401e-06 | F114: 0.01673945852 | G114: 0.002300743592 | H114: 0.001235758499 | I114: 0.4108308984 | J114: 0.2551193327 | K114: 1.184138558 | L114: 0.7056840428 | M114: 0.1334464025 | N114: B60 | O114: C60 | P114: D60 | Q114: E60 | R114: F60 | S114: G60 | T114: H60 | U114: I60 | V114: J60 | W114: K60 | X114: L60 | Y114: M60 | Z114: FALSE | AA114: FALSE | AB114: FALSE | AC114: FALSE | AD114: FALSE | AE114: FALSE | AF114: FALSE | AG114: FALSE | AH114: FALSE | AI114: FALSE | AJ114: FALSE | AK114: FALSE | AL114: 0.54
A115: 0.55 | B115: 3.142539581e-07 | C115: 1.714472382e-07 | D115: 4.321120382e-07 | E115: 7.218115444e-06 | F115: 0.01709228987 | G115: 0.002353197387 | H115: 0.001260326778 | I115: 0.4210567342 | J115: 0.2590593482 | K115: 1.207967446 | L115: 0.7151196701 | M115: 0.1369947764 | N115: B61 | O115: C61 | P115: D61 | Q115: E61 | R115: F61 | S115: G61 | T115: H61 | U115: I61 | V115: J61 | W115: K61 | X115: L61 | Y115: M61 | Z115: FALSE | AA115: FALSE | AB115: FALSE | AC115: FALSE | AD115: FALSE | AE115: FALSE | AF115: FALSE | AG115: FALSE | AH115: FALSE | AI115: FALSE | AJ115: FALSE | AK115: FALSE | AL115: 0.55
A116: 0.56 | B116: 3.208091474e-07 | C116: 1.750283158e-07 | D116: 4.393936421e-07 | E116: 7.395058867e-06 | F116: 0.01744882698 | G116: 0.002402349432 | H116: 0.001281564789 | I116: 0.4313784339 | J116: 0.2626066019 | K116: 1.233973102 | L116: 0.7244560344 | M116: 0.1400890055 | N116: B62 | O116: C62 | P116: D62 | Q116: E62 | R116: F62 | S116: G62 | T116: H62 | U116: I62 | V116: J62 | W116: K62 | X116: L62 | Y116: M62 | Z116: FALSE | AA116: FALSE | AB116: FALSE | AC116: FALSE | AD116: FALSE | AE116: FALSE | AF116: FALSE | AG116: FALSE | AH116: FALSE | AI116: FALSE | AJ116: FALSE | AK116: FALSE | AL116: 0.56
A117: 0.57 | B117: 3.271379108e-07 | C117: 1.783757979e-07 | D117: 4.49482912e-07 | E117: 7.569887454e-06 | F117: 0.01779304876 | G117: 0.002448295265 | H117: 0.001310991827 | I117: 0.4415767681 | J117: 0.2669777165 | K117: 1.256291756 | L117: 0.7331142575 | M117: 0.1442383331 | N117: B63 | O117: C63 | P117: D63 | Q117: E63 | R117: F63 | S117: G63 | T117: H63 | U117: I63 | V117: J63 | W117: K63 | X117: L63 | Y117: M63 | Z117: FALSE | AA117: FALSE | AB117: FALSE | AC117: FALSE | AD117: FALSE | AE117: FALSE | AF117: FALSE | AG117: FALSE | AH117: FALSE | AI117: FALSE | AJ117: FALSE | AK117: FALSE | AL117: 0.57
A118: 0.58 | B118: 3.340259846e-07 | C118: 1.83134114e-07 | D118: 4.592467178e-07 | E118: 7.746454713e-06 | F118: 0.01816769147 | G118: 0.002513605486 | H118: 0.001339469594 | I118: 0.4518765249 | J118: 0.2712767597 | K118: 1.282253227 | L118: 0.7422189395 | M118: 0.1477182324 | N118: B64 | O118: C64 | P118: D64 | Q118: E64 | R118: F64 | S118: G64 | T118: H64 | U118: I64 | V118: J64 | W118: K64 | X118: L64 | Y118: M64 | Z118: FALSE | AA118: FALSE | AB118: FALSE | AC118: FALSE | AD118: FALSE | AE118: FALSE | AF118: FALSE | AG118: FALSE | AH118: FALSE | AI118: FALSE | AJ118: FALSE | AK118: FALSE | AL118: 0.58
A119: 0.59 | B119: 3.417857629e-07 | C119: 1.876947366e-07 | D119: 4.66596356e-07 | E119: 7.926705381e-06 | F119: 0.01858974624 | G119: 0.002576202268 | H119: 0.001360906038 | I119: 0.4623911472 | J119: 0.2758376633 | K119: 1.310108803 | L119: 0.7529034237 | M119: 0.1519301767 | N119: B65 | O119: C65 | P119: D65 | Q119: E65 | R119: F65 | S119: G65 | T119: H65 | U119: I65 | V119: J65 | W119: K65 | X119: L65 | Y119: M65 | Z119: FALSE | AA119: FALSE | AB119: FALSE | AC119: FALSE | AD119: FALSE | AE119: FALSE | AF119: FALSE | AG119: FALSE | AH119: FALSE | AI119: FALSE | AJ119: FALSE | AK119: FALSE | AL119: 0.59
A120: 0.6 | B120: 3.498220425e-07 | C120: 1.92566068e-07 | D120: 4.765629439e-07 | E120: 8.132219645e-06 | F120: 0.01902683992 | G120: 0.002643063678 | H120: 0.001389975253 | I120: 0.4743794793 | J120: 0.2795756612 | K120: 1.332059724 | L120: 0.7649423627 | M120: 0.156185123 | N120: B66 | O120: C66 | P120: D66 | Q120: E66 | R120: F66 | S120: G66 | T120: H66 | U120: I66 | V120: J66 | W120: K66 | X120: L66 | Y120: M66 | Z120: FALSE | AA120: FALSE | AB120: FALSE | AC120: FALSE | AD120: FALSE | AE120: FALSE | AF120: FALSE | AG120: FALSE | AH120: FALSE | AI120: FALSE | AJ120: FALSE | AK120: FALSE | AL120: 0.6
A121: 0.61 | B121: 3.589656552e-07 | C121: 1.971621215e-07 | D121: 4.861278391e-07 | E121: 8.339772807e-06 | F121: 0.01952416151 | G121: 0.002706146765 | H121: 0.001417872864 | I121: 0.4864867471 | J121: 0.2829697348 | K121: 1.358317705 | L121: 0.774722709 | M121: 0.1601897664 | N121: B67 | O121: C67 | P121: D67 | Q121: E67 | R121: F67 | S121: G67 | T121: H67 | U121: I67 | V121: J67 | W121: K67 | X121: L67 | Y121: M67 | Z121: FALSE | AA121: FALSE | AB121: FALSE | AC121: FALSE | AD121: FALSE | AE121: FALSE | AF121: FALSE | AG121: FALSE | AH121: FALSE | AI121: FALSE | AJ121: FALSE | AK121: FALSE | AL121: 0.61
A122: 0.62 | B122: 3.675266473e-07 | C122: 2.016835897e-07 | D122: 4.986986832e-07 | E122: 8.521849152e-06 | F122: 0.01998979434 | G122: 0.002768206133 | H122: 0.001454537826 | I122: 0.4971078672 | J122: 0.2867582886 | K122: 1.384186549 | L122: 0.7860206246 | M122: 0.1647003956 | N122: B68 | O122: C68 | P122: D68 | Q122: E68 | R122: F68 | S122: G68 | T122: H68 | U122: I68 | V122: J68 | W122: K68 | X122: L68 | Y122: M68 | Z122: FALSE | AA122: FALSE | AB122: FALSE | AC122: FALSE | AD122: FALSE | AE122: FALSE | AF122: FALSE | AG122: FALSE | AH122: FALSE | AI122: FALSE | AJ122: FALSE | AK122: FALSE | AL122: 0.62
A123: 0.63 | B123: 3.756456277e-07 | C123: 2.077190232e-07 | D123: 5.09163824e-07 | E123: 8.719998352e-06 | F123: 0.02043138612 | G123: 0.002851045416 | H123: 0.001485061153 | I123: 0.5086665705 | J123: 0.2912524017 | K123: 1.413021269 | L123: 0.795741658 | M123: 0.1697490432 | N123: B69 | O123: C69 | P123: D69 | Q123: E69 | R123: F69 | S123: G69 | T123: H69 | U123: I69 | V123: J69 | W123: K69 | X123: L69 | Y123: M69 | Z123: FALSE | AA123: FALSE | AB123: FALSE | AC123: FALSE | AD123: FALSE | AE123: FALSE | AF123: FALSE | AG123: FALSE | AH123: FALSE | AI123: FALSE | AJ123: FALSE | AK123: FALSE | AL123: 0.63
A124: 0.64 | B124: 3.834370765e-07 | C124: 2.123397745e-07 | D124: 5.227978823e-07 | E124: 8.923708757e-06 | F124: 0.02085516345 | G124: 0.002914467494 | H124: 0.001524827157 | I124: 0.5205496775 | J124: 0.2956250531 | K124: 1.444540236 | L124: 0.807082663 | M124: 0.1750902553 | N124: B70 | O124: C70 | P124: D70 | Q124: E70 | R124: F70 | S124: G70 | T124: H70 | U124: I70 | V124: J70 | W124: K70 | X124: L70 | Y124: M70 | Z124: FALSE | AA124: FALSE | AB124: FALSE | AC124: FALSE | AD124: FALSE | AE124: FALSE | AF124: FALSE | AG124: FALSE | AH124: FALSE | AI124: FALSE | AJ124: FALSE | AK124: FALSE | AL124: 0.64
A125: 0.65 | B125: 3.916991034e-07 | C125: 2.176066849e-07 | D125: 5.356941961e-07 | E125: =INDIRECT("'" & $B$32 & "'!"&Q125) -> 9.166272606e-06 | F125: =INDIRECT("'" & $B$32 & "'!"&R125) -> 0.02130453554 | G125: =INDIRECT("'" & $B$32 & "'!"&S125) -> 0.002986758421 | H125: =INDIRECT("'" & $B$32 & "'!"&T125) -> 0.001562441405 | I125: 0.5346992354 | J125: 0.3009469953 | K125: 1.474780704 | L125: 0.8181952549 | M125: 0.1800944991 | N125: B71 | O125: C71 | P125: D71 | Q125: E71 | R125: F71 | S125: G71 | T125: H71 | U125: I71 | V125: J71 | W125: K71 | X125: L71 | Y125: M71 | Z125: =AND(B125<CRT,B126>=CRT) -> FALSE | AA125: FALSE | AB125: FALSE | AC125: FALSE | AD125: =AND(F125<NHT,F126>=NHT) -> FALSE | AE125: FALSE | AF125: FALSE | AG125: FALSE | AH125: =AND(J125<SCT,J126>=SCT) -> FALSE | AI125: FALSE | AJ125: FALSE | AK125: FALSE | AL125: 0.65
A126: 0.66 | B126: 4.001350585e-07 | C126: 2.226765656e-07 | D126: 5.462482198e-07 | E126: 9.398123117e-06 | F126: 0.0217633676 | G126: 0.003056345018 | H126: 0.001593223974 | I126: 0.5482238485 | J126: 0.3051488298 | K126: 1.504129842 | L126: 0.8292272443 | M126: 0.1838475956 | N126: B72 | O126: C72 | P126: D72 | Q126: E72 | R126: F72 | S126: G72 | T126: H72 | U126: I72 | V126: J72 | W126: K72 | X126: L72 | Y126: M72 | Z126: FALSE | AA126: FALSE | AB126: FALSE | AC126: TRUE | AD126: FALSE | AE126: FALSE | AF126: FALSE | AG126: FALSE | AH126: FALSE | AI126: FALSE | AJ126: FALSE | AK126: FALSE | AL126: 0.66
A127: 0.67 | B127: 4.106902127e-07 | C127: 2.279256566e-07 | D127: 5.610537114e-07 | E127: 9.648794094e-06 | F127: 0.02233746301 | G127: 0.003128391366 | H127: 0.001636406658 | I127: 0.5628463222 | J127: 0.3099696703 | K127: 1.536122987 | L127: 0.8418516087 | M127: 0.1885806341 | N127: B73 | O127: C73 | P127: D73 | Q127: E73 | R127: F73 | S127: G73 | T127: H73 | U127: I73 | V127: J73 | W127: K73 | X127: L73 | Y127: M73 | Z127: FALSE | AA127: FALSE | AB127: FALSE | AC127: FALSE | AD127: FALSE | AE127: FALSE | AF127: FALSE | AG127: FALSE | AH127: FALSE | AI127: FALSE | AJ127: FALSE | AK127: FALSE | AL127: 0.67
A128: 0.68 | B128: 4.218544497e-07 | C128: 2.335823225e-07 | D128: 5.726942743e-07 | E128: 9.933846737e-06 | F128: 0.02294468646 | G128: 0.003206031877 | H128: 0.0016703583 | I128: 0.579474393 | J128: 0.3148451723 | K128: 1.567657193 | L128: 0.8541656328 | M128: 0.1941849655 | N128: B74 | O128: C74 | P128: D74 | Q128: E74 | R128: F74 | S128: G74 | T128: H74 | U128: I74 | V128: J74 | W128: K74 | X128: L74 | Y128: M74 | Z128: FALSE | AA128: FALSE | AB128: FALSE | AC128: FALSE | AD128: FALSE | AE128: FALSE | AF128: FALSE | AG128: FALSE | AH128: FALSE | AI128: FALSE | AJ128: FALSE | AK128: FALSE | AL128: 0.68
A129: 0.69 | B129: 4.317984775e-07 | C129: 2.386735594e-07 | D129: 5.915065831e-07 | E129: 1.020329494e-05 | F129: 0.02348554268 | G129: 0.003275911599 | H129: 0.001725227534 | I129: 0.5951922047 | J129: 0.3197210678 | K129: 1.600127185 | L129: 0.868343655 | M129: 0.2003033625 | N129: B75 | O129: C75 | P129: D75 | Q129: E75 | R129: F75 | S129: G75 | T129: H75 | U129: I75 | V129: J75 | W129: K75 | X129: L75 | Y129: M75 | Z129: FALSE | AA129: FALSE | AB129: FALSE | AC129: FALSE | AD129: FALSE | AE129: FALSE | AF129: FALSE | AG129: FALSE | AH129: FALSE | AI129: FALSE | AJ129: FALSE | AK129: FALSE | AL129: 0.69
A130: 0.7 | B130: 4.418201122e-07 | C130: 2.448325087e-07 | D130: 6.033842727e-07 | E130: 1.044863286e-05 | F130: 0.02403061993 | G130: 0.003360446197 | H130: 0.001759870796 | I130: 0.6095035837 | J130: 0.3242491193 | K130: 1.631603777 | L130: 0.8822589513 | M130: 0.2062154395 | N130: B76 | O130: C76 | P130: D76 | Q130: E76 | R130: F76 | S130: G76 | T130: H76 | U130: I76 | V130: J76 | W130: K76 | X130: L76 | Y130: M76 | Z130: FALSE | AA130: FALSE | AB130: FALSE | AC130: FALSE | AD130: FALSE | AE130: FALSE | AF130: FALSE | AG130: FALSE | AH130: FALSE | AI130: FALSE | AJ130: FALSE | AK130: FALSE | AL130: 0.7
A131: 0.71 | B131: 4.542511326e-07 | C131: 2.512967805e-07 | D131: 6.180599932e-07 | E131: 1.074765017e-05 | F131: 0.02470674381 | G131: 0.003449171497 | H131: 0.00180267498 | I131: 0.6269462601 | J131: 0.3293953863 | K131: 1.660578174 | L131: 0.8980649965 | M131: 0.2126108313 | N131: B77 | O131: C77 | P131: D77 | Q131: E77 | R131: F77 | S131: G77 | T131: H77 | U131: I77 | V131: J77 | W131: K77 | X131: L77 | Y131: M77 | Z131: FALSE | AA131: FALSE | AB131: FALSE | AC131: FALSE | AD131: FALSE | AE131: FALSE | AF131: FALSE | AG131: FALSE | AH131: FALSE | AI131: FALSE | AJ131: FALSE | AK131: FALSE | AL131: 0.71
A132: 0.72 | B132: 4.667939687e-07 | C132: 2.587931625e-07 | D132: 6.34505564e-07 | E132: 1.113341814e-05 | F132: 0.02538894934 | G132: 0.003552063015 | H132: 0.001850641228 | I132: 0.6494493914 | J132: 0.3346789198 | K132: 1.701681735 | L132: 0.9119006539 | M132: 0.2198127893 | N132: B78 | O132: C78 | P132: D78 | Q132: E78 | R132: F78 | S132: G78 | T132: H78 | U132: I78 | V132: J78 | W132: K78 | X132: L78 | Y132: M78 | Z132: FALSE | AA132: FALSE | AB132: FALSE | AC132: FALSE | AD132: FALSE | AE132: FALSE | AF132: FALSE | AG132: FALSE | AH132: FALSE | AI132: FALSE | AJ132: FALSE | AK132: FALSE | AL132: 0.72
A133: 0.73 | B133: 4.781322175e-07 | C133: 2.641542651e-07 | D133: 6.516759912e-07 | E133: 1.147404424e-05 | F133: 0.02600563731 | G133: 0.003625646776 | H133: 0.001900721641 | I133: 0.6693192472 | J133: 0.3398093151 | K133: 1.740861727 | L133: 0.926736138 | M133: 0.2262758461 | N133: B79 | O133: C79 | P133: D79 | Q133: E79 | R133: F79 | S133: G79 | T133: H79 | U133: I79 | V133: J79 | W133: K79 | X133: L79 | Y133: M79 | Z133: FALSE | AA133: FALSE | AB133: FALSE | AC133: FALSE | AD133: FALSE | AE133: FALSE | AF133: FALSE | AG133: FALSE | AH133: FALSE | AI133: FALSE | AJ133: FALSE | AK133: FALSE | AL133: 0.73
A134: 0.74 | B134: 4.919038635e-07 | C134: 2.710728209e-07 | D134: 6.70591187e-07 | E134: 1.18226663e-05 | F134: 0.02675467789 | G134: 0.003720607345 | H134: 0.001955890962 | I134: 0.689655534 | J134: 0.3452227511 | K134: 1.781510476 | L134: 0.9409088553 | M134: 0.235224086 | N134: B80 | O134: C80 | P134: D80 | Q134: E80 | R134: F80 | S134: G80 | T134: H80 | U134: I80 | V134: J80 | W134: K80 | X134: L80 | Y134: M80 | Z134: FALSE | AA134: FALSE | AB134: FALSE | AC134: FALSE | AD134: FALSE | AE134: FALSE | AF134: FALSE | AG134: FALSE | AH134: FALSE | AI134: FALSE | AJ134: FALSE | AK134: FALSE | AL134: 0.74
A135: 0.75 | B135: 5.035290307e-07 | C135: 2.788219014e-07 | D135: 6.902321818e-07 | E135: 1.217668749e-05 | F135: 0.02738697137 | G135: 0.003826967274 | H135: 0.002013177197 | I135: 0.7103067702 | J135: 0.3520309093 | K135: 1.820704377 | L135: 0.9588796086 | M135: 0.2443143734 | N135: B81 | O135: C81 | P135: D81 | Q135: E81 | R135: F81 | S135: G81 | T135: H81 | U135: I81 | V135: J81 | W135: K81 | X135: L81 | Y135: M81 | Z135: FALSE | AA135: FALSE | AB135: FALSE | AC135: FALSE | AD135: FALSE | AE135: FALSE | AF135: FALSE | AG135: FALSE | AH135: FALSE | AI135: FALSE | AJ135: FALSE | AK135: FALSE | AL135: 0.75
A136: 0.76 | B136: 5.188538205e-07 | C136: 2.878951022e-07 | D136: 7.079373662e-07 | E136: 1.254857698e-05 | F136: 0.02822048752 | G136: 0.003951501402 | H136: 0.002064817318 | I136: 0.7320003236 | J136: 0.3591617982 | K136: 1.864754947 | L136: 0.9720482709 | M136: 0.2514333433 | N136: B82 | O136: C82 | P136: D82 | Q136: E82 | R136: F82 | S136: G82 | T136: H82 | U136: I82 | V136: J82 | W136: K82 | X136: L82 | Y136: M82 | Z136: FALSE | AA136: FALSE | AB136: FALSE | AC136: FALSE | AD136: FALSE | AE136: FALSE | AF136: FALSE | AG136: FALSE | AH136: FALSE | AI136: FALSE | AJ136: FALSE | AK136: FALSE | AL136: 0.76
A137: 0.77 | B137: 5.343441638e-07 | C137: 2.968512713e-07 | D137: 7.281342262e-07 | E137: 1.293032951e-05 | F137: 0.02906300813 | G137: 0.004074429214 | H137: 0.002123724827 | I137: 0.7542692216 | J137: 0.3661064391 | K137: 1.921602839 | L137: 0.9880593007 | M137: 0.2601841328 | N137: B83 | O137: C83 | P137: D83 | Q137: E83 | R137: F83 | S137: G83 | T137: H83 | U137: I83 | V137: J83 | W137: K83 | X137: L83 | Y137: M83 | Z137: FALSE | AA137: FALSE | AB137: FALSE | AC137: FALSE | AD137: FALSE | AE137: FALSE | AF137: FALSE | AG137: FALSE | AH137: FALSE | AI137: FALSE | AJ137: FALSE | AK137: FALSE | AL137: 0.77
A138: 0.78 | B138: 5.50916199e-07 | C138: 3.058186661e-07 | D138: 7.468923941e-07 | E138: 1.33082805e-05 | F138: 0.02996436203 | G138: 0.004197511104 | H138: 0.00217843615 | I138: 0.7763163625 | J138: 0.3719759957 | K138: 1.967156539 | L138: 1.004921574 | M138: 0.2687036847 | N138: B84 | O138: C84 | P138: D84 | Q138: E84 | R138: F84 | S138: G84 | T138: H84 | U138: I84 | V138: J84 | W138: K84 | X138: L84 | Y138: M84 | Z138: FALSE | AA138: FALSE | AB138: FALSE | AC138: FALSE | AD138: FALSE | AE138: FALSE | AF138: FALSE | AG138: FALSE | AH138: FALSE | AI138: FALSE | AJ138: FALSE | AK138: FALSE | AL138: 0.78
A139: 0.79 | B139: 5.655569205e-07 | C139: 3.13839334e-07 | D139: 7.680949032e-07 | E139: 1.378044003e-05 | F139: 0.03076067167 | G139: 0.004307598703 | H139: 0.002240276801 | I139: 0.803859002 | J139: 0.3794460726 | K139: 2.021074175 | L139: 1.021325229 | M139: 0.2782656392 | N139: B85 | O139: C85 | P139: D85 | Q139: E85 | R139: F85 | S139: G85 | T139: H85 | U139: I85 | V139: J85 | W139: K85 | X139: L85 | Y139: M85 | Z139: FALSE | AA139: FALSE | AB139: FALSE | AC139: FALSE | AD139: FALSE | AE139: FALSE | AF139: FALSE | AG139: FALSE | AH139: FALSE | AI139: FALSE | AJ139: FALSE | AK139: FALSE | AL139: 0.79
A140: 0.8 | B140: 5.837011312e-07 | C140: 3.247482352e-07 | D140: 7.901460747e-07 | E140: 1.425833871e-05 | F140: 0.03174753627 | G140: 0.004457328718 | H140: 0.002304592718 | I140: 0.8317364246 | J140: 0.3874986665 | K140: 2.083342557 | L140: 1.039495138 | M140: 0.2878782907 | N140: B86 | O140: C86 | P140: D86 | Q140: E86 | R140: F86 | S140: G86 | T140: H86 | U140: I86 | V140: J86 | W140: K86 | X140: L86 | Y140: M86 | Z140: FALSE | AA140: FALSE | AB140: FALSE | AC140: FALSE | AD140: FALSE | AE140: FALSE | AF140: FALSE | AG140: FALSE | AH140: FALSE | AI140: FALSE | AJ140: FALSE | AK140: FALSE | AL140: 0.8
A141: 0.81 | B141: 6.047886347e-07 | C141: 3.363040447e-07 | D141: 8.133166624e-07 | E141: 1.489079703e-05 | F141: 0.03289448673 | G141: 0.004615937868 | H141: 0.002372173599 | I141: 0.8686298269 | J141: 0.3943889987 | K141: 2.141399844 | L141: 1.06240284 | M141: 0.2976748321 | N141: B87 | O141: C87 | P141: D87 | Q141: E87 | R141: F87 | S141: G87 | T141: H87 | U141: I87 | V141: J87 | W141: K87 | X141: L87 | Y141: M87 | Z141: FALSE | AA141: FALSE | AB141: FALSE | AC141: FALSE | AD141: FALSE | AE141: FALSE | AF141: FALSE | AG141: FALSE | AH141: FALSE | AI141: FALSE | AJ141: FALSE | AK141: FALSE | AL141: 0.81
A142: 0.82 | B142: 6.235816776e-07 | C142: 3.454685709e-07 | D142: 8.429823823e-07 | E142: 1.535698903e-05 | F142: 0.03391664136 | G142: 0.004741725483 | H142: 0.002458698615 | I142: 0.8958243603 | J142: 0.4043449389 | K142: 2.201623183 | L142: 1.083293546 | M142: 0.3101439367 | N142: B88 | O142: C88 | P142: D88 | Q142: E88 | R142: F88 | S142: G88 | T142: H88 | U142: I88 | V142: J88 | W142: K88 | X142: L88 | Y142: M88 | Z142: FALSE | AA142: FALSE | AB142: FALSE | AC142: FALSE | AD142: FALSE | AE142: FALSE | AF142: FALSE | AG142: FALSE | AH142: FALSE | AI142: FALSE | AJ142: FALSE | AK142: FALSE | AL142: 0.82
A143: 0.83 | B143: 6.423246705e-07 | C143: 3.573332237e-07 | D143: 8.711647956e-07 | E143: 1.593926736e-05 | F143: 0.03493607376 | G143: 0.004904573659 | H143: 0.00254089732 | I143: 0.9297905961 | J143: 0.4130277839 | K143: 2.279928845 | L143: 1.105623347 | M143: 0.3251257102 | N143: B89 | O143: C89 | P143: D89 | Q143: E89 | R143: F89 | S143: G89 | T143: H89 | U143: I89 | V143: J89 | W143: K89 | X143: L89 | Y143: M89 | Z143: FALSE | AA143: FALSE | AB143: FALSE | AC143: FALSE | AD143: FALSE | AE143: FALSE | AF143: FALSE | AG143: TRUE | AH143: FALSE | AI143: FALSE | AJ143: FALSE | AK143: FALSE | AL143: 0.83
A144: 0.84 | B144: 6.663599711e-07 | C144: 3.70923132e-07 | D144: 9.013243622e-07 | E144: 1.663593448e-05 | F144: 0.03624335507 | G144: 0.005091101812 | H144: 0.002628862723 | I144: 0.9704295114 | J144: 0.4239537781 | K144: 2.352544126 | L144: 1.129038448 | M144: 0.3405311744 | N144: B90 | O144: C90 | P144: D90 | Q144: E90 | R144: F90 | S144: G90 | T144: H90 | U144: I90 | V144: J90 | W144: K90 | X144: L90 | Y144: M90 | Z144: FALSE | AA144: FALSE | AB144: FALSE | AC144: FALSE | AD144: FALSE | AE144: FALSE | AF144: FALSE | AG144: FALSE | AH144: FALSE | AI144: FALSE | AJ144: FALSE | AK144: FALSE | AL144: 0.84
A145: 0.85 | B145: 6.927219786e-07 | C145: 3.847854732e-07 | D145: 9.304606597e-07 | E145: 1.733058687e-05 | F145: 0.03767718609 | G145: 0.005281369239 | H145: 0.002713843591 | I145: 1.010950901 | J145: 0.4344107974 | K145: 2.430601224 | L145: 1.152790778 | M145: 0.3584341318 | N145: B91 | O145: C91 | P145: D91 | Q145: E91 | R145: F91 | S145: G91 | T145: H91 | U145: I91 | V145: J91 | W145: K91 | X145: L91 | Y145: M91 | Z145: FALSE | AA145: FALSE | AB145: FALSE | AC145: FALSE | AD145: FALSE | AE145: FALSE | AF145: FALSE | AG145: FALSE | AH145: FALSE | AI145: FALSE | AJ145: FALSE | AK145: FALSE | AL145: 0.85
A146: 0.86 | B146: 7.158745529e-07 | C146: 4.017741854e-07 | D146: 9.638073051e-07 | E146: 1.805972227e-05 | F146: 0.03893645587 | G146: 0.005514547643 | H146: 0.00281110464 | I146: 1.053483799 | J146: 0.445837458 | K146: 2.517553681 | L146: 1.181250118 | M146: 0.3765508667 | N146: B92 | O146: C92 | P146: D92 | Q146: E92 | R146: F92 | S146: G92 | T146: H92 | U146: I92 | V146: J92 | W146: K92 | X146: L92 | Y146: M92 | Z146: FALSE | AA146: FALSE | AB146: FALSE | AC146: FALSE | AD146: FALSE | AE146: FALSE | AF146: FALSE | AG146: FALSE | AH146: TRUE | AI146: FALSE | AJ146: FALSE | AK146: FALSE | AL146: 0.86
A147: 0.87 | B147: 7.463161689e-07 | C147: 4.185969275e-07 | D147: 9.976135991e-07 | E147: 1.876503062e-05 | F147: 0.04059217702 | G147: 0.005745448024 | H147: 0.002909706331 | I147: 1.094626786 | J147: 0.4587797176 | K147: 2.610860648 | L147: 1.215761272 | M147: 0.3942718213 | N147: B93 | O147: C93 | P147: D93 | Q147: E93 | R147: F93 | S147: G93 | T147: H93 | U147: I93 | V147: J93 | W147: K93 | X147: L93 | Y147: M93 | Z147: FALSE | AA147: FALSE | AB147: FALSE | AC147: FALSE | AD147: FALSE | AE147: FALSE | AF147: FALSE | AG147: FALSE | AH147: FALSE | AI147: FALSE | AJ147: FALSE | AK147: FALSE | AL147: 0.87
A148: 0.88 | B148: 7.735702679e-07 | C148: 4.37457817e-07 | D148: 1.044217481e-06 | E148: 1.95549496e-05 | F148: 0.04207452895 | G148: 0.006004322979 | H148: 0.00304563432 | I148: 1.140705393 | J148: 0.4733463558 | K148: 2.71625523 | L148: 1.244511442 | M148: 0.4158837577 | N148: B94 | O148: C94 | P148: D94 | Q148: E94 | R148: F94 | S148: G94 | T148: H94 | U148: I94 | V148: J94 | W148: K94 | X148: L94 | Y148: M94 | Z148: FALSE | AA148: FALSE | AB148: FALSE | AC148: FALSE | AD148: FALSE | AE148: FALSE | AF148: FALSE | AG148: FALSE | AH148: FALSE | AI148: FALSE | AJ148: FALSE | AK148: FALSE | AL148: 0.88
A149: 0.89 | B149: 8.105630982e-07 | C149: 4.574353194e-07 | D149: 1.091381354e-06 | E149: 2.053021305e-05 | F149: 0.044086571 | G149: 0.006278523992 | H149: 0.003183195615 | I149: 1.197595761 | J149: 0.4860960955 | K149: 2.801799598 | L149: 1.276184748 | M149: 0.4394698771 | N149: B95 | O149: C95 | P149: D95 | Q149: E95 | R149: F95 | S149: G95 | T149: H95 | U149: I95 | V149: J95 | W149: K95 | X149: L95 | Y149: M95 | Z149: FALSE | AA149: FALSE | AB149: FALSE | AC149: FALSE | AD149: FALSE | AE149: FALSE | AF149: FALSE | AG149: FALSE | AH149: FALSE | AI149: FALSE | AJ149: FALSE | AK149: TRUE | AL149: 0.89
A150: 0.9 | B150: 8.527038626e-07 | C150: 4.799832595e-07 | D150: 1.138902018e-06 | E150: 2.15792181e-05 | F150: 0.04637860946 | G150: 0.006588005522 | H150: 0.003321797554 | I150: 1.258787723 | J150: 0.5037180749 | K150: 2.931784355 | L150: 1.314523405 | M150: 0.465121883 | N150: B96 | O150: C96 | P150: D96 | Q150: E96 | R150: F96 | S150: G96 | T150: H96 | U150: I96 | V150: J96 | W150: K96 | X150: L96 | Y150: M96 | Z150: FALSE | AA150: FALSE | AB150: FALSE | AC150: FALSE | AD150: FALSE | AE150: FALSE | AF150: FALSE | AG150: FALSE | AH150: FALSE | AI150: FALSE | AJ150: FALSE | AK150: FALSE | AL150: 0.9
A151: 0.91 | B151: 8.995220996e-07 | C151: 5.068791382e-07 | D151: 1.202754256e-06 | E151: 2.293778681e-05 | F151: 0.04892505592 | G151: 0.006957164642 | H151: 0.003508033246 | I151: 1.338037564 | J151: 0.5212121791 | K151: 3.102163707 | L151: 1.351897793 | M151: 0.5013483206 | N151: B97 | O151: C97 | P151: D97 | Q151: E97 | R151: F97 | S151: G97 | T151: H97 | U151: I97 | V151: J97 | W151: K97 | X151: L97 | Y151: M97 | Z151: FALSE | AA151: FALSE | AB151: FALSE | AC151: FALSE | AD151: FALSE | AE151: FALSE | AF151: FALSE | AG151: FALSE | AH151: FALSE | AI151: FALSE | AJ151: FALSE | AK151: FALSE | AL151: 0.91
A152: 0.92 | B152: 9.450054934e-07 | C152: 5.363211761e-07 | D152: 1.263700423e-06 | E152: 2.44287834e-05 | F152: 0.05139890019 | G152: 0.007361271045 | H152: 0.003685792899 | I152: 1.425012365 | J152: 0.5433531498 | K152: 3.268453119 | L152: 1.406220753 | M152: 0.5416362602 | N152: B98 | O152: C98 | P152: D98 | Q152: E98 | R152: F98 | S152: G98 | T152: H98 | U152: I98 | V152: J98 | W152: K98 | X152: L98 | Y152: M98 | Z152: FALSE | AA152: FALSE | AB152: FALSE | AC152: FALSE | AD152: FALSE | AE152: FALSE | AF152: FALSE | AG152: FALSE | AH152: FALSE | AI152: FALSE | AJ152: FALSE | AK152: FALSE | AL152: 0.92
A153: 0.93 | B153: 1.004042595e-06 | C153: 5.679642121e-07 | D153: 1.346641253e-06 | E153: 2.629000829e-05 | F153: 0.05460993134 | G153: 0.007795587225 | H153: 0.003927703653 | I153: 1.533583817 | J153: 0.5667953413 | K153: 3.446279224 | L153: 1.468417507 | M153: 0.580746355 | N153: B99 | O153: C99 | P153: D99 | Q153: E99 | R153: F99 | S153: G99 | T153: H99 | U153: I99 | V153: J99 | W153: K99 | X153: L99 | Y153: M99 | Z153: FALSE | AA153: FALSE | AB153: FALSE | AC153: FALSE | AD153: FALSE | AE153: FALSE | AF153: FALSE | AG153: FALSE | AH153: FALSE | AI153: FALSE | AJ153: FALSE | AK153: FALSE | AL153: 0.93
A154: 0.94 | B154: 1.069330488e-06 | C154: 6.13890417e-07 | D154: 1.432557833e-06 | E154: =INDIRECT("'" & $B$32 & "'!"&Q154) -> 2.835008805e-05 | F154: 0.05816094338 | G154: 0.0084259469 | H154: 0.00417829368 | I154: 1.653755136 | J154: 0.5949006378 | K154: 3.633955344 | L154: 1.526280291 | M154: 0.6276388494 | N154: B100 | O154: C100 | P154: D100 | Q154: E100 | R154: F100 | S154: G100 | T154: H100 | U154: I100 | V154: J100 | W154: K100 | X154: L100 | Y154: M100 | Z154: FALSE | AA154: FALSE | AB154: FALSE | AC154: FALSE | AD154: FALSE | AE154: FALSE | AF154: FALSE | AG154: FALSE | AH154: FALSE | AI154: FALSE | AJ154: FALSE | AK154: FALSE | AL154: 0.94
A155: 0.95 | B155: =INDIRECT("'" & $B$32 & "'!"&N155) -> 1.153223672e-06 | C155: 6.727654559e-07 | D155: 1.540515499e-06 | E155: 3.15428801e-05 | F155: 0.06272389825 | G155: 0.009234035669 | H155: 0.004493170207 | I155: 1.840001339 | J155: 0.629581196 | K155: 3.886261676 | L155: 1.610892885 | M155: 0.6821382475 | N155: B101 | O155: C101 | P155: D101 | Q155: E101 | R155: F101 | S155: G101 | T155: H101 | U155: I101 | V155: J101 | W155: K101 | X155: L101 | Y155: M101 | Z155: FALSE | AA155: FALSE | AB155: FALSE | AC155: FALSE | AD155: FALSE | AE155: FALSE | AF155: FALSE | AG155: FALSE | AH155: FALSE | AI155: FALSE | AJ155: FALSE | AK155: FALSE | AL155: 0.95
A156: 0.96 | B156: 1.258335622e-06 | C156: 7.308360442e-07 | D156: 1.671350417e-06 | E156: 3.537159742e-05 | F156: 0.06844094292 | G156: 0.01003108296 | H156: 0.004874772049 | I156: 2.063343183 | J156: 0.6712850109 | K156: 4.167467959 | L156: 1.715767624 | M156: 0.7713252067 | N156: B102 | O156: C102 | P156: D102 | Q156: E102 | R156: F102 | S156: G102 | T156: H102 | U156: I102 | V156: J102 | W156: K102 | X156: L102 | Y156: M102 | Z156: FALSE | AA156: FALSE | AB156: FALSE | AC156: FALSE | AD156: FALSE | AE156: FALSE | AF156: FALSE | AG156: FALSE | AH156: FALSE | AI156: FALSE | AJ156: FALSE | AK156: FALSE | AL156: 0.96
A157: 0.97 | B157: 1.429371205e-06 | C157: 8.007332403e-07 | D157: 1.861073587e-06 | E157: 4.010468654e-05 | F157: 0.07774357759 | G157: 0.01099045624 | H157: 0.005428131295 | I157: 2.339440048 | J157: 0.7235162087 | K157: 4.664246939 | L157: 1.86103282 | M157: 0.8777955222 | N157: B103 | O157: C103 | P157: D103 | Q157: E103 | R157: F103 | S157: G103 | T157: H103 | U157: I103 | V157: J103 | W157: K103 | X157: L103 | Y157: M103 | Z157: FALSE | AA157: FALSE | AB157: FALSE | AC157: FALSE | AD157: FALSE | AE157: FALSE | AF157: FALSE | AG157: FALSE | AH157: FALSE | AI157: FALSE | AJ157: FALSE | AK157: FALSE | AL157: 0.97
A158: 0.98 | B158: 1.634533825e-06 | C158: 9.269344589e-07 | D158: 2.107472144e-06 | E158: 4.73196412e-05 | F158: 0.08890238364 | G158: 0.01272262983 | H158: 0.006146793754 | I158: 2.760312403 | J158: 0.7956420511 | K158: 5.291681043 | L158: 2.043418532 | M158: 1.074203905 | N158: B104 | O158: C104 | P158: D104 | Q158: E104 | R158: F104 | S158: G104 | T158: H104 | U158: I104 | V158: J104 | W158: K104 | X158: L104 | Y158: M104 | Z158: FALSE | AA158: FALSE | AB158: FALSE | AC158: FALSE | AD158: FALSE | AE158: FALSE | AF158: FALSE | AG158: FALSE | AH158: FALSE | AI158: FALSE | AJ158: FALSE | AK158: FALSE | AL158: 0.98
A159: 0.99 | B159: 2.153417404e-06 | C159: 1.181719496e-06 | D159: 2.715780238e-06 | E159: 6.118038788e-05 | F159: 0.1171244897 | G159: 0.01621967936 | H159: 0.007921025694 | I159: 3.56885596 | J159: 0.9482261811 | K159: 6.774776808 | L159: 2.378699173 | M159: 1.452755972 | N159: B105 | O159: C105 | P159: D105 | Q159: E105 | R159: F105 | S159: G105 | T159: H105 | U159: I105 | V159: J105 | W159: K105 | X159: L105 | Y159: M105 | Z159: TRUE | AA159: FALSE | AB159: TRUE | AC159: FALSE | AD159: FALSE | AE159: FALSE | AF159: FALSE | AG159: FALSE | AH159: FALSE | AI159: FALSE | AJ159: FALSE | AK159: FALSE | AL159: 0.99
A160: 1 | B160: 1.031031591e-05 | C160: 7.364045252e-06 | D160: 1.583421938e-05 | E160: 0.0003713707965 | F160: 0.5607786431 | G160: 0.1010751309 | H160: 0.04618313986 | I160: 21.66329646 | J160: 2.524284562 | K160: 42.79134163 | L160: 6.838083535 | M160: 23.01616143 | N160: B106 | O160: C106 | P160: D106 | Q160: E106 | R160: F106 | S160: G106 | T160: H106 | U160: I106 | V160: J106 | W160: K106 | X160: L106 | Y160: M106 | Z160: FALSE | AA160: TRUE | AB160: FALSE | AC160: FALSE | AD160: TRUE | AE160: TRUE | AF160: TRUE | AG160: FALSE | AH160: FALSE | AI160: FALSE | AJ160: FALSE | AK160: FALSE | AL160: 1
A161: >100% | B161: 1 | C161: 1 | D161: 1 | E161: 1 | F161: 100 | G161: 100 | H161: 100 | I161: 100 | J161: 10 | K161: 10 | L161: 10 | M161: 10 | N161: B107 | O161: C107 | P161: D107 | Q161: E107 | R161: F107 | S161: G107 | T161: H107 | U161: I107 | V161: J107 | W161: K107 | X161: L107 | Y161: M107 | Z161: =AND(B161<CRT,B162>=CRT) -> FALSE | AA161: =AND(C161<CRT,C162>=CRT) -> FALSE | AB161: =AND(D161<CRT,D162>=CRT) -> FALSE | AC161: =AND(E161<CRT,E162>=CRT) -> FALSE | AD161: =AND(F161<NHT,F162>=NHT) -> FALSE | AE161: =AND(G161<NHT,G162>=NHT) -> FALSE | AF161: =AND(H161<NHT,H162>=NHT) -> FALSE | AG161: =AND(I161<NHT,I162>=NHT) -> FALSE | AH161: =AND(J161<SCT,J162>=SCT) -> FALSE | AI161: =AND(K161<SCT,K162>=SCT) -> FALSE | AJ161: =AND(L161<SCT,L162>=SCT) -> FALSE | AK161: =AND(M161<SCT,M162>=SCT) -> FALSE | AL161: >100%
A164: Guild | B164: Chlordanes BSAF (calc) | C164: Dieldrin BSAF (calc) | D164: DDTs BSAF (calc) | E164: PCBs BSAF (calc) | F164: Chlordanes¶ Conc (ng/g) | G164: Dieldrin Conc (ng/g) | H164: DDTs Conc (ng/g) | I164: PCBs Conc (ng/g)
A165: 1Piscivore | B165: =SUM('Contaminant Specific'!P$4:P$8)/SUM('Contaminant Specific'!$C$4:$C$8) -> 0.6251781418 | C165: ='Contaminant Specific'!P$9/'Contaminant Specific'!$C$9 -> 0.1249953853 | D165: =SUM('Contaminant Specific'!P$10:P$15)/SUM('Contaminant Specific'!$C$10:$C$15) -> 4.050138981 | E165: =SUM('Contaminant Specific'!P$16:P$76)/SUM('Contaminant Specific'!$C$16:$C$76) -> 3.476878727 | F165: =SUM('Contaminant Specific'!P$4:P$8) -> 1.387895475 | G165: =SUM('Contaminant Specific'!P$9) -> 0.06249769263 | H165: =SUM('Contaminant Specific'!P$10:P$15) -> 231.6002474 | I165: =SUM('Contaminant Specific'!P$16:P$76) -> 120.6576787
A166: 2Benthic diet with piscivory | B166: =SUM('Contaminant Specific'!Q$4:Q$8)/SUM('Contaminant Specific'!$C$4:$C$8) -> 1.656692181 | C166: ='Contaminant Specific'!Q$9/'Contaminant Specific'!$C$9 -> 0.5017514246 | D166: =SUM('Contaminant Specific'!Q$10:Q$15)/SUM('Contaminant Specific'!$C$10:$C$15) -> 7.297320635 | E166: =SUM('Contaminant Specific'!Q$16:Q$76)/SUM('Contaminant Specific'!$C$16:$C$76) -> 6.188752179 | F166: =SUM('Contaminant Specific'!Q$4:Q$8) -> 3.677856643 | G166: =SUM('Contaminant Specific'!Q$9) -> 0.2508757123 | H166: =SUM('Contaminant Specific'!Q$10:Q$15) -> 417.284758 | I166: =SUM('Contaminant Specific'!Q$16:Q$76) -> 214.767477
A167: 3Benthic and pelagic with piscivory | B167: =SUM('Contaminant Specific'!R$4:R$8)/SUM('Contaminant Specific'!$C$4:$C$8) -> 0.2578066097 | C167: ='Contaminant Specific'!R$9/'Contaminant Specific'!$C$9 -> 0.05350494232 | D167: =SUM('Contaminant Specific'!R$10:R$15)/SUM('Contaminant Specific'!$C$10:$C$15) -> 2.25706052 | E167: =SUM('Contaminant Specific'!R$16:R$76)/SUM('Contaminant Specific'!$C$16:$C$76) -> 1.978260548 | F167: =SUM('Contaminant Specific'!R$4:R$8) -> 0.5723306736 | G167: =SUM('Contaminant Specific'!R$9) -> 0.02675247116 | H167: =SUM('Contaminant Specific'!R$10:R$15) -> 129.0661326 | I167: =SUM('Contaminant Specific'!R$16:R$76) -> 68.65132332
A168: 4Benthic without piscivory | B168: =SUM('Contaminant Specific'!S$4:S$8)/SUM('Contaminant Specific'!$C$4:$C$8) -> 0.5613493866 | C168: ='Contaminant Specific'!S$9/'Contaminant Specific'!$C$9 -> 0.1842245159 | D168: =SUM('Contaminant Specific'!S$10:S$15)/SUM('Contaminant Specific'!$C$10:$C$15) -> 2.293485734 | E168: =SUM('Contaminant Specific'!S$16:S$76)/SUM('Contaminant Specific'!$C$16:$C$76) -> 1.9868918 | F168: =SUM('Contaminant Specific'!S$4:S$8) -> 1.246195638 | G168: =SUM('Contaminant Specific'!S$9) -> 0.09211225796 | H168: =SUM('Contaminant Specific'!S$10:S$15) -> 131.149046 | I168: =SUM('Contaminant Specific'!S$16:S$76) -> 68.95085254
A169: 5Benthic and pelagic without piscivory | B169: =SUM('Contaminant Specific'!T$4:T$8)/SUM('Contaminant Specific'!$C$4:$C$8) -> 0.8241861233 | C169: ='Contaminant Specific'!T$9/'Contaminant Specific'!$C$9 -> 0.2703991206 | D169: =SUM('Contaminant Specific'!T$10:T$15)/SUM('Contaminant Specific'!$C$10:$C$15) -> 3.783974158 | E169: =SUM('Contaminant Specific'!T$16:T$76)/SUM('Contaminant Specific'!$C$16:$C$76) -> 3.327317664 | F169: =SUM('Contaminant Specific'!T$4:T$8) -> 1.829693194 | G169: =SUM('Contaminant Specific'!T$9) -> 0.1351995603 | H169: =SUM('Contaminant Specific'!T$10:T$15) -> 216.3800687 | I169: =SUM('Contaminant Specific'!T$16:T$76) -> 115.4674802
A170: 6Benthic with herbivory | B170: =SUM('Contaminant Specific'!U$4:U$8)/SUM('Contaminant Specific'!$C$4:$C$8) -> 0.4327566042 | C170: ='Contaminant Specific'!U$9/'Contaminant Specific'!$C$9 -> 0.2846983999 | D170: =SUM('Contaminant Specific'!U$10:U$15)/SUM('Contaminant Specific'!$C$10:$C$15) -> 1.122321929 | E170: =SUM('Contaminant Specific'!U$16:U$76)/SUM('Contaminant Specific'!$C$16:$C$76) -> 1.056669918 | F170: =SUM('Contaminant Specific'!U$4:U$8) -> 0.9607196613 | G170: =SUM('Contaminant Specific'!U$9) -> 0.1423492 | H170: =SUM('Contaminant Specific'!U$10:U$15) -> 64.17805357 | I170: =SUM('Contaminant Specific'!U$16:U$76) -> 36.6694813
A171: 7Benthic and pelagic with herbivory | B171: =SUM('Contaminant Specific'!V$4:V$8)/SUM('Contaminant Specific'!$C$4:$C$8) -> 0.1167659336 | C171: ='Contaminant Specific'!V$9/'Contaminant Specific'!$C$9 -> 0.04321709235 | D171: =SUM('Contaminant Specific'!V$10:V$15)/SUM('Contaminant Specific'!$C$10:$C$15) -> 0.6454996545 | E171: =SUM('Contaminant Specific'!V$16:V$76)/SUM('Contaminant Specific'!$C$16:$C$76) -> 0.6011477705 | F171: =SUM('Contaminant Specific'!V$4:V$8) -> 0.2592203726 | G171: =SUM('Contaminant Specific'!V$9) -> 0.02160854617 | H171: =SUM('Contaminant Specific'!V$10:V$15) -> 36.91179003 | I171: =SUM('Contaminant Specific'!V$16:V$76) -> 20.86155435
A172: 8Pelagic with benthic herbivory | B172: =SUM('Contaminant Specific'!W$4:W$8)/SUM('Contaminant Specific'!$C$4:$C$8) -> 0.2587924027 | C172: ='Contaminant Specific'!W$9/'Contaminant Specific'!$C$9 -> 0.2095595583 | D172: =SUM('Contaminant Specific'!W$10:W$15)/SUM('Contaminant Specific'!$C$10:$C$15) -> 0.5166418647 | E172: =SUM('Contaminant Specific'!W$16:W$76)/SUM('Contaminant Specific'!$C$16:$C$76) -> 0.5358471279 | F172: =SUM('Contaminant Specific'!W$4:W$8) -> 0.574519134 | G172: =SUM('Contaminant Specific'!W$9) -> 0.1047797791 | H172: =SUM('Contaminant Specific'!W$10:W$15) -> 29.54327845 | I172: =SUM('Contaminant Specific'!W$16:W$76) -> 18.59543449
C176: Chlordanes | D176: Dieldrin | E176: DDTs | F176: PCBs
A177: Outputs | B177: Seafood Carcinogenic Risk | C177: =Input!C30 ->  | D177: =Input!D30 ->  | E177: =Input!E30 ->  | F177: =Input!F30 -> 
B178: Seafood Noncancer Hazard | C178: =Input!C31 ->  | D178: =Input!D31 ->  | E178: =Input!E31 ->  | F178: =Input!F31 -> 
B179: Site Linkage | C179: =Input!C32 ->  | D179: =Input!D32 ->  | E179: =Input!E32 ->  | F179: =Input!F32 -> 

Sheet EquationContinuityCheck
A14: Do the food web calculations match? | B14: =IF(COUNTIF(Q98:BP149,"No")>0,"No","Yes") -> Yes
A15: Is the simulation output similar? | B15: =IF(BW23<4, "Yes","No") -> Yes
Q16: Indicator species 1 - Piscivore | R16: Indicator species 2 - Benthic diet with piscivory | S16: Indicator species 3 - Benthic and pelagic with piscivory | T16: Indicator species 4 - Benthic without piscivory | U16: Indicator species 5 - Benthic and pelagic without piscivory | V16: Indicator species 6 - Benthic with herbivory | W16: Indicator species 7 - Benthic and pelagic with herbivory | X16: Indicator species 8- Pelagic with benthic herbivory | Y16: Predicted Tissue Concentration | Z16: Phytoplankton | AA16: Submerged Macrophyte | AB16: Zooplankton | AC16: Diet - Small polychaete (e.g., Harmothoe imbricata) | AD16: Diet - Large polychaete (e.g., Neanthes) | AE16: Amphipod | AF16: Cumacean | AG16: Mysid | AH16: Bivalve mollusk | AI16: Decapod crab | AJ16: Crangon shrimp | AK16: Forage fish - herbivore | AL16: Forage fish - planktivore | AM16: Forage fish - primarily benthivore | AN16: Forage fish - benthivore | AO16: Forage fish - mixed diet i | AP16: Forage fish - mixed diet ii | AQ16: BAF | AR16: Phytoplankton | AS16: Submerged Macrophyte | AT16: Zooplankton | AU16: Diet - Small polychaete (e.g., Harmothoe imbricata) | AV16: Diet - Large polychaete (e.g., Neanthes) | AW16: Amphipod | AX16: Cumacean | AY16: Mysid | AZ16: Bivalve mollusk | BA16: Decapod crab | BB16: Crangon shrimp | BC16: Forage fish - herbivore | BD16: Forage fish - planktivore | BE16: Forage fish - primarily benthivore | BF16: Forage fish - benthivore | BG16: Forage fish - mixed diet i | BH16: Forage fish - mixed diet ii | BI16: Indicator species 1 - Piscivore | BJ16: Indicator species 2 - Benthic diet with piscivory | BK16: Indicator species 3 - Benthic and pelagic with piscivory | BL16: Indicator species 4 - Benthic without piscivory | BM16: Indicator species 5 - Benthic and pelagic without piscivory | BN16: Indicator species 6 - Benthic with herbivory | BO16: Indicator species 7 - Benthic and pelagic with herbivory | BP16: Indicator species 8- Pelagic with benthic herbivory | BT16: Cancer Risk 50% | BU16: Non Cancer Risk 50% | BV16: Site Linkage 50% | BW16: Cancer Risk %Difference | BX16: Non Cancer Risk %Difference | BY16: Site Linkage %Difference
A17: Inputs | Q17: ng/g | R17: ng/g | S17: ng/g | T17: ng/g | U17: ng/g | V17: ng/g | W17: ng/g | X17: ng/g | BS17: Chlordanes | BT17: 2.817037301e-07 | BU17: 0.0153218812 | BV17: 0.2413931684 | BW17: =ABS(('Assessment Summary'!D36-BT17)/BT17)*100 -> 0.1426060559 | BX17: =ABS(('Assessment Summary'!D37-BU17)/BU17)*100 -> 0.1426060559 | BY17: =ABS(('Assessment Summary'!D38-BV17)/BV17)*100 -> 0
A18: Analysis Descriptor: | B18: Mission Bay 2016 | F18: Chlordane Conc | H18: Dieldrin Conc | J18: DDTs Conc | L18: PCBs Conc | P18: cis-Chlordane | Q18: 0.5239604678 | R18: 1.309859018 | S18: 0.2186671765 | T18: 0.438251715 | U18: 0.6467303999 | V18: 0.2906903639 | W18: 0.09078631413 | X18: 0.161681964 | Y18: Tissue | Z18: 0.005120754561 | AA18: 0.004778820256 | AB18: 0.008271861119 | AC18: 0.358440966 | AD18: 0.9922468274 | AE18: 0.1895537663 | AF18: 0.07517589623 | AG18: 0.05377540883 | AH18: 0.1755259091 | AI18: 0.9601940212 | AJ18: 0.04057115739 | AK18: 0.009721652714 | AL18: 0.2368039176 | AM18: 0.9411561608 | AN18: 1.810187698 | AO18: 0.5174047965 | AP18: 1.367457766 | AQ18: BSAF | AR18: 0.01024150912 | AS18: 0.009557640512 | AT18: 0.01654372224 | AU18: 0.716881932 | AV18: 1.984493655 | AW18: 0.3791075325 | AX18: 0.1503517925 | AY18: 0.1075508177 | AZ18: 0.3510518181 | BA18: 1.920388042 | BB18: 0.08114231479 | BC18: 0.01944330543 | BD18: 0.4736078353 | BE18: 1.882312322 | BF18: 3.620375396 | BG18: 1.034809593 | BH18: 2.734915532 | BI18: 1.047920936 | BJ18: 2.619718036 | BK18: 0.4373343529 | BL18: 0.8765034301 | BM18: 1.2934608 | BN18: 0.5813807277 | BO18: 0.1815726283 | BP18: 0.3233639279 | BS18: DDTs | BT18: 1.534527594e-07 | BU18: 0.002106214345 | BV18: 1.091916783 | BW18: =ABS(('Assessment Summary'!D42-BT18)/BT18)*100 -> 0.2841096202 | BX18: =ABS(('Assessment Summary'!D43-BU18)/BU18)*100 -> 0.2841096202 | BY18: =ABS(('Assessment Summary'!D44-BV18)/BV18)*100 -> 0
A19: Dietary Guild | B19: Seafood Species | C19: Guild | D19: Portion of human seafood | E19: Lipid (%) | F19: Mean (ng/g) | G19: SE | H19: Mean (ng/g) | I19: SE | J19: Mean (ng/g) | K19: SE | L19: Mean (ng/g) | M19: SE | P19: trans-Chlordane | Q19: 0.5871377103 | R19: 1.448423406 | S19: 0.2399338466 | T19: 0.4877439123 | U19: 0.7142196249 | V19: 0.3031578478 | W19: 0.09761146767 | X19: 0.1635681275 | Y19: Tissue | Z19: 0.002554963507 | AA19: 0.002336474556 | AB19: 0.004348513287 | AC19: 0.3967066933 | AD19: 1.089338075 | AE19: 0.2043717694 | AF19: 0.07857115805 | AG19: 0.05431494964 | AH19: 0.1826169291 | AI19: 1.018303335 | AJ19: 0.03832182663 | AK19: 0.00501626423 | AL19: 0.2488834953 | AM19: 1.049864928 | AN19: 2.033749309 | AO19: 0.5742951591 | AP19: 1.492720306 | AQ19: BSAF | AR19: 0.005109927014 | AS19: 0.004672949112 | AT19: 0.008697026574 | AU19: 0.7934133867 | AV19: 2.17867615 | AW19: 0.4087435388 | AX19: 0.1571423161 | AY19: 0.1086298993 | AZ19: 0.3652338583 | BA19: 2.036606671 | BB19: 0.07664365327 | BC19: 0.01003252846 | BD19: 0.4977669905 | BE19: 2.099729857 | BF19: 4.067498618 | BG19: 1.148590318 | BH19: 2.985440612 | BI19: 1.174275421 | BJ19: 2.896846811 | BK19: 0.4798676931 | BL19: 0.9754878246 | BM19: 1.42843925 | BN19: 0.6063156956 | BO19: 0.1952229353 | BP19: 0.3271362551 | BS19: Dieldrin | BT19: 3.912453487e-07 | BU19: 0.001141132267 | BV19: 0.6704539284 | BW19: =ABS(('Assessment Summary'!D48-BT19)/BT19)*100 -> 1.239861996 | BX19: =ABS(('Assessment Summary'!D49-BU19)/BU19)*100 -> 1.239861996 | BY19: =ABS(('Assessment Summary'!D50-BV19)/BV19)*100 -> 0
A20: 1 | C20: 1Piscivore | D20: 0 | P20: cis-Nonachlor | Q20: 0.1410536366 | R20: 0.4600913054 | S20: 0.05901761677 | T20: 0.1599411292 | U20: 0.2356217573 | V20: 0.1827241681 | W20: 0.03610451558 | X20: 0.1242179891 | Y20: Tissue | Z20: 0.003433299195 | AA20: 0.003563283264 | AB20: 0.003975552651 | AC20: 0.1718102039 | AD20: 0.4514111162 | AE20: 0.07929406287 | AF20: 0.03115493555 | AG20: 0.02216935927 | AH20: 0.1148176752 | AI20: 0.5211758987 | AJ20: 0.0108579444 | AK20: 0.005042863626 | AL20: 0.07407130401 | AM20: 0.3203406271 | AN20: 0.5664244352 | AO20: 0.1662429247 | AP20: 0.5474639507 | AQ20: BSAF | AR20: 0.007006733051 | AS20: 0.007272006661 | AT20: 0.008113372757 | AU20: 0.3506330692 | AV20: 0.9212471759 | AW20: 0.1618246181 | AX20: 0.06358150113 | AY20: 0.04524359035 | AZ20: 0.2343217862 | BA20: 1.063624283 | BB20: 0.0221590702 | BC20: 0.01029155842 | BD20: 0.1511659266 | BE20: 0.6537563818 | BF20: 1.155968235 | BG20: 0.3392712748 | BH20: 1.117273369 | BI20: 0.2878645645 | BJ20: 0.9389618478 | BK20: 0.1204441159 | BL20: 0.3264104677 | BM20: 0.4808607292 | BN20: 0.3729064655 | BO20: 0.07368268486 | BP20: 0.2535061001 | BS20: PCBs | BT20: 6.30396247e-06 | BU20: 0.3677311441 | BV20: 0.1258925104 | BW20: =ABS(('Assessment Summary'!D54-BT20)/BT20)*100 -> 1.621065274 | BX20: =ABS(('Assessment Summary'!D55-BU20)/BU20)*100 -> 1.621065274 | BY20: =ABS(('Assessment Summary'!D56-BV20)/BV20)*100 -> 3.877861202
A21: 2 | B21: Spotted sand bass | C21: 2Benthic diet with piscivory | D21: 0.5 | E21: 0.0044 | F21: 2.0425 | G21: 0.9099794884 | H21: 0.25 | I21: 0 | J21: 2.407333333 | K21: 1.300596475 | L21: 71.07914286 | M21: 36.3098109 | P21: trans-Nonachlor | Q21: 0.1357431136 | R21: 0.4593966909 | S21: 0.05470718757 | T21: 0.1602141578 | U21: 0.2330515428 | V21: 0.1839621977 | W21: 0.03470579289 | X21: 0.1248859331 | Y21: Tissue | Z21: 0.0006130891419 | AA21: 0.0006363005828 | AB21: 0.0007099201163 | AC21: 0.1731837343 | AD21: 0.458471089 | AE21: 0.07747247223 | AF21: 0.02848687185 | AG21: 0.01922556243 | AH21: 0.1144553193 | AI21: 0.5263134399 | AJ21: 0.005492890359 | AK21: 0.0009005113618 | AL21: 0.06393703097 | AM21: 0.3176631272 | AN21: 0.5616705832 | AO21: 0.1612675993 | AP21: 0.5390639616 | AQ21: BSAF | AR21: 0.001226178284 | AS21: 0.001272601166 | AT21: 0.001419840233 | AU21: 0.3463674685 | AV21: 0.916942178 | AW21: 0.1549449445 | AX21: 0.0569737437 | AY21: 0.03845112486 | AZ21: 0.2289106386 | BA21: 1.05262688 | BB21: 0.01098578072 | BC21: 0.001801022724 | BD21: 0.1278740619 | BE21: 0.6353262543 | BF21: 1.123341166 | BG21: 0.3225351987 | BH21: 1.078127923 | BI21: 0.2714862271 | BJ21: 0.9187933819 | BK21: 0.1094143751 | BL21: 0.3204283155 | BM21: 0.4661030856 | BN21: 0.3679243955 | BO21: 0.06941158579 | BP21: 0.2497718663
A22: 3 | C22: 3Benthic and pelagic with piscivory | D22: 0 | P22: Oxychlordane | Q22: 5.46617413e-07 | R22: 8.622277388e-05 | S22: 4.84623924e-06 | T22: 4.472405216e-05 | U22: 6.986888183e-05 | V22: 0.0001850838111 | W22: 1.228234501e-05 | X22: 0.000165120287 | Y22: Tissue | Z22: 1.584661869e-06 | AA22: 1.764832418e-06 | AB22: 1.301464347e-06 | AC22: 0.03306628523 | AD22: 0.03319142018 | AE22: 3.395876222e-05 | AF22: 1.294092076e-05 | AG22: 9.061077526e-06 | AH22: 0.03577058037 | AI22: 0.04443005697 | AJ22: 2.056945215e-06 | AK22: 1.45284184e-06 | AL22: 2.482926771e-06 | AM22: 8.274270768e-05 | AN22: 8.749146798e-05 | AO22: 3.910173884e-05 | AP22: 0.08339031493 | AQ22: BSAF | AR22: 6.889834214e-06 | AS22: 7.673184426e-06 | AT22: 5.658540639e-06 | AU22: 0.1437664575 | AV22: 0.1443105225 | AW22: 0.0001476467922 | AX22: 5.626487287e-05 | AY22: 3.939598924e-05 | AZ22: 0.1555242625 | BA22: 0.1931741607 | BB22: 8.943240064e-06 | BC22: 6.31670365e-06 | BD22: 1.079533379e-05 | BE22: 0.000359750903 | BF22: 0.0003803976869 | BG22: 0.0001700075602 | BH22: 0.3625665866 | BI22: 2.376597448e-06 | BJ22: 0.0003748816256 | BK22: 2.107060539e-05 | BL22: 0.0001944524007 | BM22: 0.0003037777471 | BN22: 0.0008047122221 | BO22: 5.340150003e-05 | BP22: 0.0007179142915
A23: 4 | C23: 4Benthic without piscivory | D23: 0 | P23: Dieldrin | Q23: 0.06249769263 | R23: 0.2508757123 | S23: 0.02675247116 | T23: 0.09211225796 | U23: 0.1351995603 | V23: 0.1423492 | W23: 0.02160854617 | X23: 0.1047797791 | Y23: Tissue | Z23: 0.002101688645 | AA23: 0.002247268984 | AB23: 0.00215939674 | AC23: 0.1310958465 | AD23: 0.3085060372 | AE23: 0.04933393992 | AF23: 0.01909679315 | AG23: 0.01345798471 | AH23: 0.09973417899 | AI23: 0.3794407209 | AJ23: 0.005118590088 | AK23: 0.002727389893 | AL23: 0.03544410292 | AM23: 0.1775219734 | AN23: 0.2927092913 | AO23: 0.08924233131 | AP23: 0.3668820197 | AQ23: BSAF | AR23: 0.00420337729 | AS23: 0.004494537968 | AT23: 0.00431879348 | AU23: 0.262191693 | AV23: 0.6170120743 | AW23: 0.09866787984 | AX23: 0.03819358631 | AY23: 0.02691596943 | AZ23: 0.199468358 | BA23: 0.7588814418 | BB23: 0.01023718018 | BC23: 0.005454779787 | BD23: 0.07088820583 | BE23: 0.3550439468 | BF23: 0.5854185827 | BG23: 0.1784846626 | BH23: 0.7337640393 | BI23: 0.1249953853 | BJ23: 0.5017514246 | BK23: 0.05350494232 | BL23: 0.1842245159 | BM23: 0.2703991206 | BN23: 0.2846983999 | BO23: 0.04321709235 | BP23: 0.2095595583 | BU23: Maximum % Difference | BW23: =MAX(BW17:BY20) -> 3.877861202
A24: 5 | B24: Shiner perch | C24: 5Benthic and pelagic without piscivory | D24: 0.5 | E24: 0.0125 | F24: 2.5275 | G24: 0.4157433102 | H24: 0.25 | I24: 0 | J24: 7.283 | K24: 2.510696369 | L24: 1.9195 | M24: 0.9761609114 | P24: op-DDD | Q24: 0.1451879571 | R24: 0.2236967495 | S24: 0.09266552244 | T24: 0.08413088749 | U24: 0.1871262015 | V24: 0.09964285136 | W24: 0.05280454905 | X24: 0.08124920265 | Y24: Tissue | Z24: 0.08750440133 | AA24: 0.09480312616 | AB24: 0.08485294128 | AC24: 0.1026698686 | AD24: 0.1516308468 | AE24: 0.09763575792 | AF24: 0.08819690527 | AG24: 0.08722065949 | AH24: 0.1052299813 | AI24: 0.231331606 | AJ24: 0.1365745093 | AK24: 0.105809319 | AL24: 0.2515143505 | AM24: 0.2323354233 | AN24: 0.3875987621 | AO24: 0.1966905006 | AP24: 0.4759499616 | AQ24: BSAF | AR24: 0.4622468375 | AS24: 0.5008027549 | AT24: 0.4482403532 | AU24: 0.5423592569 | AV24: 0.800998331 | AW24: 0.5157662887 | AX24: 0.4659050279 | AY24: 0.4607479556 | AZ24: 0.5558831937 | BA24: 1.222021997 | BB24: 0.7214623953 | BC24: 0.5589435772 | BD24: 1.328638461 | BE24: 1.227324718 | BF24: 2.047511888 | BG24: 1.039028443 | BH24: 2.514231984 | BI24: 0.7669634098 | BJ24: 1.181690446 | BK24: 0.4895107451 | BL24: 0.4444260641 | BM24: 0.9885045045 | BN24: 0.5263688708 | BO24: 0.2789429495 | BP24: 0.4292034047
A25: 6 | C25: 6Benthic with herbivory | D25: 0 | P25: op-DDE | Q25: 2.984549098 | R25: 6.069467579 | S25: 1.72130768 | T25: 2.134993516 | U25: 3.939197676 | V25: 2.683128403 | W25: 0.8996912881 | X25: 1.981503645 | Y25: Tissue | Z25: 0.7981928371 | AA25: 0.8408374222 | AB25: 0.87211619 | AC25: 1.760968761 | AD25: 4.929171996 | AE25: 1.715108618 | AF25: 1.158102204 | AG25: 1.074740593 | AH25: 1.295505598 | AI25: 6.594033531 | AJ25: 1.46748349 | AK25: 1.107351676 | AL25: 3.482989294 | AM25: 4.993798259 | AN25: 8.433483314 | AO25: 3.540077595 | AP25: 9.137209026 | AQ25: BSAF | AR25: 0.1190480537 | AS25: 0.125408365 | AT25: 0.1300734988 | AU25: 0.2626431784 | AV25: 0.7351711335 | AW25: 0.2558032764 | AX25: 0.1727274501 | AY25: 0.1602943173 | AZ25: 0.1932207519 | BA25: 0.983480209 | BB25: 0.2188707356 | BC25: 0.165158162 | BD25: 0.5194773461 | BE25: 0.7448099456 | BF25: 1.257828595 | BG25: 0.527991894 | BH25: 1.362787162 | BI25: 0.4451364945 | BJ25: 0.9052427798 | BK25: 0.2567278479 | BL25: 0.3184278423 | BM25: 0.58751945 | BN25: 0.4001805072 | BO25: 0.1341862415 | BP25: 0.295535291
A26: 7 | C26: 7Benthic and pelagic with herbivory | D26: 0 | P26: op-DDT | Q26: 1.702263353 | R26: 2.640167228 | S26: 1.075447778 | T26: 0.8464889971 | U26: 1.782369844 | V26: 0.8490013642 | W26: 0.4577328521 | X26: 0.6189847991 | Y26: Tissue | Z26: 0.5218115235 | AA26: 0.5430522677 | AB26: 0.5978757641 | AC26: 0.6443789644 | AD26: 1.320618322 | AE26: 0.7904326098 | AF26: 0.6540457995 | AG26: 0.6480939196 | AH26: 0.6123815589 | AI26: 2.065853205 | AJ26: 1.003952234 | AK26: 0.7587811952 | AL26: 2.202543531 | AM26: 2.256496191 | AN26: 3.94696318 | AO26: 1.818740533 | AP26: 4.443880518 | AQ26: BSAF | AR26: 0.4348429362 | AS26: 0.4525435564 | AT26: 0.4982298034 | AU26: 0.5369824703 | AV26: 1.100515268 | AW26: 0.6586938415 | AX26: 0.5450381662 | AY26: 0.5400782663 | AZ26: 0.5103179657 | BA26: 1.721544337 | BB26: 0.836626862 | BC26: 0.6323176627 | BD26: 1.835452942 | BE26: 1.880413492 | BF26: 3.289135983 | BG26: 1.515617111 | BH26: 3.703233765 | BI26: 1.418552794 | BJ26: 2.200139357 | BK26: 0.8962064819 | BL26: 0.7054074976 | BM26: 1.485308203 | BN26: 0.7075011368 | BO26: 0.3814440434 | BP26: 0.5158206659
A27: 8 | C27: 8Pelagic with benthic herbivory | D27: 0 | P27: pp-DDD | Q27: 11.25365285 | R27: 19.52866031 | S27: 6.81608885 | T27: 5.592086983 | U27: 10.25731103 | V27: 3.571102925 | W27: 2.037008239 | X27: 1.932553609 | Y27: Tissue | Z27: 1.067123434 | AA27: 0.9636968277 | AB27: 1.871610439 | AC27: 3.751402792 | AD27: 8.47440922 | AE27: 3.656035883 | AF27: 2.510050601 | AG27: 2.597541749 | AH27: 2.657890383 | AI27: 11.16759078 | AJ27: 4.31039821 | AK27: 2.134097753 | AL27: 9.770327922 | AM27: 14.30690619 | AN27: 27.62608028 | AO27: 10.47715448 | AP27: 26.6681096 | AQ27: BSAF | AR27: 0.3289883232 | AS27: 0.2971024658 | AT27: 0.5770072708 | AU27: 1.156536981 | AV27: 2.612614054 | AW27: 1.127135884 | AX27: 0.773834884 | AY27: 0.8008079266 | AZ27: 0.8194130809 | BA27: 3.442907211 | BB27: 1.328872214 | BC27: 0.6579306752 | BD27: 3.012138708 | BE27: 4.410740996 | BF27: 8.516969587 | BG27: 3.230049472 | BH27: 8.221632461 | BI27: 3.469439678 | BJ27: 6.020579259 | BK27: 2.101362945 | BL27: 1.724009859 | BM27: 3.162272937 | BN27: 1.100951517 | BO27: 0.6279985086 | BP27: 0.5957957171
P28: pp-DDE | Q28: 211.3975101 | R28: 381.6378507 | S28: 116.8885638 | T28: 120.4304602 | U28: 196.4840491 | V28: 55.72057553 | W28: 32.7419999 | X28: 24.27380627 | Y28: Tissue | Z28: 7.576283621 | AA28: 5.704014018 | AB28: 19.46177976 | AC28: 93.87790454 | AD28: 185.9415079 | AE28: 63.04822771 | AF28: 36.72482872 | AG28: 38.44339696 | AH28: 37.9371598 | AI28: 193.6282464 | AJ28: 69.96867772 | AK28: 18.64076976 | AL28: 139.1273584 | AM28: 291.2191802 | AN28: 578.6922953 | AO28: 194.7010403 | AP28: 480.7633203 | AQ28: BSAF | AR28: 0.1693166818 | AS28: 0.1274747323 | AT28: 0.4349367231 | AU28: 2.098006897 | AV28: 4.155467339 | AW28: 1.409017567 | AX28: 0.8207356603 | AY28: 0.8591426531 | AZ28: 0.8478291384 | BA28: 4.327252493 | BB28: 1.563677515 | BC28: 0.4165885861 | BD28: 3.109253013 | BE28: 6.508239097 | BF28: 12.93276019 | BG28: 4.351227559 | BH28: 10.74421896 | BI28: 4.724364445 | BJ28: 8.528938167 | BK28: 2.612254867 | BL28: 2.691410055 | BM28: 4.391074687 | BN28: 1.245257362 | BO28: 0.7317264053 | BP28: 0.5424770955 | BT28: =BT17/BU17 -> 1.838571429e-05 | BU28: ='Assessment Summary'!D36/'Assessment Summary'!D37 -> 1.838571429e-05
C29: Sediment contaminant concentration | F29: Chlordane Conc | H29: Dieldrin Conc | J29: DDTs Conc | L29: PCBs Conc | P29: pp-DDT | Q29: 4.117084003 | R29: 7.184915431 | S29: 2.472058982 | T29: 2.060885374 | U29: 3.730014862 | V29: 1.254602493 | W29: 0.7225532058 | X29: 0.6551809206 | Y29: Tissue | Z29: 0.3413982205 | AA29: 0.3013701627 | AB29: 0.6323889541 | AC29: 1.381467249 | AD29: 3.116029258 | AE29: 1.309773131 | AF29: 0.8796393938 | AG29: 0.9163972481 | AH29: 0.9234525188 | AI29: 4.002555026 | AJ29: 1.546981968 | AK29: 0.7060124404 | AL29: 3.441958798 | AM29: 5.256306927 | AN29: 10.23725969 | AO29: 3.816063195 | AP29: 9.70309049 | AQ29: BSAF | AR29: 0.3105589905 | AS29: 0.2741467526 | AT29: 0.57526391 | AU29: 1.256676364 | AV29: 2.834551683 | AW29: 1.191458528 | AX29: 0.8001796897 | AY29: 0.8336171285 | AZ29: 0.8400350816 | BA29: 3.640995687 | BB29: 1.407239785 | BC29: 0.6422368297 | BD29: 3.131039313 | BE29: 4.781493503 | BF29: 9.312506169 | BG29: 3.471350061 | BH29: 8.826589615 | BI29: 3.745179017 | BJ29: 6.535886683 | BK29: 2.248752617 | BL29: 1.874721199 | BM29: 3.393074657 | BN29: 1.141271572 | BO29: 0.6572834324 | BP29: 0.5959970295 | BT29: =BT18/BU18 -> 7.285714286e-05 | BU29: ='Assessment Summary'!D42/'Assessment Summary'!D43 -> 7.285714286e-05
F30: Mean (ng/g) | G30: SE | H30: Mean (ng/g) | I30: SE | J30: Mean (ng/g) | K30: SE | L30: Mean (ng/g) | M30: SE | P30: PCB 8 | Q30: 0.08117347388 | R30: 0.1623959607 | S30: 0.05373629633 | T30: 0.06961171151 | U30: 0.1468064031 | V30: 0.1143069545 | W30: 0.04026991078 | X30: 0.09667434501 | Y30: Tissue | Z30: 0.07315248664 | AA30: 0.08052668485 | AB30: 0.06579236146 | AC30: 0.1397941625 | AD30: 0.2089469971 | AE30: 0.0836867396 | AF30: 0.07160390856 | AG30: 0.06957799719 | AH30: 0.13817405 | AI30: 0.2920568598 | AJ30: 0.1056071675 | AK30: 0.07949139776 | AL30: 0.1720618738 | AM30: 0.182106622 | AN30: 0.2847432747 | AO30: 0.1492345443 | AP30: 0.4508868694 | AQ30: BSAF | AR30: 0.1463049733 | AS30: 0.1610533697 | AT30: 0.1315847229 | AU30: 0.2795883251 | AV30: 0.4178939942 | AW30: 0.1673734792 | AX30: 0.1432078171 | AY30: 0.1391559944 | AZ30: 0.2763481 | BA30: 0.5841137197 | BB30: 0.2112143349 | BC30: 0.1589827955 | BD30: 0.3441237477 | BE30: 0.3642132441 | BF30: 0.5694865493 | BG30: 0.2984690886 | BH30: 0.9017737388 | BI30: 0.1623469478 | BJ30: 0.3247919213 | BK30: 0.1074725927 | BL30: 0.139223423 | BM30: 0.2936128063 | BN30: 0.2286139091 | BO30: 0.08053982157 | BP30: 0.19334869 | BT30: =BT19/BU19 -> 0.0003428571429 | BU30: ='Assessment Summary'!D48/'Assessment Summary'!D49 -> 0.0003428571429
C31: Sediment contaminant concentration | F31: 0.5 | G31: 0 | H31: 0.5 | I31: 0 | J31: 1.191666667 | K31: 0.7651876585 | L31: 1.334545455 | M31: 1.602161083 | P31: PCB 11 | Q31: 0.2254669806 | R31: 0.323851877 | S31: 0.1469391966 | T31: 0.1318244577 | U31: 0.3096936914 | V31: 0.1658661361 | W31: 0.09205654231 | X31: 0.1410265357 | Z31: 0.1681856156 | AA31: 0.1835678181 | AB31: 0.1575873967 | AC31: 0.1529347643 | AD31: 0.2270483412 | AE31: 0.1762508632 | AF31: 0.162348859 | AG31: 0.1607342967 | AH31: 0.1583019392 | AI31: 0.3537466619 | AJ31: 0.2528664662 | AK31: 0.1941564325 | AL31: 0.439209144 | AM31: 0.3805856463 | AN31: 0.6186754379 | AO31: 0.338975982 | AP31: 0.7329705483 | AR31: 0.4671822655 | AS31: 0.509910606 | AT31: 0.4377427686 | AU31: 0.4248187898 | AV31: 0.6306898367 | AW31: 0.4895857311 | AX31: 0.4509690527 | AY31: 0.4464841575 | AZ31: 0.4397276089 | BA31: 0.9826296164 | BB31: 0.7024068505 | BC31: 0.5393234237 | BD31: 1.2200254 | BE31: 1.057182351 | BF31: 1.718542883 | BG31: 0.9415999501 | BH31: 2.036029301 | BI31: 0.6262971684 | BJ31: 0.8995885473 | BK31: 0.4081644351 | BL31: 0.3661790493 | BM31: 0.8602602539 | BN31: 0.4607392669 | BO31: 0.2557126175 | BP31: 0.3917403768 | BT31: =BT20/BU20 -> 1.714285714e-05
P32: PCB 18 | Q32: 0.067387224 | R32: 0.1030805634 | S32: 0.04352710602 | T32: 0.04040513797 | U32: 0.09167903277 | V32: 0.04915201125 | W32: 0.02644900342 | X32: 0.04096579863 | Y32: Tissue | Z32: 0.04708989082 | AA32: 0.05130417205 | AB32: 0.04449742919 | AC32: 0.05327971851 | AD32: 0.07515511139 | AE32: 0.05011692514 | AF32: 0.04594010466 | AG32: 0.04546813925 | AH32: 0.055101719 | AI32: 0.1140499686 | AJ32: 0.07144265733 | AK32: 0.05500496798 | AL32: 0.1260150767 | AM32: 0.1135514452 | AN32: 0.1873049904 | AO32: 0.09814636311 | AP32: 0.2333626167 | AQ32: BSAF | AR32: 0.4659833259 | AS32: 0.5076862212 | AT32: 0.4403293295 | AU32: 0.527235464 | AV32: 0.7437058816 | AW32: 0.4959376855 | AX32: 0.4546054873 | AY32: 0.4499351003 | AZ32: 0.5452652753 | BA32: 1.128594328 | BB32: 0.7069688737 | BC32: 0.5443078647 | BD32: 1.246996405 | BE32: 1.123661134 | BF32: 1.853497659 | BG32: 0.9712184063 | BH32: 2.309266095 | BI32: 0.6668378758 | BJ32: 1.020045342 | BK32: 0.4307273871 | BL32: 0.3998336002 | BM32: 0.9072202094 | BN32: 0.4863892713 | BO32: 0.2617290966 | BP32: 0.405381681
C33: Parameter name | D33: Mean | E33: SD | P33: PCB 27 | Q33: 0.3554163244 | R33: 0.5493274571 | S33: 0.2260446329 | T33: 0.2035178637 | U33: 0.4494218145 | V33: 0.2382876336 | W33: 0.1257308896 | X33: 0.1926462127 | Z33: 0.2026924677 | AA33: 0.219080601 | AB33: 0.1986270043 | AC33: 0.2414029099 | AD33: 0.3628135816 | AE33: 0.2305344297 | AF33: 0.2070360772 | AG33: 0.2046961852 | AH33: 0.246489295 | AI33: 0.5543248633 | AJ33: 0.3201122826 | AK33: 0.2484045254 | AL33: 0.5989076549 | AM33: 0.5587193061 | AN33: 0.9360595288 | AO33: 0.4695056905 | AP33: 1.142812967 | AR33: 0.4606646992 | AS33: 0.4979104569 | AT33: 0.4514250097 | AU33: 0.5486429771 | AV33: 0.8245763218 | AW33: 0.5239418858 | AX33: 0.4705365392 | AY33: 0.4652186028 | AZ33: 0.5602029433 | BA33: 1.259829235 | BB33: 0.727527915 | BC33: 0.5645557396 | BD33: 1.361153761 | BE33: 1.269816605 | BF33: 2.12740802 | BG33: 1.067058388 | BH33: 2.597302197 | BI33: 0.8077643735 | BJ33: 1.248471493 | BK33: 0.513737802 | BL33: 0.4625405994 | BM33: 1.021413215 | BN33: 0.5415628037 | BO33: 0.2857520219 | BP33: 0.4378323016
B34: Daily seafood consumption rate (CR and CRSD) (kg/d) | C34: CR | D34: 0.032 | E34: 0.032 | P34: PCB 28 | Q34: 0.2071730974 | R34: 0.3308213986 | S34: 0.1296854626 | T34: 0.1092087559 | U34: 0.2281954912 | V34: 0.112832321 | W34: 0.05884678417 | X34: 0.08408255666 | Y34: Tissue | Z34: 0.07398650658 | AA34: 0.07795765196 | AB34: 0.08073487787 | AC34: 0.1034087434 | AD34: 0.1806161126 | AE34: 0.102445403 | AF34: 0.08688119981 | AG34: 0.0859354506 | AH34: 0.1011613792 | AI34: 0.2757313837 | AJ34: 0.1332442235 | AK34: 0.1024957864 | AL34: 0.281751834 | AM34: 0.2891000393 | AN34: 0.502770596 | AO34: 0.2301810781 | AP34: 0.5808545974 | AQ34: BSAF | AR34: 0.4433954204 | AS34: 0.467194188 | AT34: 0.4838378884 | AU34: 0.6197206134 | AV34: 1.082418415 | AW34: 0.6139473887 | AX34: 0.5206723212 | AY34: 0.5150045192 | AZ34: 0.6062523337 | BA34: 1.65243689 | BB34: 0.7985223416 | BC34: 0.614249333 | BD34: 1.688516983 | BE34: 1.73255421 | BF34: 3.013065356 | BG34: 1.379457426 | BH34: 3.481016747 | BI34: 1.241572374 | BJ34: 1.982587095 | BK34: 0.7771949628 | BL34: 0.6544796405 | BM34: 1.367557957 | BN34: 0.6761953867 | BO34: 0.3526642332 | BP34: 0.5039002689
B35: Area of Site (SA) (km^2) | C35: SA | D35: 8.056839 | E35: NA | P35: PCB 29 | Q35: 0.8182663197 | R35: 1.296988255 | S35: 0.5131322982 | T35: 0.4376784331 | U35: 0.9245379442 | V35: 0.4659207635 | W35: 0.2427961189 | X35: 0.3536959464 | Z35: 0.3223505794 | AA35: 0.341800188 | AB35: 0.3429026884 | AC35: 0.4332587251 | AD35: 0.7334760731 | AE35: 0.4259788074 | AF35: 0.3660437667 | AG35: 0.3618589803 | AH35: 0.4284766338 | AI35: 1.12232026 | AJ35: 0.5617721061 | AK35: 0.434742266 | AL35: 1.160616056 | AM35: 1.165381431 | AN35: 2.010599533 | AO35: 0.9370781764 | AP35: 2.351862 | AR35: 0.447709138 | AS35: 0.4747224834 | AT35: 0.4762537339 | AU35: 0.6017482294 | AV35: 1.018716768 | AW35: 0.5916372324 | AX35: 0.5083941204 | AY35: 0.502581917 | AZ35: 0.5951064358 | BA35: 1.558778138 | BB35: 0.7802390363 | BC35: 0.6038087027 | BD35: 1.611966744 | BE35: 1.618585321 | BF35: 2.792499351 | BG35: 1.301497467 | BH35: 3.266475001 | BI35: 1.136481 | BJ35: 1.801372577 | BK35: 0.7126837475 | BL35: 0.6078867127 | BM35: 1.284080478 | BN35: 0.6471121715 | BO35: 0.3372168319 | BP35: 0.49124437
B36: Length of site (SL) (km) | C36: SL | D36: 6 | E36: NA | P36: PCB 31 | Q36: 0.2057096598 | R36: 0.3341253961 | S36: 0.1284258912 | T36: 0.1054760312 | U36: 0.2152544206 | V36: 0.1012410402 | W36: 0.0531680965 | X36: 0.07211123722 | Y36: Tissue | Z36: 0.05876785673 | AA36: 0.06090277029 | AB36: 0.06836136642 | AC36: 0.09093000862 | AD36: 0.1700444747 | AE36: 0.09152284586 | AF36: 0.0751775433 | AG36: 0.07454816242 | AH36: 0.08637045124 | AI36: 0.2570576769 | AJ36: 0.1154808534 | AK36: 0.08666111682 | AL36: 0.2556314225 | AM36: 0.2763589052 | AN36: 0.4895117765 | AO36: 0.2157786706 | AP36: 0.5491603971 | AQ36: BSAF | AR36: 0.4319077852 | AS36: 0.4475980935 | AT36: 0.5024142109 | AU36: 0.6682799207 | AV36: 1.249722834 | AW36: 0.6726369116 | AX36: 0.55250894 | AY36: 0.5478833756 | AZ36: 0.634769964 | BA36: 1.889216624 | BB36: 0.8487136067 | BC36: 0.6369061782 | BD36: 1.878734528 | BE36: 2.031068841 | BF36: 3.597612011 | BG36: 1.585841188 | BH36: 4.035992872 | BI36: 1.51184012 | BJ36: 2.4556172 | BK36: 0.9438517132 | BL36: 0.7751842856 | BM36: 1.581988271 | BN36: 0.7440596932 | BO36: 0.3907529742 | BP36: 0.5299734666
B37: Sediment Total Organic Carbon (TOC) (%) | C37: TOC | D37: 0.0163 | E37: NA | P37: PCB 33 | Q37: 0.4384591274 | R37: 0.6990076661 | S37: 0.2745599972 | T37: 0.2318363436 | U37: 0.4855670188 | V37: 0.2411309583 | W37: 0.125721259 | X37: 0.180431121 | Y37: Tissue | Z37: 0.1599742016 | AA37: 0.1688009837 | AB37: 0.1735736452 | AC37: 0.2216289715 | AD37: 0.38448981 | AE37: 0.2192055768 | AF37: 0.1864459635 | AG37: 0.1843892624 | AH37: 0.2173492496 | AI37: 0.587323997 | AJ37: 0.2859662553 | AK37: 0.2203145127 | AL37: 0.6017180134 | AM37: 0.6144564307 | AN37: 1.066729285 | AO37: 0.4902512901 | AP37: 1.235780848 | AQ37: BSAF | AR37: 0.4443727823 | AS37: 0.4688916214 | AT37: 0.4821490144 | AU37: 0.6156360319 | AV37: 1.06802725 | AW37: 0.60890438 | AX37: 0.5179054542 | AY37: 0.5121923955 | AZ37: 0.6037479154 | BA37: 1.631455547 | BB37: 0.7943507093 | BC37: 0.6119847574 | BD37: 1.671438926 | BE37: 1.706823419 | BF37: 2.963136901 | BG37: 1.361809139 | BH37: 3.432724577 | BI37: 1.217942021 | BJ37: 1.941687961 | BK37: 0.7626666589 | BL37: 0.6439898434 | BM37: 1.348797275 | BN37: 0.6698082176 | BO37: 0.3492257193 | BP37: 0.5011975582
B38: Dissolved Organic Carbon Content of water (DOCw) (kg/L) | C38: DOCw | D38: 2.148e-06 | E38: NA | P38: PCB 37 | Q38: 0.6450817108 | R38: 1.049221248 | S38: 0.4026577109 | T38: 0.3301242775 | U38: 0.672456466 | V38: 0.3148772302 | W38: 0.165499859 | X38: 0.2234099204 | Z38: 0.1809598755 | AA38: 0.1872517226 | AB38: 0.2116791594 | AC38: 0.2825646394 | AD38: 0.5312404295 | AE38: 0.2847379103 | AF38: 0.2332498016 | AG38: 0.2313655333 | AH38: 0.2676636553 | AI38: 0.8022088695 | AJ38: 0.3584289945 | AK38: 0.2682317754 | AL38: 0.796002859 | AM38: 0.8643694737 | AN38: 1.533357825 | AO38: 0.6739311345 | AP38: 1.715985491 | AR38: 0.4308568464 | AS38: 0.4458374349 | AT38: 0.5039979985 | AU38: 0.6727729509 | AV38: 1.264858165 | AW38: 0.6779474055 | AX38: 0.5553566705 | AY38: 0.5508703173 | AZ38: 0.6372944173 | BA38: 1.910021118 | BB38: 0.8534023678 | BC38: 0.6386470843 | BD38: 1.895244902 | BE38: 2.058022556 | BF38: 3.650851963 | BG38: 1.604597939 | BH38: 4.085679741 | BI38: 1.535908835 | BJ38: 2.498145829 | BK38: 0.9587088354 | BL38: 0.7860101846 | BM38: 1.601086824 | BN38: 0.7497076909 | BO38: 0.3940472832 | BP38: 0.531928382
B39: Particulate Organic Carbon Content of water (POCw) (kg/L) | C39: POCw | D39: 1.571e-06 | E39: NA | P39: PCB 44 | Q39: 0.6699258933 | R39: 1.096561537 | S39: 0.4178125117 | T39: 0.3399570051 | U39: 0.6865709791 | V39: 0.3146987667 | W39: 0.166128162 | X39: 0.2191926287 | Y39: Tissue | Z39: 0.172584047 | AA39: 0.1772925268 | AB39: 0.2073444903 | AC39: 0.2816930891 | AD39: 0.5426424076 | AE39: 0.2853107284 | AF39: 0.230720574 | AG39: 0.2292178101 | AH39: 0.2632816856 | AI39: 0.814845614 | AJ39: 0.355358218 | AK39: 0.2620830281 | AL39: 0.8003851301 | AM39: 0.8875604617 | AN39: 1.585709431 | AO39: 0.6876341094 | AP39: 1.754244976 | AQ39: BSAF | AR39: 0.4257642825 | AS39: 0.4373800869 | AT39: 0.5115181832 | AU39: 0.6949359345 | AV39: 1.338697054 | AW39: 0.7038606389 | AX39: 0.5691869054 | AY39: 0.5654795918 | AZ39: 0.6495150619 | BA39: 2.010221479 | BB39: 0.8766675679 | BC39: 0.6465579779 | BD39: 1.974547512 | BE39: 2.189608772 | BF39: 3.911940008 | BG39: 1.696391111 | BH39: 4.32771665 | BI39: 1.652705 | BJ39: 2.705213746 | BK39: 1.030742107 | BL39: 0.8386728257 | BM39: 1.693768372 | BN39: 0.7763608338 | BO39: 0.4098376353 | BP39: 0.540747502
B40: Mean Water Temp (T) (Deg. C) | C40: T | D40: 17.4 | E40: NA | P40: PCB 49 | Q40: 1.021061789 | R40: 1.701610666 | S40: 0.634858221 | T40: 0.5086211205 | U40: 1.001850382 | V40: 0.4289323869 | W40: 0.2302515908 | X40: 0.2816703075 | Y40: Tissue | Z40: 0.203888956 | AA40: 0.2042317801 | AB40: 0.267123365 | AC40: 0.3870339168 | AD40: 0.7957544783 | AE40: 0.3960787118 | AF40: 0.3076435708 | AG40: 0.3077060312 | AH40: 0.3447448366 | AI40: 1.168489177 | AJ40: 0.480011746 | AK40: 0.3329445721 | AL40: 1.113958826 | AM40: 1.319068159 | AN40: 2.406739905 | AO40: 1.005428412 | AP40: 2.571116657 | AQ40: BSAF | AR40: 0.407777912 | AS40: 0.4084635602 | AT40: 0.53424673 | AU40: 0.7740678337 | AV40: 1.591508957 | AW40: 0.7921574235 | AX40: 0.6152871416 | AY40: 0.6154120624 | AZ40: 0.6894896731 | BA40: 2.336978353 | BB40: 0.960023492 | BC40: 0.6658891443 | BD40: 2.227917653 | BE40: 2.638136319 | BF40: 4.813479811 | BG40: 2.010856825 | BH40: 5.142233314 | BI40: 2.042123578 | BJ40: 3.403221332 | BK40: 1.269716442 | BL40: 1.017242241 | BM40: 2.003700764 | BN40: 0.8578647738 | BO40: 0.4605031816 | BP40: 0.563340615
B41: Salinity (Sal) (PSU) | C41: Sal | D41: 25.4 | E41: NA | P41: PCB 52 | Q41: 0.9621609915 | R41: 1.595523128 | S41: 0.5988591882 | T41: 0.4813674419 | U41: 0.9548869223 | V41: 0.4171169048 | W41: 0.2227316867 | X41: 0.2787196046 | Y41: Tissue | Z41: 0.206676949 | AA41: 0.2086364145 | AB41: 0.2638853716 | AC41: 0.3746304087 | AD41: 0.7570095746 | AE41: 0.3825927721 | AF41: 0.3006848865 | AG41: 0.3000707461 | AH41: 0.3387669839 | AI41: 1.119673769 | AJ41: 0.4669428264 | AK41: 0.3305545733 | AL41: 1.076484324 | AM41: 1.25045459 | AN41: 2.267894465 | AO41: 0.9572511671 | AP41: 2.447244654 | AQ41: BSAF | AR41: 0.4133538981 | AS41: 0.417272829 | AT41: 0.5277707432 | AU41: 0.7492608173 | AV41: 1.514019149 | AW41: 0.7651855442 | AX41: 0.6013697729 | AY41: 0.6001414922 | AZ41: 0.6775339677 | BA41: 2.239347538 | BB41: 0.9338856527 | BC41: 0.6611091467 | BD41: 2.152968648 | BE41: 2.50090918 | BF41: 4.53578893 | BG41: 1.914502334 | BH41: 4.894489308 | BI41: 1.924321983 | BJ41: 3.191046256 | BK41: 1.197718376 | BL41: 0.9627348837 | BM41: 1.909773845 | BN41: 0.8342338095 | BO41: 0.4454633733 | BP41: 0.5574392092
B42: Dissolved Oxygen Concentration (DO) (mg/L) | C42: DO | D42: 9 | E42: NA | P42: PCB 56 | Q42: 1.249052839 | R42: 2.102704422 | S42: 0.7743319644 | T42: 0.6179864408 | U42: 1.199044515 | V42: 0.4911444193 | W42: 0.2669172444 | X42: 0.3102171703 | Y42: Tissue | Z42: 0.213016977 | AA42: 0.2095133438 | AB42: 0.2957542366 | AC42: 0.4504974648 | AD42: 0.9575026522 | AE42: 0.4616353971 | AF42: 0.3494169631 | AG42: 0.351489111 | AH42: 0.3868746032 | AI42: 1.381140122 | AJ42: 0.5524319253 | AK42: 0.3637227679 | AL42: 1.293171961 | AM42: 1.597731371 | AN42: 2.952796022 | AO42: 1.2073574 | AP42: 3.086812138 | AQ42: BSAF | AR42: 0.3944758834 | AS42: 0.3879876738 | AT42: 0.5476930308 | AU42: 0.8342545644 | AV42: 1.77315306 | AW42: 0.854880365 | AX42: 0.6470684501 | AY42: 0.6509057611 | AZ42: 0.7164344505 | BA42: 2.557666892 | BB42: 1.023022084 | BC42: 0.6735606813 | BD42: 2.39476289 | BE42: 2.958761797 | BF42: 5.468140781 | BG42: 2.235847036 | BH42: 5.716318774 | BI42: 2.313060814 | BJ42: 3.893897078 | BK42: 1.433948082 | BL42: 1.144419335 | BM42: 2.220452805 | BN42: 0.9095267025 | BO42: 0.4942911934 | BP42: 0.5744762414
B43: Suspended solid concentration in water column (SSC) (kg/L) | C43: SSC | D43: 2.27e-05 | E43: NA | P43: PCB 60 | Q43: 1.700750255 | R43: 3.035627161 | S43: 1.019084372 | T43: 0.8834659483 | U43: 1.622494458 | V43: 0.6298781899 | W43: 0.3282134764 | X43: 0.3719139915 | Y43: Tissue | Z43: 0.2295760924 | AA43: 0.2203664279 | AB43: 0.3425998239 | AC43: 0.7548152028 | AD43: 1.388243769 | AE43: 0.5711161421 | AF43: 0.4190674912 | AG43: 0.4249887186 | AH43: 0.6291997327 | AI43: 1.858793869 | AJ43: 0.6765797713 | AK43: 0.4129000013 | AL43: 1.584079714 | AM43: 2.238208003 | AN43: 4.230377379 | AO43: 1.594278438 | AP43: 4.210201936 | AQ43: BSAF | AR43: 0.3763542498 | AS43: 0.3612564391 | AT43: 0.5616390556 | AU43: 1.237401972 | AV43: 2.275809458 | AW43: 0.9362559706 | AX43: 0.6869958873 | AY43: 0.6967028173 | AZ43: 1.031474972 | BA43: 3.047203064 | BB43: 1.109147166 | BC43: 0.6768852481 | BD43: 2.596851991 | BE43: 3.669193448 | BF43: 6.935044884 | BG43: 2.613571209 | BH43: 6.901970387 | BI43: 2.788115173 | BJ43: 4.976437969 | BK43: 1.670630118 | BL43: 1.448304833 | BM43: 2.659826981 | BN43: 1.032587197 | BO43: 0.5380548794 | BP43: 0.6096950681
P44: PCB 64 | Q44: 0.6071755322 | R44: 0.9909431255 | S44: 0.378821376 | T44: 0.3092663489 | U44: 0.6270767106 | V44: 0.2903160822 | W44: 0.1529339002 | X44: 0.2039664304 | Z44: 0.1627154927 | AA44: 0.1677349003 | AB44: 0.1930498834 | AC44: 0.260080642 | AD44: 0.4954610775 | AE44: 0.2628226627 | AF44: 0.2138202358 | AG44: 0.2122637771 | AH44: 0.244640217 | AI44: 0.7460300495 | AJ44: 0.3289428329 | AK44: 0.2443370037 | AL44: 0.7362601692 | AM44: 0.8084878282 | AN44: 1.439723893 | AO44: 0.6281765891 | AP44: 1.601306418 | AR44: 0.428198665 | AS44: 0.4414076325 | AT44: 0.5080260088 | AU44: 0.684422742 | AV44: 1.303844941 | AW44: 0.6916385859 | AX44: 0.562684831 | AY44: 0.5585888871 | AZ44: 0.6437900447 | BA44: 1.963236972 | BB44: 0.865639034 | BC44: 0.642992115 | BD44: 1.937526761 | BE44: 2.127599548 | BF44: 3.788747086 | BG44: 1.653096287 | BH44: 4.213964257 | BI44: 1.597830348 | BJ44: 2.607745067 | BK44: 0.9968983578 | BL44: 0.8138588129 | BM44: 1.65020187 | BN44: 0.7639896901 | BO44: 0.402457632 | BP44: 0.5367537642
P45: PCB 66 | Q45: 2.361741065 | R45: 3.966979916 | S45: 1.465250825 | T45: 1.169950773 | U45: 2.277791177 | V45: 0.9425524166 | W45: 0.5107525523 | X45: 0.6007370528 | Y45: Tissue | Z45: 0.4175534474 | AA45: 0.4124782619 | AB45: 0.5719535404 | AC45: 0.8606561187 | AD45: 1.816447955 | AE45: 0.8820397015 | AF45: 0.6716046277 | AG45: 0.6746399083 | AH45: 0.7456749611 | AI45: 2.631496244 | AJ45: 1.058231986 | AK45: 0.705770419 | AL45: 2.473991806 | AM45: 3.026784543 | AN45: 5.577630947 | AO45: 2.291617776 | AP45: 5.859678762 | AQ45: BSAF | AR45: 0.3976699499 | AS45: 0.3928364399 | AT45: 0.5447176576 | AU45: 0.819672494 | AV45: 1.729950434 | AW45: 0.840037811 | AX45: 0.639623455 | AY45: 0.6425141984 | AZ45: 0.7101666297 | BA45: 2.506186899 | BB45: 1.007839987 | BC45: 0.6721623038 | BD45: 2.356182672 | BE45: 2.882651946 | BF45: 5.312029473 | BG45: 2.18249312 | BH45: 5.58064644 | BI45: 2.249277205 | BJ45: 3.77807611 | BK45: 1.395476976 | BL45: 1.114238831 | BM45: 2.169324931 | BN45: 0.8976689681 | BO45: 0.4864310022 | BP45: 0.5721305265
A46: Contaminant Specific | P46: PCB 70 | Q46: 3.451411282 | R46: 5.855882727 | S46: 2.132424612 | T46: 1.702555573 | U46: 3.262042633 | V46: 1.286963756 | W46: 0.7071467724 | X46: 0.785801465 | Y46: Tissue | Z46: 0.5155597474 | AA46: 0.4985465077 | AB46: 0.7531587217 | AC46: 1.20486396 | AD46: 2.620029339 | AE46: 1.231065731 | AF46: 0.9115333561 | AG46: 0.9221116608 | AH46: 0.9988431321 | AI46: 3.714707288 | AJ46: 1.461876275 | AK46: 0.9134716804 | AL46: 3.426319475 | AM46: 4.391523417 | AN46: 8.201890287 | AO46: 3.295968956 | AP46: 8.420100555 | AQ46: BSAF | AR46: 0.3818961092 | AS46: 0.3692937094 | AT46: 0.5578953494 | AU46: 0.8924918225 | AV46: 1.940762473 | AW46: 0.9119005413 | AX46: 0.6752098934 | AY46: 0.6830456747 | AZ46: 0.7398838015 | BA46: 2.751635028 | BB46: 1.082871315 | BC46: 0.6766456892 | BD46: 2.538014426 | BE46: 3.252980309 | BF46: 6.075474287 | BG46: 2.441458486 | BH46: 6.237111522 | BI46: 2.55660095 | BJ46: 4.337690909 | BK46: 1.579573787 | BL46: 1.261152277 | BM46: 2.416327876 | BN46: 0.953306486 | BO46: 0.523812424 | BP46: 0.5820751593
A47: Contaminant | B47: Contaminant class | C47: Observed Sediment Concentration | D47: Observed Surface Water Concentration | E47: Observed Dissolved Surface Water Concentration | F47: Observed Porewater Concentration | P47: PCB 74 | Q47: 0.504009394 | R47: 0.8560339867 | S47: 0.311226136 | T47: 0.2485690752 | U47: 0.475408123 | V47: 0.1865753773 | W47: 0.1026786077 | X47: 0.113370782 | Y47: Tissue | Z47: 0.07389767335 | AA47: 0.07128020466 | AB47: 0.108743043 | AC47: 0.1752617246 | AD47: 0.3821878364 | AE47: 0.1789392606 | AF47: 0.1320834751 | AG47: 0.1337291411 | AH47: 0.1445229569 | AI47: 0.5404741621 | AJ47: 0.2123039314 | AK47: 0.1316084337 | AL47: 0.4974638782 | AM47: 0.6409469546 | AN47: 1.198816067 | AO47: 0.4805945488 | AP47: 1.227587447 | AQ47: BSAF | AR47: 0.3800202297 | AS47: 0.3665598458 | AT47: 0.5592132244 | AU47: 0.9012868448 | AV47: 1.96540842 | AW47: 0.9201986456 | AX47: 0.6792418527 | AY47: 0.6877047223 | AZ47: 0.7432121307 | BA47: 2.779398944 | BB47: 1.091777117 | BC47: 0.6767989428 | BD47: 2.558217718 | BE47: 3.296082243 | BF47: 6.164935057 | BG47: 2.471466862 | BH47: 6.312892445 | BI47: 2.591878161 | BJ47: 4.40217151 | BK47: 1.600486488 | BL47: 1.278271328 | BM47: 2.444795566 | BN47: 0.9594675247 | BO47: 0.5280267471 | BP47: 0.5830114626
C48: ng/g dry wt | D48: pg/L in unfiltered sample | E48: pg/L | F48: pg/L | P48: PCB 77 | Q48: 3.51351225 | R48: 6.053531993 | S48: 2.14659369 | T48: 1.737075384 | U48: 3.235279948 | V48: 1.17570825 | W48: 0.6621969974 | X48: 0.6640457166 | Z48: 0.3908307223 | AA48: 0.3619817575 | AB48: 0.6425470962 | AC48: 1.177310433 | AD48: 2.643638283 | AE48: 1.17506261 | AF48: 0.828272457 | AG48: 0.8500672542 | AH48: 0.8870675848 | AI48: 3.58219696 | AJ48: 1.384321709 | AK48: 0.7499658102 | AL48: 3.193179634 | AM48: 4.456622254 | AN48: 8.508883819 | AO48: 3.293813607 | AP48: 8.392239516 | AR48: 0.3489560021 | AS48: 0.3231979978 | AT48: 0.5737027645 | AU48: 1.051170029 | AV48: 2.360391324 | AW48: 1.049163044 | AX48: 0.7395289794 | AY48: 0.7589886198 | AZ48: 0.7920246293 | BA48: 3.198390143 | BB48: 1.236001526 | BC48: 0.6696123305 | BD48: 2.851053244 | BE48: 3.979127013 | BF48: 7.597217695 | BG48: 2.940905006 | BH48: 7.493070997 | BI48: 3.137064509 | BJ48: 5.40493928 | BK48: 1.916601509 | BL48: 1.550960164 | BM48: 2.888642811 | BN48: 1.049739509 | BO48: 0.5912473191 | BP48: 0.5928979612
A49: cis-Chlordane | B49: Chlordanes | C49: 0.5 | D49: 0.32 | P49: PCB 81 | Q49: 3.379288037 | R49: 5.817180149 | S49: 2.066352723 | T49: 1.669884304 | U49: 3.115666515 | V49: 1.137867715 | W49: 0.6399320182 | X49: 0.6458088837 | Z49: 0.3828008841 | AA49: 0.3555640525 | AB49: 0.6246870764 | AC49: 1.133714075 | AD49: 2.542721878 | AE49: 1.134074059 | AF49: 0.8018104642 | AG49: 0.8221399116 | AH49: 0.8599055216 | AI49: 3.456042143 | AJ49: 1.336258971 | AK49: 0.7310403952 | AL49: 3.087461448 | AM49: 4.285812814 | AN49: 8.172242219 | AO49: 3.170738757 | AP49: 8.08013816 | AR49: 0.3511934716 | AS49: 0.3262055528 | AT49: 0.5731074095 | AU49: 1.040104656 | AV49: 2.332772365 | AW49: 1.040434917 | AX49: 0.7356059305 | AY49: 0.7542567996 | AZ49: 0.7889041483 | BA49: 3.170680865 | BB49: 1.225925661 | BC49: 0.6706792617 | BD49: 2.832533439 | BE49: 3.931938361 | BF49: 7.497469926 | BG49: 2.908934639 | BH49: 7.412970789 | BI49: 3.100264254 | BJ49: 5.336862522 | BK49: 1.895736443 | BL49: 1.532003949 | BM49: 2.858409647 | BN49: 1.043915334 | BO49: 0.5870935946 | BP49: 0.5924852144
A50: trans-Chlordane | B50: Chlordanes | C50: 0.5 | D50: 0.16 | P50: PCB 87 | Q50: 4.934803657 | R50: 8.575426211 | S50: 2.983882116 | T50: 2.457865596 | U50: 4.49346487 | V50: 1.552666113 | W50: 0.8875264827 | X50: 0.8336581442 | Y50: Tissue | Z50: 0.4542666189 | AA50: 0.4079388614 | AB50: 0.8069119756 | AC50: 1.648401815 | AD50: 3.723824748 | AE50: 1.596883476 | AF50: 1.090836514 | AG50: 1.130484797 | AH50: 1.152635341 | AI50: 4.878348984 | AJ50: 1.882076908 | AK50: 0.9153009404 | AL50: 4.248698134 | AM50: 6.280860023 | AN50: 12.14756682 | AO50: 4.590783702 | AP50: 11.67724047 | AQ50: BSAF | AR50: 0.3244761563 | AS50: 0.291384901 | AT50: 0.5763656968 | AU50: 1.177429868 | AV50: 2.65987482 | AW50: 1.140631054 | AX50: 0.7791689385 | AY50: 0.8074891407 | AZ50: 0.8233109575 | BA50: 3.484534989 | BB50: 1.344340648 | BC50: 0.653786386 | BD50: 3.034784382 | BE50: 4.486328588 | BF50: 8.676833439 | BG50: 3.279131216 | BH50: 8.340886053 | BI50: 3.524859755 | BJ50: 6.125304436 | BK50: 2.131344369 | BL50: 1.755618283 | BM50: 3.209617764 | BN50: 1.109047224 | BO50: 0.6339474876 | BP50: 0.595470103
A51: cis-Nonachlor | B51: Chlordanes | C51: 0.49 | D51: 0.28 | P51: PCB 95 | Q51: 1.901025244 | R51: 3.216477578 | S51: 1.17602223 | T51: 0.9382430407 | U51: 1.805988562 | V51: 0.7221195582 | W51: 0.3952139984 | X51: 0.4463564381 | Y51: Tissue | Z51: 0.2977748443 | AA51: 0.289818908 | AB51: 0.4269760309 | AC51: 0.6705121754 | AD51: 1.447045596 | AE51: 0.6862091753 | AF51: 0.5121477368 | AG51: 0.5170090426 | AH51: 0.5633271671 | AI51: 2.065036015 | AJ51: 0.8169708739 | AK51: 0.520684046 | AL51: 1.915432094 | AM51: 2.422449629 | AN51: 4.507951747 | AO51: 1.822538288 | AP51: 4.658226723 | AQ51: BSAF | AR51: 0.3867205771 | AS51: 0.3763881922 | AT51: 0.5545143259 | AU51: 0.8707950329 | AV51: 1.879279995 | AW51: 0.8911807472 | AX51: 0.6651269309 | AY51: 0.6714403151 | AZ51: 0.7315937235 | BA51: 2.681864955 | BB51: 1.061001135 | BC51: 0.6762130468 | BD51: 2.487574148 | BE51: 3.146038479 | BF51: 5.854482788 | BG51: 2.366932841 | BH51: 6.049645095 | BI51: 2.468863953 | BJ51: 4.177243608 | BK51: 1.527301597 | BL51: 1.218497455 | BM51: 2.345439691 | BN51: 0.937817608 | BO51: 0.5132649329 | BP51: 0.5796836859
A52: trans-Nonachlor | B52: Chlordanes | C52: 0.5 | D52: 0.05 | P52: PCB 97 | Q52: 1.175611799 | R52: 2.029714012 | S52: 0.7165838108 | T52: 0.5817486356 | U52: 1.078923489 | V52: 0.38724029 | W52: 0.2189219368 | X52: 0.2160660173 | Y52: Tissue | Z52: 0.12495529 | AA52: 0.1149391178 | AB52: 0.2092169158 | AC52: 0.3927002988 | AD52: 0.8840912159 | AE52: 0.3896897917 | AF52: 0.272630555 | AG52: 0.2804699527 | AH52: 0.2910203463 | AI52: 1.188907089 | AJ52: 0.4591213195 | AK52: 0.2426533127 | AL52: 1.054462781 | AM52: 1.491585603 | AN52: 2.857485735 | AO52: 1.099640845 | AP52: 2.801234131 | AQ52: BSAF | AR52: 0.3435740084 | AS52: 0.3160337863 | AT52: 0.575257713 | AU52: 1.079759134 | AV52: 2.430875577 | AW52: 1.071481517 | AX52: 0.7496183039 | AY52: 0.77117332 | AZ52: 0.8001824241 | BA52: 3.268989845 | BB52: 1.262388747 | BC52: 0.6671936119 | BD52: 2.899325065 | BE52: 4.101227281 | BF52: 7.856872867 | BG52: 3.023545564 | BH52: 7.702204831 | BI52: 3.232433441 | BJ52: 5.58085199 | BK52: 1.970301314 | BL52: 1.599561815 | BM52: 2.966581628 | BN52: 1.064746427 | BO52: 0.6019424013 | BP52: 0.5940898348
A53: Oxychlordane | B53: Chlordanes | C53: 0.23 | D53: 0.09 | P53: PCB 99 | Q53: 2.197256853 | R53: 3.821225126 | S53: 1.327136692 | T53: 1.095500622 | U53: 1.999170216 | V53: 0.6876319075 | W53: 0.3935675262 | X53: 0.3674620722 | Y53: Tissue | Z53: 0.1987004984 | AA53: 0.1778886035 | AB53: 0.3555456057 | AC53: 0.7345428914 | AD53: 1.659283524 | AE53: 0.7090829012 | AF53: 0.4829526186 | AG53: 0.5009500836 | AH53: 0.5097065262 | AI53: 2.166354834 | AJ53: 0.8358235147 | AK53: 0.4021555737 | AL53: 1.882301269 | AM53: 2.798154363 | AN53: 5.417830922 | AO53: 2.042901268 | AP53: 5.195366512 | AQ53: BSAF | AR53: 0.3219980415 | AS53: 0.2882719589 | AT53: 0.5761686036 | AU53: 1.190341113 | AV53: 2.688901384 | AW53: 1.149082701 | AX53: 0.7826341582 | AY53: 0.8117994021 | AZ53: 0.8259893884 | BA53: 3.510620353 | BB53: 1.354468343 | BC53: 0.6517009677 | BD53: 3.050305998 | BE53: 4.534463839 | BF53: 8.779700906 | BG53: 3.310561436 | BH53: 8.419192982 | BI53: 3.560697678 | BJ53: 6.192370006 | BK53: 2.150650949 | BL53: 1.77528017 | BM53: 3.239694411 | BN53: 1.114320947 | BO53: 0.6377838688 | BP53: 0.5954794704
A54: Dieldrin | B54: Other pesticide | C54: 0.5 | D54: 0.23 | P54: PCB 101 | Q54: 0.6130505143 | R54: 1.062013792 | S54: 0.3722152224 | T54: 0.3042561672 | U54: 0.5601869794 | V54: 0.1971525706 | W54: 0.1121031604 | X54: 0.1078585915 | Y54: Tissue | Z54: 0.0605404848 | AA54: 0.05501848564 | AB54: 0.104472539 | AC54: 0.2044925546 | AD54: 0.4615801977 | AE54: 0.2006373063 | AF54: 0.1386620574 | AG54: 0.1431909189 | AH54: 0.1472308426 | AI54: 0.6126425726 | AJ54: 0.2363877534 | AK54: 0.1198231173 | AL54: 0.5384266741 | AM54: 0.7788376498 | AN54: 1.499494231 | AO54: 0.5717290188 | AP54: 1.45534547 | AQ54: BSAF | AR54: 0.3340164575 | AS54: 0.3035502562 | AT54: 0.5764001974 | AU54: 1.128234749 | AV54: 2.546649288 | AW54: 1.106964414 | AX54: 0.7650320173 | AY54: 0.7900188384 | AZ54: 0.8123080721 | BA54: 3.380096847 | BB54: 1.304208254 | BC54: 0.6610930403 | BD54: 2.970629834 | BE54: 4.297035176 | BF54: 8.273071363 | BG54: 3.154366902 | BH54: 8.029491999 | BI54: 3.38234756 | BJ54: 5.859386259 | BK54: 2.053601163 | BL54: 1.678654663 | BM54: 3.090686687 | BN54: 1.087738287 | BO54: 0.6185001763 | BP54: 0.5950818657
A55: op-DDD | B55: DDTs | C55: 0.1893023256 | E55: 9.305665792 | P55: PCB 105 | Q55: 2.119966782 | R55: 3.803132107 | S55: 1.194898173 | T55: 1.1666545 | U55: 1.945636915 | V55: 0.5666952072 | W55: 0.3336659057 | X55: 0.2534702274 | Y55: Tissue | Z55: 0.08923413285 | AA55: 0.06914368488 | AB55: 0.2163684566 | AC55: 0.8693965155 | AD55: 1.787410848 | AE55: 0.6358475734 | AF55: 0.3809812303 | AG55: 0.4014326775 | AH55: 0.3922219848 | AI55: 1.947017713 | AJ55: 0.726576517 | AK55: 0.2135486833 | AL55: 1.462883674 | AM55: 2.862557625 | AN55: 5.692932159 | AO55: 1.950948213 | AP55: 4.863244807 | AQ55: BSAF | AR55: 0.196547933 | AS55: 0.152296525 | AT55: 0.4765751799 | AU55: 1.914940871 | AV55: 3.936967799 | AW55: 1.400523794 | AX55: 0.83915281 | AY55: 0.8841993582 | AZ55: 0.8639118007 | BA55: 4.288519368 | BB55: 1.600364211 | BC55: 0.4703643208 | BD55: 3.22216122 | BE55: 6.305096113 | BF55: 12.53930545 | BG55: 4.297176724 | BH55: 10.71182835 | BI55: 4.6694586 | BJ55: 8.376814238 | BK55: 2.631893856 | BL55: 2.56968408 | BM55: 4.285478009 | BN55: 1.248208147 | BO55: 0.7349356348 | BP55: 0.5582958861
A56: op-DDE | B56: DDTs | C56: 6.704795349 | E56: 44.88585023 | F56: 63.87 | P56: PCB 110 | Q56: 5.410957179 | R56: 9.373077497 | S56: 3.285519243 | T56: 2.685290875 | U56: 4.944724513 | V56: 1.740855881 | W56: 0.9897698341 | X56: 0.9527266938 | Y56: Tissue | Z56: 0.5350526282 | AA56: 0.486356765 | AB56: 0.9228204142 | AC56: 1.804908224 | AD56: 4.073908751 | AE56: 1.771271835 | AF56: 1.224408309 | AG56: 1.264313417 | AH56: 1.300193452 | AI56: 5.408484748 | AJ56: 2.086876965 | AK56: 1.058630209 | AL56: 4.754090041 | AM56: 6.874041884 | AN56: 13.23342032 | AO56: 5.046493337 | AP56: 12.8461051 | AQ56: BSAF | AR56: 0.3341917367 | AS56: 0.3037764948 | AT56: 0.5763899485 | AU56: 1.127338475 | AV56: 2.544547151 | AW56: 1.10632932 | AX56: 0.7647605441 | AY56: 0.7896851152 | AZ56: 0.8120956419 | BA56: 3.378117993 | BB56: 1.303455025 | BC56: 0.6612162042 | BD56: 2.96938567 | BE56: 4.293499133 | BF56: 8.265541528 | BG56: 3.152019602 | BH56: 8.023625987 | BI56: 3.379662263 | BJ56: 5.854386804 | BK56: 2.05212221 | BL56: 1.677221966 | BM56: 3.088455201 | BN56: 1.087331637 | BO56: 0.618206289 | BP56: 0.5950692914
A57: op-DDT | B57: DDTs | C57: 1.2 | F57: 15.68 | P57: PCB 114 | Q57: 1.459460833 | R57: 2.589796843 | S57: 0.8469779254 | T57: 0.7650215336 | U57: 1.321585578 | V57: 0.4052401741 | W57: 0.2379179225 | X57: 0.191459069 | Z57: 0.08057976436 | AA57: 0.06579780762 | AB57: 0.1760989542 | AC57: 0.5358912587 | AD57: 1.160667445 | AE57: 0.444821285 | AF57: 0.2791955313 | AG57: 0.2947208515 | AH57: 0.2879032779 | AI57: 1.358924474 | AJ57: 0.5221915839 | AK57: 0.1828593795 | AL57: 1.088795844 | AM57: 1.915088925 | AN57: 3.794584942 | AO57: 1.343913081 | AP57: 3.388215798 | AR57: 0.2441811041 | AS57: 0.1993872958 | AT57: 0.5336331945 | AU57: 1.623912905 | AV57: 3.517174077 | AW57: 1.347943288 | AX57: 0.8460470647 | AY57: 0.8930934894 | AZ57: 0.8724341754 | BA57: 4.117952951 | BB57: 1.582398739 | BC57: 0.5541193319 | BD57: 3.299381346 | BE57: 5.803299772 | BF57: 11.49874225 | BG57: 4.072463882 | BH57: 10.2673206 | BI57: 4.422608584 | BJ57: 7.84786922 | BK57: 2.566599774 | BL57: 2.318247071 | BM57: 4.004804781 | BN57: 1.228000527 | BO57: 0.7209634014 | BP57: 0.580178997
A58: pp-DDD | B58: DDTs | C58: 3.243651395 | E58: 19.45333669 | P58: PCB 118 | Q58: 1.278223135 | R58: 2.308904261 | S58: 0.7224274334 | T58: 0.6930328264 | U58: 1.16802577 | V58: 0.3530713932 | W58: 0.2004092032 | X58: 0.1635210723 | Y58: Tissue | Z58: 0.06390698088 | AA58: 0.05149750555 | AB58: 0.1434214564 | AC58: 0.5478322118 | AD58: 1.049038462 | AE58: 0.375677006 | AF58: 0.2331119152 | AG58: 0.2462192198 | AH58: 0.2941319755 | AI58: 1.177241169 | AJ58: 0.4392072052 | AK58: 0.147077854 | AL58: 0.9065945887 | AM58: 1.718025761 | AN58: 3.410715156 | AO58: 1.166143462 | AP58: 2.953564102 | AQ58: BSAF | AR58: 0.2323890166 | AS58: 0.1872636527 | AT58: 0.5215325579 | AU58: 1.992117093 | AV58: 3.81468524 | AW58: 1.366098176 | AX58: 0.8476796743 | AY58: 0.895342599 | AZ58: 1.069570798 | BA58: 4.28087689 | BB58: 1.597117077 | BC58: 0.5348285491 | BD58: 3.296707528 | BE58: 6.247366276 | BF58: 12.40260031 | BG58: 4.240521594 | BH58: 10.74023288 | BI58: 4.648084032 | BJ58: 8.396015323 | BK58: 2.627008795 | BL58: 2.520119317 | BM58: 4.247366349 | BN58: 1.283895949 | BO58: 0.7287607241 | BP58: 0.594622069
A59: pp-DDE | B59: DDTs | C59: 44.74623256 | E59: 306.1044638 | P59: PCB 119 | Q59: 1.517659709 | R59: 2.647338046 | S59: 0.9124585237 | T59: 0.7601227158 | U59: 1.377075046 | V59: 0.465233907 | W59: 0.2675921681 | X59: 0.2440126066 | Z59: 0.1278797393 | AA59: 0.1130716084 | AB59: 0.2355779296 | AC59: 0.5098400432 | AD59: 1.15026101 | AE59: 0.4847173299 | AF59: 0.3263021925 | AG59: 0.3396253661 | AH59: 0.3428163381 | AI59: 1.48112685 | AJ59: 0.5716717646 | AK59: 0.2634044554 | AL59: 1.2745623 | AM59: 1.93767872 | AN59: 3.767813838 | AO59: 1.408078715 | AP59: 3.578027291 | AR59: 0.3119018033 | AS59: 0.2757844106 | AT59: 0.574580316 | AU59: 1.2435123 | AV59: 2.805514658 | AW59: 1.18223739 | AX59: 0.7958590061 | AY59: 0.8283545516 | AZ59: 0.83613741 | BA59: 3.612504511 | BB59: 1.394321377 | BC59: 0.6424498912 | BD59: 3.108688536 | BE59: 4.726045659 | BF59: 9.18978985 | BG59: 3.434338329 | BH59: 8.726895832 | BI59: 3.701609047 | BJ59: 6.456922063 | BK59: 2.225508594 | BL59: 1.853957843 | BM59: 3.358719624 | BN59: 1.134716846 | BO59: 0.6526638247 | BP59: 0.5951526991
A60: pp-DDT | B60: DDTs | C60: 1.099302326 | E60: 8.092710587 | P60: PCB 123 | Q60: 2.772683437 | R60: 4.916915432 | S60: 1.611669199 | T60: 1.449920699 | U60: 2.509719599 | V60: 0.7721508157 | W60: 0.4531296492 | X60: 0.3661466136 | Z60: 0.1555911151 | AA60: 0.1274502683 | AB60: 0.3378638158 | AC60: 1.012686902 | AD60: 2.198949066 | AE60: 0.8461958732 | AF60: 0.532567574 | AG60: 0.5620533509 | AH60: 0.549385757 | AI60: 2.585011462 | AJ60: 0.9941506177 | AK60: 0.3518748916 | AL60: 2.078022026 | AM60: 3.633067914 | AN60: 7.195297177 | AO60: 2.553540175 | AP60: 6.440887897 | AR60: 0.246970024 | AS60: 0.2023020131 | AT60: 0.5362917711 | AU60: 1.607439528 | AV60: 3.490395343 | AW60: 1.343168053 | AX60: 0.8453453556 | AY60: 0.892148176 | AZ60: 0.8720408841 | BA60: 4.103192797 | BB60: 1.578016853 | BC60: 0.5585315739 | BD60: 3.29844766 | BE60: 5.766774467 | BF60: 11.42110663 | BG60: 4.053238373 | BH60: 10.22363158 | BI60: 4.40108482 | BJ60: 7.80462767 | BK60: 2.558205078 | BL60: 2.301461427 | BM60: 3.983681903 | BN60: 1.225636215 | BO60: 0.7192534114 | BP60: 0.581185101
A61: PCB 8 | B61: PCBs | C61: 0.5 | D61: 16.84 | P61: PCB 126 | Q61: 1.755656541 | R61: 3.139233465 | S61: 0.998643181 | T61: 0.9505185549 | U61: 1.602667131 | V61: 0.4735628125 | W61: 0.2788465596 | X61: 0.2150070689 | Z61: 0.08013640406 | AA61: 0.06306357096 | AB61: 0.188478143 | AC61: 0.693711121 | AD61: 1.451018925 | AE61: 0.5284154201 | AF61: 0.3211112215 | AG61: 0.3389509428 | AH61: 0.330439153 | AI61: 1.616365052 | AJ61: 0.610655695 | AK61: 0.1889180266 | AL61: 1.240348128 | AM61: 2.348302816 | AN61: 4.668996512 | AO61: 1.615338363 | AP61: 4.0435067 | AR61: 0.2108852738 | AS61: 0.1659567657 | AT61: 0.4959951131 | AU61: 1.825555582 | AV61: 3.818470856 | AW61: 1.390566895 | AX61: 0.8450295302 | AY61: 0.8919761654 | AZ61: 0.8695767183 | BA61: 4.253592242 | BB61: 1.606988671 | BC61: 0.4971527016 | BD61: 3.26407402 | BE61: 6.179744252 | BF61: 12.28683293 | BG61: 4.250890429 | BH61: 10.6408071 | BI61: 4.620148791 | BJ61: 8.261140698 | BK61: 2.628008371 | BL61: 2.501364618 | BM61: 4.217545081 | BN61: 1.246217928 | BO61: 0.7338067357 | BP61: 0.5658080761
A62: PCB 11 | B62: PCBs | C62: 0.36 | F62: 47.65 | P62: PCB 128 | Q62: 3.32506591 | R62: 5.95756919 | S62: 1.878415133 | T62: 1.816400527 | U62: 3.04180061 | V62: 0.8888525205 | W62: 0.5235754914 | X62: 0.398923214 | Y62: Tissue | Z62: 0.1432119228 | AA62: 0.1115859076 | AB62: 0.343801054 | AC62: 1.343641722 | AD62: 2.776789112 | AE62: 0.9956211076 | AF62: 0.5992858157 | AG62: 0.6321909688 | AH62: 0.6170361775 | AI62: 3.047570032 | AJ62: 1.145232923 | AK62: 0.3413580234 | AL62: 2.309727015 | AM62: 4.472789385 | AN62: 8.904462098 | AO62: 3.057317482 | AP62: 7.64037933 | AQ62: BSAF | AR62: 0.2017069336 | AS62: 0.1571632502 | AT62: 0.4842268366 | AU62: 1.892453129 | AV62: 3.910970581 | AW62: 1.40228325 | AX62: 0.8440645291 | AY62: 0.8904098152 | AZ62: 0.8690650388 | BA62: 4.292352158 | BB62: 1.613004117 | BC62: 0.4807859485 | BD62: 3.253136641 | BE62: 6.299703359 | BF62: 12.54149591 | BG62: 4.30608096 | BH62: 10.76109765 | BI62: 4.683191422 | BJ62: 8.390942521 | BK62: 2.645655117 | BL62: 2.558310602 | BM62: 4.284226212 | BN62: 1.251904958 | BO62: 0.7374302696 | BP62: 0.5618636816
A63: PCB 18 | B63: PCBs | C63: 0.1010548837 | E63: 13.185837 | P63: PCB 132 | Q63: 1.37438417 | R63: 2.421211986 | S63: 0.8107684716 | T63: 0.7030200724 | U63: 1.240812846 | V63: 0.3952629513 | W63: 0.2305970968 | X63: 0.1947024405 | Y63: Tissue | Z63: 0.09065126659 | AA63: 0.07666512662 | AB63: 0.1844231177 | AC63: 0.4791299537 | AD63: 1.063000109 | AE63: 0.4253968894 | AF63: 0.2750826814 | AG63: 0.2892332115 | AH63: 0.285340933 | AI63: 1.299520821 | AJ63: 0.5024897383 | AK63: 0.1978800254 | AL63: 1.077882091 | AM63: 1.777426692 | AN63: 3.501390203 | AO63: 1.26790351 | AP63: 3.212004768 | AQ63: BSAF | AR63: 0.2747008078 | AS63: 0.2323185655 | AT63: 0.5588579326 | AU63: 1.451908951 | AV63: 3.221212451 | AW63: 1.289081483 | AX63: 0.8335838831 | AY63: 0.8764642772 | AZ63: 0.8646694938 | BA63: 3.937941882 | BB63: 1.522696177 | BC63: 0.5996364405 | BD63: 3.266309367 | BE63: 5.386141491 | BF63: 10.61027334 | BG63: 3.84213185 | BH63: 9.733347783 | BI63: 4.164800515 | BJ63: 7.337006018 | BK63: 2.456874157 | BL63: 2.130363856 | BM63: 3.760038928 | BN63: 1.197766519 | BO63: 0.6987790813 | BP63: 0.5900073954
A64: PCB 27 | B64: PCBs | C64: 0.44 | P64: PCB 137 | Q64: 2.639411528 | R64: 4.740753385 | S64: 1.480556888 | T64: 1.460377788 | U64: 2.42523965 | V64: 0.7012369353 | W64: 0.4129108814 | X64: 0.3113335383 | Z64: 0.1069335074 | AA64: 0.08236410829 | AB64: 0.2625893618 | AC64: 1.098192032 | AD64: 2.238952932 | AE64: 0.7884496101 | AF64: 0.4695323589 | AG64: 0.4944286823 | AH64: 0.4837920501 | AI64: 2.415657591 | AJ64: 0.8983322095 | AK64: 0.2577110719 | AL64: 1.800947401 | AM64: 3.576798992 | AN64: 7.120423101 | AO64: 2.427468619 | AP64: 6.045958669 | AR64: 0.1909526918 | AS64: 0.1470787648 | AT64: 0.4689095747 | AU64: 1.9610572 | AV64: 3.998130236 | AW64: 1.407945732 | AX64: 0.8384506409 | AY64: 0.8829083613 | AZ64: 0.8639143751 | BA64: 4.31367427 | BB64: 1.60416466 | BC64: 0.4601983426 | BD64: 3.215977501 | BE64: 6.387141058 | BF64: 12.71504125 | BG64: 4.334765391 | BH64: 10.79635477 | BI64: 4.713234872 | BJ64: 8.465631045 | BK64: 2.643851586 | BL64: 2.607817478 | BM64: 4.330785089 | BN64: 1.252208813 | BO64: 0.7373408597 | BP64: 0.5559527469
A65: PCB 28 | B65: PCBs | C65: 0.1668634884 | E65: 11.43476661 | P65: PCB 138 | Q65: 1.109593546 | R65: 2.037918972 | S65: 0.586426486 | T65: 0.7161198031 | U65: 1.094220251 | V65: 0.2959011712 | W65: 0.1711928241 | X65: 0.1243366901 | Y65: Tissue | Z65: 0.02641454449 | AA65: 0.01862108911 | AB65: 0.07857396608 | AC65: 0.6384826262 | AD65: 1.14016259 | AE65: 0.3391322339 | AF65: 0.1825250426 | AG65: 0.1830276006 | AH65: 0.1911946392 | AI65: 1.052481501 | AJ65: 0.3203671876 | AK65: 0.06874451337 | AL65: 0.6478486279 | AM65: 1.632672896 | AN65: 3.178644147 | AO65: 1.035504343 | AP65: 2.444004331 | AQ65: BSAF | AR65: 0.104057298 | AS65: 0.0733558067 | AT65: 0.3095338105 | AU65: 2.515234626 | AV65: 4.491549664 | AW65: 1.335975487 | AX65: 0.7190380576 | AY65: 0.7210178313 | AZ65: 0.7531910145 | BA65: 4.146139311 | BB65: 1.262052576 | BC65: 0.2708117235 | BD65: 2.552130997 | BE65: 6.431741807 | BF65: 12.52193168 | BG65: 4.079259596 | BH65: 9.627895994 | BI65: 4.371126155 | BJ65: 8.02816577 | BK65: 2.31016498 | BL65: 2.821078055 | BM65: 4.31056469 | BN65: 1.165671298 | BO65: 0.6743959839 | BP65: 0.4898112109
A66: PCB 29 | B66: PCBs | C66: 0.72 | P66: PCB 141 | Q66: 1.428587989 | R66: 2.61881256 | S66: 0.7830985735 | T66: 0.8038576102 | U66: 1.318354644 | V66: 0.3882766496 | W66: 0.2144255447 | X66: 0.1746416894 | Y66: Tissue | Z66: 0.06116555421 | AA66: 0.04813600163 | AB66: 0.1439871036 | AC66: 0.7010430998 | AD66: 1.213058802 | AE66: 0.4045810925 | AF66: 0.2457386544 | AG66: 0.2594913102 | AH66: 0.3591227847 | AI66: 1.29303414 | AJ66: 0.468510112 | AK66: 0.1443753382 | AL66: 0.950517129 | AM66: 1.970217885 | AN66: 3.920849804 | AO66: 1.292490454 | AP66: 3.273117003 | AQ66: BSAF | AR66: 0.2109157042 | AS66: 0.1659862125 | AT66: 0.4965072537 | AU66: 2.417389999 | AV66: 4.182961387 | AW66: 1.395107216 | AX66: 0.8473746703 | AY66: 0.8947976213 | AZ66: 1.23835443 | BA66: 4.458738412 | BB66: 1.61555211 | BC66: 0.4978459938 | BD66: 3.277645273 | BE66: 6.793854776 | BF66: 13.52017174 | BG66: 4.456863635 | BH66: 11.28661036 | BI66: 4.926165479 | BJ66: 9.030388138 | BK66: 2.700339909 | BL66: 2.771922794 | BM66: 4.546050496 | BN66: 1.338884998 | BO66: 0.7393984299 | BP66: 0.602212722
